Workbook

Sheet START

Sheet Instructions
D2: 2020
X4: Yes
X5: No
W7: Type of Entities Range:
X8: Parent Municipality
X9: Consolidated Information
W17: MTREF Range: | X17: 2008
X18: 2009
X19: 2010
X20: 2011
X21: 2012
X22: 2013
X23: 2014
X24: 2015
X25: 2016
X26: 2017
X27: 2018
X28: 2019
X29: 2020
X30: 2021
X31: 2022
W33: MTREF Linked: | X33: 13
W34: MTREF: | X34: =INDEX(X17:X31,X33,1) -> 2020
W36: Fin Year: | X36: =MTREF&"/"&RIGHT(MTREF,2)+1 -> 2020/21

Sheet Template names (hidden)
A1: Common sheet headings
A2: Head1 | B2: =HLOOKUP(MTREF,Headings,2) -> 2018/19 | C2: Prior year -1
A3: Head1A | B3: =HLOOKUP(MTREF,Headings,3) -> 2017/18 | C3: Prior year -2
A4: Head1B | B4: =HLOOKUP(MTREF,Headings,4) -> 2016/17 | C4: Prior year -3
A5: Head2 | B5: =HLOOKUP(MTREF,Headings,5) -> Current Year 2019/20 | C5: Year in which budget is being prepared
A6: Head2A | B6: =HLOOKUP(MTREF,Headings,6) -> 2019/20 | C6: Year in which budget is being prepared
A7: Head3 | B7: =HLOOKUP(MTREF,Headings,7) -> 2020/21 Medium Term Revenue & Expenditure Framework | C7: MTREF name
A8: Head4 | B8: LTFS | C8: Long term financial strategy
A9: Head5 | B9: Audited Outcome
A10: Head5A | B10: Outcome
A11: Head5B | B11: Pre-audit outcome
A12: Head6 | B12: Original Budget
A13: Head7 | B13: Adjusted Budget
A14: Head8 | B14: Full Year Forecast
A15: Head9 | B15: =HLOOKUP(MTREF,Headings,8) -> Budget Year 2020/21 | C15: 1st year of MTREF | D15: Year1
A16: Head10 | B16: =HLOOKUP(MTREF,Headings,9) -> Budget Year +1 2021/22 | C16: 2nd year of MTREF | D16: Year2
A17: Head11 | B17: =HLOOKUP(MTREF,Headings,10) -> Budget Year +2 2022/23 | C17: 3rd year of MTREF | D17: Year3
A18: Head12 | B18: =HLOOKUP(MTREF,Headings,11) -> Forecast 2023/24 | C18: 1st yr of long term forecast | D18: Year4
A19: Head13 | B19: =HLOOKUP(MTREF,Headings,12) -> Forecast 2024/25 | C19: Next yr of long term forecast | D19: Year5
A20: Head14 | B20: =HLOOKUP(MTREF,Headings,13) -> Forecast 2025/26 | C20: Next yr of long term forecast | D20: Year6
A21: Head15 | B21: =HLOOKUP(MTREF,Headings,14) -> Forecast 2026/27 | C21: Next yr of long term forecast | D21: Year7
A22: Head16 | B22: =HLOOKUP(MTREF,Headings,15) -> Forecast 2027/28 | C22: Next yr of long term forecast | D22: Year8
A23: Head17 | B23: =HLOOKUP(MTREF,Headings,16) -> Forecast 2028/29 | C23: Next yr of long term forecast | D23: Year9
A24: Head18 | B24: =HLOOKUP(MTREF,Headings,17) -> Forecast 2029/30 | C24: Next yr of long term forecast | D24: Year10
A25: Head19 | B25: =HLOOKUP(MTREF,Headings,18) -> Forecast 2030/31 | C25: Next yr of long term forecast | D25: Year11
A26: Head20 | B26: =HLOOKUP(MTREF,Headings,19) -> Forecast 2031/32 | C26: Next yr of long term forecast | D26: Year12
A27: Head21 | B27: =HLOOKUP(MTREF,Headings,20) -> Forecast 2032/33 | C27: Next yr of long term forecast | D27: Year13
A28: Head22 | B28: =HLOOKUP(MTREF,Headings,21) -> Forecast 2033/34 | C28: Next yr of long term forecast | D28: Year14
A29: Head23 | B29: =HLOOKUP(MTREF,Headings,22) -> Forecast 2034/35 | C29: Next yr of long term forecast | D29: Year15
A30: Head24 | B30: Description
A31: Head25
A32: Head26 | B32: Vote Description
A33: Head27 | B33: Ref
A34: Head27a | B34: References
A35: Head28 | B35: Surplus/(Deficit) for the year | D35: Result
A36: Head29 | B36: =HLOOKUP(MTREF,Headings,23) -> Annual target 2020/21
A37: Head30 | B37: =HLOOKUP(MTREF,Headings,24) -> Revised target 2020/21
A38: Head31 | B38: Quarter ended 30 September
A39: Head32 | B39: Quarter ended 31 December
A40: Head33 | B40: Quarter ended 31 March
A41: Head34 | B41: Quarter ended 30 June
A42: Head35 | B42: Variance explanation
A43: Head36 | B43: YTD Actual 31 Dec
A44: Head37 | B44: YTD Budget 31 Dec
A45: Head38 | B45: Monthly actual
A46: Head39 | B46: YTD actual
A47: Head40 | B47: YTD budget
A48: Head41 | B48: YTD variance
A49: Head42 | B49: Surplus/ (Deficit) for the yr/period
A50: Head43 | B50: =Head3&" Summary" -> 2020/21 Medium Term Revenue & Expenditure Framework Summary
A51: Head44 | B51: 2001 Census
A52: Head45 | B52: 2011 Census
A53: Head46 | B53: - Adjustments Budget - January 2007
A54: Head47 | B54: Previous target year to complete
A55: Head48 | B55: Present value
A56: Head49
A57: Head50 | B57: Other Adjusts.
A58: Head51 | B58: Accum. Funds
A59: Head52 | B59: Multi-year capital
A60: Head53 | B60: Unfore. Unavoid.
A61: Head54 | B61: Prior Adjusted
A62: Head55 | B62: Nat. or Prov. Govt
A63: Head56 | B63: Total Adjusts.
A64: SFPerf1 | B64: Budgeted Financial Performance
A65: SFPerf2 | B65: Forecast Financial Performance
A66: SFPos1 | B66: Budgeted Financial Position
A67: SFPos2 | B67: Forecast Financial Position
A68: Cash1 | B68: Budget Cash Flow
A69: Cash2 | B69: Forecast Cash Flow
A70: RandM | B70: Expenditure includes repairs & maintenance of R'000
A71: Depart1 | B71: Department 1 - | D71: DEP1
A72: Depart2 | B72: Department 2 - | D72: DEP2
A73: Depart3 | B73: Department 3 - | D73: DEP3
A74: Depart4 | B74: Department 4 - | D74: DEP4
A75: Depart5 | B75: Department 5 - | D75: DEP5
A76: Depart6 | B76: Department 6 - | D76: DEP6
A77: Depart7 | B77: Department 7 - | D77: DEP7
A78: Depart8 | B78: Department 8 - | D78: DEP8
A79: Depart9 | B79: Department 9 - | D79: DEP9
A80: Depart10 | B80: Department 10 - | D80: DEP10
A81: Depart11 | B81: Department 11 - | D81: DEP11
A82: Depart12 | B82: Department 12 - | D82: DEP12
A83: Depart13 | B83: Department 13 - | D83: DEP13
A84: Depart14 | B84: Department 14 - | D84: DEP14
A87: Base year of forecast column selection names
A88: Choose | B88: ACT
B89: APP
B90: ADJ
A92: Standard nomenclature
A93: Muni | B93: ='Lookup and lists'!B28 -> DC37 Bojanala Platinum
A94: Municipal Entities | B94: 2 | C94: Type of report: | D94: 1
A95: =IF((MuniEntities=1)*(MuniType=2),"YES","NO") -> NO | B95: Does this municipality have entities (consolidated budget and entity budgets required)? YES/NO
A96: Entity 1 | B96: (Pty) Ltd Example 1 - Municipal entity - | D96: Ent1
A97: Entity 2 | B97: (Pty) Ltd Example 2 - Municipal entity - | D97: Ent2
A98: Entity 3 | B98: Municipal Entity Example 3 | D98: Ent3
A99: Budget approval tables | C99: Chart x-ref | D99: Sch/Tab/Ch | E99: Alternative for municipalities without entities | F99: Alternative for municipalities without entities
B100: =IF(Consolques="YES",E100,F100) -> Table A1 Budget Summary | D100: Table A1 | E100: =D100&"Consolidated Budget Summary" -> Table A1 Consolidated Budget Summary | F100: =D100&"Budget Summary" -> Table A1 Budget Summary
B101: Table A2 Budgeted Financial Performance (revenue and expenditure by functional classification) | C101: Charts 5, 6 | D101: Table A2 | E101: =D101&"Consolidated Budgeted Financial Performance (revenue and expenditure by functional classification)" -> Table A2 Consolidated Budgeted Financial Performance (revenue and expenditure by functional classification) | F101: =D101&"Budgeted Financial Performance (revenue and expenditure by functional classification)" -> Table A2 Budgeted Financial Performance (revenue and expenditure by functional classification)
B102: Table A3 Budgeted Financial Performance (revenue and expenditure by municipal vote) | D102: Table A3 | E102: =D102&"Consolidated Budgeted Financial Performance (revenue and expenditure by municipal vote)" -> Table A3 Consolidated Budgeted Financial Performance (revenue and expenditure by municipal vote) | F102: =D102&"Budgeted Financial Performance (revenue and expenditure by municipal vote)" -> Table A3 Budgeted Financial Performance (revenue and expenditure by municipal vote)
B103: Table A4 Budgeted Financial Performance (revenue and expenditure) | C103: Charts 1, 2, 3, 4 | D103: Table A4 | E103: =D103&"Consolidated Budgeted Financial Performance (revenue and expenditure)" -> Table A4 Consolidated Budgeted Financial Performance (revenue and expenditure) | F103: =D103&"Budgeted Financial Performance (revenue and expenditure)" -> Table A4 Budgeted Financial Performance (revenue and expenditure)
B104: Table A5 Budgeted Capital Expenditure by vote, functional classification and funding | C104: Charts 7, 8, 9, 10, 20 | D104: Table A5 | E104: =D104&"Consolidated Budgeted Capital Expenditure by vote, functional classification and funding" -> Table A5 Consolidated Budgeted Capital Expenditure by vote, functional classification and funding | F104: =D104&"Budgeted Capital Expenditure by vote, functional classification and funding" -> Table A5 Budgeted Capital Expenditure by vote, functional classification and funding
B105: Table A6 Budgeted Financial Position | D105: Table A6 | E105: =D105&"Consolidated Budgeted Financial Position" -> Table A6 Consolidated Budgeted Financial Position | F105: =D105&"Budgeted Financial Position" -> Table A6 Budgeted Financial Position
B106: Table A7 Budgeted Cash Flows | D106: Table A7 | E106: =D106&"Consolidated Budgeted Cash Flows" -> Table A7 Consolidated Budgeted Cash Flows | F106: =D106&"Budgeted Cash Flows" -> Table A7 Budgeted Cash Flows
B107: Table A8 Cash backed reserves/accumulated surplus reconciliation | D107: Table A8 | E107: =D107&"Consolidated Cash backed reserves/accumulated surplus reconciliation" -> Table A8 Consolidated Cash backed reserves/accumulated surplus reconciliation | F107: =D107&"Cash backed reserves/accumulated surplus reconciliation" -> Table A8 Cash backed reserves/accumulated surplus reconciliation
B108: Table A9 Asset Management | D108: Table A9 | E108: =D108&"Consolidated Asset Management" -> Table A9 Consolidated Asset Management | F108: =D108&"Asset Management" -> Table A9 Asset Management
B109: Table A10 Basic service delivery measurement | D109: Table A10 | E109: =D109&"Consolidated basic service delivery measurement" -> Table A10 Consolidated basic service delivery measurement | F109: =D109&"Basic service delivery measurement" -> Table A10 Basic service delivery measurement
A110: Supportinging Tables to the Budget Approval Tables | C110: =$C$99 -> Chart x-ref | D110: =$D$99 -> Sch/Tab/Ch
A111: Supporting Table SA1 | B111: =A111&" Supportinging detail to 'Budgeted Financial Performance'" -> Supporting Table SA1 Supportinging detail to 'Budgeted Financial Performance'
A112: Supporting Table SA2 | B112: =IF(Consolques="YES",E112,F112) -> Supporting Table SA2 Matrix Financial Performance Budget (revenue source/expenditure type and dept.) | E112: =A112&"Consolidated Matrix Financial Performance Budget (revenue source/expenditure type & dept.)" -> Supporting Table SA2 Consolidated Matrix Financial Performance Budget (revenue source/expenditure type & dept.) | F112: =A112&"Matrix Financial Performance Budget (revenue source/expenditure type and dept.)" -> Supporting Table SA2 Matrix Financial Performance Budget (revenue source/expenditure type and dept.)
A113: Supporting Table SA3 | B113: =A113&"Supportinging detail to 'Budgeted Financial Position'" -> Supporting Table SA3 Supportinging detail to 'Budgeted Financial Position'
A114: Supporting Table SA4 | B114: =A114&"Reconciliation of IDP strategic objectives and budget (revenue)" -> Supporting Table SA4 Reconciliation of IDP strategic objectives and budget (revenue) | C114: Chart 11
A115: Supporting Table SA5 | B115: =A115&"Reconciliation of IDP strategic objectives and budget (operating expenditure)" -> Supporting Table SA5 Reconciliation of IDP strategic objectives and budget (operating expenditure) | C115: Chart 12
A116: Supporting Table SA6 | B116: =A116&"Reconciliation of IDP strategic objectives and budget (capital expenditure)" -> Supporting Table SA6 Reconciliation of IDP strategic objectives and budget (capital expenditure) | C116: Chart 13
A117: Supporting Table SA7 | B117: =A117&" Measureable performance objectives" -> Supporting Table SA7 Measureable performance objectives
A118: Supporting Table SA8 | B118: =A118&" Performance indicators and benchmarks" -> Supporting Table SA8 Performance indicators and benchmarks | C118: Chts 15-19
A119: Supporting Table SA9 | B119: =A119&" Social, economic and demographic statistics and assumptions" -> Supporting Table SA9 Social, economic and demographic statistics and assumptions
A120: Supporting Table SA10 | B120: =A120&" Funding measurement" -> Supporting Table SA10 Funding measurement | C120: Chart 14
A121: Supporting Table SA11 | B121: =A121&" Property rates summary" -> Supporting Table SA11 Property rates summary
A122: Supporting Table SA12a | B122: =A122&" Property rates by category (current year)" -> Supporting Table SA12a Property rates by category (current year)
A123: Supporting Table SA12b | B123: =A123&" Property rates by category (budget year)" -> Supporting Table SA12b Property rates by category (budget year)
A124: Supporting Table SA13a | B124: =A124&" Service Tariffs by category" -> Supporting Table SA13a Service Tariffs by category
A125: Supporting Table SA13b | B125: =A125&" Service Tariffs by category - explanatory" -> Supporting Table SA13b Service Tariffs by category - explanatory
A126: Supporting Table SA14 | B126: =A126&" Household bills" -> Supporting Table SA14 Household bills
A127: Supporting Table SA15 | B127: =A127&" Investment particulars by type" -> Supporting Table SA15 Investment particulars by type
A128: Supporting Table SA16 | B128: =A128&" Investment particulars by maturity" -> Supporting Table SA16 Investment particulars by maturity
A129: Supporting Table SA17 | B129: =A129&" Borrowing" -> Supporting Table SA17 Borrowing
A130: Supporting Table SA18 | B130: =A130&" Transfers and grant receipts" -> Supporting Table SA18 Transfers and grant receipts
A131: Supporting Table SA19 | B131: =A131&" Expenditure on transfers and grant programme" -> Supporting Table SA19 Expenditure on transfers and grant programme
A132: Supporting Table SA20 | B132: =A132&" Reconciliation of transfers, grant receipts and unspent funds" -> Supporting Table SA20 Reconciliation of transfers, grant receipts and unspent funds
A133: Supporting Table SA21 | B133: =A133&" Transfers and grants made by the municipality" -> Supporting Table SA21 Transfers and grants made by the municipality
A134: Supporting Table SA22 | B134: =A134&" Summary councillor and staff benefits" -> Supporting Table SA22 Summary councillor and staff benefits
A135: Supporting Table SA23 | B135: =A135&" Salaries, allowances & benefits (political office bearers/councillors/senior managers)" -> Supporting Table SA23 Salaries, allowances & benefits (political office bearers/councillors/senior managers)
A136: Supporting Table SA24 | B136: =A136&" Summary of personnel numbers" -> Supporting Table SA24 Summary of personnel numbers
A137: Supporting Table SA25 | B137: =IF(Consolques="YES",E137,F137) -> Supporting Table SA25 Budgeted monthly revenue and expenditure | E137: =A137&" Consolidated budgeted monthly revenue and expenditure" -> Supporting Table SA25 Consolidated budgeted monthly revenue and expenditure | F137: =A137&" Budgeted monthly revenue and expenditure" -> Supporting Table SA25 Budgeted monthly revenue and expenditure
A138: Supporting Table SA26 | B138: Supporting Table SA26 Budgeted monthly revenue and expenditure (municipal vote) | E138: =A138&" Consolidated budgeted monthly revenue and expenditure (municipal vote)" -> Supporting Table SA26 Consolidated budgeted monthly revenue and expenditure (municipal vote) | F138: =A138&" Budgeted monthly revenue and expenditure (municipal vote)" -> Supporting Table SA26 Budgeted monthly revenue and expenditure (municipal vote)
A139: Supporting Table SA27 | B139: Supporting Table SA27 Budgeted monthly revenue and expenditure (functional classification) | E139: =A139&" Consolidated budgeted monthly revenue and expenditure (functional classification)" -> Supporting Table SA27 Consolidated budgeted monthly revenue and expenditure (functional classification) | F139: =A139&" Budgeted monthly revenue and expenditure (functional classification)" -> Supporting Table SA27 Budgeted monthly revenue and expenditure (functional classification)
A140: Supporting Table SA28 | B140: Supporting Table SA28 Budgeted monthly capital expenditure (municipal vote) | E140: =A140&" Consolidated budgeted monthly capital expenditure (municipal vote)" -> Supporting Table SA28 Consolidated budgeted monthly capital expenditure (municipal vote) | F140: =A140&" Budgeted monthly capital expenditure (municipal vote)" -> Supporting Table SA28 Budgeted monthly capital expenditure (municipal vote)
A141: Supporting Table SA29 | B141: Supporting Table SA29 Budgeted monthly capital expenditure (functional classification) | E141: =A141&" Consolidated budgeted monthly capital expenditure (functional classification)" -> Supporting Table SA29 Consolidated budgeted monthly capital expenditure (functional classification) | F141: =A141&" Budgeted monthly capital expenditure (functional classification)" -> Supporting Table SA29 Budgeted monthly capital expenditure (functional classification)
A142: Supporting Table SA30 | B142: Supporting Table SA30 Budgeted monthly cash flow | E142: =A142&" Consolidated budgeted monthly cash flow" -> Supporting Table SA30 Consolidated budgeted monthly cash flow | F142: =A142&" Budgeted monthly cash flow" -> Supporting Table SA30 Budgeted monthly cash flow
A143: Supporting Table SA31 | B143: NOT REQUIRED - municipality does not have entities | E143: =A143&" Aggregated entity budget" -> Supporting Table SA31 Aggregated entity budget | F143: NOT REQUIRED - municipality does not have entities
A144: Supporting Table SA32 | B144: =A144&" List of external mechanisms" -> Supporting Table SA32 List of external mechanisms
A145: Supporting Table SA33 | B145: =A145&" Contracts having future budgetary implications" -> Supporting Table SA33 Contracts having future budgetary implications
A146: Supporting Table SA34a | B146: =IF(Consolques="YES",E146,F146) -> Supporting Table SA34a Capital expenditure on new assets by asset class | E146: =A146&" Consolidated capital expenditure on new assets by asset class" -> Supporting Table SA34a Consolidated capital expenditure on new assets by asset class | F146: =A146&" Capital expenditure on new assets by asset class" -> Supporting Table SA34a Capital expenditure on new assets by asset class
A147: Supporting Table SA34b | B147: Supporting Table SA34b Capital expenditure on the renewal of existing assets by asset class | E147: =A147&" Consolidated capital expenditure on the renewal of existing assets by asset class" -> Supporting Table SA34b Consolidated capital expenditure on the renewal of existing assets by asset class | F147: =A147&" Capital expenditure on the renewal of existing assets by asset class" -> Supporting Table SA34b Capital expenditure on the renewal of existing assets by asset class
A148: Supporting Table SA34c | B148: Supporting Table SA34c Repairs and maintenance expenditure by asset class | E148: =A148&" Consolidated repairs and maintenance by asset class" -> Supporting Table SA34c Consolidated repairs and maintenance by asset class | F148: =A148&" Repairs and maintenance expenditure by asset class" -> Supporting Table SA34c Repairs and maintenance expenditure by asset class
A149: Supporting Table SA34d | B149: =IF(Consolques="YES",E149,F149) -> Supporting Table SA34d Depreciation by asset class | E149: =A149&" Consolidated Depreciation by asset class" -> Supporting Table SA34d Consolidated Depreciation by asset class | F149: =A149&" Depreciation by asset class" -> Supporting Table SA34d Depreciation by asset class
A150: Supporting Table SA34e | B150: =IF(Consolques="YES",E150,F150) -> Supporting Table SA34e Capital expenditure on the upgrading of existing assets by asset class | E150: =A150&" Consolidated capital expenditure on the upgrading of existing assets by asset class" -> Supporting Table SA34e Consolidated capital expenditure on the upgrading of existing assets by asset class | F150: =A150&" Capital expenditure on the upgrading of existing assets by asset class" -> Supporting Table SA34e Capital expenditure on the upgrading of existing assets by asset class
A151: Supporting Table SA35 | B151: Supporting Table SA35 Future financial implications of the capital budget | E151: =A151&" Consolidated future financial implications of the capital budget" -> Supporting Table SA35 Consolidated future financial implications of the capital budget | F151: =A151& " Future financial implications of the capital budget" -> Supporting Table SA35 Future financial implications of the capital budget
A152: Supporting Table SA36 | B152: Supporting Table SA36 Detailed capital budget | E152: =A152&" Consolidated detailed capital budget" -> Supporting Table SA36 Consolidated detailed capital budget | F152: =A152& " Detailed capital budget" -> Supporting Table SA36 Detailed capital budget
A153: Supporting Table SA37 | B153: Supporting Table SA37 Projects delayed from previous financial year/s | E153: =A153&" Consolidated projects delayed from previous financial year/s" -> Supporting Table SA37 Consolidated projects delayed from previous financial year/s | F153: =A153& " Projects delayed from previous financial year/s" -> Supporting Table SA37 Projects delayed from previous financial year/s
A154: Supporting Table SA38 | B154: =IF(Consolques="YES",E154,F154) -> Supporting Table SA38 Detailed operational projects | E154: =A154&" Consolidated detailed operational projects" -> Supporting Table SA38 Consolidated detailed operational projects | F154: =A154& " Detailed operational projects" -> Supporting Table SA38 Detailed operational projects
A156: Budget Charts | B156: Charts | C156: Cross reference
A157: Chart A1 | B157: =A157&"Revenue by Municipal Vote" -> Chart A1 Revenue by Municipal Vote
A158: Chart A2 | B158: =A158&"Expenditure by Municipal Vote" -> Chart A2 Expenditure by Municipal Vote
A159: Chart A3 | B159: =A159&"Revenue by Standard Classification" -> Chart A3 Revenue by Standard Classification | C159: A2
A160: Chart A4 | B160: =A160&"Expenditure by Standard Classification" -> Chart A4 Expenditure by Standard Classification | C160: A2
A161: Chart A5 | B161: =A161&"Revenue by Major Source (refer 'Minor' source for 'Other Revenue' allocation" -> Chart A5 Revenue by Major Source (refer 'Minor' source for 'Other Revenue' allocation | C161: A3
A162: Chart A6 | B162: =A162&"Revenue by Minor Source (Other)" -> Chart A6 Revenue by Minor Source (Other) | C162: A3
A163: Chart A7 | B163: =A163&"Expenditure by Major Type" -> Chart A7 Expenditure by Major Type | C163: A3
A164: Chart A8 | B164: =A164&"Expenditure by Minor Type (Other)" -> Chart A8 Expenditure by Minor Type (Other) | C164: A3
A165: Chart A9 | B165: =A165&"Capital Expenditure by Municipal Vote/Appropriation (Major)" -> Chart A9 Capital Expenditure by Municipal Vote/Appropriation (Major) | C165: A5
A166: Chart A10 | B166: =A166&"Capital Expenditure by Municipal Vote/Appropriation (Minor)" -> Chart A10 Capital Expenditure by Municipal Vote/Appropriation (Minor) | C166: A5
A167: Chart A11 | B167: =A166&"Capital Expenditure by Standard Classification" -> Chart A10 Capital Expenditure by Standard Classification | C167: A5
A168: Chart A12 | B168: =A168&"Capital expenditure performance trend" -> Chart A12 Capital expenditure performance trend | C168: A5
A169: Chart A13 | B169: =A169&"Capital funding by Source" -> Chart A13 Capital funding by Source | C169: A5
A170: Chart A14 | B170: =A170&"Cash flow trend" -> Chart A14 Cash flow trend | C170: A7
A171: Chart A15 | B171: =A171&"IDP Strategic Objective - Revenue" -> Chart A15 IDP Strategic Objective - Revenue | C171: Table A4
A172: Chart A16 | B172: =A172&"IDP Strategic Objective - Expenditure" -> Chart A16 IDP Strategic Objective - Expenditure | C172: Table A5
A173: Chart A17 | B173: =A173&"IDP Strategic Objective - Capital Expenditure" -> Chart A17 IDP Strategic Objective - Capital Expenditure | C173: Table A6
A174: Chart A18 | B174: =A174&"Debt (borrowing to Total Revenue)" -> Chart A18 Debt (borrowing to Total Revenue) | C174: Table A8
A175: Chart A19 | B175: =A175&"Debtors' trend analysis" -> Chart A19 Debtors' trend analysis | C175: Table A8
A176: Chart A20 | B176: =A176&"Distribution losses" -> Chart A20 Distribution losses | C176: Table A8
A177: Chart A21 | B177: =A177&"Borrowed funding of capital expenditure" -> Chart A21 Borrowed funding of capital expenditure | C177: Table A8
A178: Chart A22 | B178: =A178&"Expenditure analysis (% of Revenue)" -> Chart A22 Expenditure analysis (% of Revenue) | C178: Table A8
A179: Chart A23 | B179: =A179&"Increases in service charges" -> Chart A23 Increases in service charges | C179: Table A10

Sheet Lookup and lists (hidden)
A1: Description | B1: 2007 | C1: 2008 | D1: 2009 | E1: 2010 | F1: 2011 | G1: 2012 | H1: 2013 | I1: 2014 | J1: 2015 | K1: 2016 | L1: 2017 | M1: 2018 | N1: 2019 | O1: 2020 | Q1: Lists | Y1: Grants: | Z1: National - opex | AA1: Provincial - opex | AB1: National - capex | AC1: Provincial - capex
A2: ='Template names'!C2 -> Prior year -1 | B2: 2005/06 | C2: 2006/07 | D2: 2007/08 | E2: =E1-2&"/"&RIGHT(E1,2)-1 -> 2008/9 | F2: 2009/10 | G2: 2010/11 | H2: 2011/12 | I2: 2012/13 | J2: 2013/14 | K2: 2014/15 | L2: 2015/16 | M2: 2016/17 | N2: 2017/18 | O2: 2018/19 | Q2: Yes | R2: <1 | S2: <4 | T2: Market | U2: Land & impr. | V2: Yes | W2: Uniform | X2: Yrs | Z2: Local Government Equitable Share | AA2: Health subsidy | AB2: Municipal Infrastructure Grant (MIG) | AC2: Agriculture
A3: ='Template names'!C3 -> Prior year -2 | B3: 2004/05 | C3: 2005/06 | D3: 2006/07 | E3: =E1-3&"/"&RIGHT(E1,2)-2 -> 2007/8 | F3: 2008/9 | G3: 2009/10 | H3: 2010/11 | I3: 2011/12 | J3: 2012/13 | K3: 2013/14 | L3: 2014/15 | M3: 2015/16 | N3: 2016/17 | O3: 2017/18 | Q3: No | R3: 1 | S3: 4 | T3: Dep.Replace | U3: Land only | V3: No | W3: Variable | X3: Mths | Z3: RSC Levy Replacement | AA3: Ambulance subsidy | AB3: Public Transport and Systems | AC3: Education
A4: ='Template names'!C4 -> Prior year -3 | B4: 2003/04 | C4: 2004/05 | D4: 2005/06 | E4: =E1-4&"/"&RIGHT(E1,2)-3 -> 2006/7 | F4: 2007/8 | G4: 2008/9 | H4: 2009/10 | I4: 2010/11 | J4: 2011/12 | K4: 2012/13 | L4: 2013/14 | M4: 2014/15 | N4: 2015/16 | O4: 2016/17 | R4: 2 | S4: 5 | T4: Other | U4: Other | Z4: Finance Management | AA4: Housing | AB4: Rural Transport Services and Infrastructure | AC4: Health
A5: ='Template names'!C5 -> Year in which budget is being prepared | B5: Current Year 2006/07 | C5: Current Year 2007/08 | D5: Current Year 2008/09 | E5: ="Current Year "& E1-1&"/"&RIGHT(E1,2) -> Current Year 2009/10 | F5: Current Year 2010/11 | G5: Current Year 2011/12 | H5: Current Year 2012/13 | I5: Current Year 2013/14 | J5: Current Year 2014/15 | K5: Current Year 2015/16 | L5: Current Year 2016/17 | M5: Current Year 2017/18 | N5: Current Year 2018/19 | O5: Current Year 2019/20 | R5: 3 | S5: 6 | Z5: Municipal Systems Improvement | AA5: Sport and Recreation | AB5: Regional Bulk Infrastructure | AC5: Housing and Local Government
A6: ='Template names'!C6 -> Year in which budget is being prepared | B6: 2006/07 | C6: 2007/08 | D6: 2008/09 | E6: =E1-1&"/"&RIGHT(E1,2) -> 2009/10 | F6: 2010/11 | G6: 2011/12 | H6: 2012/13 | I6: 2013/14 | J6: 2014/15 | K6: 2015/16 | L6: 2016/17 | M6: 2017/18 | N6: 2018/19 | O6: 2019/20 | R6: 4 | S6: 6-10 | Z6: Water Services Operating Subsidy | AB6: Rural Households Infrastructure | AC6: Other Departments
A7: ='Template names'!C7 -> MTREF name | B7: 2007/08 Medium Term Revenue & Expenditure Framework | C7: 2008/09 Medium Term Revenue & Expenditure Framework | D7: 2009/10 Medium Term Revenue & Expenditure Framework | E7: =E1&"/"&RIGHT(E1,2)+1&" Medium Term Revenue & Expenditure Framework" -> 2010/11 Medium Term Revenue & Expenditure Framework | F7: 2011/12 Medium Term Revenue & Expenditure Framework | G7: 2012/13 Medium Term Revenue & Expenditure Framework | H7: 2013/14 Medium Term Revenue & Expenditure Framework | I7: 2014/15 Medium Term Revenue & Expenditure Framework | J7: 2015/16 Medium Term Revenue & Expenditure Framework | K7: 2016/17 Medium Term Revenue & Expenditure Framework | L7: 2017/18 Medium Term Revenue & Expenditure Framework | M7: 2018/19 Medium Term Revenue & Expenditure Framework | N7: 2019/20 Medium Term Revenue & Expenditure Framework | O7: 2020/21 Medium Term Revenue & Expenditure Framework | R7: 5 | S7: >10 | Z7: Energy Efficiency and Demand Management | AB7: Neighbourhood Development Partnership | AC7: Public Works, Roads, Transport
A8: ='Template names'!C15 -> 1st year of MTREF | B8: Budget Year 2007/08 | C8: Budget Year 2008/09 | D8: Budget Year 2009/10 | E8: ="Budget Year "&E1&"/"&RIGHT(E1,2)+1 -> Budget Year 2010/11 | F8: Budget Year 2011/12 | G8: Budget Year 2012/13 | H8: Budget Year 2013/14 | I8: Budget Year 2014/15 | J8: Budget Year 2015/16 | K8: Budget Year 2016/17 | L8: Budget Year 2017/18 | M8: Budget Year 2018/19 | N8: Budget Year 2019/20 | O8: Budget Year 2020/21 | R8: >5 | Z8: Integrated National Electrification Programme | AB8: 2010 FIFA World Cup Stadiums Development | AC8: Sport and Recreation
A9: ='Template names'!C16 -> 2nd year of MTREF | B9: Budget Year +1 2008/09 | C9: Budget Year +1 2009/10 | D9: Budget Year +1 2010/11 | E9: ="Budget Year +1 "&E1+1&"/"&RIGHT(E1,2)+2 -> Budget Year +1 2011/12 | F9: Budget Year +1 2012/13 | G9: Budget Year +1 2013/14 | H9: Budget Year +1 2014/15 | I9: Budget Year +1 2015/16 | J9: Budget Year +1 2016/17 | K9: Budget Year +1 2017/18 | L9: Budget Year +1 2018/19 | M9: Budget Year +1 2019/20 | N9: Budget Year +1 2020/21 | O9: Budget Year +1 2021/22 | Z9: Municipal Drought Relief
A10: ='Template names'!C17 -> 3rd year of MTREF | B10: Budget Year +2 2009/10 | C10: Budget Year +2 2010/11 | D10: Budget Year +2 2011/12 | E10: ="Budget Year +2 "&E1+2&"/"&RIGHT(E1,2)+3 -> Budget Year +2 2012/13 | F10: Budget Year +2 2013/14 | G10: Budget Year +2 2014/15 | H10: Budget Year +2 2015/16 | I10: Budget Year +2 2016/17 | J10: Budget Year +2 2017/18 | K10: Budget Year +2 2018/19 | L10: Budget Year +2 2019/20 | M10: Budget Year +2 2020/21 | N10: Budget Year +2 2021/22 | O10: Budget Year +2 2022/23 | Z10: 2010 FIFA World Cup Operating
A11: ='Template names'!C18 -> 1st yr of long term forecast | B11: Forecast 2010/11 | C11: Forecast 2011/12 | D11: Forecast 2012/13 | E11: ="Forecast "&E1+3&"/"&RIGHT(E1,2)+4 -> Forecast 2013/14 | F11: Forecast 2014/15 | G11: Forecast 2015/16 | H11: Forecast 2016/17 | I11: Forecast 2017/18 | J11: Forecast 2018/19 | K11: Forecast 2019/20 | L11: Forecast 2020/21 | M11: Forecast 2021/22 | N11: Forecast 2022/23 | O11: Forecast 2023/24 | Z11: Electricity Demand Side Management
A12: ='Template names'!C19 -> Next yr of long term forecast | B12: Forecast 2011/12 | C12: Forecast 2012/13 | D12: Forecast 2013/14 | E12: ="Forecast "&E1+4&"/"&RIGHT(E1,2)+5 -> Forecast 2014/15 | F12: Forecast 2015/16 | G12: Forecast 2016/17 | H12: Forecast 2017/18 | I12: Forecast 2018/19 | J12: Forecast 2019/20 | K12: Forecast 2020/21 | L12: Forecast 2021/22 | M12: Forecast 2022/23 | N12: Forecast 2023/24 | O12: Forecast 2024/25 | Z12: EPWP Incentive
A13: ='Template names'!C20 -> Next yr of long term forecast | B13: Forecast 2012/13 | C13: Forecast 2013/14 | D13: Forecast 2014/15 | E13: ="Forecast "&E1+5&"/"&RIGHT(E1,2)+6 -> Forecast 2015/16 | F13: Forecast 2016/17 | G13: Forecast 2017/18 | H13: Forecast 2018/19 | I13: Forecast 2019/20 | J13: Forecast 2020/21 | K13: Forecast 2021/22 | L13: Forecast 2022/23 | M13: Forecast 2023/24 | N13: Forecast 2024/25 | O13: Forecast 2025/26
A14: ='Template names'!C21 -> Next yr of long term forecast | B14: Forecast 2013/14 | C14: Forecast 2014/15 | D14: Forecast 2015/16 | E14: ="Forecast "&E1+6&"/"&RIGHT(E1,2)+7 -> Forecast 2016/17 | F14: Forecast 2017/18 | G14: Forecast 2018/19 | H14: Forecast 2019/20 | I14: Forecast 2020/21 | J14: Forecast 2021/22 | K14: Forecast 2022/23 | L14: Forecast 2023/24 | M14: Forecast 2024/25 | N14: Forecast 2025/26 | O14: Forecast 2026/27 | Z14: Asset Class | AA14: Asset sub-class old | AB14: Asset sub-class | AC14: IUDF | AD14: MTSF
A15: ='Template names'!C22 -> Next yr of long term forecast | B15: Forecast 2014/15 | C15: Forecast 2015/16 | D15: Forecast 2016/17 | E15: ="Forecast "&E1+7&"/"&RIGHT(E1,2)+8 -> Forecast 2017/18 | F15: Forecast 2018/19 | G15: Forecast 2019/20 | H15: Forecast 2020/21 | I15: Forecast 2021/22 | J15: Forecast 2022/23 | K15: Forecast 2023/24 | L15: Forecast 2024/25 | M15: Forecast 2025/26 | N15: Forecast 2026/27 | O15: Forecast 2027/28
A16: ='Template names'!C23 -> Next yr of long term forecast | B16: Forecast 2015/16 | C16: Forecast 2016/17 | D16: Forecast 2017/18 | E16: ="Forecast "&E1+8&"/"&RIGHT(E1,2)+9 -> Forecast 2018/19 | F16: Forecast 2019/20 | G16: Forecast 2020/21 | H16: Forecast 2021/22 | I16: Forecast 2022/23 | J16: Forecast 2023/24 | K16: Forecast 2024/25 | L16: Forecast 2025/26 | M16: Forecast 2026/27 | N16: Forecast 2027/28 | O16: Forecast 2028/29 | Z16: Roads Infrastructure | AA16: Roads, Pavements & Bridges | AB16: Roads | AC16: Spatial integration | AD16: Quality basic education
A17: ='Template names'!C24 -> Next yr of long term forecast | B17: Forecast 2016/17 | C17: Forecast 2017/18 | D17: Forecast 2018/19 | E17: ="Forecast "&E1+9&"/"&RIGHT(E1,2)+10 -> Forecast 2019/20 | F17: Forecast 2020/21 | G17: Forecast 2021/22 | H17: Forecast 2022/23 | I17: Forecast 2023/24 | J17: Forecast 2024/25 | K17: Forecast 2025/26 | L17: Forecast 2026/27 | M17: Forecast 2027/28 | N17: Forecast 2028/29 | O17: Forecast 2029/30 | Z17: Storm water Infrastructure | AA17: Storm water | AB17: Road Structures | AC17: Inclusion and access | AD17: A long and healthy life for all South Africans
A18: ='Template names'!C25 -> Next yr of long term forecast | B18: Forecast 2017/18 | C18: Forecast 2018/19 | D18: Forecast 2019/20 | E18: ="Forecast "&E1+10&"/"&RIGHT(E1,2)+11 -> Forecast 2020/21 | F18: Forecast 2021/22 | G18: Forecast 2022/23 | H18: Forecast 2023/24 | I18: Forecast 2024/25 | J18: Forecast 2025/26 | K18: Forecast 2026/27 | L18: Forecast 2027/28 | M18: Forecast 2028/29 | N18: Forecast 2029/30 | O18: Forecast 2030/31 | Z18: Electrical Infrastructure | AA18: Generation | AB18: Road Furniture | AC18: Growth | AD18: All people in South Africa are and feel safe
A19: ='Template names'!C26 -> Next yr of long term forecast | B19: Forecast 2018/19 | C19: Forecast 2019/20 | D19: Forecast 2020/21 | E19: ="Forecast "&E1+11&"/"&RIGHT(E1,2)+12 -> Forecast 2021/22 | F19: Forecast 2022/23 | G19: Forecast 2023/24 | H19: Forecast 2024/25 | I19: Forecast 2025/26 | J19: Forecast 2026/27 | K19: Forecast 2027/28 | L19: Forecast 2028/29 | M19: Forecast 2029/30 | N19: Forecast 2030/31 | O19: Forecast 2031/32 | Z19: Water Supply Infrastructure | AA19: Transmission & Reticulation | AB19: Capital Spares | AC19: Governance | AD19: Decent employment through inclusive growth
A20: ='Template names'!C27 -> Next yr of long term forecast | B20: Forecast 2019/20 | C20: Forecast 2020/21 | D20: Forecast 2021/22 | E20: ="Forecast "&E1+12&"/"&RIGHT(E1,2)+13 -> Forecast 2022/23 | F20: Forecast 2023/24 | G20: Forecast 2024/25 | H20: Forecast 2025/26 | I20: Forecast 2026/27 | J20: Forecast 2027/28 | K20: Forecast 2028/29 | L20: Forecast 2029/30 | M20: Forecast 2030/31 | N20: Forecast 2031/32 | O20: Forecast 2032/33 | Z20: Sanitation Infrastructure | AA20: Street Lighting | AB20: Drainage Collection | AD20: A skilled and capable workforce to support an inclusive growth path
A21: ='Template names'!C28 -> Next yr of long term forecast | B21: Forecast 2020/21 | C21: Forecast 2021/22 | D21: Forecast 2022/23 | E21: ="Forecast "&E1+13&"/"&RIGHT(E1,2)+14 -> Forecast 2023/24 | F21: Forecast 2024/25 | G21: Forecast 2025/26 | H21: Forecast 2026/27 | I21: Forecast 2027/28 | J21: Forecast 2028/29 | K21: Forecast 2029/30 | L21: Forecast 2030/31 | M21: Forecast 2031/32 | N21: Forecast 2032/33 | O21: Forecast 2033/34 | Z21: Solid Waste Infrastructure | AA21: Dams & Reservoirs | AB21: Storm water Conveyance | AD21: An efficient, competitive and responsive economic infrastructure network
A22: ='Template names'!C29 -> Next yr of long term forecast | B22: Forecast 2021/22 | C22: Forecast 2022/23 | D22: Forecast 2023/24 | E22: ="Forecast "&E1+14&"/"&RIGHT(E1,2)+15 -> Forecast 2024/25 | F22: Forecast 2025/26 | G22: Forecast 2026/27 | H22: Forecast 2027/28 | I22: Forecast 2028/29 | J22: Forecast 2029/30 | K22: Forecast 2030/31 | L22: Forecast 2031/32 | M22: Forecast 2032/33 | N22: Forecast 2033/34 | O22: Forecast 2034/35 | Z22: Rail Infrastructure | AA22: Water purification | AB22: Attenuation | AD22: Vibrant, equitable, sustainable rural communities contributing towards food security for all
A23: Adjustments Budget | B23: Annual target 2007/08 | C23: Annual target 2008/09 | D23: Annual target 2009/10 | E23: ="Annual target " & E1&"/"&RIGHT(E1,2)+1 -> Annual target 2010/11 | F23: Annual target 2011/12 | G23: Annual target 2012/13 | H23: Annual target 2013/14 | I23: Annual target 2014/15 | J23: Annual target 2015/16 | K23: Annual target 2016/17 | L23: Annual target 2017/18 | M23: Annual target 2018/19 | N23: Annual target 2019/20 | O23: Annual target 2020/21 | Z23: Coastal Infrastructure | AA23: Reticulation | AB23: Power Plants | AD23: Sustainable human settlements and improved quality of household life
A24: =A23 -> Adjustments Budget | B24: Revised target 2007/08 | C24: Revised target 2008/09 | D24: Revised target 2009/10 | E24: ="Revised target "& E1&"/"&RIGHT(E1,2)+1 -> Revised target 2010/11 | F24: Revised target 2011/12 | G24: Revised target 2012/13 | H24: Revised target 2013/14 | I24: Revised target 2014/15 | J24: Revised target 2015/16 | K24: Revised target 2016/17 | L24: Revised target 2017/18 | M24: Revised target 2018/19 | N24: Revised target 2019/20 | O24: Revised target 2020/21 | Z24: Information and Communication Infrastructure | AA24: Sewerage purification | AB24: HV Substations | AD24: Responsive, accountable, effective and efficient local government
A25: NOTE: This sheet should not be directly amended - select headings from sheet 'S' | Z25: Community Facilities | AA25: Waste Management | AB25: HV Switching Station | AD25: Protect and enhance our environmental assets and natural resources
Z26: Sport and Recreation Facilities | AA26: Transportation | AB26: HV Transmission Conductors | AD26: Create a better South Africa and contribute to a better Africa and a better world
A27: Name link | B27: 212 | Z27: Heritage assets | AA27: Gas | AB27: MV Substations | AD27: An efficient, effective and development-oriented public service
A28: Name of Muni | B28: =INDEX(B29:B307,B27,1) -> DC37 Bojanala Platinum | Z28: Revenue Generating | AA28: Parks & gardens | AB28: MV Switching Stations | AD28: A comprehensive, responsive and sustainable social protection system
B29: Choose name from list | C29: Set name on 'Instructions' sheet | Z29: Non-revenue Generating | AA29: Sportsfields & stadia | AB29: MV Networks | AD29: A diverse, socially cohesive society with a common national identity
B30: BUF Buffalo City | C30: EC EASTERN CAPE | Z30: Operational Buildings | AA30: Swimming pools | AB30: LV Networks
B31: NMA Nelson Mandela Bay | C31: EC EASTERN CAPE | Z31: Housing | AA31: Community halls | AB31: Capital Spares
B32: EC101 Dr Beyers Naude | C32: EC EASTERN CAPE | Z32: Biological or Cultivated Assets | AA32: Libraries | AB32: Dams and Weirs
B33: EC102 Blue Crane Route | C33: EC EASTERN CAPE | Z33: Servitudes | AA33: Recreational facilities | AB33: Boreholes
B34: EC104 Makana | C34: EC EASTERN CAPE | Z34: Licences and Rights | AA34: Fire, safety & emergency | AB34: Reservoirs
B35: EC105 Ndlambe | C35: EC EASTERN CAPE | Z35: Computer Equipment | AA35: Security and policing | AB35: Pump Stations
B36: EC106 Sundays River Valley | C36: EC EASTERN CAPE | Z36: Furniture and Office Equipment | AA36: Buses | AB36: Water Treatment Works
B37: EC108 Kouga | C37: EC EASTERN CAPE | Z37: Machinery and Equipment | AA37: Clinics | AB37: Bulk Mains
B38: EC109 Kou-Kamma | C38: EC EASTERN CAPE | Z38: Transport Assets | AA38: Museums & Art Galleries | AB38: Distribution
B39: DC10 Sarah Baartman | C39: EC EASTERN CAPE | Z39: Land | AA39: Cemeteries | AB39: Distribution Points
B40: EC121 Mbhashe | C40: EC EASTERN CAPE | Z40: Zoo's, Marine and Non-biological Animals | AA40: Social rental housing | AB40: PRV Stations
B41: EC122 Mnquma | C41: EC EASTERN CAPE | AA41: Buildings | AB41: Capital Spares
B42: EC123 Great Kei | C42: EC EASTERN CAPE | AA42: Housing development | AB42: Pump Station
B43: EC124 Amahlathi | C43: EC EASTERN CAPE | AA43: General vehicles | AB43: Reticulation
B44: EC126 Ngqushwa | C44: EC EASTERN CAPE | AA44: Specialised vehicles - Refuse | AB44: Waste Water Treatment Works
B45: EC129 Raymond Mhlaba | C45: EC EASTERN CAPE | AA45: Specialised vehicles - Fire | AB45: Outfall Sewers
B46: DC12 Amathole | C46: EC EASTERN CAPE | AA46: Specialised vehicles - Conservancy | AB46: Toilet Facilities
B47: EC131 Inxuba Yethemba | C47: EC EASTERN CAPE | AA47: Specialised vehicles - Ambulances | AB47: Capital Spares
B48: EC135 Intsika Yethu | C48: EC EASTERN CAPE | AA48: Plant & equipment | AB48: Landfill Sites
B49: EC136 Emalahleni (Ec) | C49: EC EASTERN CAPE | AA49: Computers - hardware/equipment | AB49: Waste Transfer Stations
B50: EC137 Engcobo | C50: EC EASTERN CAPE | AA50: Furniture and other office equipment | AB50: Waste Processing Facilities
B51: EC138 Sakhisizwe | C51: EC EASTERN CAPE | AA51: Abattoirs | AB51: Waste Drop-off Points
B52: EC139 Enoch Mgijima | C52: EC EASTERN CAPE | AA52: Markets | AB52: Waste Separation Facilities
B53: DC13 Chris Hani | C53: EC EASTERN CAPE | AA53: Civic Land and Buildings | AB53: Electricity Generation Facilities
B54: EC141 Elundini | C54: EC EASTERN CAPE | AA54: Other Buildings | AB54: Capital Spares
B55: EC142 Senqu | C55: EC EASTERN CAPE | AA55: Other Land | AB55: Rail Lines
B56: EC145 Walter Sisulu | C56: EC EASTERN CAPE | AA56: Surplus Assets - (Investment or Inventory) | AB56: Rail Structures
B57: DC14 Joe Gqabi | C57: EC EASTERN CAPE | AA57: Computers - software & programming | AB57: Rail Furniture
B58: EC153 Ngquza Hills | C58: EC EASTERN CAPE | AA58: Other | AB58: Drainage Collection
B59: EC154 Port St Johns | C59: EC EASTERN CAPE | AB59: Storm water Conveyance
B60: EC155 Nyandeni | C60: EC EASTERN CAPE | Z60: SA16 - Investments | AB60: Attenuation
B61: EC156 Mhlontlo | C61: EC EASTERN CAPE | Z61: Security | AA61: Interest rate | AB61: MV Substations
B62: EC157 King Sabata Dalindyebo | C62: EC EASTERN CAPE | Z62: Yes | AA62: Fixed | AB62: LV Networks
B63: DC15 O .R. Tambo | C63: EC EASTERN CAPE | Z63: No | AA63: Variable | AB63: Capital Spares
B64: EC441 Matatiele | C64: EC EASTERN CAPE | AB64: Sand Pumps
B65: EC442 Umzimvubu | C65: EC EASTERN CAPE | AB65: Piers
B66: EC443 Mbizana | C66: EC EASTERN CAPE | Z66: SA36, SA37 - Capital projects | AB66: Revetments
B67: EC444 Ntabankulu | C67: EC EASTERN CAPE | Z67: Yes | AB67: Promenades
B68: DC44 Alfred Nzo | C68: EC EASTERN CAPE | Z68: No | AB68: Capital Spares
B69: MAN Mangaung | C69: FS FREE STATE | AB69: Data Centres
B70: FS161 Letsemeng | C70: FS FREE STATE | AB70: Core Layers
B71: FS162 Kopanong | C71: FS FREE STATE | AB71: Distribution Layers
B72: FS163 Mohokare | C72: FS FREE STATE | AB72: Capital Spares
B73: DC16 Xhariep | C73: FS FREE STATE | AB73: Halls
B74: FS181 Masilonyana | C74: FS FREE STATE | AB74: Centres
B75: FS182 Tokologo | C75: FS FREE STATE | AB75: Crèches
B76: FS183 Tswelopele | C76: FS FREE STATE | AB76: Clinics/Care Centres
B77: FS184 Matjhabeng | C77: FS FREE STATE | AB77: Fire/Ambulance Stations
B78: FS185 Nala | C78: FS FREE STATE | AB78: Testing Stations
B79: DC18 Lejweleputswa | C79: FS FREE STATE | AB79: Museums
B80: FS191 Setsoto | C80: FS FREE STATE | AB80: Galleries
B81: FS192 Dihlabeng | C81: FS FREE STATE | AB81: Theatres
B82: FS193 Nketoana | C82: FS FREE STATE | AB82: Libraries
B83: FS194 Maluti-a-Phofung | C83: FS FREE STATE | AB83: Cemeteries/Crematoria
B84: FS195 Phumelela | C84: FS FREE STATE | AB84: Police
B85: FS196 Mantsopa | C85: FS FREE STATE | AB85: Purls
B86: DC19 Thabo Mofutsanyana | C86: FS FREE STATE | AB86: Public Open Space
B87: FS201 Moqhaka | C87: FS FREE STATE | AB87: Nature Reserves
B88: FS203 Ngwathe | C88: FS FREE STATE | AB88: Public Ablution Facilities
B89: FS204 Metsimaholo | C89: FS FREE STATE | AB89: Markets
B90: FS205 Mafube | C90: FS FREE STATE | AB90: Stalls
B91: DC20 Fezile Dabi | C91: FS FREE STATE | AB91: Abattoirs
B92: EKU City of Ekurhuleni | C92: GT GAUTENG | AB92: Airports
B93: JHB City Of Johannesburg | C93: GT GAUTENG | AB93: Taxi Ranks/Bus Terminals
B94: TSH City Of Tshwane | C94: GT GAUTENG | AB94: Capital Spares
B95: GT421 Emfuleni | C95: GT GAUTENG | AB95: Indoor Facilities
B96: GT422 Midvaal | C96: GT GAUTENG | AB96: Outdoor Facilities
B97: GT423 Lesedi | C97: GT GAUTENG | AB97: Capital Spares
B98: DC42 Sedibeng | C98: GT GAUTENG | AB98: Monuments
B99: GT481 Mogale City | C99: GT GAUTENG | AB99: Historic Buildings
B100: GT484 Merafong City | C100: GT GAUTENG | AB100: Works of Art
B101: GT485 Rand West City | C101: GT GAUTENG | AB101: Conservation Areas
B102: DC48 West Rand | C102: GT GAUTENG | AB102: Other Heritage
B103: ETH eThekwini | C103: KZN KWAZULU-NATAL | AB103: Improved Property
B104: KZN212 Umdoni | C104: KZN KWAZULU-NATAL | AB104: Unimproved Property
B105: KZN213 Umzumbe | C105: KZN KWAZULU-NATAL | AB105: Municipal Offices
B106: KZN214 uMuziwabantu | C106: KZN KWAZULU-NATAL | AB106: Pay/Enquiry Points
B107: KZN216 Ray Nkonyeni | C107: KZN KWAZULU-NATAL | AB107: Building Plan Offices
B108: DC21 Ugu | C108: KZN KWAZULU-NATAL | AB108: Workshops
B109: KZN221 uMshwathi | C109: KZN KWAZULU-NATAL | AB109: Yards
B110: KZN222 uMngeni | C110: KZN KWAZULU-NATAL | AB110: Stores
B111: KZN223 Mpofana | C111: KZN KWAZULU-NATAL | AB111: Laboratories
B112: KZN224 Impendle | C112: KZN KWAZULU-NATAL | AB112: Training Centres
B113: KZN225 Msunduzi | C113: KZN KWAZULU-NATAL | AB113: Manufacturing Plant
B114: KZN226 Mkhambathini | C114: KZN KWAZULU-NATAL | AB114: Depots
B115: KZN227 Richmond | C115: KZN KWAZULU-NATAL | AB115: Capital Spares
B116: DC22 uMgungundlovu | C116: KZN KWAZULU-NATAL | AB116: Staff Housing
B117: KZN235 Okhahlamba | C117: KZN KWAZULU-NATAL | AB117: Social Housing
B118: KZN237 Inkosi Langalibalele | C118: KZN KWAZULU-NATAL | AB118: Capital Spares
B119: KZN238 Alfred Duma | C119: KZN KWAZULU-NATAL | AB119: Water Rights
B120: DC23 Uthukela | C120: KZN KWAZULU-NATAL | AB120: Effluent Licenses
B121: KZN241 Endumeni | C121: KZN KWAZULU-NATAL | AB121: Solid Waste Licenses
B122: KZN242 Nquthu | C122: KZN KWAZULU-NATAL | AB122: Computer Software and Applications
B123: KZN244 Msinga | C123: KZN KWAZULU-NATAL | AB123: Load Settlement Software Applications
B124: KZN245 Umvoti | C124: KZN KWAZULU-NATAL | AB124: Unspecified
B125: DC24 Umzinyathi | C125: KZN KWAZULU-NATAL
B126: KZN252 Newcastle | C126: KZN KWAZULU-NATAL
B127: KZN253 Emadlangeni | C127: KZN KWAZULU-NATAL
B128: KZN254 Dannhauser | C128: KZN KWAZULU-NATAL
B129: DC25 Amajuba | C129: KZN KWAZULU-NATAL
B130: KZN261 eDumbe | C130: KZN KWAZULU-NATAL
B131: KZN262 uPhongolo | C131: KZN KWAZULU-NATAL
B132: KZN263 Abaqulusi | C132: KZN KWAZULU-NATAL
B133: KZN265 Nongoma | C133: KZN KWAZULU-NATAL
B134: KZN266 Ulundi | C134: KZN KWAZULU-NATAL
B135: DC26 Zululand | C135: KZN KWAZULU-NATAL
B136: KZN271 Umhlabuyalingana | C136: KZN KWAZULU-NATAL
B137: KZN272 Jozini | C137: KZN KWAZULU-NATAL
B138: KZN275 Mtubatuba | C138: KZN KWAZULU-NATAL
B139: KZN276 Hlabisa Big Five | C139: KZN KWAZULU-NATAL
B140: DC27 Umkhanyakude | C140: KZN KWAZULU-NATAL
B141: KZN281 Mfolozi | C141: KZN KWAZULU-NATAL
B142: KZN282 uMhlathuze | C142: KZN KWAZULU-NATAL
B143: KZN284 uMlalazi | C143: KZN KWAZULU-NATAL
B144: KZN285 Mthonjaneni | C144: KZN KWAZULU-NATAL
B145: KZN286 Nkandla | C145: KZN KWAZULU-NATAL
B146: DC28 King Cetshwayo | C146: KZN KWAZULU-NATAL
B147: KZN291 Mandeni | C147: KZN KWAZULU-NATAL
B148: KZN292 KwaDukuza | C148: KZN KWAZULU-NATAL
B149: KZN293 Ndwedwe | C149: KZN KWAZULU-NATAL
B150: KZN294 Maphumulo | C150: KZN KWAZULU-NATAL
B151: DC29 iLembe | C151: KZN KWAZULU-NATAL
B152: KZN433 Greater Kokstad | C152: KZN KWAZULU-NATAL
B153: KZN434 Ubuhlebezwe | C153: KZN KWAZULU-NATAL
B154: KZN435 Umzimkhulu | C154: KZN KWAZULU-NATAL
B155: KZN436 Dr Nkosazana Dlamini Zuma | C155: KZN KWAZULU-NATAL
B156: DC43 Harry Gwala | C156: KZN KWAZULU-NATAL
B157: LIM331 Greater Giyani | C157: LIM LIMPOPO
B158: LIM332 Greater Letaba | C158: LIM LIMPOPO
B159: LIM333 Greater Tzaneen | C159: LIM LIMPOPO
B160: LIM334 Ba-Phalaborwa | C160: LIM LIMPOPO
B161: LIM335 Maruleng | C161: LIM LIMPOPO
B162: DC33 Mopani | C162: LIM LIMPOPO
B163: LIM341 Musina | C163: LIM LIMPOPO
B164: LIM343 Thulamela | C164: LIM LIMPOPO
B165: LIM344 Makhado | C165: LIM LIMPOPO
B166: LIM345 Collins Chabane | C166: LIM LIMPOPO
B167: DC34 Vhembe | C167: LIM LIMPOPO
B168: LIM351 Blouberg | C168: LIM LIMPOPO
B169: LIM353 Molemole | C169: LIM LIMPOPO
B170: LIM354 Polokwane | C170: LIM LIMPOPO
B171: LIM355 Lepelle-Nkumpi | C171: LIM LIMPOPO
B172: DC35 Capricorn | C172: LIM LIMPOPO
B173: LIM361 Thabazimbi | C173: LIM LIMPOPO
B174: LIM362 Lephalale | C174: LIM LIMPOPO
B175: LIM366 Bela Bela | C175: LIM LIMPOPO
B176: LIM367 Mogalakwena | C176: LIM LIMPOPO
B177: LIM368 Modimolle-Mookgopong | C177: LIM LIMPOPO
B178: DC36 Waterberg | C178: LIM LIMPOPO
B179: LIM471 Ephraim Mogale | C179: LIM LIMPOPO
B180: LIM472 Elias Motsoaledi | C180: LIM LIMPOPO
B181: LIM473 Makhuduthamaga | C181: LIM LIMPOPO
B182: LIM476 Tubatse Fetakgomo | C182: LIM LIMPOPO
B183: DC47 Sekhukhune | C183: LIM LIMPOPO
B184: MP301 Albert Luthuli | C184: MP MPUMALANGA
B185: MP302 Msukaligwa | C185: MP MPUMALANGA
B186: MP303 Mkhondo | C186: MP MPUMALANGA
B187: MP304 Pixley Ka Seme (MP) | C187: MP MPUMALANGA
B188: MP305 Lekwa | C188: MP MPUMALANGA
B189: MP306 Dipaleseng | C189: MP MPUMALANGA
B190: MP307 Govan Mbeki | C190: MP MPUMALANGA
B191: DC30 Gert Sibande | C191: MP MPUMALANGA
B192: MP311 Victor Khanye | C192: MP MPUMALANGA
B193: MP312 Emalahleni (Mp) | C193: MP MPUMALANGA
B194: MP313 Steve Tshwete | C194: MP MPUMALANGA
B195: MP314 Emakhazeni | C195: MP MPUMALANGA
B196: MP315 Thembisile Hani | C196: MP MPUMALANGA
B197: MP316 Dr J.S. Moroka | C197: MP MPUMALANGA
B198: DC31 Nkangala | C198: MP MPUMALANGA
B199: MP321 Thaba Chweu | C199: MP MPUMALANGA
B200: MP324 Nkomazi | C200: MP MPUMALANGA
... 87 more rows

Sheet Org structure
A1: Organisational Structure MunicipalVotes | C1: Organisational Structure Sub-MunicipalVotes
A2: =B2&" - "&C2 -> Vote 1 - Municipal manager | B2: Vote 1 | C2: Municipal manager
A3: =B13&" - "& C13 -> Vote 2 - Community and Social Services | B3: 1.1 | C3: Information Technology | D3: =CONCATENATE(B3, " - ", C3) -> 1.1 - Information Technology
A4: =B24&" - "&C24 -> Vote 3 - Heatlh & enviromental Services | B4: 1.2 | C4: [Name of sub-vote] | D4: 1.2 - [Name of sub-vote]
A5: =B35&" - "&C35 -> Vote 4 - Executive | B5: 1.3 | C5: Municipal Manager, Town Secretary and Chief Executive | D5: 1.3 - Municipal Manager, Town Secretary and Chief Executive
A6: =B46&" - "&C46 -> Vote 5 - Finance | B6: 1.4 | C6: Risk Management | D6: 1.4 - Risk Management
A7: =B57&" - "&C57 -> Vote 6 - Local economic development | B7: 1.5 | C7: Corporate Wide Strategic Planning (IDPs, LEDs) | D7: 1.5 - Corporate Wide Strategic Planning (IDPs, LEDs)
A8: =B68&" - "&C68 -> Vote 7 - Corporate Services | B8: 1.6 | C8: Central City Improvement District | D8: 1.6 - Central City Improvement District
A9: =B79&" - "&C79 -> Vote 8 - Technical | B9: 1.7 | C9: Provincial Planning | D9: 1.7 - Provincial Planning
A10: =B90&" - "&C90 -> Vote 9 - [NAME OF VOTE 9] | B10: 1.8 | C10: [Name of sub-vote] | D10: 1.8 - [Name of sub-vote]
A11: =B101&" - "&C101 -> Vote 10 - [NAME OF VOTE 10] | B11: 1.9 | C11: [Name of sub-vote] | D11: 1.9 - [Name of sub-vote]
A12: =B112&" - "&C112 -> Vote 11 - [NAME OF VOTE 11] | B12: 1.10 | C12: [Name of sub-vote] | D12: 1.10 - [Name of sub-vote]
A13: =B123&" - "&C123 -> Vote 12 - [NAME OF VOTE 12] | B13: Vote 2 | C13: Community and Social Services
A14: =B134&" - "&C134 -> Vote 13 - [NAME OF VOTE 13] | B14: 2.1 | C14: Disaster Management | D14: =CONCATENATE(B14, " - ", C14) -> 2.1 - Disaster Management
A15: =B145&" - "&C145 -> Vote 14 - [NAME OF VOTE 14] | B15: 2.2 | C15: Fire Fighting and Protection | D15: 2.2 - Fire Fighting and Protection
A16: =B156&" - "&C156 -> Vote 15 - [NAME OF VOTE 15] | B16: 2.3 | C16: [Name of sub-vote] | D16: 2.3 - [Name of sub-vote]
B17: 2.4 | C17: Recreational Facilities | D17: 2.4 - Recreational Facilities
B18: 2.5 | C18: Community Halls and Facilities | D18: 2.5 - Community Halls and Facilities
B19: 2.6 | C19: Sports Grounds and Stadiums | D19: 2.6 - Sports Grounds and Stadiums
B20: 2.7 | C20: Theatres | D20: 2.7 - Theatres
B21: 2.8 | C21: Civil Defence | D21: 2.8 - Civil Defence
B22: 2.9 | C22: Cleansing | D22: 2.9 - Cleansing
B23: 2.10 | C23: [Name of sub-vote] | D23: 2.10 - [Name of sub-vote]
B24: Vote 3 | C24: Heatlh & enviromental Services
B25: 3.1 | C25: Solid Waste Disposal (Landfill Sites) | D25: =CONCATENATE(B25, " - ", C25) -> 3.1 - Solid Waste Disposal (Landfill Sites)
B26: 3.2 | C26: Pollution Control | D26: 3.2 - Pollution Control
B27: 3.3 | C27: Control of Public Nuisances | D27: 3.3 - Control of Public Nuisances
B28: 3.4 | C28: Cemeteries, Funeral Parlours and Crematoriums | D28: 3.4 - Cemeteries, Funeral Parlours and Crematoriums
B29: 3.5 | C29: Public Toilets | D29: 3.5 - Public Toilets
B30: 3.6 | C30: Aged Care | D30: 3.6 - Aged Care
B31: 3.7 | C31: Education | D31: 3.7 - Education
B32: 3.8 | C32: [Name of sub-vote] | D32: 3.8 - [Name of sub-vote]
B33: 3.9 | C33: [Name of sub-vote] | D33: 3.9 - [Name of sub-vote]
B34: 3.10 | C34: [Name of sub-vote] | D34: 3.10 - [Name of sub-vote]
B35: Vote 4 | C35: Executive
B36: 4.1 | C36: Mayor and Council | D36: =CONCATENATE(B36, " - ", C36) -> 4.1 - Mayor and Council
B37: 4.2 | C37: Media Services | D37: 4.2 - Media Services
B38: 4.3 | C38: Literacy Programmes | D38: 4.3 - Literacy Programmes
B39: 4.4 | C39: [Name of sub-vote] | D39: 4.4 - [Name of sub-vote]
B40: 4.5 | C40: [Name of sub-vote] | D40: 4.5 - [Name of sub-vote]
B41: 4.6 | C41: [Name of sub-vote] | D41: 4.6 - [Name of sub-vote]
B42: 4.7 | C42: [Name of sub-vote] | D42: 4.7 - [Name of sub-vote]
B43: 4.8 | C43: [Name of sub-vote] | D43: 4.8 - [Name of sub-vote]
B44: 4.9 | C44: [Name of sub-vote] | D44: 4.9 - [Name of sub-vote]
B45: 4.10 | C45: [Name of sub-vote] | D45: 4.10 - [Name of sub-vote]
B46: Vote 5 | C46: Finance
B47: 5.1 | C47: Supply Chain Management | D47: =CONCATENATE(B47, " - ", C47) -> 5.1 - Supply Chain Management
B48: 5.2 | C48: Asset Management | D48: 5.2 - Asset Management
B49: 5.3 | C49: Finance | D49: 5.3 - Finance
B50: 5.4 | C50: [Name of sub-vote] | D50: 5.4 - [Name of sub-vote]
B51: 5.5 | C51: [Name of sub-vote] | D51: 5.5 - [Name of sub-vote]
B52: 5.6 | C52: [Name of sub-vote] | D52: 5.6 - [Name of sub-vote]
B53: 5.7 | C53: [Name of sub-vote] | D53: 5.7 - [Name of sub-vote]
B54: 5.8 | C54: [Name of sub-vote] | D54: 5.8 - [Name of sub-vote]
B55: 5.9 | C55: [Name of sub-vote] | D55: 5.9 - [Name of sub-vote]
B56: 5.10 | C56: [Name of sub-vote] | D56: 5.10 - [Name of sub-vote]
B57: Vote 6 | C57: Local economic development
B58: 6.1 | C58: [Name of sub-vote] | D58: =CONCATENATE(B58, " - ", C58) -> 6.1 - [Name of sub-vote]
B59: 6.2 | C59: [Name of sub-vote] | D59: 6.2 - [Name of sub-vote]
B60: 6.3 | C60: Governance Function | D60: 6.3 - Governance Function
B61: 6.4 | C61: Marketing, Customer Relations, Publicity and Media Co-ordination | D61: 6.4 - Marketing, Customer Relations, Publicity and Media Co-ordination
B62: 6.5 | C62: Animal Care and Diseases | D62: 6.5 - Animal Care and Diseases
B63: 6.6 | C63: [Name of sub-vote] | D63: 6.6 - [Name of sub-vote]
B64: 6.7 | C64: [Name of sub-vote] | D64: 6.7 - [Name of sub-vote]
B65: 6.8 | C65: [Name of sub-vote] | D65: 6.8 - [Name of sub-vote]
B66: 6.9 | C66: [Name of sub-vote] | D66: 6.9 - [Name of sub-vote]
B67: 6.10 | C67: [Name of sub-vote] | D67: 6.10 - [Name of sub-vote]
B68: Vote 7 | C68: Corporate Services
B69: 7.1 | C69: Administrative and Corporate Support | D69: =CONCATENATE(B69, " - ", C69) -> 7.1 - Administrative and Corporate Support
B70: 7.2 | C70: Human Resources | D70: 7.2 - Human Resources
B71: 7.3 | C71: Health Surveillance and Prevention of Communicable Diseases including immunizations | D71: 7.3 - Health Surveillance and Prevention of Communicable Diseases including immunizations
B72: 7.4 | C72: Health Services | D72: 7.4 - Health Services
B73: 7.5 | C73: Economic Development/Planning | D73: 7.5 - Economic Development/Planning
B74: 7.6 | C74: [Name of sub-vote] | D74: 7.6 - [Name of sub-vote]
B75: 7.7 | C75: [Name of sub-vote] | D75: 7.7 - [Name of sub-vote]
B76: 7.8 | C76: [Name of sub-vote] | D76: 7.8 - [Name of sub-vote]
B77: 7.9 | C77: [Name of sub-vote] | D77: 7.9 - [Name of sub-vote]
B78: 7.10 | C78: [Name of sub-vote] | D78: 7.10 - [Name of sub-vote]
B79: Vote 8 | C79: Technical
B80: 8.1 | C80: Housing | D80: =CONCATENATE(B80, " - ", C80) -> 8.1 - Housing
B81: 8.2 | C81: Roads | D81: 8.2 - Roads
B82: 8.3 | C82: Waste Water Treatment | D82: 8.3 - Waste Water Treatment
B83: 8.4 | C83: Public Transport | D83: 8.4 - Public Transport
B84: 8.5 | C84: Road and Traffic Regulation | D84: 8.5 - Road and Traffic Regulation
B85: 8.6 | C85: Taxi Ranks | D85: 8.6 - Taxi Ranks
B86: 8.7 | C86: Water Distribution | D86: 8.7 - Water Distribution
B87: 8.8 | C87: Water Storage | D87: 8.8 - Water Storage
B88: 8.9 | C88: Water Treatment | D88: 8.9 - Water Treatment
B89: 8.10 | C89: [Name of sub-vote] | D89: 8.10 - [Name of sub-vote]
B90: Vote 9 | C90: [NAME OF VOTE 9]
B91: 9.1 | C91: [Name of sub-vote] | D91: =CONCATENATE(B91, " - ", C91) -> 9.1 - [Name of sub-vote]
B92: 9.2 | C92: [Name of sub-vote] | D92: 9.2 - [Name of sub-vote]
B93: 9.3 | C93: [Name of sub-vote] | D93: 9.3 - [Name of sub-vote]
B94: 9.4 | C94: [Name of sub-vote] | D94: 9.4 - [Name of sub-vote]
B95: 9.5 | C95: [Name of sub-vote] | D95: 9.5 - [Name of sub-vote]
B96: 9.6 | C96: [Name of sub-vote] | D96: 9.6 - [Name of sub-vote]
B97: 9.7 | C97: [Name of sub-vote] | D97: 9.7 - [Name of sub-vote]
B98: 9.8 | C98: [Name of sub-vote] | D98: 9.8 - [Name of sub-vote]
B99: 9.9 | C99: [Name of sub-vote] | D99: 9.9 - [Name of sub-vote]
B100: 9.10 | C100: [Name of sub-vote] | D100: 9.10 - [Name of sub-vote]
B101: Vote 10 | C101: [NAME OF VOTE 10]
B102: 10.1 | C102: [Name of sub-vote] | D102: =CONCATENATE(B102, " - ", C102) -> 10.1 - [Name of sub-vote]
B103: 10.2 | C103: [Name of sub-vote] | D103: 10.2 - [Name of sub-vote]
B104: 10.3 | C104: [Name of sub-vote] | D104: 10.3 - [Name of sub-vote]
B105: 10.4 | C105: [Name of sub-vote] | D105: 10.4 - [Name of sub-vote]
B106: 10.5 | C106: [Name of sub-vote] | D106: 10.5 - [Name of sub-vote]
B107: 10.6 | C107: [Name of sub-vote] | D107: 10.6 - [Name of sub-vote]
B108: 10.7 | C108: [Name of sub-vote] | D108: 10.7 - [Name of sub-vote]
B109: 10.8 | C109: [Name of sub-vote] | D109: 10.8 - [Name of sub-vote]
B110: 10.9 | C110: [Name of sub-vote] | D110: 10.9 - [Name of sub-vote]
B111: 10.10 | C111: [Name of sub-vote] | D111: 10.10 - [Name of sub-vote]
B112: Vote 11 | C112: [NAME OF VOTE 11]
B113: 11.1 | C113: [Name of sub-vote] | D113: =CONCATENATE(B113, " - ", C113) -> 11.1 - [Name of sub-vote]
B114: 11.2 | C114: [Name of sub-vote] | D114: 11.2 - [Name of sub-vote]
B115: 11.3 | C115: [Name of sub-vote] | D115: 11.3 - [Name of sub-vote]
B116: 11.4 | C116: [Name of sub-vote] | D116: 11.4 - [Name of sub-vote]
B117: 11.5 | C117: [Name of sub-vote] | D117: 11.5 - [Name of sub-vote]
B118: 11.6 | C118: [Name of sub-vote] | D118: 11.6 - [Name of sub-vote]
B119: 11.7 | C119: [Name of sub-vote] | D119: 11.7 - [Name of sub-vote]
B120: 11.8 | C120: [Name of sub-vote] | D120: 11.8 - [Name of sub-vote]
B121: 11.9 | C121: [Name of sub-vote] | D121: 11.9 - [Name of sub-vote]
B122: 11.10 | C122: [Name of sub-vote] | D122: 11.10 - [Name of sub-vote]
B123: Vote 12 | C123: [NAME OF VOTE 12]
B124: 12.1 | C124: [Name of sub-vote] | D124: =CONCATENATE(B124, " - ", C124) -> 12.1 - [Name of sub-vote]
B125: 12.2 | C125: [Name of sub-vote] | D125: 12.2 - [Name of sub-vote]
B126: 12.3 | C126: [Name of sub-vote] | D126: 12.3 - [Name of sub-vote]
B127: 12.4 | C127: [Name of sub-vote] | D127: 12.4 - [Name of sub-vote]
B128: 12.5 | C128: [Name of sub-vote] | D128: 12.5 - [Name of sub-vote]
B129: 12.6 | C129: [Name of sub-vote] | D129: 12.6 - [Name of sub-vote]
B130: 12.7 | C130: [Name of sub-vote] | D130: 12.7 - [Name of sub-vote]
B131: 12.8 | C131: [Name of sub-vote] | D131: 12.8 - [Name of sub-vote]
B132: 12.9 | C132: [Name of sub-vote] | D132: 12.9 - [Name of sub-vote]
B133: 12.10 | C133: [Name of sub-vote] | D133: 12.10 - [Name of sub-vote]
B134: Vote 13 | C134: [NAME OF VOTE 13]
B135: 13.1 | C135: [Name of sub-vote] | D135: =CONCATENATE(B135, " - ", C135) -> 13.1 - [Name of sub-vote]
B136: 13.2 | C136: [Name of sub-vote] | D136: 13.2 - [Name of sub-vote]
B137: 13.3 | C137: [Name of sub-vote] | D137: 13.3 - [Name of sub-vote]
B138: 13.4 | C138: [Name of sub-vote] | D138: 13.4 - [Name of sub-vote]
B139: 13.5 | C139: [Name of sub-vote] | D139: 13.5 - [Name of sub-vote]
B140: 13.6 | C140: [Name of sub-vote] | D140: 13.6 - [Name of sub-vote]
B141: 13.7 | C141: [Name of sub-vote] | D141: 13.7 - [Name of sub-vote]
B142: 13.8 | C142: [Name of sub-vote] | D142: 13.8 - [Name of sub-vote]
B143: 13.9 | C143: [Name of sub-vote] | D143: 13.9 - [Name of sub-vote]
B144: 13.10 | C144: [Name of sub-vote] | D144: 13.10 - [Name of sub-vote]
B145: Vote 14 | C145: [NAME OF VOTE 14]
B146: 14.1 | C146: [Name of sub-vote] | D146: =CONCATENATE(B146, " - ", C146) -> 14.1 - [Name of sub-vote]
B147: 14.2 | C147: [Name of sub-vote] | D147: 14.2 - [Name of sub-vote]
B148: 14.3 | C148: [Name of sub-vote] | D148: 14.3 - [Name of sub-vote]
B149: 14.4 | C149: [Name of sub-vote] | D149: 14.4 - [Name of sub-vote]
B150: 14.5 | C150: [Name of sub-vote] | D150: 14.5 - [Name of sub-vote]
B151: 14.6 | C151: [Name of sub-vote] | D151: 14.6 - [Name of sub-vote]
B152: 14.7 | C152: [Name of sub-vote] | D152: 14.7 - [Name of sub-vote]
B153: 14.8 | C153: [Name of sub-vote] | D153: 14.8 - [Name of sub-vote]
B154: 14.9 | C154: [Name of sub-vote] | D154: 14.9 - [Name of sub-vote]
B155: 14.10 | C155: [Name of sub-vote] | D155: 14.10 - [Name of sub-vote]
B156: Vote 15 | C156: [NAME OF VOTE 15]
B157: 15.1 | C157: [Name of sub-vote] | D157: =CONCATENATE(B157, " - ", C157) -> 15.1 - [Name of sub-vote]
B158: 15.2 | C158: [Name of sub-vote] | D158: 15.2 - [Name of sub-vote]
B159: 15.3 | C159: [Name of sub-vote] | D159: 15.3 - [Name of sub-vote]
B160: 15.4 | C160: [Name of sub-vote] | D160: 15.4 - [Name of sub-vote]
B161: 15.5 | C161: [Name of sub-vote] | D161: 15.5 - [Name of sub-vote]
B162: 15.6 | C162: [Name of sub-vote] | D162: 15.6 - [Name of sub-vote]
B163: 15.7 | C163: [Name of sub-vote] | D163: 15.7 - [Name of sub-vote]
B164: 15.8 | C164: [Name of sub-vote] | D164: 15.8 - [Name of sub-vote]
B165: 15.9 | C165: [Name of sub-vote] | D165: 15.9 - [Name of sub-vote]
B166: 15.10 | C166: [Name of sub-vote] | D166: 15.10 - [Name of sub-vote]

Sheet Contacts
A1: =muni&" - "&" Contact Information" -> DC37 Bojanala Platinum - Contact Information
A3: A. GENERAL INFORMATION
A4: Municipality | B4: =muni -> DC37 Bojanala Platinum | C4: =IF(B4="Choose name from List","Set name on 'Instructions' sheet", "") -> 
A6: Grade | B6: 5 | C6: 1 Grade in terms of the Remuneration of Public Office Bearers Act.
A8: Province | B8: =IF(B4>" ",VLOOKUP(B4,'Lookup and lists'!B29:C307,2, FALSE)," ") -> NW NORTH WEST
A10: Web Address
A12: e-mail Address | B12: www.bojanala.gov.za
A14: B. CONTACT INFORMATION
A15: Postal address:
A16: P.O. Box | B16: P.BOX1993
A17: City / Town | B17: RUSTENBURG
A18: Postal Code
A20: Street address
A21: Building | B21: MUNICIPAL BUILDING
A22: Street No. & Name | B22: BEYERS NAUDE
A23: City / Town | B23: RUSTENBURG
A24: Postal Code
A26: General Contacts
A27: Telephone number | B27: 0145904500
A28: Fax number
A30: C. POLITICAL LEADERSHIP
A31: Speaker: | C31: Secretary/PA to the Speaker:
A32: ID Number | C32: ID Number
A33: Title | C33: Title
A34: Name | C34: Name
A35: Telephone number | C35: Telephone number
A36: Cell number | C36: Cell number
A37: Fax number | C37: Fax number
A38: E-mail address | C38: E-mail address
A40: Mayor/Executive Mayor: | C40: Secretary/PA to the Mayor/Executive Mayor:
A41: ID Number | B41: 6603060970089 | C41: ID Number | D41: 7701030819086
A42: Title | B42: Ms | C42: Title | D42: Ms
A43: Name | B43: Fetsang Mokati | C43: Name | D43: Suzan Letsoalo
A44: Telephone number | B44: 0145904517 | C44: Telephone number | D44: 0145904517
A45: Cell number | B45: 0824925499 | C45: Cell number | D45: 0794488046
A46: Fax number | B46: 0145926085 | C46: Fax number
A47: E-mail address | B47: secretary@bojanala.gov.za | C47: E-mail address | D47: suzanl@bojanala.gov.za
A49: Deputy Mayor/Executive Mayor: | C49: Secretary/PA to the Deputy Mayor/Executive Mayor:
A50: ID Number | C50: ID Number
A51: Title | C51: Title
A52: Name | C52: Name
A53: Telephone number | C53: Telephone number
A54: Cell number | C54: Cell number
A55: Fax number | C55: Fax number
A56: E-mail address | C56: E-mail address
A58: D. MANAGEMENT LEADERSHIP
A59: Municipal Manager: | C59: Secretary/PA to the Municipal Manager:
A60: ID Number | C60: ID Number
A61: Title | C61: Title
A62: Name | C62: Name
A63: Telephone number | C63: Telephone number
A64: Cell number | C64: Cell number
A65: Fax number | C65: Fax number
A66: E-mail address | C66: E-mail address
A68: Chief Financial Officer | C68: Secretary/PA to the Chief Financial Officer
A69: ID Number | C69: ID Number | D69: 8110170330087
A70: Title | C70: Title | D70: Ms
A71: Name | B71: Morena Mofokeng | C71: Name | D71: Olebogeng Kgaladi
A72: Telephone number | B72: 0145904505 | C72: Telephone number | D72: 0145904501
A73: Cell number | C73: Cell number | D73: 0838792817
A74: Fax number | C74: Fax number | D74: 0145926113
A75: E-mail address | C75: E-mail address | D75: olebogengok@bojanala.gov.za
A77: Official responsible for submitting financial information | C77: Official responsible for submitting financial information
A78: ID Number | B78: 7710101321088 | C78: ID Number | D78: 7501275705085
A79: Title | B79: Ms | C79: Title | D79: Mr
A80: Name | B80: Dikeledi Dikolomela | C80: Name | D80: vincent Pilane
A81: Telephone number | B81: 0145904575 | C81: Telephone number | D81: 0145904595
A82: Cell number | B82: 0718092690 | C82: Cell number
A83: Fax number | B83: 0145926113 | C83: Fax number
A84: E-mail address | B84: dikeledid@bojanala.gov.za | C84: E-mail address | D84: vincentp@bojanala.gov.za
A85: Official responsible for submitting financial information | C85: Official responsible for submitting financial information
A86: ID Number | C86: ID Number
A87: Title | C87: Title
A88: Name | C88: Name
A89: Telephone number | C89: Telephone number
A90: Cell number | C90: Cell number
A91: Fax number | C91: Fax number
A92: E-mail address | C92: E-mail address
A93: Official responsible for submitting financial information | C93: Official responsible for submitting financial information
A94: ID Number | C94: ID Number
A95: Title | C95: Title
A96: Name | C96: Name
A97: Telephone number | C97: Telephone number
A98: Cell number | C98: Cell number
A99: Fax number | C99: Fax number
A100: E-mail address | C100: E-mail address
A101: Official responsible for submitting financial information | C101: Official responsible for submitting financial information
A102: ID Number | C102: ID Number
A103: Title | C103: Title
A104: Name | C104: Name
A105: Telephone number | C105: Telephone number
A106: Cell number | C106: Cell number
A107: Fax number | C107: Fax number
A108: E-mail address | C108: E-mail address
A109: Official responsible for submitting financial information | C109: Official responsible for submitting financial information
A110: ID Number | C110: ID Number
A111: Title | C111: Title
A112: Name | C112: Name
A113: Telephone number | C113: Telephone number
A114: Cell number | C114: Cell number
A115: Fax number | C115: Fax number
A116: E-mail address | C116: E-mail address
A117: Official responsible for submitting financial information | C117: Official responsible for submitting financial information
A118: ID Number | C118: ID Number
A119: Title | C119: Title
A120: Name | C120: Name
A121: Telephone number | C121: Telephone number
A122: Cell number | C122: Cell number
A123: Fax number | C123: Fax number
A124: E-mail address | C124: E-mail address
A125: Official responsible for submitting financial information | C125: Official responsible for submitting financial information
A126: ID Number | C126: ID Number
A127: Title | C127: Title
A128: Name | C128: Name
A129: Telephone number | C129: Telephone number
A130: Cell number | C130: Cell number
A131: Fax number | C131: Fax number
A132: E-mail address | C132: E-mail address
A133: Official responsible for submitting financial information
A134: ID Number
A135: Title
A136: Name
A137: Telephone number
A138: Cell number
A139: Fax number
A140: E-mail address

Sheet A1-Sum
A1: =muni&" - "&Approve1 -> DC37 Bojanala Platinum - Table A1 Budget Summary
A2: =desc -> Description | B2: =head1b -> 2016/17 | C2: =head1A -> 2017/18 | D2: =Head1 -> 2018/19 | E2: =Head2 -> Current Year 2019/20 | I2: =Head3 -> 2020/21 Medium Term Revenue & Expenditure Framework
A3: R thousands | B3: =Head5 -> Audited Outcome | C3: =Head5 -> Audited Outcome | D3: =Head5 -> Audited Outcome | E3: =Head6 -> Original Budget | F3: =Head7 -> Adjusted Budget | G3: =Head8 -> Full Year Forecast | H3: =Head5b -> Pre-audit outcome | I3: =Head9 -> Budget Year 2020/21 | J3: =Head10 -> Budget Year +1 2021/22 | K3: =Head11 -> Budget Year +2 2022/23
A4: Financial Performance
A5: Property rates | B5: ='A4-FinPerf RE'!C5 -> 0 | C5: ='A4-FinPerf RE'!D5 -> 0 | D5: ='A4-FinPerf RE'!E5 -> 0 | E5: ='A4-FinPerf RE'!F5 -> 0 | F5: ='A4-FinPerf RE'!G5 -> 0 | G5: ='A4-FinPerf RE'!H5 -> 0 | H5: ='A4-FinPerf RE'!I5 -> 0 | I5: ='A4-FinPerf RE'!J5 -> 0 | J5: ='A4-FinPerf RE'!K5 -> 0 | K5: ='A4-FinPerf RE'!L5 -> 0
A6: Service charges | B6: =SUM('A4-FinPerf RE'!C6:C9) -> 0 | C6: =SUM('A4-FinPerf RE'!D6:D9) -> 0 | D6: =SUM('A4-FinPerf RE'!E6:E9) -> 0 | E6: =SUM('A4-FinPerf RE'!F6:F9) -> 0 | F6: =SUM('A4-FinPerf RE'!G6:G9) -> 0 | G6: =SUM('A4-FinPerf RE'!H6:H9) -> 0 | H6: =SUM('A4-FinPerf RE'!I6:I9) -> 0 | I6: =SUM('A4-FinPerf RE'!J6:J9) -> 0 | J6: =SUM('A4-FinPerf RE'!K6:K9) -> 0 | K6: =SUM('A4-FinPerf RE'!L6:L9) -> 0
A7: Investment revenue | B7: ='A4-FinPerf RE'!C12 -> 2590763 | C7: ='A4-FinPerf RE'!D12 -> 3407037 | D7: ='A4-FinPerf RE'!E12 -> 2477461 | E7: ='A4-FinPerf RE'!F12 -> 1500000 | F7: ='A4-FinPerf RE'!G12 -> 1200000 | G7: ='A4-FinPerf RE'!H12 -> 1200000 | H7: ='A4-FinPerf RE'!I12 -> 1200000 | I7: ='A4-FinPerf RE'!J12 -> 800000 | J7: ='A4-FinPerf RE'!K12 -> 1550000 | K7: ='A4-FinPerf RE'!L12 -> 1560000
A8: Transfers recognised - operational | B8: ='A4-FinPerf RE'!C18 -> 315299020 | C8: ='A4-FinPerf RE'!D18 -> 320590976 | D8: ='A4-FinPerf RE'!E18 -> 327631754 | E8: ='A4-FinPerf RE'!F18 -> 341715000 | F8: ='A4-FinPerf RE'!G18 -> 342221000 | G8: ='A4-FinPerf RE'!H18 -> 342221000 | H8: ='A4-FinPerf RE'!I18 -> 342221000 | I8: ='A4-FinPerf RE'!J18 -> 356512000 | J8: ='A4-FinPerf RE'!K18 -> 369710000 | K8: ='A4-FinPerf RE'!L18 -> 383722000
A9: Other own revenue | B9: ='A4-FinPerf RE'!C11+'A4-FinPerf RE'!C13+'A4-FinPerf RE'!C14+'A4-FinPerf RE'!C15+'A4-FinPerf RE'!C16+'A4-FinPerf RE'!C17+'A4-FinPerf RE'!C19+'A4-FinPerf RE'!C20 -> 2290571 | C9: ='A4-FinPerf RE'!D11+'A4-FinPerf RE'!D13+'A4-FinPerf RE'!D14+'A4-FinPerf RE'!D15+'A4-FinPerf RE'!D16+'A4-FinPerf RE'!D17+'A4-FinPerf RE'!D19+'A4-FinPerf RE'!D20 -> 0 | D9: ='A4-FinPerf RE'!E11+'A4-FinPerf RE'!E13+'A4-FinPerf RE'!E14+'A4-FinPerf RE'!E15+'A4-FinPerf RE'!E16+'A4-FinPerf RE'!E17+'A4-FinPerf RE'!E19+'A4-FinPerf RE'!E20 -> 94000 | E9: ='A4-FinPerf RE'!F11+'A4-FinPerf RE'!F13+'A4-FinPerf RE'!F14+'A4-FinPerf RE'!F15+'A4-FinPerf RE'!F16+'A4-FinPerf RE'!F17+'A4-FinPerf RE'!F19+'A4-FinPerf RE'!F20 -> 300000 | F9: ='A4-FinPerf RE'!G11+'A4-FinPerf RE'!G13+'A4-FinPerf RE'!G14+'A4-FinPerf RE'!G15+'A4-FinPerf RE'!G16+'A4-FinPerf RE'!G17+'A4-FinPerf RE'!G19+'A4-FinPerf RE'!G20 -> 110000 | G9: ='A4-FinPerf RE'!H11+'A4-FinPerf RE'!H13+'A4-FinPerf RE'!H14+'A4-FinPerf RE'!H15+'A4-FinPerf RE'!H16+'A4-FinPerf RE'!H17+'A4-FinPerf RE'!H19+'A4-FinPerf RE'!H20 -> 110000 | H9: ='A4-FinPerf RE'!I11+'A4-FinPerf RE'!I13+'A4-FinPerf RE'!I14+'A4-FinPerf RE'!I15+'A4-FinPerf RE'!I16+'A4-FinPerf RE'!I17+'A4-FinPerf RE'!I19+'A4-FinPerf RE'!I20 -> 110000 | I9: ='A4-FinPerf RE'!J11+'A4-FinPerf RE'!J13+'A4-FinPerf RE'!J14+'A4-FinPerf RE'!J15+'A4-FinPerf RE'!J16+'A4-FinPerf RE'!J17+'A4-FinPerf RE'!J19+'A4-FinPerf RE'!J20 -> 110000 | J9: ='A4-FinPerf RE'!K11+'A4-FinPerf RE'!K13+'A4-FinPerf RE'!K14+'A4-FinPerf RE'!K15+'A4-FinPerf RE'!K16+'A4-FinPerf RE'!K17+'A4-FinPerf RE'!K19+'A4-FinPerf RE'!K20 -> 110000 | K9: ='A4-FinPerf RE'!L11+'A4-FinPerf RE'!L13+'A4-FinPerf RE'!L14+'A4-FinPerf RE'!L15+'A4-FinPerf RE'!L16+'A4-FinPerf RE'!L17+'A4-FinPerf RE'!L19+'A4-FinPerf RE'!L20 -> 110000
A10: ='A4-FinPerf RE'!A21 -> Total Revenue (excluding capital transfers and contributions) | B10: =SUM(B5:B9) -> 320180354 | C10: 323998013 | D10: 330203215 | E10: 343515000 | F10: 343531000 | G10: 343531000 | H10: 343531000 | I10: 357422000 | J10: 371370000 | K10: 385392000
A11: Employee costs | B11: ='A4-FinPerf RE'!C24 -> 153274945 | C11: ='A4-FinPerf RE'!D24 -> 162967169 | D11: ='A4-FinPerf RE'!E24 -> 180147265 | E11: ='A4-FinPerf RE'!F24 -> 191929194.6 | F11: ='A4-FinPerf RE'!G24 -> 194585000 | G11: ='A4-FinPerf RE'!H24 -> 194585000 | H11: ='A4-FinPerf RE'!I24 -> 194585000 | I11: ='A4-FinPerf RE'!J24 -> 204094993.2 | J11: ='A4-FinPerf RE'!K24 -> 215426564.2 | K11: ='A4-FinPerf RE'!L24 -> 227432545.2
A12: Remuneration of councillors | B12: ='A4-FinPerf RE'!C25 -> 14568171 | C12: ='A4-FinPerf RE'!D25 -> 17368469 | D12: ='A4-FinPerf RE'!E25 -> 17930112 | E12: ='A4-FinPerf RE'!F25 -> 18661812.57 | F12: ='A4-FinPerf RE'!G25 -> 18661812.57 | G12: ='A4-FinPerf RE'!H25 -> 18661812.57 | H12: ='A4-FinPerf RE'!I25 -> 18661812.57 | I12: ='A4-FinPerf RE'!J25 -> 19557580 | J12: ='A4-FinPerf RE'!K25 -> 20570280.5 | K12: ='A4-FinPerf RE'!L25 -> 21792761.9
A13: Depreciation & asset impairment | B13: ='A4-FinPerf RE'!C27 -> 9174383 | C13: ='A4-FinPerf RE'!D27 -> 7067445 | D13: ='A4-FinPerf RE'!E27 -> 6244169 | E13: ='A4-FinPerf RE'!F27 -> 7392000 | F13: ='A4-FinPerf RE'!G27 -> 6300000 | G13: ='A4-FinPerf RE'!H27 -> 6300000 | H13: ='A4-FinPerf RE'!I27 -> 6300000 | I13: ='A4-FinPerf RE'!J27 -> 6300000 | J13: ='A4-FinPerf RE'!K27 -> 7200000 | K13: ='A4-FinPerf RE'!L27 -> 7400000
A14: Finance charges | B14: ='A4-FinPerf RE'!C28 -> 1202113 | C14: ='A4-FinPerf RE'!D28 -> 777655.08 | D14: ='A4-FinPerf RE'!E28 -> 246603 | E14: ='A4-FinPerf RE'!F28 -> 0 | F14: ='A4-FinPerf RE'!G28 -> 3331000 | G14: ='A4-FinPerf RE'!H28 -> 3331000 | H14: ='A4-FinPerf RE'!I28 -> 3331000 | I14: ='A4-FinPerf RE'!J28 -> 500000 | J14: ='A4-FinPerf RE'!K28 -> 500000 | K14: ='A4-FinPerf RE'!L28 -> 500000
A15: Materials and bulk purchases | B15: ='A4-FinPerf RE'!C29+'A4-FinPerf RE'!C30 -> 1394499.21 | C15: ='A4-FinPerf RE'!D29+'A4-FinPerf RE'!D30 -> 2760440.38 | D15: ='A4-FinPerf RE'!E29+'A4-FinPerf RE'!E30 -> 3726344 | E15: ='A4-FinPerf RE'!F29+'A4-FinPerf RE'!F30 -> 3607287.3 | F15: ='A4-FinPerf RE'!G29+'A4-FinPerf RE'!G30 -> 279000 | G15: ='A4-FinPerf RE'!H29+'A4-FinPerf RE'!H30 -> 279000 | H15: ='A4-FinPerf RE'!I29+'A4-FinPerf RE'!I30 -> 279000 | I15: ='A4-FinPerf RE'!J29+'A4-FinPerf RE'!J30 -> 510000 | J15: ='A4-FinPerf RE'!K29+'A4-FinPerf RE'!K30 -> 440000 | K15: ='A4-FinPerf RE'!L29+'A4-FinPerf RE'!L30 -> 408000
A16: Transfers and grants | B16: ='A4-FinPerf RE'!C32 -> 24864284 | C16: ='A4-FinPerf RE'!D32 -> 0 | D16: ='A4-FinPerf RE'!E32 -> 0 | E16: ='A4-FinPerf RE'!F32 -> 1909218.43 | F16: ='A4-FinPerf RE'!G32 -> 1871000 | G16: ='A4-FinPerf RE'!H32 -> 1871000 | H16: ='A4-FinPerf RE'!I32 -> 1871000 | I16: ='A4-FinPerf RE'!J32 -> 0 | J16: ='A4-FinPerf RE'!K32 -> 0 | K16: ='A4-FinPerf RE'!L32 -> 0
A17: Other expenditure | B17: ='A4-FinPerf RE'!C26+'A4-FinPerf RE'!C31+'A4-FinPerf RE'!C33+'A4-FinPerf RE'!C34 -> 129459776.8 | C17: ='A4-FinPerf RE'!D26+'A4-FinPerf RE'!D31+'A4-FinPerf RE'!D33+'A4-FinPerf RE'!D34 -> 138287759.6 | D17: ='A4-FinPerf RE'!E26+'A4-FinPerf RE'!E31+'A4-FinPerf RE'!E33+'A4-FinPerf RE'!E34 -> 234503227 | E17: ='A4-FinPerf RE'!F26+'A4-FinPerf RE'!F31+'A4-FinPerf RE'!F33+'A4-FinPerf RE'!F34 -> 94692972.59 | F17: ='A4-FinPerf RE'!G26+'A4-FinPerf RE'!G31+'A4-FinPerf RE'!G33+'A4-FinPerf RE'!G34 -> 53665769 | G17: ='A4-FinPerf RE'!H26+'A4-FinPerf RE'!H31+'A4-FinPerf RE'!H33+'A4-FinPerf RE'!H34 -> 53665769 | H17: ='A4-FinPerf RE'!I26+'A4-FinPerf RE'!I31+'A4-FinPerf RE'!I33+'A4-FinPerf RE'!I34 -> 53665769 | I17: ='A4-FinPerf RE'!J26+'A4-FinPerf RE'!J31+'A4-FinPerf RE'!J33+'A4-FinPerf RE'!J34 -> 57275211 | J17: ='A4-FinPerf RE'!K26+'A4-FinPerf RE'!K31+'A4-FinPerf RE'!K33+'A4-FinPerf RE'!K34 -> 61536211 | K17: ='A4-FinPerf RE'!L26+'A4-FinPerf RE'!L31+'A4-FinPerf RE'!L33+'A4-FinPerf RE'!L34 -> 64728211
A18: ='A4-FinPerf RE'!A35 -> Total Expenditure | B18: =SUM(B11:B17) -> 333938172 | C18: =SUM(C11:C17) -> 329228938 | D18: 442797720 | E18: 318192485.4 | F18: 278693581.6 | G18: 278693581.6 | H18: 278693581.6 | I18: 288237784.2 | J18: 305673055.7 | K18: 322261518.1
A19: ='A4-FinPerf RE'!A37 -> Surplus/(Deficit) | B19: =B10-B18 -> -13757818 | C19: -5230925.02 | D19: -112594505 | E19: 25322514.55 | F19: 64837418.43 | G19: 64837418.43 | H19: 64837418.43 | I19: 69184215.8 | J19: 65696944.33 | K19: 63130481.91
A20: ='A4-FinPerf RE'!A38 -> Transfers and subsidies - capital (monetary allocations) (National / Provincial and District) | B20: ='A4-FinPerf RE'!C38 -> 2174563 | C20: ='A4-FinPerf RE'!D38 -> 2359000 | D20: ='A4-FinPerf RE'!E38 -> 2364000 | E20: ='A4-FinPerf RE'!F38 -> 2504000 | F20: ='A4-FinPerf RE'!G38 -> 2504000 | G20: ='A4-FinPerf RE'!H38 -> 2504000 | H20: ='A4-FinPerf RE'!I38 -> 2504000 | I20: ='A4-FinPerf RE'!J38 -> 2383000 | J20: ='A4-FinPerf RE'!K38 -> 2515000 | K20: ='A4-FinPerf RE'!L38 -> 2660000
A21: ='A4-FinPerf RE'!A39&" & "&'A4-FinPerf RE'!A40 -> Transfers and subsidies - capital (monetary allocations) (National / Provincial Departmental Agencies, Households, Non-profit Institutions, Private Enterprises, Public Corporatons, Higher Educational Institutions) & Transfers and subsidies - capital (in-kind - all) | B21: ='A4-FinPerf RE'!C39+'A4-FinPerf RE'!C40 -> 0 | C21: ='A4-FinPerf RE'!D39+'A4-FinPerf RE'!D40 -> 0 | D21: ='A4-FinPerf RE'!E39+'A4-FinPerf RE'!E40 -> 0 | E21: ='A4-FinPerf RE'!F39+'A4-FinPerf RE'!F40 -> 0 | F21: ='A4-FinPerf RE'!G39+'A4-FinPerf RE'!G40 -> 0 | G21: ='A4-FinPerf RE'!H39+'A4-FinPerf RE'!H40 -> 0 | H21: ='A4-FinPerf RE'!I39+'A4-FinPerf RE'!I40 -> 0 | I21: ='A4-FinPerf RE'!J39+'A4-FinPerf RE'!J40 -> 0 | J21: ='A4-FinPerf RE'!K39+'A4-FinPerf RE'!K40 -> 0 | K21: ='A4-FinPerf RE'!L39+'A4-FinPerf RE'!L40 -> 0
A22: ='A4-FinPerf RE'!A41 -> Surplus/(Deficit) after capital transfers & contributions | B22: =B19+SUM(B20:B21) -> -11583255 | C22: =C19+SUM(C20:C21) -> -2871925.02 | D22: -110230505 | E22: 27826514.55 | F22: 67341418.43 | G22: 67341418.43 | H22: 67341418.43 | I22: 71567215.8 | J22: 68211944.33 | K22: 65790481.91
A23: ='A4-FinPerf RE'!A46 -> Share of surplus/ (deficit) of associate | B23: ='A4-FinPerf RE'!C46 -> 0 | C23: ='A4-FinPerf RE'!D46 -> 0 | D23: ='A4-FinPerf RE'!E46 -> 0 | E23: ='A4-FinPerf RE'!F46 -> 0 | F23: ='A4-FinPerf RE'!G46 -> 0 | G23: ='A4-FinPerf RE'!H46 -> 0 | H23: ='A4-FinPerf RE'!I46 -> 0 | I23: ='A4-FinPerf RE'!J46 -> 0 | J23: ='A4-FinPerf RE'!K46 -> 0 | K23: ='A4-FinPerf RE'!L46 -> 0
A24: ='A4-FinPerf RE'!A47 -> Surplus/(Deficit) for the year | B24: =B22+B23 -> -11583255 | C24: =C22+C23 -> -2871925.02 | D24: -110230505 | E24: 27826514.55 | F24: 67341418.43 | G24: 67341418.43 | H24: 67341418.43 | I24: 71567215.8 | J24: 68211944.33 | K24: 65790481.91
A26: Capital expenditure & funds sources
A27: Capital expenditure | B27: ='A5-Capex'!C63 -> 0 | C27: ='A5-Capex'!D63 -> 0 | D27: ='A5-Capex'!E63 -> 0 | E27: ='A5-Capex'!F63 -> 0 | F27: ='A5-Capex'!G63 -> 50000 | G27: ='A5-Capex'!H63 -> 50000 | H27: ='A5-Capex'!I63 -> 50000 | I27: ='A5-Capex'!J63 -> 3003000 | J27: ='A5-Capex'!K63 -> 2665000 | K27: ='A5-Capex'!L63 -> 2860000
A28: Transfers recognised - capital | B28: ='A5-Capex'!C70 -> -3259903.01 | C28: ='A5-Capex'!D70 -> 5822609.21 | D28: ='A5-Capex'!E70 -> 6942278.14 | E28: ='A5-Capex'!F70 -> 0 | F28: ='A5-Capex'!G70 -> 0 | G28: ='A5-Capex'!H70 -> 0 | H28: ='A5-Capex'!I70 -> 0 | I28: ='A5-Capex'!J70 -> 2383000 | J28: ='A5-Capex'!K70 -> 2515000 | K28: ='A5-Capex'!L70 -> 2660000
A30: ='A5-Capex'!A72 -> Borrowing | B30: ='A5-Capex'!C72 -> 0 | C30: ='A5-Capex'!D72 -> 0 | D30: ='A5-Capex'!E72 -> 0 | E30: ='A5-Capex'!F72 -> 0 | F30: ='A5-Capex'!G72 -> 0 | G30: ='A5-Capex'!H72 -> 0 | H30: ='A5-Capex'!I72 -> 0 | I30: ='A5-Capex'!J72 -> 0 | J30: ='A5-Capex'!K72 -> 0 | K30: ='A5-Capex'!L72 -> 0
A31: ='A5-Capex'!A73 -> Internally generated funds | B31: ='A5-Capex'!C73 -> 82098938.93 | C31: ='A5-Capex'!D73 -> 90387483.18 | D31: ='A5-Capex'!E73 -> 90956974.31 | E31: ='A5-Capex'!F73 -> 0 | F31: ='A5-Capex'!G73 -> 50000 | G31: ='A5-Capex'!H73 -> 50000 | H31: ='A5-Capex'!I73 -> 50000 | I31: ='A5-Capex'!J73 -> 620000 | J31: ='A5-Capex'!K73 -> 150000 | K31: ='A5-Capex'!L73 -> 200000
A32: Total sources of capital funds | B32: =+B28+B30+B31 -> 78839035.92 | C32: =+C28+C30+C31 -> 96210092.39 | D32: 97899252.45 | E32: 0 | F32: 50000 | G32: 50000 | H32: 50000 | I32: 3003000 | J32: 2665000 | K32: 2860000
A34: Financial position
A35: ='A6-FinPos'!A12 -> Total current assets | B35: ='A6-FinPos'!C12 -> 3070494.81 | C35: ='A6-FinPos'!D12 -> 3856716 | D35: ='A6-FinPos'!E12 -> 55984806.64 | E35: ='A6-FinPos'!F12 -> 57978945 | F35: ='A6-FinPos'!G12 -> 128159908.6 | G35: ='A6-FinPos'!H12 -> 128159908.6 | H35: ='A6-FinPos'!I12 -> 2809870 | I35: ='A6-FinPos'!J12 -> 25998353.74 | J35: ='A6-FinPos'!K12 -> 74962842.54 | K35: ='A6-FinPos'!L12 -> 131396029.2
A36: ='A6-FinPos'!A24 -> Total non current assets | B36: ='A6-FinPos'!C24 -> 38004907 | C36: ='A6-FinPos'!D24 -> 63105334 | D36: ='A6-FinPos'!E24 -> 59523196 | E36: ='A6-FinPos'!F24 -> 59118402 | F36: ='A6-FinPos'!G24 -> 59118402 | G36: ='A6-FinPos'!H24 -> 59118402 | H36: ='A6-FinPos'!I24 -> 59523196 | I36: ='A6-FinPos'!J24 -> 59893196 | J36: ='A6-FinPos'!K24 -> 59893196 | K36: ='A6-FinPos'!L24 -> 59893196
A37: ='A6-FinPos'!A34 -> Total current liabilities | B37: ='A6-FinPos'!C34 -> 51915910 | C37: ='A6-FinPos'!D34 -> 55494021 | D37: ='A6-FinPos'!E34 -> 213462193 | E37: ='A6-FinPos'!F34 -> 25000001 | F37: ='A6-FinPos'!G34 -> 52872693 | G37: ='A6-FinPos'!H34 -> 52872693 | H37: ='A6-FinPos'!I34 -> 52872693 | I37: ='A6-FinPos'!J34 -> 10000000 | J37: ='A6-FinPos'!K34 -> 30000000 | K37: ='A6-FinPos'!L34 -> 20000000
A38: ='A6-FinPos'!A39 -> Total non current liabilities | B38: ='A6-FinPos'!C39 -> 28133067 | C38: ='A6-FinPos'!D39 -> 27631717 | D38: ='A6-FinPos'!E39 -> 28440000 | E38: ='A6-FinPos'!F39 -> 0 | F38: ='A6-FinPos'!G39 -> 0 | G38: ='A6-FinPos'!H39 -> 28440000 | H38: ='A6-FinPos'!I39 -> 28440000 | I38: ='A6-FinPos'!J39 -> 28440000 | J38: ='A6-FinPos'!K39 -> 28440000 | K38: ='A6-FinPos'!L39 -> 28440000
A39: Community wealth/Equity | B39: ='A6-FinPos'!C48 -> -38973575.19 | C39: ='A6-FinPos'!D48 -> -16163688 | D39: ='A6-FinPos'!E48 -> -126394190.4 | E39: ='A6-FinPos'!F48 -> 92097346 | F39: ='A6-FinPos'!G48 -> 134405617.6 | G39: ='A6-FinPos'!H48 -> 105965617.6 | H39: ='A6-FinPos'!I48 -> -18979627 | I39: ='A6-FinPos'!J48 -> 47451549.74 | J39: ='A6-FinPos'!K48 -> 76416038.54 | K39: ='A6-FinPos'!L48 -> 142849225.2
A41: Cash flows
A42: Net cash from (used) operating | B42: ='A7-CFlow'!C17 -> -28494839 | C42: ='A7-CFlow'!D17 -> 24121715.92 | D42: ='A7-CFlow'!E17 -> 67639898.64 | E42: ='A7-CFlow'!F17 -> 35018514.55 | F42: ='A7-CFlow'!G17 -> 75520634.75 | G42: ='A7-CFlow'!H17 -> 82033604.74 | H42: ='A7-CFlow'!I17 -> 82033604.74 | I42: ='A7-CFlow'!J17 -> 26079911.44 | J42: ='A7-CFlow'!K17 -> 51529488.8 | K42: ='A7-CFlow'!L17 -> 59193186.64
A43: Net cash from (used) investing | B43: ='A7-CFlow'!C27 -> 13135467 | C43: ='A7-CFlow'!D27 -> -19745510 | D43: ='A7-CFlow'!E27 -> -12065945 | E43: ='A7-CFlow'!F27 -> 0 | F43: ='A7-CFlow'!G27 -> 50000 | G43: ='A7-CFlow'!H27 -> 50000 | H43: ='A7-CFlow'!I27 -> 50000 | I43: ='A7-CFlow'!J27 -> -3003000 | J43: ='A7-CFlow'!K27 -> -2665000 | K43: ='A7-CFlow'!L27 -> -2860000
A44: Net cash from (used) financing | B44: ='A7-CFlow'!C36 -> 4066000 | C44: ='A7-CFlow'!D36 -> -2800983 | D44: ='A7-CFlow'!E36 -> -53775717 | E44: ='A7-CFlow'!F36 -> 0 | F44: ='A7-CFlow'!G36 -> -84000000 | G44: ='A7-CFlow'!H36 -> -84000000 | H44: ='A7-CFlow'!I36 -> -84000000 | I44: ='A7-CFlow'!J36 -> 0 | J44: ='A7-CFlow'!K36 -> 0 | K44: ='A7-CFlow'!L36 -> 0
A45: =LEFT('A7-CFlow'!A40,37) -> Cash/cash equivalents at the year end | B45: ='A7-CFlow'!C40 -> 764378 | C45: ='A7-CFlow'!D40 -> 2339600.92 | D45: ='A7-CFlow'!E40 -> 4137837.56 | E45: ='A7-CFlow'!F40 -> 39156352.11 | F45: ='A7-CFlow'!G40 -> -4291527.69 | G45: ='A7-CFlow'!H40 -> 2221442.3 | H45: ='A7-CFlow'!I40 -> 2221442.3 | I45: ='A7-CFlow'!J40 -> 25298353.74 | J45: ='A7-CFlow'!K40 -> 74162842.54 | K45: ='A7-CFlow'!L40 -> 130496029.2
A47: Cash backing/surplus reconciliation
A48: ='A8-ResRecon'!A4 -> Cash and investments available | B48: ='A8-ResRecon'!C8 -> 764377.81 | C48: ='A8-ResRecon'!D8 -> 2339601 | D48: ='A8-ResRecon'!E8 -> 4137838.64 | E48: ='A8-ResRecon'!F8 -> 2500000 | F48: ='A8-ResRecon'!G8 -> 37684864.57 | G48: ='A8-ResRecon'!H8 -> 37684864.57 | H48: ='A8-ResRecon'!I8 -> 2200000 | I48: ='A8-ResRecon'!J8 -> 25298353.74 | J48: ='A8-ResRecon'!K8 -> 74162842.54 | K48: ='A8-ResRecon'!L8 -> 130496029.2
A49: ='A8-ResRecon'!A10 -> Application of cash and investments | B49: ='A8-ResRecon'!C18 -> 51915910 | C49: ='A8-ResRecon'!D18 -> 55494021 | D49: ='A8-ResRecon'!E18 -> 213462193 | E49: ='A8-ResRecon'!F18 -> 25000001 | F49: ='A8-ResRecon'!G18 -> 52872693 | G49: ='A8-ResRecon'!H18 -> 52872693 | H49: ='A8-ResRecon'!I18 -> 52872693 | I49: ='A8-ResRecon'!J18 -> 24300000 | J49: ='A8-ResRecon'!K18 -> 44200000 | K49: ='A8-ResRecon'!L18 -> 34100000
A50: Balance - surplus (shortfall) | B50: =B48-B49 -> -51151532.19 | C50: =C48-C49 -> -53154420 | D50: -209324354.4 | E50: -22500001 | F50: -15187828.43 | G50: -15187828.43 | H50: -50672693 | I50: 998353.7444 | J50: 29962842.54 | K50: 96396029.19
A52: Asset management
A53: Asset register summary (WDV) | B53: ='A9-Asset'!C165 -> 48180106.41 | C53: ='A9-Asset'!D165 -> 42487350.77 | D53: ='A9-Asset'!E165 -> 38242515.44 | E53: ='A9-Asset'!F165 -> 6521060 | F53: ='A9-Asset'!G165 -> 6350000 | G53: ='A9-Asset'!H165 -> 6350000 | H53: ='A9-Asset'!H165 -> 6350000 | I53: ='A9-Asset'!I165 -> 620000 | J53: ='A9-Asset'!J165 -> 150000 | K53: ='A9-Asset'!K165 -> 200000
A54: ='A9-Asset'!A168 -> Depreciation | B54: ='A9-Asset'!C168 -> 0 | C54: ='A9-Asset'!D168 -> 0 | D54: ='A9-Asset'!E168 -> 12213 | E54: ='A9-Asset'!F168 -> 7067445.2 | F54: ='A9-Asset'!G168 -> 10129239.15 | G54: ='A9-Asset'!H168 -> 1930937.02 | H54: ='A9-Asset'!H168 -> 1930937.02 | I54: ='A9-Asset'!I168 -> 6300000 | J54: ='A9-Asset'!J168 -> 7200000 | K54: ='A9-Asset'!K168 -> 7400000
A55: Renewal and Upgrading of Existing Assets | B55: ='A9-Asset'!C37+'A9-Asset'!C69 -> 0 | C55: ='A9-Asset'!D37+'A9-Asset'!D69 -> 0 | D55: ='A9-Asset'!E37+'A9-Asset'!E69 -> 0 | E55: ='A9-Asset'!F37+'A9-Asset'!F69 -> 0 | F55: ='A9-Asset'!G37+'A9-Asset'!G69 -> 0 | G55: ='A9-Asset'!H37+'A9-Asset'!H69 -> 0 | H55: ='A9-Asset'!H37+'A9-Asset'!H69 -> 0 | I55: ='A9-Asset'!I37+'A9-Asset'!I69 -> 0 | J55: ='A9-Asset'!J37+'A9-Asset'!J69 -> 0 | K55: ='A9-Asset'!K37+'A9-Asset'!K69 -> 0
A56: Repairs and Maintenance | B56: ='A9-Asset'!C169 -> 0 | C56: ='A9-Asset'!D169 -> 887175.95 | D56: ='A9-Asset'!E169 -> 37705705.3 | E56: ='A9-Asset'!F169 -> 3186232.4 | F56: ='A9-Asset'!G169 -> 309000 | G56: ='A9-Asset'!H169 -> 309000 | H56: ='A9-Asset'!H169 -> 309000 | I56: ='A9-Asset'!I169 -> 400000 | J56: ='A9-Asset'!J169 -> 240000 | K56: ='A9-Asset'!K169 -> 300000
A58: Free services
A59: Cost of Free Basic Services provided | B59: ='A10-SerDel'!C60 -> 0 | C59: ='A10-SerDel'!D60 -> 0 | D59: ='A10-SerDel'!E60 -> 0 | E59: ='A10-SerDel'!F60 -> 0 | F59: ='A10-SerDel'!G60 -> 0 | G59: ='A10-SerDel'!H60 -> 0 | H59: ='A10-SerDel'!I60 -> 0 | I59: ='A10-SerDel'!I60 -> 0 | J59: ='A10-SerDel'!J60 -> 0 | K59: ='A10-SerDel'!K60 -> 0
A60: Revenue cost of free services provided | B60: 0 | C60: 0 | D60: 0 | E60: 0 | F60: 0 | G60: 0 | H60: 0 | I60: 0 | J60: 0 | K60: 0
A61: Households below minimum service level
A62: ='A10-SerDel'!A5 -> Water: | B62: ='A10-SerDel'!C14 -> 0 | C62: ='A10-SerDel'!D14 -> 0 | D62: ='A10-SerDel'!E14 -> 0 | E62: ='A10-SerDel'!F14 -> 0 | F62: ='A10-SerDel'!G14 -> 0 | G62: ='A10-SerDel'!H14 -> 0 | H62: ='A10-SerDel'!I14 -> 0 | I62: ='A10-SerDel'!I14 -> 0 | J62: ='A10-SerDel'!J14 -> 0 | K62: ='A10-SerDel'!K14 -> 0
A63: ='A10-SerDel'!A16 -> Sanitation/sewerage: | B63: ='A10-SerDel'!C26 -> 0 | C63: ='A10-SerDel'!D26 -> 0 | D63: ='A10-SerDel'!E26 -> 0 | E63: ='A10-SerDel'!F26 -> 0 | F63: ='A10-SerDel'!G26 -> 0 | G63: ='A10-SerDel'!H26 -> 0 | H63: ='A10-SerDel'!I26 -> 0 | I63: ='A10-SerDel'!I26 -> 0 | J63: ='A10-SerDel'!J26 -> 0 | K63: ='A10-SerDel'!K26 -> 0
A64: ='A10-SerDel'!A28 -> Energy: | B64: ='A10-SerDel'!C35 -> 0 | C64: ='A10-SerDel'!D35 -> 0 | D64: ='A10-SerDel'!E35 -> 0 | E64: ='A10-SerDel'!F35 -> 0 | F64: ='A10-SerDel'!G35 -> 0 | G64: ='A10-SerDel'!H35 -> 0 | H64: ='A10-SerDel'!I35 -> 0 | I64: ='A10-SerDel'!I35 -> 0 | J64: ='A10-SerDel'!J35 -> 0 | K64: ='A10-SerDel'!K35 -> 0
A65: ='A10-SerDel'!A37 -> Refuse: | B65: ='A10-SerDel'!C45 -> 0 | C65: ='A10-SerDel'!D45 -> 0 | D65: ='A10-SerDel'!E45 -> 0 | E65: ='A10-SerDel'!F45 -> 0 | F65: ='A10-SerDel'!G45 -> 0 | G65: ='A10-SerDel'!H45 -> 0 | H65: ='A10-SerDel'!I45 -> 0 | I65: ='A10-SerDel'!I45 -> 0 | J65: ='A10-SerDel'!J45 -> 0 | K65: ='A10-SerDel'!K45 -> 0

Sheet A2-FinPerf SC
A1: =muni&" - "&Approve3 -> DC37 Bojanala Platinum - Table A2 Budgeted Financial Performance (revenue and expenditure by functional classification)
A2: ="Functional Classification "&desc -> Functional Classification Description | B2: =head27 -> Ref | C2: =head1b -> 2016/17 | D2: =head1A -> 2017/18 | E2: =Head1 -> 2018/19 | F2: =Head2 -> Current Year 2019/20 | I2: =Head3 -> 2020/21 Medium Term Revenue & Expenditure Framework
A3: R thousand | B3: 1 | C3: =Head5 -> Audited Outcome | D3: =Head5 -> Audited Outcome | E3: =Head5 -> Audited Outcome | F3: =Head6 -> Original Budget | G3: =Head7 -> Adjusted Budget | H3: =Head8 -> Full Year Forecast | I3: =Head9 -> Budget Year 2020/21 | J3: =Head10 -> Budget Year +1 2021/22 | K3: =Head11 -> Budget Year +2 2022/23
A4: Revenue - Functional
A5: Governance and administration | C5: =SUM(C6:C8) -> 327115628.6 | D5: =SUM(D6:D8) -> 326382478.1 | E5: 332473214.7 | F5: 345819000 | G5: 345429000 | H5: 345429000 | I5: 357906000 | J5: 371260000 | K5: 385282000
A6: Executive and council | C6: =A2A!C6 -> 0 | D6: =A2A!D6 -> 0 | E6: =A2A!E6 -> 0 | F6: =A2A!F6 -> 0 | G6: =A2A!G6 -> 0 | H6: =A2A!H6 -> 0 | I6: =A2A!I6 -> 0 | J6: =A2A!J6 -> 0 | K6: =A2A!K6 -> 0
A7: Finance and administration | C7: =A2A!C9 -> 327115628.6 | D7: =A2A!D9 -> 326382478.1 | E7: =A2A!E9 -> 332473214.7 | F7: =A2A!F9 -> 345819000 | G7: =A2A!G9 -> 345429000 | H7: =A2A!H9 -> 345429000 | I7: =A2A!I9 -> 357906000 | J7: =A2A!J9 -> 371260000 | K7: =A2A!K9 -> 385282000
A8: Internal audit | C8: =A2A!C23 -> 0 | D8: =A2A!D23 -> 0 | E8: =A2A!E23 -> 0 | F8: =A2A!F23 -> 0 | G8: =A2A!G23 -> 0 | H8: =A2A!H23 -> 0 | I8: =A2A!I23 -> 0 | J8: =A2A!J23 -> 0 | K8: =A2A!K23 -> 0
A9: Community and public safety | C9: =SUM(C10:C14) -> 0 | D9: =SUM(D10:D14) -> 0 | E9: 0 | F9: 200000 | G9: 100000 | H9: 100000 | I9: 110000 | J9: 2625000 | K9: 2770000
A10: Community and social services | C10: =A2A!C26 -> 0 | D10: =A2A!D26 -> 0 | E10: =A2A!E26 -> 0 | F10: =A2A!F26 -> 200000 | G10: =A2A!G26 -> 100000 | H10: =A2A!H26 -> 100000 | I10: =A2A!I26 -> 110000 | J10: =A2A!J26 -> 110000 | K10: =A2A!K26 -> 110000
A11: Sport and recreation | C11: =A2A!C48 -> 0 | D11: =A2A!D48 -> 0 | E11: =A2A!E48 -> 0 | F11: =A2A!F48 -> 0 | G11: =A2A!G48 -> 0 | H11: =A2A!H48 -> 0 | I11: =A2A!I48 -> 0 | J11: =A2A!J48 -> 0 | K11: =A2A!K48 -> 0
A12: Public safety | C12: =A2A!C54 -> 0 | D12: =A2A!D54 -> 0 | E12: =A2A!E54 -> 0 | F12: =A2A!F54 -> 0 | G12: =A2A!G54 -> 0 | H12: =A2A!H54 -> 0 | I12: =A2A!I54 -> 0 | J12: =A2A!J54 -> 0 | K12: =A2A!K54 -> 0
A13: Housing | C13: =A2A!C63 -> 0 | D13: =A2A!D63 -> 0 | E13: =A2A!E63 -> 0 | F13: =A2A!F63 -> 0 | G13: =A2A!G63 -> 0 | H13: =A2A!H63 -> 0 | I13: =A2A!I63 -> 0 | J13: =A2A!J63 -> 2515000 | K13: =A2A!K63 -> 2660000
A14: Health | C14: =A2A!C66 -> 0 | D14: =A2A!D66 -> 0 | E14: =A2A!E66 -> 0 | F14: =A2A!F66 -> 0 | G14: =A2A!G66 -> 0 | H14: =A2A!H66 -> 0 | I14: =A2A!I66 -> 0 | J14: =A2A!J66 -> 0 | K14: =A2A!K66 -> 0
A15: Economic and environmental services | C15: =SUM(C16:C18) -> 1898702.18 | D15: =SUM(D16:D18) -> 0 | E15: 0 | F15: 0 | G15: 0 | H15: 0 | I15: 1789000 | J15: 0 | K15: 0
A16: Planning and development | C16: =A2A!C75 -> 0 | D16: =A2A!D75 -> 0 | E16: =A2A!E75 -> 0 | F16: =A2A!F75 -> 0 | G16: =A2A!G75 -> 0 | H16: =A2A!H75 -> 0 | I16: =A2A!I75 -> 0 | J16: =A2A!J75 -> 0 | K16: =A2A!K75 -> 0
A17: Road transport | C17: =A2A!C86 -> 1898702.18 | D17: =A2A!D86 -> 0 | E17: =A2A!E86 -> 0 | F17: =A2A!F86 -> 0 | G17: =A2A!G86 -> 0 | H17: =A2A!H86 -> 0 | I17: =A2A!I86 -> 1789000 | J17: =A2A!J86 -> 0 | K17: =A2A!K86 -> 0
A18: Environmental protection | C18: =A2A!C91 -> 0 | D18: =A2A!D91 -> 0 | E18: =A2A!E91 -> 0 | F18: =A2A!F91 -> 0 | G18: =A2A!G91 -> 0 | H18: =A2A!H91 -> 0 | I18: =A2A!I91 -> 0 | J18: =A2A!J91 -> 0 | K18: =A2A!K91 -> 0
A19: Trading services | C19: =SUM(C20:C23) -> 0 | D19: =SUM(D20:D23) -> 0 | E19: 0 | F19: 0 | G19: 0 | H19: 0 | I19: 0 | J19: =SUM(J20:J23) -> 0 | K19: 0
A20: Energy sources | C20: =A2A!C99 -> 0 | D20: =A2A!D99 -> 0 | E20: =A2A!E99 -> 0 | F20: =A2A!F99 -> 0 | G20: =A2A!G99 -> 0 | H20: =A2A!H99 -> 0 | I20: =A2A!I99 -> 0 | J20: =A2A!J99 -> 0 | K20: =A2A!K99 -> 0
A21: Water management | C21: =A2A!C103 -> 0 | D21: =A2A!D103 -> 0 | E21: =A2A!E103 -> 0 | F21: =A2A!F103 -> 0 | G21: =A2A!G103 -> 0 | H21: =A2A!H103 -> 0 | I21: =A2A!I103 -> 0 | J21: =A2A!J103 -> 0 | K21: =A2A!K103 -> 0
A22: Waste water management | C22: =A2A!C107 -> 0 | D22: =A2A!D107 -> 0 | E22: =A2A!E107 -> 0 | F22: =A2A!F107 -> 0 | G22: =A2A!G107 -> 0 | H22: =A2A!H107 -> 0 | I22: =A2A!I107 -> 0 | J22: =A2A!J107 -> 0 | K22: =A2A!K107 -> 0
A23: Waste management | C23: =A2A!C112 -> 0 | D23: =A2A!D112 -> 0 | E23: =A2A!E112 -> 0 | F23: =A2A!F112 -> 0 | G23: =A2A!G112 -> 0 | H23: =A2A!H112 -> 0 | I23: =A2A!I112 -> 0 | J23: =A2A!J112 -> 0 | K23: =A2A!K112 -> 0
A24: Other | B24: 4 | C24: =A2A!C117 -> 0 | D24: =A2A!D117 -> 0 | E24: =A2A!E117 -> 0 | F24: =A2A!F117 -> 0 | G24: =A2A!G117 -> 0 | H24: =A2A!H117 -> 0 | I24: =A2A!I117 -> 0 | J24: =A2A!J117 -> 0 | K24: =A2A!K117 -> 0
A25: ="Total "&A4 -> Total Revenue - Functional | B25: 2 | C25: =C5+C9+C15+C19+C24 -> 329014330.8 | D25: =D5+D9+D15+D19+D24 -> 326382478.1 | E25: =E5+E9+E15+E19+E24 -> 332473214.7 | F25: 346019000 | G25: 345529000 | H25: 345529000 | I25: =I5+I9+I15+I19+I24 -> 359805000 | J25: 373885000 | K25: 388052000
A27: Expenditure - Functional
A28: Governance and administration | C28: =SUM(C29:C31) -> 227108381 | D28: =SUM(D29:D31) -> 179965949.2 | E28: 233091439.2 | F28: 155458649.7 | G28: 140259561.9 | H28: 140259561.9 | I28: 140619066.6 | J28: 148934674 | K28: 156569053.6
A29: Executive and council | C29: =A2A!C128 -> 53866203.3 | D29: =A2A!D128 -> 69039684.03 | E29: =A2A!E128 -> 108959469.6 | F29: =A2A!F128 -> 69026496.11 | G29: =A2A!G128 -> 52131533.05 | H29: =A2A!H128 -> 52131533.05 | I29: =A2A!I128 -> 48233126.99 | J29: =A2A!J128 -> 51050960.3 | K29: =A2A!K128 -> 53385282.79
A30: Finance and administration | C30: =A2A!C131 -> 173242177.7 | D30: =A2A!D131 -> 110463765.2 | E30: =A2A!E131 -> 124131969.5 | F30: =A2A!F131 -> 86432153.58 | G30: =A2A!G131 -> 88128028.84 | H30: =A2A!H131 -> 88128028.84 | I30: =A2A!I131 -> 92385939.64 | J30: =A2A!J131 -> 97883713.67 | K30: =A2A!K131 -> 103183770.8
A31: Internal audit | C31: =A2A!C145 -> 0 | D31: =A2A!D145 -> 462499.92 | E31: =A2A!E145 -> 0 | F31: =A2A!F145 -> 0 | G31: =A2A!G145 -> 0 | H31: =A2A!H145 -> 0 | I31: =A2A!I145 -> 0 | J31: =A2A!J145 -> 0 | K31: =A2A!K145 -> 0
A32: Community and public safety | C32: =SUM(C33:C37) -> 80271903.62 | D32: =SUM(D33:D37) -> 116909336.7 | E32: 169892978.9 | F32: 135275229.5 | G32: 118702418.8 | H32: 118702418.8 | I32: 128881020.4 | J32: 139693503.4 | K32: 148550407.6
A33: Community and social services | C33: =A2A!C148 -> 42758209.48 | D33: =A2A!D148 -> 22642080.82 | E33: =A2A!E148 -> 20443801.81 | F33: =A2A!F148 -> 23282711.45 | G33: =A2A!G148 -> 18262894.36 | H33: =A2A!H148 -> 18262894.36 | I33: =A2A!I148 -> 92626440.98 | J33: =A2A!J148 -> 102621849.2 | K33: =A2A!K148 -> 109120054.1
A34: Sport and recreation | C34: =A2A!C170 -> 0 | D34: =A2A!D170 -> 1067096.35 | E34: =A2A!E170 -> 1447083.65 | F34: =A2A!F170 -> 1554867.24 | G34: =A2A!G170 -> 0 | H34: =A2A!H170 -> 0 | I34: =A2A!I170 -> 0 | J34: =A2A!J170 -> 0 | K34: =A2A!K170 -> 0
A35: Public safety | C35: =A2A!C176 -> 37513694.14 | D35: =A2A!D176 -> 57300744.61 | E35: =A2A!E176 -> 78052831.1 | F35: =A2A!F176 -> 72255107.98 | G35: =A2A!G176 -> 65333354.09 | H35: =A2A!H176 -> 65333354.09 | I35: =A2A!I176 -> 1020000 | J35: =A2A!J176 -> 960000 | K35: =A2A!K176 -> 1070000
A36: Housing | C36: =A2A!C185 -> 0 | D36: =A2A!D185 -> 0 | E36: =A2A!E185 -> 0 | F36: =A2A!F185 -> 0 | G36: =A2A!G185 -> 0 | H36: =A2A!H185 -> 0 | I36: =A2A!I185 -> 0 | J36: =A2A!J185 -> 0 | K36: =A2A!K185 -> 0
A37: Health | C37: =A2A!C188 -> 0 | D37: =A2A!D188 -> 35899414.96 | E37: =A2A!E188 -> 69949262.33 | F37: =A2A!F188 -> 38182542.8 | G37: =A2A!G188 -> 35106170.38 | H37: =A2A!H188 -> 35106170.38 | I37: =A2A!I188 -> 35234579.45 | J37: =A2A!J188 -> 36111654.22 | K37: =A2A!K188 -> 38360353.49
A38: Economic and environmental services | C38: =SUM(C39:C41) -> 19479530.38 | D38: =SUM(D39:D41) -> 24694790.98 | E38: 17092280.58 | F38: 16988283.29 | G38: 9094119.53 | H38: 9094119.53 | I38: 9068014.69 | J38: 7322688.76 | K38: 7366624.89
A39: Planning and development | C39: =A2A!C197 -> 8196610.54 | D39: =A2A!D197 -> 24581408.08 | E39: =A2A!E197 -> 16950372.75 | F39: =A2A!F197 -> 16738283.29 | G39: =A2A!G197 -> 9066019.53 | H39: =A2A!H197 -> 9066019.53 | I39: =A2A!I197 -> 9068014.69 | J39: =A2A!J197 -> 7322688.76 | K39: =A2A!K197 -> 7366624.89
A40: Road transport | C40: =A2A!C208 -> 11282919.84 | D40: =A2A!D208 -> 113382.9 | E40: =A2A!E208 -> 141907.83 | F40: =A2A!F208 -> 250000 | G40: =A2A!G208 -> 28100 | H40: =A2A!H208 -> 28100 | I40: =A2A!I208 -> 0 | J40: =A2A!J208 -> 0 | K40: =A2A!K208 -> 0
A41: Environmental protection | C41: =A2A!C213 -> 0 | D41: =A2A!D213 -> 0 | E41: =A2A!E213 -> 0 | F41: =A2A!F213 -> 0 | G41: =A2A!G213 -> 0 | H41: =A2A!H213 -> 0 | I41: =A2A!I213 -> 0 | J41: =A2A!J213 -> 0 | K41: =A2A!K213 -> 0
A42: Trading services | C42: =SUM(C43:C46) -> 3148430.26 | D42: =SUM(D43:D46) -> 9827131.26 | E42: 23838069.35 | F42: =SUM(F43:F46) -> 10470323 | G42: 8152265 | H42: 8152265 | I42: 9669293.51 | J42: 9722189.27 | K42: =SUM(K43:K46) -> 9775432.4
A43: Energy sources | C43: =A2A!C221 -> 0 | D43: =A2A!D221 -> 0 | E43: =A2A!E221 -> 0 | F43: =A2A!F221 -> 0 | G43: =A2A!G221 -> 0 | H43: =A2A!H221 -> 0 | I43: =A2A!I221 -> 0 | J43: =A2A!J221 -> 0 | K43: =A2A!K221 -> 0
A44: Water management | C44: =A2A!C225 -> 622456.8 | D44: =A2A!D225 -> 1421839.93 | E44: =A2A!E225 -> 15595119.46 | F44: =A2A!F225 -> 2315122 | G44: =A2A!G225 -> 97064 | H44: =A2A!H225 -> 97064 | I44: =A2A!I225 -> 20000 | J44: =A2A!J225 -> 15000 | K44: =A2A!K225 -> 10000
A45: Waste water management | C45: =A2A!C229 -> 2525973.46 | D45: =A2A!D229 -> 7966451.33 | E45: =A2A!E229 -> 8129720.39 | F45: =A2A!F229 -> 8155201 | G45: =A2A!G229 -> 8055201 | H45: =A2A!H229 -> 8055201 | I45: =A2A!I229 -> 9649293.51 | J45: =A2A!J229 -> 9707189.27 | K45: =A2A!K229 -> 9765432.4
A46: Waste management | C46: =A2A!C234 -> 0 | D46: =A2A!D234 -> 438840 | E46: =A2A!E234 -> 113229.5 | F46: =A2A!F234 -> 0 | G46: =A2A!G234 -> 0 | H46: =A2A!H234 -> 0 | I46: =A2A!I234 -> 0 | J46: =A2A!J234 -> 0 | K46: =A2A!K234 -> 0
A47: Other | B47: 4 | C47: =A2A!C239 -> 0 | D47: =A2A!D239 -> 0 | E47: =A2A!E239 -> 0 | F47: =A2A!F239 -> 0 | G47: =A2A!G239 -> 0 | H47: =A2A!H239 -> 0 | I47: =A2A!I239 -> 389 | J47: =A2A!J239 -> 0 | K47: =A2A!K239 -> 0
A48: ="Total "&A27 -> Total Expenditure - Functional | B48: 3 | C48: =C28+C32+C38+C42+C47 -> 330008245.3 | D48: =D28+D32+D38+D42+D47 -> 331397208.2 | E48: =E28+E32+E38+E42+E47 -> 443914768 | F48: =F28+F32+F38+F42+F47 -> 318192485.4 | G48: 276208365.2 | H48: 276208365.2 | I48: 288237784.3 | J48: 305673055.4 | K48: 322261518.5
A49: =result -> Surplus/(Deficit) for the year | C49: =C25-C48 -> -993914.48 | D49: =D25-D48 -> -5014730.03 | E49: -111441553.3 | F49: 27826514.55 | G49: 69320634.75 | H49: 69320634.75 | I49: 71567215.74 | J49: 68211944.61 | K49: 65790481.52
A50: =head27a -> References
A51: 1. Government Finance Statistics Functions and Sub-functions are standardised to assist the compilation of national and international accounts for comparison purposes
A52: 2. Total Revenue by functional classification must reconcile to Total Operating Revenue shown in Budgeted Financial Performance (revenue and expenditure) | N52: 0
A53: 3. Total Expenditure by Functional Classification must reconcile to Total Operating Expenditure shown in Budgeted Financial Performance (revenue and expenditure)
A54: 4. All amounts must be classified under a functional classification . The GFS function 'Other' is only for Abbatoirs, Air Transport, Forestry, Licensing and Regulation, Markets and Tourism - and if used must be supported by footnotes. Nothing else may be placed under 'Other'. Assign associate share to relevant classification.
A57: check oprev balance | C57: =C25-'A4-FinPerf RE'!C59 -> 6659413.81 | D57: =D25-'A4-FinPerf RE'!D59 -> 25465.13 | E57: =E25-'A4-FinPerf RE'!E59 -> -94000.32 | F57: =F25-'A4-FinPerf RE'!F59 -> 0 | G57: =G25-'A4-FinPerf RE'!G59 -> -506000 | H57: =H25-'A4-FinPerf RE'!H59 -> -506000 | I57: =I25-'A4-FinPerf RE'!J59 -> 0 | J57: =J25-'A4-FinPerf RE'!K59 -> 0 | K57: =K25-'A4-FinPerf RE'!L59 -> 0
A58: check opexp balance | C58: =C48-'A4-FinPerf RE'!C35 -> -3929926.71 | D58: =D48-'A4-FinPerf RE'!D35 -> 2168270.14 | E58: =E48-'A4-FinPerf RE'!E35 -> 1117048 | F58: =F48-'A4-FinPerf RE'!F35 -> 0 | G58: =G48-'A4-FinPerf RE'!G35 -> -2485216.32 | H58: =H48-'A4-FinPerf RE'!H35 -> -2485216.32 | I58: =I48-'A4-FinPerf RE'!J35 -> 0.05999994278 | J58: =J48-'A4-FinPerf RE'!K35 -> -0.2799999714 | K58: =K48-'A4-FinPerf RE'!L35 -> 0.3899999261

Sheet A2A
A1: =muni&" - "&Approve3 -> DC37 Bojanala Platinum - Table A2 Budgeted Financial Performance (revenue and expenditure by functional classification)
A2: ="Functional Classification "&desc -> Functional Classification Description | B2: =head27 -> Ref | C2: =head1b -> 2016/17 | D2: =head1A -> 2017/18 | E2: =Head1 -> 2018/19 | F2: =Head2 -> Current Year 2019/20 | I2: =Head3 -> 2020/21 Medium Term Revenue & Expenditure Framework
A3: R thousand | B3: 1 | C3: =Head5 -> Audited Outcome | D3: =Head5 -> Audited Outcome | E3: =Head5 -> Audited Outcome | F3: =Head6 -> Original Budget | G3: =Head7 -> Adjusted Budget | H3: =Head8 -> Full Year Forecast | I3: =Head9 -> Budget Year 2020/21 | J3: =Head10 -> Budget Year +1 2021/22 | K3: =Head11 -> Budget Year +2 2022/23
A4: Revenue - Functional
A5: Municipal governance and administration | C5: =C6+C9+C23 -> 327115628.6 | D5: 326382478.1 | E5: 332473214.7 | F5: 345819000 | G5: 345429000 | H5: 345429000 | I5: 357906000 | J5: 371260000 | K5: 385282000
A6: Executive and council | C6: =SUM(C7:C8) -> 0 | D6: =SUM(D7:D8) -> 0 | E6: 0 | F6: 0 | G6: 0 | H6: 0 | I6: 0 | J6: 0 | K6: 0
A7: Mayor and Council | C7: 0 | D7: 0 | E7: 0 | F7: 0 | G7: 0 | H7: 0 | I7: 0 | J7: 0 | K7: 0
A8: Municipal Manager, Town Secretary and Chief Executive | C8: 0 | D8: 0 | E8: 0 | F8: 0 | G8: 0 | H8: 0 | I8: 0 | J8: 0 | K8: 0
A9: Finance and administration | C9: =SUM(C10:C22) -> 327115628.6 | D9: 326382478.1 | E9: 332473214.7 | F9: 345819000 | G9: 345429000 | H9: 345429000 | I9: 357906000 | J9: 371260000 | K9: 385282000
A10: Administrative and Corporate Support | C10: 0 | D10: 0 | E10: 0 | F10: 0 | G10: 0 | H10: 0 | I10: 0 | J10: 0 | K10: 0
A11: Asset Management | C11: 3360218.73 | D11: 25465.26 | E11: 0 | F11: 0 | G11: 0 | H11: 0 | I11: 0 | J11: 0 | K11: 0
A12: Finance | C12: 323755409.9 | D12: 326357012.9 | E12: 331473214.7 | F12: 345819000 | G12: 344429000 | H12: 344429000 | I12: 356506000 | J12: =369560000 -> 369560000 | K12: =383382000 -> 383382000
A13: Fleet Management | C13: 0 | D13: 0 | E13: 0 | F13: 0 | G13: 0 | H13: 0 | I13: 0 | J13: 0 | K13: 0
A14: Human Resources | C14: 0 | D14: 0 | E14: 0 | F14: 0 | G14: 0 | H14: 0 | I14: 0 | J14: 0 | K14: 0
A15: Information Technology | C15: 0 | D15: 0 | E15: 0 | F15: 0 | G15: 0 | H15: 0 | I15: 0 | J15: 0 | K15: 0
A16: Legal Services | C16: 0 | D16: 0 | E16: 0 | F16: 0 | G16: 0 | H16: 0 | I16: 0 | J16: 0 | K16: 0
A17: Marketing, Customer Relations, Publicity and Media Co-ordination | C17: 0 | D17: 0 | E17: 0 | F17: 0 | G17: 0 | H17: 0 | I17: 0 | J17: 0 | K17: 0
A18: Property Services | C18: 0 | D18: 0 | E18: 0 | F18: 0 | G18: 0 | H18: 0 | I18: 0 | J18: 0 | K18: 0
A19: Risk Management | C19: 0 | D19: 0 | E19: 0 | F19: 0 | G19: 0 | H19: 0 | I19: 0 | J19: 0 | K19: 0
A20: Security Services | C20: 0 | D20: 0 | E20: 0 | F20: 0 | G20: 0 | H20: 0 | I20: 0 | J20: 0 | K20: 0
A21: Supply Chain Management | C21: 0 | D21: 0 | E21: 1000000 | F21: 0 | G21: 1000000 | H21: 1000000 | I21: 1400000 | J21: 1700000 | K21: 1900000
A22: Valuation Service | C22: 0 | D22: 0 | E22: 0 | F22: 0 | G22: 0 | H22: 0 | I22: 0 | J22: 0 | K22: 0
A23: Internal audit | C23: =SUM(C24:C24) -> 0 | D23: 0 | E23: 0 | F23: 0 | G23: 0 | H23: 0 | I23: 0 | J23: 0 | K23: 0
A24: Governance Function | C24: 0 | D24: 0 | E24: 0 | F24: 0 | G24: 0 | H24: 0 | I24: 0 | J24: 0 | K24: 0
A25: Community and public safety | C25: =C26+C48+C54+C63+C66 -> 0 | D25: 0 | E25: 0 | F25: 200000 | G25: 100000 | H25: 100000 | I25: 110000 | J25: 2625000 | K25: 2770000
A26: Community and social services | C26: =SUM(C27:C47) -> 0 | D26: =SUM(D27:D47) -> 0 | E26: 0 | F26: 200000 | G26: 100000 | H26: 100000 | I26: 110000 | J26: 110000 | K26: 110000
A27: Aged Care | C27: 0 | D27: 0 | E27: 0 | F27: 0 | G27: 0 | H27: 0 | I27: 0 | J27: 0 | K27: 0
A28: Agricultural | C28: 0 | D28: 0 | E28: 0 | F28: 0 | G28: 0 | H28: 0 | I28: 0 | J28: 0 | K28: 0
A29: Animal Care and Diseases | C29: 0 | D29: 0 | E29: 0 | F29: 0 | G29: 0 | H29: 0 | I29: 0 | J29: 0 | K29: 0
A30: Cemeteries, Funeral Parlours and Crematoriums | C30: 0 | D30: 0 | E30: 0 | F30: 0 | G30: 0 | H30: 0 | I30: 0 | J30: 0 | K30: 0
A31: Child Care Facilities | C31: 0 | D31: 0 | E31: 0 | F31: 0 | G31: 0 | H31: 0 | I31: 0 | J31: 0 | K31: 0
A32: Community Halls and Facilities | C32: 0 | D32: 0 | E32: 0 | F32: 0 | G32: 0 | H32: 0 | I32: 0 | J32: 0 | K32: 0
A33: Consumer Protection | C33: 0 | D33: 0 | E33: 0 | F33: 0 | G33: 0 | H33: 0 | I33: 0 | J33: 0 | K33: 0
A34: Cultural Matters | C34: 0 | D34: 0 | E34: 0 | F34: 0 | G34: 0 | H34: 0 | I34: 0 | J34: 0 | K34: 0
A35: Disaster Management | C35: 0 | D35: 0 | E35: 0 | F35: 200000 | G35: 100000 | H35: 100000 | I35: 110000 | J35: 110000 | K35: 110000
A36: Education | C36: 0 | D36: 0 | E36: 0 | F36: 0 | G36: 0 | H36: 0 | I36: 0 | J36: 0 | K36: 0
A37: Indigenous and Customary Law | C37: 0 | D37: 0 | E37: 0 | F37: 0 | G37: 0 | H37: 0 | I37: 0 | J37: 0 | K37: 0
A38: Industrial Promotion | C38: 0 | D38: 0 | E38: 0 | F38: 0 | G38: 0 | H38: 0 | I38: 0 | J38: 0 | K38: 0
A39: Language Policy | C39: 0 | D39: 0 | E39: 0 | F39: 0 | G39: 0 | H39: 0 | I39: 0 | J39: 0 | K39: 0
A40: Libraries and Archives | C40: 0 | D40: 0 | E40: 0 | F40: 0 | G40: 0 | H40: 0 | I40: 0 | J40: 0 | K40: 0
A41: Literacy Programmes | C41: 0 | D41: 0 | E41: 0 | F41: 0 | G41: 0 | H41: 0 | I41: 0 | J41: 0 | K41: 0
A42: Media Services | C42: 0 | D42: 0 | E42: 0 | F42: 0 | G42: 0 | H42: 0 | I42: 0 | J42: 0 | K42: 0
A43: Museums and Art Galleries | C43: 0 | D43: 0 | E43: 0 | F43: 0 | G43: 0 | H43: 0 | I43: 0 | J43: 0 | K43: 0
A44: Population Development | C44: 0 | D44: 0 | E44: 0 | F44: 0 | G44: 0 | H44: 0 | I44: 0 | J44: 0 | K44: 0
A45: Provincial Cultural Matters | C45: 0 | D45: 0 | E45: 0 | F45: 0 | G45: 0 | H45: 0 | I45: 0 | J45: 0 | K45: 0
A46: Theatres | C46: 0 | D46: 0 | E46: 0 | F46: 0 | G46: 0 | H46: 0 | I46: 0 | J46: 0 | K46: 0
A47: Zoo's | C47: 0 | D47: 0 | E47: 0 | F47: 0 | G47: 0 | H47: 0 | I47: 0 | J47: 0 | K47: 0
A48: Sport and recreation | C48: =SUM(C49:C53) -> 0 | D48: =SUM(D49:D53) -> 0 | E48: 0 | F48: 0 | G48: 0 | H48: 0 | I48: 0 | J48: 0 | K48: 0
A49: Beaches and Jetties | C49: 0 | D49: 0 | E49: 0 | F49: 0 | G49: 0 | H49: 0 | I49: 0 | J49: 0 | K49: 0
A50: Casinos, Racing, Gambling, Wagering | C50: 0 | D50: 0 | E50: 0 | F50: 0 | G50: 0 | H50: 0 | I50: 0 | J50: 0 | K50: 0
A51: Community Parks (including Nurseries) | C51: 0 | D51: 0 | E51: 0 | F51: 0 | G51: 0 | H51: 0 | I51: 0 | J51: 0 | K51: 0
A52: Recreational Facilities | C52: 0 | D52: 0 | E52: 0 | F52: 0 | G52: 0 | H52: 0 | I52: 0 | J52: 0 | K52: 0
A53: Sports Grounds and Stadiums | C53: 0 | D53: 0 | E53: 0 | F53: 0 | G53: 0 | H53: 0 | I53: 0 | J53: 0 | K53: 0
A54: Public safety | C54: =SUM(C55:C62) -> 0 | D54: 0 | E54: 0 | F54: 0 | G54: 0 | H54: 0 | I54: 0 | J54: 0 | K54: 0
A55: Civil Defence | C55: 0 | D55: 0 | E55: 0 | F55: 0 | G55: 0 | H55: 0 | I55: 0 | J55: 0 | K55: 0
A56: Cleansing | C56: 0 | D56: 0 | E56: 0 | F56: 0 | G56: 0 | H56: 0 | I56: 0 | J56: 0 | K56: 0
A57: Control of Public Nuisances | C57: 0 | D57: 0 | E57: 0 | F57: 0 | G57: 0 | H57: 0 | I57: 0 | J57: 0 | K57: 0
A58: Fencing and Fences | C58: 0 | D58: 0 | E58: 0 | F58: 0 | G58: 0 | H58: 0 | I58: 0 | J58: 0 | K58: 0
A59: Fire Fighting and Protection | C59: 0 | D59: 0 | E59: 0 | F59: 0 | G59: 0 | H59: 0 | I59: 0 | J59: 0 | K59: 0
A60: Licensing and Control of Animals | C60: 0 | D60: 0 | E60: 0 | F60: 0 | G60: 0 | H60: 0 | I60: 0 | J60: 0 | K60: 0
A61: Police Forces, Traffic and Street Parking Control | C61: 0 | D61: 0 | E61: 0 | F61: 0 | G61: 0 | H61: 0 | I61: 0 | J61: 0 | K61: 0
A62: Pounds | C62: 0 | D62: 0 | E62: 0 | F62: 0 | G62: 0 | H62: 0 | I62: 0 | J62: 0 | K62: 0
A63: Housing | C63: =SUM(C64:C65) -> 0 | D63: =SUM(D64:D65) -> 0 | E63: 0 | F63: 0 | G63: 0 | H63: 0 | I63: 0 | J63: 2515000 | K63: 2660000
A64: Housing | C64: 0 | D64: 0 | E64: 0 | F64: 0 | G64: 0 | H64: 0 | I64: 0 | J64: 2515000 | K64: 2660000
A65: Informal Settlements | C65: 0 | D65: 0 | E65: 0 | F65: 0 | G65: 0 | H65: 0 | I65: 0 | J65: 0 | K65: 0
A66: Health | C66: =SUM(C67:C73) -> 0 | D66: =SUM(D67:D73) -> 0 | E66: 0 | F66: 0 | G66: 0 | H66: 0 | I66: 0 | J66: 0 | K66: 0
A67: Ambulance | C67: 0 | D67: 0 | E67: 0 | F67: 0 | G67: 0 | H67: 0 | I67: 0 | J67: 0 | K67: 0
A68: Health Services | C68: 0 | D68: 0 | E68: 0 | F68: 0 | G68: 0 | H68: 0 | I68: 0 | J68: 0 | K68: 0
A69: Laboratory Services | C69: 0 | D69: 0 | E69: 0 | F69: 0 | G69: 0 | H69: 0 | I69: 0 | J69: 0 | K69: 0
A70: Food Control | C70: 0 | D70: 0 | E70: 0 | F70: 0 | G70: 0 | H70: 0 | I70: 0 | J70: 0 | K70: 0
A71: Health Surveillance and Prevention of Communicable Diseases including immunizations | C71: 0 | D71: 0 | E71: 0 | F71: 0 | G71: 0 | H71: 0 | I71: 0 | J71: 0 | K71: 0
A72: Vector Control | C72: 0 | D72: 0 | E72: 0 | F72: 0 | G72: 0 | H72: 0 | I72: 0 | J72: 0 | K72: 0
A73: Chemical Safety | C73: 0 | D73: 0 | E73: 0 | F73: 0 | G73: 0 | H73: 0 | I73: 0 | J73: 0 | K73: 0
A74: Economic and environmental services | C74: =C75+C86+C91 -> 1898702.18 | D74: 0 | E74: 0 | F74: 0 | G74: 0 | H74: 0 | I74: 1789000 | J74: 0 | K74: 0
A75: Planning and development | C75: =SUM(C76:C85) -> 0 | D75: =SUM(D76:D85) -> 0 | E75: 0 | F75: 0 | G75: 0 | H75: 0 | I75: 0 | J75: 0 | K75: 0
A76: Billboards | C76: 0 | D76: 0 | E76: 0 | F76: 0 | G76: 0 | H76: 0 | I76: 0 | J76: 0 | K76: 0
A77: Corporate Wide Strategic Planning (IDPs, LEDs) | C77: 0 | D77: 0 | E77: 0 | F77: 0 | G77: 0 | H77: 0 | I77: 0 | J77: 0 | K77: 0
A78: Central City Improvement District | C78: 0 | D78: 0 | E78: 0 | F78: 0 | G78: 0 | H78: 0 | I78: 0 | J78: 0 | K78: 0
A79: Development Facilitation | C79: 0 | D79: 0 | E79: 0 | F79: 0 | G79: 0 | H79: 0 | I79: 0 | J79: 0 | K79: 0
A80: Economic Development/Planning | C80: 0 | D80: 0 | E80: 0 | F80: 0 | G80: 0 | H80: 0 | I80: 0 | J80: 0 | K80: 0
A81: Regional Planning and Development | C81: 0 | D81: 0 | E81: 0 | F81: 0 | G81: 0 | H81: 0 | I81: 0 | J81: 0 | K81: 0
A82: Town Planning, Building Regulations and Enforcement, and City Engineer | C82: 0 | D82: 0 | E82: 0 | F82: 0 | G82: 0 | H82: 0 | I82: 0 | J82: 0 | K82: 0
A83: Project Management Unit | C83: 0 | D83: 0 | E83: 0 | F83: 0 | G83: 0 | H83: 0 | I83: 0 | J83: 0 | K83: 0
A84: Provincial Planning | C84: 0 | D84: 0 | E84: 0 | F84: 0 | G84: 0 | H84: 0 | I84: 0 | J84: 0 | K84: 0
A85: Support to Local Municipalities | C85: 0 | D85: 0 | E85: 0 | F85: 0 | G85: 0 | H85: 0 | I85: 0 | J85: 0 | K85: 0
A86: Road transport | C86: =SUM(C87:C90) -> 1898702.18 | D86: 0 | E86: 0 | F86: 0 | G86: 0 | H86: 0 | I86: 1789000 | J86: 0 | K86: 0
A87: Public Transport | C87: 0 | D87: 0 | E87: 0 | F87: 0 | G87: 0 | H87: 0 | I87: 0 | J87: 0 | K87: 0
A88: Road and Traffic Regulation | C88: 0 | D88: 0 | E88: 0 | F88: 0 | G88: 0 | H88: 0 | I88: 0 | J88: 0 | K88: 0
A89: Roads | C89: 1898702.18 | D89: 0 | E89: 0 | F89: 0 | G89: 0 | H89: 0 | I89: 1789000 | J89: 0 | K89: 0
A90: Taxi Ranks | C90: 0 | D90: 0 | E90: 0 | F90: 0 | G90: 0 | H90: 0 | I90: 0 | J90: 0 | K90: 0
A91: Environmental protection | C91: =SUM(C92:C97) -> 0 | D91: =SUM(D92:D97) -> 0 | E91: 0 | F91: 0 | G91: 0 | H91: 0 | I91: 0 | J91: 0 | K91: 0
A92: Biodiversity and Landscape | C92: 0 | D92: 0 | E92: 0 | F92: 0 | G92: 0 | H92: 0 | I92: 0 | J92: 0 | K92: 0
A93: Coastal Protection | C93: 0 | D93: 0 | E93: 0 | F93: 0 | G93: 0 | H93: 0 | I93: 0 | J93: 0 | K93: 0
A94: Indigenous Forests | C94: 0 | D94: 0 | E94: 0 | F94: 0 | G94: 0 | H94: 0 | I94: 0 | J94: 0 | K94: 0
A95: Nature Conservation | C95: 0 | D95: 0 | E95: 0 | F95: 0 | G95: 0 | H95: 0 | I95: 0 | J95: 0 | K95: 0
A96: Pollution Control | C96: 0 | D96: 0 | E96: 0 | F96: 0 | G96: 0 | H96: 0 | I96: 0 | J96: 0 | K96: 0
A97: Soil Conservation | C97: 0 | D97: 0 | E97: 0 | F97: 0 | G97: 0 | H97: 0 | I97: 0 | J97: 0 | K97: 0
A98: Trading services | C98: =C99+C103+C107+C112 -> 0 | D98: =D99+D103+D107+D112 -> 0 | E98: 0 | F98: 0 | G98: 0 | H98: 0 | I98: 0 | J98: 0 | K98: =K99+K103+K107+K112 -> 0
A99: Energy sources | C99: =SUM(C100:C102) -> 0 | D99: =SUM(D100:D102) -> 0 | E99: 0 | F99: 0 | G99: 0 | H99: 0 | I99: 0 | J99: 0 | K99: 0
A100: Electricity | C100: 0 | D100: 0 | E100: 0 | F100: 0 | G100: 0 | H100: 0 | I100: 0 | J100: 0 | K100: 0
A101: Street Lighting and Signal Systems | C101: 0 | D101: 0 | E101: 0 | F101: 0 | G101: 0 | H101: 0 | I101: 0 | J101: 0 | K101: 0
A102: Nonelectric Energy | C102: 0 | D102: 0 | E102: 0 | F102: 0 | G102: 0 | H102: 0 | I102: 0 | J102: 0 | K102: 0
A103: Water management | C103: =SUM(C104:C106) -> 0 | D103: =SUM(D104:D106) -> 0 | E103: 0 | F103: 0 | G103: 0 | H103: 0 | I103: 0 | J103: 0 | K103: 0
A104: Water Treatment | C104: 0 | D104: 0 | E104: 0 | F104: 0 | G104: 0 | H104: 0 | I104: 0 | J104: 0 | K104: 0
A105: Water Distribution | C105: 0 | D105: 0 | E105: 0 | F105: 0 | G105: 0 | H105: 0 | I105: 0 | J105: 0 | K105: 0
A106: Water Storage | C106: 0 | D106: 0 | E106: 0 | F106: 0 | G106: 0 | H106: 0 | I106: 0 | J106: 0 | K106: 0
A107: Waste water management | C107: =SUM(C108:C111) -> 0 | D107: =SUM(D108:D111) -> 0 | E107: 0 | F107: 0 | G107: 0 | H107: 0 | I107: 0 | J107: 0 | K107: 0
A108: Public Toilets | C108: 0 | D108: 0 | E108: 0 | F108: 0 | G108: 0 | H108: 0 | I108: 0 | J108: 0 | K108: 0
A109: Sewerage | C109: 0 | D109: 0 | E109: 0 | F109: 0 | G109: 0 | H109: 0 | I109: 0 | J109: 0 | K109: 0
A110: Storm Water Management | C110: 0 | D110: 0 | E110: 0 | F110: 0 | G110: 0 | H110: 0 | I110: 0 | J110: 0 | K110: 0
A111: Waste Water Treatment | C111: 0 | D111: 0 | E111: 0 | F111: 0 | G111: 0 | H111: 0 | I111: 0 | J111: 0 | K111: 0
A112: Waste management | C112: =SUM(C113:C116) -> 0 | D112: =SUM(D113:D116) -> 0 | E112: 0 | F112: 0 | G112: 0 | H112: 0 | I112: 0 | J112: 0 | K112: 0
A113: Recycling | C113: 0 | D113: 0 | E113: 0 | F113: 0 | G113: 0 | H113: 0 | I113: 0 | J113: 0 | K113: 0
A114: Solid Waste Disposal (Landfill Sites) | C114: 0 | D114: 0 | E114: 0 | F114: 0 | G114: 0 | H114: 0 | I114: 0 | J114: 0 | K114: 0
A115: Solid Waste Removal | C115: 0 | D115: 0 | E115: 0 | F115: 0 | G115: 0 | H115: 0 | I115: 0 | J115: 0 | K115: 0
A116: Street Cleaning | C116: 0 | D116: 0 | E116: 0 | F116: 0 | G116: 0 | H116: 0 | I116: 0 | J116: 0 | K116: 0
A117: Other | C117: 0 | D117: 0 | E117: 0 | F117: 0 | G117: 0 | H117: 0 | I117: 0 | J117: 0 | K117: 0
A118: Abattoirs | C118: 0 | D118: 0 | E118: 0 | F118: 0 | G118: 0 | H118: 0 | I118: 0 | J118: 0 | K118: 0
A119: Air Transport | C119: 0 | D119: 0 | E119: 0 | F119: 0 | G119: 0 | H119: 0 | I119: 0 | J119: 0 | K119: 0
A120: Forestry | C120: 0 | D120: 0 | E120: 0 | F120: 0 | G120: 0 | H120: 0 | I120: 0 | J120: 0 | K120: 0
A121: Licensing and Regulation | C121: 0 | D121: 0 | E121: 0 | F121: 0 | G121: 0 | H121: 0 | I121: 0 | J121: 0 | K121: 0
A122: Markets | C122: 0 | D122: 0 | E122: 0 | F122: 0 | G122: 0 | H122: 0 | I122: 0 | J122: 0 | K122: 0
A123: Tourism | C123: 0 | D123: 0 | E123: 0 | F123: 0 | G123: 0 | H123: 0 | I123: 0 | J123: 0 | K123: 0
A124: ="Total "&A4 -> Total Revenue - Functional | B124: 2 | C124: =C5+C25+C74+C98+C117 -> 329014330.8 | D124: 326382478.1 | E124: 332473214.7 | F124: 346019000 | G124: 345529000 | H124: 345529000 | I124: 359805000 | J124: 373885000 | K124: 388052000
A126: Expenditure - Functional
A127: =A5 -> Municipal governance and administration | C127: =C128+C131+C145 -> 227108381 | D127: 179965949.2 | E127: 233091439.2 | F127: 155458649.7 | G127: 140259561.9 | H127: 140259561.9 | I127: 140619066.6 | J127: 148934674 | K127: 156569053.6
A128: Executive and council | C128: =SUM(C129:C130) -> 53866203.3 | D128: 69039684.03 | E128: 108959469.6 | F128: 69026496.11 | G128: 52131533.05 | H128: 52131533.05 | I128: 48233126.99 | J128: 51050960.3 | K128: 53385282.79
A129: Mayor and Council | C129: 39262038.05 | D129: 45653330.25 | E129: 86878497.75 | F129: 45052315 | G129: 35320262.22 | H129: 35320262.22 | I129: 33747888.57 | J129: 35219807.58 | K129: 37321260.91
A130: Municipal Manager, Town Secretary and Chief Executive | C130: 14604165.25 | D130: 23386353.78 | E130: 22080971.88 | F130: 23974181.11 | G130: 16811270.83 | H130: 16811270.83 | I130: 14485238.42 | J130: 15831152.72 | K130: 16064021.88
A131: Finance and administration | C131: =SUM(C132:C144) -> 173242177.7 | D131: 110463765.2 | E131: 124131969.5 | F131: 86432153.58 | G131: 88128028.84 | H131: 88128028.84 | I131: 92385939.64 | J131: 97883713.67 | K131: 103183770.8
A132: Administrative and Corporate Support | C132: 28842628.62 | D132: 55257603.55 | E132: 57088981.11 | F132: 46549563.68 | G132: 56574477.34 | H132: 56574477.34 | I132: 48716059.62 | J132: 50551720.52 | K132: 52380638.11
A133: Asset Management | C133: 7486449.42 | D133: 8778986.72 | E133: 17894686.65 | F133: 7797598.4 | G133: 6519000 | H133: 6519000 | I133: 6300000 | J133: 7200000 | K133: 7400000
A134: Finance | C134: 128518831 | D134: 25178973.35 | E134: 29386499.94 | F134: 23914480.07 | G134: 22783551.5 | H134: 22783551.5 | I134: 22581880.02 | J134: 24333993.15 | K134: 26100132.73
A135: Fleet Management | C135: 0 | D135: 0 | E135: 0 | F135: 0 | G135: 0 | H135: 0 | I135: 0 | J135: 0 | K135: 0
A136: Human Resources | C136: 8394268.67 | D136: 3332946.99 | E136: 4057222.86 | F136: 4469218.43 | G136: 1951000 | H136: 1951000 | I136: 2688000 | J136: 2688000 | K136: 2688000
A137: Information Technology | C137: 0 | D137: 12701130.63 | E137: 11855511.11 | F137: 0 | G137: 100000 | H137: 100000 | I137: 12100000 | J137: 13110000 | K137: 14615000
A138: Legal Services | C138: 0 | D138: 0 | E138: 0 | F138: 0 | G138: 0 | H138: 0 | I138: 0 | J138: 0 | K138: 0
A139: Marketing, Customer Relations, Publicity and Media Co-ordination | C139: 0 | D139: 1214084.45 | E139: 742351.64 | F139: 350000 | G139: 200000 | H139: 200000 | I139: 0 | J139: 0 | K139: 0
A140: Property Services | C140: 0 | D140: 0 | E140: 0 | F140: 0 | G140: 0 | H140: 0 | I140: 0 | J140: 0 | K140: 0
A141: Risk Management | C141: 0 | D141: 4000039.54 | E141: 3106716.24 | F141: 3351293 | G141: 0 | H141: 0 | I141: 0 | J141: 0 | K141: 0
A142: Security Services | C142: 0 | D142: 0 | E142: 0 | F142: 0 | G142: 0 | H142: 0 | I142: 0 | J142: 0 | K142: 0
A143: Supply Chain Management | C143: 0 | D143: 0 | E143: 0 | F143: 0 | G143: 0 | H143: 0 | I143: 0 | J143: 0 | K143: 0
A144: Valuation Service | C144: 0 | D144: 0 | E144: 0 | F144: 0 | G144: 0 | H144: 0 | I144: 0 | J144: 0 | K144: 0
A145: Internal audit | C145: =SUM(C146:C146) -> 0 | D145: 462499.92 | E145: 0 | F145: 0 | G145: 0 | H145: 0 | I145: 0 | J145: 0 | K145: 0
A146: Governance Function | C146: 0 | D146: 462499.92 | E146: 0 | F146: 0 | G146: 0 | H146: 0 | I146: 0 | J146: 0 | K146: 0
A147: Community and public safety | C147: =C148+C170+C176+C185+C188 -> 80271903.62 | D147: 116909336.7 | E147: 169892978.9 | F147: 135275229.5 | G147: 118702418.8 | H147: 118702418.8 | I147: 128881020.4 | J147: 139693503.4 | K147: 148550407.6
A148: Community and social services | C148: =SUM(C149:C169) -> 42758209.48 | D148: =SUM(D149:D169) -> 22642080.82 | E148: 20443801.81 | F148: 23282711.45 | G148: 18262894.36 | H148: 18262894.36 | I148: 92626440.98 | J148: 102621849.2 | K148: 109120054.1
A149: Aged Care | C149: 0 | D149: 382904.32 | E149: 231233.3 | F149: 400000 | G149: 0 | H149: 0 | I149: 0 | J149: 0 | K149: 0
A150: Agricultural | C150: 0 | D150: 0 | E150: 0 | F150: 0 | G150: 0 | H150: 0 | I150: 0 | J150: 0 | K150: 0
A151: Animal Care and Diseases | C151: 13116546.52 | D151: 3224815.24 | E151: 10496.16 | F151: 0 | G151: 0 | H151: 0 | I151: 0 | J151: 0 | K151: 0
A152: Cemeteries, Funeral Parlours and Crematoriums | C152: 1737802 | D152: 8133809.5 | E152: 10102495.28 | F152: 10352505.77 | G152: 9603337.27 | H152: 9603337.27 | I152: 69281402.9 | J152: =73438286.8+4399822 -> 77838108.8 | K152: =77844584.29+4999705 -> 82844289.29
A153: Child Care Facilities | C153: 0 | D153: 0 | E153: 0 | F153: 0 | G153: 0 | H153: 0 | I153: 0 | J153: 0 | K153: 0
A154: Community Halls and Facilities | C154: 0 | D154: 2113864.04 | E154: 2028522.9 | F154: 2504000 | G154: 2504000 | H154: 2504000 | I154: 0 | J154: 0 | K154: 0
A155: Consumer Protection | C155: 0 | D155: 0 | E155: 0 | F155: 0 | G155: 0 | H155: 0 | I155: 0 | J155: 0 | K155: 0
A156: Cultural Matters | C156: 0 | D156: 0 | E156: 0 | F156: 0 | G156: 0 | H156: 0 | I156: 0 | J156: 0 | K156: 0
A157: Disaster Management | C157: 0 | D157: 6702134.47 | E157: 7767440.17 | F157: 8605066.02 | G157: 6155557.09 | H157: 6155557.09 | I157: 23345038.08 | J157: 24783740.37 | K157: 26275764.78
A158: Education | C158: 0 | D158: 1452646 | E158: 0 | F158: 0 | G158: 0 | H158: 0 | I158: 0 | J158: 0 | K158: 0
A159: =A37 -> Indigenous and Customary Law | C159: 0 | D159: 0 | E159: 0 | F159: 0 | G159: 0 | H159: 0 | I159: 0 | J159: 0 | K159: 0
A160: Industrial Promotion | C160: 0 | D160: 0 | E160: 0 | F160: 0 | G160: 0 | H160: 0 | I160: 0 | J160: 0 | K160: 0
A161: Language Policy | C161: 0 | D161: 0 | E161: 0 | F161: 0 | G161: 0 | H161: 0 | I161: 0 | J161: 0 | K161: 0
A162: Libraries and Archives | C162: 0 | D162: 0 | E162: 0 | F162: 0 | G162: 0 | H162: 0 | I162: 0 | J162: 0 | K162: 0
A163: Literacy Programmes | C163: 0 | D163: 631907.25 | E163: 274349 | F163: 1421139.66 | G163: 0 | H163: 0 | I163: 0 | J163: 0 | K163: 0
A164: Media Services | C164: 0 | D164: 0 | E164: 0 | F164: 0 | G164: 0 | H164: 0 | I164: 0 | J164: 0 | K164: 0
A165: Museums and Art Galleries | C165: 0 | D165: 0 | E165: 0 | F165: 0 | G165: 0 | H165: 0 | I165: 0 | J165: 0 | K165: 0
A166: Population Development | C166: 0 | D166: 0 | E166: 0 | F166: 0 | G166: 0 | H166: 0 | I166: 0 | J166: 0 | K166: 0
A167: Provincial Cultural Matters | C167: 0 | D167: 0 | E167: 0 | F167: 0 | G167: 0 | H167: 0 | I167: 0 | J167: 0 | K167: 0
A168: Theatres | C168: 27903860.96 | D168: 0 | E168: 29265 | F168: 0 | G168: 0 | H168: 0 | I168: 0 | J168: 0 | K168: 0
A169: Zoo's | C169: 0 | D169: 0 | E169: 0 | F169: 0 | G169: 0 | H169: 0 | I169: 0 | J169: 0 | K169: 0
A170: Sport and recreation | C170: =SUM(C171:C175) -> 0 | D170: 1067096.35 | E170: 1447083.65 | F170: 1554867.24 | G170: 0 | H170: 0 | I170: 0 | J170: 0 | K170: 0
A171: Beaches and Jetties | C171: 0 | D171: 0 | E171: 0 | F171: 0 | G171: 0 | H171: 0 | I171: 0 | J171: 0 | K171: 0
A172: Casinos, Racing, Gambling, Wagering | C172: 0 | D172: 0 | E172: 0 | F172: 0 | G172: 0 | H172: 0 | I172: 0 | J172: 0 | K172: 0
A173: Community Parks (including Nurseries) | C173: 0 | D173: 0 | E173: 0 | F173: 0 | G173: 0 | H173: 0 | I173: 0 | J173: 0 | K173: 0
A174: Recreational Facilities | C174: 0 | D174: 1067096.35 | E174: 1447083.65 | F174: 1554867.24 | G174: 0 | H174: 0 | I174: 0 | J174: 0 | K174: 0
A175: Sports Grounds and Stadiums | C175: 0 | D175: 0 | E175: 0 | F175: 0 | G175: 0 | H175: 0 | I175: 0 | J175: 0 | K175: 0
A176: Public safety | C176: =SUM(C177:C184) -> 37513694.14 | D176: 57300744.61 | E176: 78052831.1 | F176: 72255107.98 | G176: 65333354.09 | H176: 65333354.09 | I176: 1020000 | J176: 960000 | K176: 1070000
A177: Civil Defence | C177: 10281957.56 | D177: 0 | E177: 0 | F177: 0 | G177: 0 | H177: 0 | I177: 0 | J177: 0 | K177: 0
A178: Cleansing | C178: 0 | D178: 198698 | E178: 222047.3 | F178: 550000 | G178: 0 | H178: 0 | I178: 0 | J178: 0 | K178: 0
A179: =A57 -> Control of Public Nuisances | C179: 0 | D179: 0 | E179: 0 | F179: 0 | G179: 0 | H179: 0 | I179: 0 | J179: 0 | K179: 0
A180: Fencing and Fences | C180: 0 | D180: 0 | E180: 0 | F180: 0 | G180: 0 | H180: 0 | I180: 0 | J180: 0 | K180: 0
A181: Fire Fighting and Protection | C181: 27231736.58 | D181: 57102046.61 | E181: 77830783.8 | F181: 71705107.98 | G181: 65333354.09 | H181: 65333354.09 | I181: 1020000 | J181: 960000 | K181: 1070000
A182: Licensing and Control of Animals | C182: 0 | D182: 0 | E182: 0 | F182: 0 | G182: 0 | H182: 0 | I182: 0 | J182: 0 | K182: 0
A183: Police Forces, Traffic and Street Parking Control | C183: 0 | D183: 0 | E183: 0 | F183: 0 | G183: 0 | H183: 0 | I183: 0 | J183: 0 | K183: 0
A184: Pounds | C184: 0 | D184: 0 | E184: 0 | F184: 0 | G184: 0 | H184: 0 | I184: 0 | J184: 0 | K184: 0
A185: =A63 -> Housing | C185: =SUM(C186:C187) -> 0 | D185: 0 | E185: 0 | F185: 0 | G185: 0 | H185: 0 | I185: 0 | J185: 0 | K185: 0
A186: Housing | C186: 0 | D186: 0 | E186: 0 | F186: 0 | G186: 0 | H186: 0 | I186: 0 | J186: 0 | K186: 0
A187: Informal Settlements | C187: 0 | D187: 0 | E187: 0 | F187: 0 | G187: 0 | H187: 0 | I187: 0 | J187: 0 | K187: 0
A188: Health | C188: =SUM(C189:C195) -> 0 | D188: =SUM(D189:D195) -> 35899414.96 | E188: 69949262.33 | F188: 38182542.8 | G188: 35106170.38 | H188: 35106170.38 | I188: 35234579.45 | J188: 36111654.22 | K188: 38360353.49
A189: Ambulance | C189: 0 | D189: 0 | E189: 0 | F189: 0 | G189: 0 | H189: 0 | I189: 0 | J189: 0 | K189: 0
A190: Health Services | C190: 0 | D190: 35899414.96 | E190: 69949262.33 | F190: 38182542.8 | G190: 35106170.38 | H190: 35106170.38 | I190: 35234579.45 | J190: 36111654.22 | K190: 38360353.49
A191: Laboratory Services | C191: 0 | D191: 0 | E191: 0 | F191: 0 | G191: 0 | H191: 0 | I191: 0 | J191: 0 | K191: 0
A192: Food Control | C192: 0 | D192: 0 | E192: 0 | F192: 0 | G192: 0 | H192: 0 | I192: 0 | J192: 0 | K192: 0
A193: Health Surveillance and Prevention of Communicable Diseases including immunizations | C193: 0 | D193: 0 | E193: 0 | F193: 0 | G193: 0 | H193: 0 | I193: 0 | J193: 0 | K193: 0
A194: Vector Control | C194: 0 | D194: 0 | E194: 0 | F194: 0 | G194: 0 | H194: 0 | I194: 0 | J194: 0 | K194: 0
A195: Chemical Safety | C195: 0 | D195: 0 | E195: 0 | F195: 0 | G195: 0 | H195: 0 | I195: 0 | J195: 0 | K195: 0
A196: Economic and environmental services | C196: =C197+C208+C213 -> 19479530.38 | D196: 24694790.98 | E196: 17092280.58 | F196: 16988283.29 | G196: 9094119.53 | H196: 9094119.53 | I196: 9068014.69 | J196: 7322688.76 | K196: 7366624.89
A197: Planning and development | C197: =SUM(C198:C207) -> 8196610.54 | D197: =SUM(D198:D207) -> 24581408.08 | E197: 16950372.75 | F197: 16738283.29 | G197: 9066019.53 | H197: 9066019.53 | I197: 9068014.69 | J197: 7322688.76 | K197: 7366624.89
A198: Billboards | C198: 0 | D198: 0 | E198: 0 | F198: 0 | G198: 0 | H198: 0 | I198: 0 | J198: 0 | K198: 0
A199: Corporate Wide Strategic Planning (IDPs, LEDs) | C199: 0 | D199: 1500074.56 | E199: 2414694 | F199: 1437000 | G199: 1437000 | H199: 1437000 | I199: 1789000 | J199: 0 | K199: 0
A200: Central City Improvement District | C200: 5811823.52 | D200: 0 | E200: 211472.44 | F200: 0 | G200: 0 | H200: 0 | I200: 0 | J200: 0 | K200: 0
A201: Development Facilitation | C201: 0 | D201: 0 | E201: 0 | F201: 0 | G201: 0 | H201: 0 | I201: 0 | J201: 0 | K201: 0
... 53 more rows

Sheet A3-FinPerf V
A1: =muni&" - "&Approve2 -> DC37 Bojanala Platinum - Table A3 Budgeted Financial Performance (revenue and expenditure by municipal vote)
A2: =Vdesc -> Vote Description | B2: =head27 -> Ref | C2: =head1b -> 2016/17 | D2: =head1A -> 2017/18 | E2: =Head1 -> 2018/19 | F2: =Head2 -> Current Year 2019/20 | I2: =Head3 -> 2020/21 Medium Term Revenue & Expenditure Framework | L2: =Head4 -> LTFS
A3: R thousand | C3: =Head5 -> Audited Outcome | D3: =Head5 -> Audited Outcome | E3: =Head5 -> Audited Outcome | F3: =Head6 -> Original Budget | G3: =Head7 -> Adjusted Budget | H3: =Head8 -> Full Year Forecast | I3: =Head9 -> Budget Year 2020/21 | J3: =Head10 -> Budget Year +1 2021/22 | K3: =Head11 -> Budget Year +2 2022/23 | L3: =Head12 -> Forecast 2023/24 | M3: =Head13 -> Forecast 2024/25 | N3: =Head14 -> Forecast 2025/26 | O3: =Head15 -> Forecast 2026/27 | P3: =Head16 -> Forecast 2027/28 | Q3: =Head17 -> Forecast 2028/29 | R3: =Head18 -> Forecast 2029/30 | S3: =Head19 -> Forecast 2030/31 | T3: =Head20 -> Forecast 2031/32 | U3: =Head21 -> Forecast 2032/33 | V3: =Head22 -> Forecast 2033/34 | W3: =Head23 -> Forecast 2034/35
A4: Revenue by Vote | B4: 1
A5: =A3A!A5 -> Vote 1 - Municipal manager | C5: =A3A!C5 -> 0 | D5: =A3A!D5 -> 0 | E5: =A3A!E5 -> 0 | F5: =A3A!F5 -> 0 | G5: =A3A!G5 -> 0 | H5: =A3A!H5 -> 0 | I5: =A3A!I5 -> 0 | J5: =A3A!J5 -> 0 | K5: =A3A!K5 -> 0
A6: =A3A!A16 -> Vote 2 - Community and Social Services | C6: =A3A!C16 -> 0 | D6: =A3A!D16 -> 0 | E6: =A3A!E16 -> 0 | F6: =A3A!F16 -> 200000 | G6: =A3A!G16 -> 100000 | H6: =A3A!H16 -> 100000 | I6: =A3A!I16 -> 110000 | J6: =A3A!J16 -> 110000 | K6: =A3A!K16 -> 110000
A7: =A3A!A27 -> Vote 3 - Heatlh & enviromental Services | C7: =A3A!C27 -> 0 | D7: =A3A!D27 -> 0 | E7: =A3A!E27 -> 0 | F7: =A3A!F27 -> 0 | G7: =A3A!G27 -> 0 | H7: =A3A!H27 -> 0 | I7: =A3A!I27 -> 0 | J7: =A3A!J27 -> 0 | K7: =A3A!K27 -> 0
A8: =A3A!A38 -> Vote 4 - Executive | C8: =A3A!C38 -> 0 | D8: =A3A!D38 -> 0 | E8: =A3A!E38 -> 0 | F8: =A3A!F38 -> 0 | G8: =A3A!G38 -> 0 | H8: =A3A!H38 -> 0 | I8: =A3A!I38 -> 0 | J8: =A3A!J38 -> 0 | K8: =A3A!K38 -> 0
A9: =A3A!A49 -> Vote 5 - Finance | C9: =A3A!C49 -> 327115628.6 | D9: =A3A!D49 -> 326382478.1 | E9: =A3A!E49 -> 332473214.7 | F9: =A3A!F49 -> 345819000 | G9: =A3A!G49 -> 345429000 | H9: =A3A!H49 -> 345429000 | I9: =A3A!I49 -> 357906000 | J9: =A3A!J49 -> 371260000 | K9: =A3A!K49 -> 385282000
A10: =A3A!A60 -> Vote 6 - Local economic development | C10: =A3A!C60 -> 0 | D10: =A3A!D60 -> 0 | E10: =A3A!E60 -> 0 | F10: =A3A!F60 -> 0 | G10: =A3A!G60 -> 0 | H10: =A3A!H60 -> 0 | I10: =A3A!I60 -> 0 | J10: =A3A!J60 -> 0 | K10: =A3A!K60 -> 0
A11: =A3A!A71 -> Vote 7 - Corporate Services | C11: =A3A!C71 -> 0 | D11: =A3A!D71 -> 0 | E11: =A3A!E71 -> 0 | F11: =A3A!F71 -> 0 | G11: =A3A!G71 -> 0 | H11: =A3A!H71 -> 0 | I11: =A3A!I71 -> 0 | J11: =A3A!J71 -> 0 | K11: =A3A!K71 -> 0
A12: =A3A!A82 -> Vote 8 - Technical | C12: =A3A!C82 -> 1898702.18 | D12: =A3A!D82 -> 0 | E12: =A3A!E82 -> 0 | F12: =A3A!F82 -> 0 | G12: =A3A!G82 -> 0 | H12: =A3A!H82 -> 0 | I12: =A3A!I82 -> 1789000 | J12: =A3A!J82 -> 2515000 | K12: =A3A!K82 -> 2660000
A13: =A3A!A93 -> Vote 9 - [NAME OF VOTE 9] | C13: =A3A!C93 -> 0 | D13: =A3A!D93 -> 0 | E13: =A3A!E93 -> 0 | F13: =A3A!F93 -> 0 | G13: =A3A!G93 -> 0 | H13: =A3A!H93 -> 0 | I13: =A3A!I93 -> 0 | J13: =A3A!J93 -> 0 | K13: =A3A!K93 -> 0
A14: =A3A!A104 -> Vote 10 - [NAME OF VOTE 10] | C14: =A3A!C104 -> 0 | D14: =A3A!D104 -> 0 | E14: =A3A!E104 -> 0 | F14: =A3A!F104 -> 0 | G14: =A3A!G104 -> 0 | H14: =A3A!H104 -> 0 | I14: =A3A!I104 -> 0 | J14: =A3A!J104 -> 0 | K14: =A3A!K104 -> 0
A15: =A3A!A115 -> Vote 11 - [NAME OF VOTE 11] | C15: =A3A!C115 -> 0 | D15: =A3A!D115 -> 0 | E15: =A3A!E115 -> 0 | F15: =A3A!F115 -> 0 | G15: =A3A!G115 -> 0 | H15: =A3A!H115 -> 0 | I15: =A3A!I115 -> 0 | J15: =A3A!J115 -> 0 | K15: =A3A!K115 -> 0 | L15: =A5A!L115 -> 0
A16: =A3A!A126 -> Vote 12 - [NAME OF VOTE 12] | C16: =A3A!C126 -> 0 | D16: =A3A!D126 -> 0 | E16: =A3A!E126 -> 0 | F16: =A3A!F126 -> 0 | G16: =A3A!G126 -> 0 | H16: =A3A!H126 -> 0 | I16: =A3A!I126 -> 0 | J16: =A3A!J126 -> 0 | K16: =A3A!K126 -> 0 | L16: =A5A!L126 -> 0
A17: =A3A!A137 -> Vote 13 - [NAME OF VOTE 13] | C17: =A3A!C137 -> 0 | D17: =A3A!D137 -> 0 | E17: =A3A!E137 -> 0 | F17: =A3A!F137 -> 0 | G17: =A3A!G137 -> 0 | H17: =A3A!H137 -> 0 | I17: =A3A!I137 -> 0 | J17: =A3A!J137 -> 0 | K17: =A3A!K137 -> 0 | L17: =A5A!L137 -> 0
A18: =A3A!A148 -> Vote 14 - [NAME OF VOTE 14] | C18: =A3A!C148 -> 0 | D18: =A3A!D148 -> 0 | E18: =A3A!E148 -> 0 | F18: =A3A!F148 -> 0 | G18: =A3A!G148 -> 0 | H18: =A3A!H148 -> 0 | I18: =A3A!I148 -> 0 | J18: =A3A!J148 -> 0 | K18: =A3A!K148 -> 0 | L18: =A5A!L148 -> 0
A19: =A3A!A159 -> Vote 15 - [NAME OF VOTE 15] | C19: =A3A!C159 -> 0 | D19: =A3A!D159 -> 0 | E19: =A3A!E159 -> 0 | F19: =A3A!F159 -> 0 | G19: =A3A!G159 -> 0 | H19: =A3A!H159 -> 0 | I19: =A3A!I159 -> 0 | J19: =A3A!J159 -> 0 | K19: =A3A!K159 -> 0 | L19: =A5A!L159 -> 0
A20: Total Revenue by Vote | B20: 2 | C20: =SUM(C5:C19) -> 329014330.8 | D20: =SUM(D5:D19) -> 326382478.1 | E20: 332473214.7 | F20: 346019000 | G20: 345529000 | H20: 345529000 | I20: 359805000 | J20: 373885000 | K20: 388052000
A22: Expenditure by Vote to be appropriated | B22: 1
A23: =A3A!A173 -> Vote 1 - Municipal manager | C23: =A3A!C173 -> 20415988.77 | D23: =A3A!D173 -> 41587598.51 | E23: =A3A!E173 -> 39669365.67 | F23: =A3A!F173 -> 28762474.11 | G23: =A3A!G173 -> 18348270.83 | H23: =A3A!H173 -> 18348270.83 | I23: =A3A!I173 -> 28374238.42 | J23: =A3A!J173 -> 28941152.72 | K23: =A3A!K173 -> 30679021.88
A24: =A3A!A184 -> Vote 2 - Community and Social Services | C24: =A3A!C184 -> 64960555.1 | D24: =A3A!D184 -> 67183839.47 | E24: =A3A!E184 -> 89325142.82 | F24: =A3A!F184 -> 84919041.24 | G24: =A3A!G184 -> 73992911.18 | H24: =A3A!H184 -> 73992911.18 | I24: =A3A!I184 -> 24365038.08 | J24: =A3A!J184 -> 25743740.37 | K24: =A3A!K184 -> 27345764.78
A25: =A3A!A195 -> Vote 3 - Heatlh & enviromental Services | C25: =A3A!C195 -> 1737802 | D25: =A3A!D195 -> 10408199.82 | E25: =A3A!E195 -> 10446958.08 | F25: =A3A!F195 -> 13565064.77 | G25: =A3A!G195 -> 9683337.27 | H25: =A3A!H195 -> 9683337.27 | I25: =A3A!I195 -> 69281402.9 | J25: =A3A!J195 -> 77837784.8 | K25: =A3A!K195 -> 82844809.29
A26: =A3A!A206 -> Vote 4 - Executive | C26: =A3A!C206 -> 39262038.05 | D26: =A3A!D206 -> 46285237.5 | E26: =A3A!E206 -> 87152846.75 | F26: =A3A!F206 -> 46473454.66 | G26: =A3A!G206 -> 35320262.22 | H26: =A3A!H206 -> 35320262.22 | I26: =A3A!I206 -> 33747888.57 | J26: =A3A!J206 -> 35219807.58 | K26: =A3A!K206 -> 37321260.91
A27: =A3A!A217 -> Vote 5 - Finance | C27: =A3A!C217 -> 136005280.4 | D27: =A3A!D217 -> 33957960.07 | E27: =A3A!E217 -> 47281186.59 | F27: =A3A!F217 -> 31712078.47 | G27: =A3A!G217 -> 29302551.5 | H27: =A3A!H217 -> 29302551.5 | I27: =A3A!I217 -> 28881880.02 | J27: =A3A!J217 -> 31533993.15 | K27: =A3A!K217 -> 33500132.73
A28: =A3A!A228 -> Vote 6 - Local economic development | C28: =A3A!C228 -> 13116546.52 | D28: =A3A!D228 -> 4901399.61 | E28: =A3A!E228 -> 752847.8 | F28: =A3A!F228 -> 350000 | G28: =A3A!G228 -> 200000 | H28: =A3A!H228 -> 200000 | I28: =A3A!I228 -> 7278980.955 | J28: =A3A!J228 -> 7323012.841 | K28: =A3A!K228 -> 7366104.918
A29: =A3A!A237 -> Vote 7 - Corporate Services | C29: =A3A!C237 -> 39084805.77 | D29: =A3A!D237 -> 104921434.1 | E29: =A3A!E237 -> 141217905 | F29: =A3A!F237 -> 101690049.2 | G29: =A3A!G237 -> 101180667.2 | H29: =A3A!H237 -> 101180667.2 | I29: =A3A!I237 -> 86638639.07 | J29: =A3A!J237 -> 89351374.74 | K29: =A3A!K237 -> 93428991.6
A30: =A3A!A248 -> Vote 8 - Technical | C30: =A3A!C248 -> 14431350.1 | D30: =A3A!D248 -> 9501674.16 | E30: =A3A!E248 -> 23866747.68 | F30: =A3A!F248 -> 10720323 | G30: =A3A!G248 -> 8180365 | H30: =A3A!H248 -> 8180365 | I30: =A3A!I248 -> 9669293.51 | J30: =A3A!J248 -> 9722189.27 | K30: =A3A!K248 -> 9775432.4
A31: =A3A!A259 -> Vote 9 - [NAME OF VOTE 9] | C31: =A3A!C259 -> 0 | D31: =A3A!D259 -> 0 | E31: =A3A!E259 -> 0 | F31: =A3A!F259 -> 0 | G31: =A3A!G259 -> 0 | H31: =A3A!H259 -> 0 | I31: =A3A!I259 -> 0 | J31: =A3A!J259 -> 0 | K31: =A3A!K259 -> 0
A32: =A3A!A270 -> Vote 10 - [NAME OF VOTE 10] | C32: =A3A!C270 -> 0 | D32: =A3A!D270 -> 0 | E32: =A3A!E270 -> 0 | F32: =A3A!F270 -> 0 | G32: =A3A!G270 -> 0 | H32: =A3A!H270 -> 0 | I32: =A3A!I270 -> 0 | J32: =A3A!J270 -> 0 | K32: =A3A!K270 -> 0
A33: =A3A!A281 -> Vote 11 - [NAME OF VOTE 11] | C33: =A3A!C281 -> 0 | D33: =A3A!D281 -> 0 | E33: =A3A!E281 -> 0 | F33: =A3A!F281 -> 0 | G33: =A3A!G281 -> 0 | H33: =A3A!H281 -> 0 | I33: =A3A!I281 -> 0 | J33: =A3A!J281 -> 0 | K33: =A3A!K281 -> 0 | L33: =A3A!L282 -> 0
A34: =A3A!A292 -> Vote 12 - [NAME OF VOTE 12] | C34: =A3A!C292 -> 0 | D34: =A3A!D292 -> 0 | E34: =A3A!E292 -> 0 | F34: =A3A!F292 -> 0 | G34: =A3A!G292 -> 0 | H34: =A3A!H292 -> 0 | I34: =A3A!I292 -> 0 | J34: =A3A!J292 -> 0 | K34: =A3A!K292 -> 0 | L34: =A3A!L293 -> 0
A35: =A3A!A303 -> Vote 13 - [NAME OF VOTE 13] | C35: =A3A!C303 -> 0 | D35: =A3A!D303 -> 0 | E35: =A3A!E303 -> 0 | F35: =A3A!F303 -> 0 | G35: =A3A!G303 -> 0 | H35: =A3A!H303 -> 0 | I35: =A3A!I303 -> 0 | J35: =A3A!J303 -> 0 | K35: =A3A!K303 -> 0 | L35: =A3A!L304 -> 0
A36: =A3A!A314 -> Vote 14 - [NAME OF VOTE 14] | C36: =A3A!C314 -> 0 | D36: =A3A!D314 -> 0 | E36: =A3A!E314 -> 0 | F36: =A3A!F314 -> 0 | G36: =A3A!G314 -> 0 | H36: =A3A!H314 -> 0 | I36: =A3A!I314 -> 0 | J36: =A3A!J314 -> 0 | K36: =A3A!K314 -> 0 | L36: =A3A!L315 -> 0
A37: =A3A!A325 -> Vote 15 - [NAME OF VOTE 15] | C37: =A3A!C325 -> 0 | D37: =A3A!D325 -> 0 | E37: =A3A!E325 -> 0 | F37: =A3A!F325 -> 0 | G37: =A3A!G325 -> 0 | H37: =A3A!H325 -> 0 | I37: =A3A!I325 -> 423 | J37: =A3A!J325 -> 0 | K37: =A3A!K325 -> 0 | L37: =A3A!L326 -> 0
A38: Total Expenditure by Vote | B38: 2 | C38: =SUM(C23:C37) -> 329014366.8 | D38: =SUM(D23:D37) -> 318747343.3 | E38: 439713000.4 | F38: 318192485.4 | G38: 276208365.2 | H38: 276208365.2 | I38: 288237784.5 | J38: 305673055.5 | K38: 322261518.5 | L38: =SUM(L23:L29) -> 0 | M38: 0 | N38: 0 | O38: 0 | P38: 0 | Q38: 0 | R38: 0 | S38: 0 | T38: 0 | U38: 0 | V38: 0 | W38: 0
A39: =result -> Surplus/(Deficit) for the year | B39: 2 | C39: =C20-C38 -> -35.94 | D39: 7635134.86 | E39: -107239785.7 | F39: 27826514.59 | G39: 69320634.75 | H39: 69320634.75 | I39: 71567215.47 | J39: 68211944.53 | K39: 65790481.49 | L39: 0 | M39: 0 | N39: 0 | O39: 0 | P39: 0 | Q39: 0 | R39: 0 | S39: 0 | T39: 0 | U39: 0 | V39: 0 | W39: 0
A40: =head27a -> References
A41: 1. Insert 'Vote'; e.g. department, if different to functional classification structure
A42: 2. Must reconcile to Budgeted Financial Performance (revenue and expenditure)
A43: 3. Assign share in 'associate' to relevant Vote
A45: ="check "&A39 -> check Surplus/(Deficit) for the year | C45: =C39-A3A!C338 -> 0 | D45: =D39-A3A!D338 -> 0 | E45: =E39-A3A!E338 -> 0 | F45: =F39-A3A!F338 -> 0 | G45: =G39-A3A!G338 -> 0 | H45: =H39-A3A!H338 -> 0 | I45: =I39-A3A!I338 -> 0 | J45: =J39-A3A!J338 -> 0 | K45: =K39-A3A!K338 -> 0

Sheet A3A
A1: =muni&" - "&Approve2&"A" -> DC37 Bojanala Platinum - Table A3 Budgeted Financial Performance (revenue and expenditure by municipal vote)A
A2: =Vdesc -> Vote Description | B2: =head27 -> Ref | C2: =head1b -> 2016/17 | D2: =head1A -> 2017/18 | E2: =Head1 -> 2018/19 | F2: =Head2 -> Current Year 2019/20 | I2: =Head3 -> 2020/21 Medium Term Revenue & Expenditure Framework | L2: =Head4 -> LTFS
A3: R thousand | C3: =Head5 -> Audited Outcome | D3: =Head5 -> Audited Outcome | E3: =Head5 -> Audited Outcome | F3: =Head6 -> Original Budget | G3: =Head7 -> Adjusted Budget | H3: =Head8 -> Full Year Forecast | I3: =Head9 -> Budget Year 2020/21 | J3: =Head10 -> Budget Year +1 2021/22 | K3: =Head11 -> Budget Year +2 2022/23 | L3: =Head12 -> Forecast 2023/24 | M3: =Head13 -> Forecast 2024/25 | N3: =Head14 -> Forecast 2025/26 | O3: =Head15 -> Forecast 2026/27 | P3: =Head16 -> Forecast 2027/28 | Q3: =Head17 -> Forecast 2028/29 | R3: =Head18 -> Forecast 2029/30 | S3: =Head19 -> Forecast 2030/31 | T3: =Head20 -> Forecast 2031/32 | U3: =Head21 -> Forecast 2032/33 | V3: =Head22 -> Forecast 2033/34 | W3: =Head23 -> Forecast 2034/35
A4: Revenue by Vote | B4: 1
A5: ='Org structure'!A2 -> Vote 1 - Municipal manager | C5: =SUM(C6:C15) -> 0 | D5: =SUM(D6:D15) -> 0 | E5: 0 | F5: 0 | G5: 0 | H5: 0 | I5: 0 | J5: 0 | K5: 0
A6: 1.1 - Information Technology | C6: 0 | D6: 0 | E6: 0 | F6: 0 | G6: 0 | H6: 0 | I6: 0 | J6: 0 | K6: 0
C7: 0 | D7: 0 | E7: 0 | F7: 0 | G7: 0 | H7: 0 | I7: 0 | J7: 0 | K7: 0
A8: 1.3 - Municipal Manager, Town Secretary and Chief Executive | C8: 0 | D8: 0 | E8: 0 | F8: 0 | G8: 0 | H8: 0 | I8: 0 | J8: 0 | K8: 0
A9: 1.4 - Risk Management | C9: 0 | D9: 0 | E9: 0 | F9: 0 | G9: 0 | H9: 0 | I9: 0 | J9: 0 | K9: 0
A10: 1.5 - Corporate Wide Strategic Planning (IDPs, LEDs) | C10: 0 | D10: 0 | E10: 0 | F10: 0 | G10: 0 | H10: 0 | I10: 0 | J10: 0 | K10: 0
A11: 1.6 - Central City Improvement District | C11: 0 | D11: 0 | E11: 0 | F11: 0 | G11: 0 | H11: 0 | I11: 0 | J11: 0 | K11: 0
A12: 1.7 - Provincial Planning | C12: 0 | D12: 0 | E12: 0 | F12: 0 | G12: 0 | H12: 0 | I12: 0 | J12: 0 | K12: 0
C13: 0 | D13: 0 | E13: 0 | F13: 0 | G13: 0 | H13: 0 | I13: 0 | J13: 0 | K13: 0
C14: 0 | D14: 0 | E14: 0 | F14: 0 | G14: 0 | H14: 0 | I14: 0 | J14: 0 | K14: 0
C15: 0 | D15: 0 | E15: 0 | F15: 0 | G15: 0 | H15: 0 | I15: 0 | J15: 0 | K15: 0
A16: ='Org structure'!A3 -> Vote 2 - Community and Social Services | C16: =SUM(C17:C26) -> 0 | D16: =SUM(D17:D26) -> 0 | E16: 0 | F16: 200000 | G16: 100000 | H16: 100000 | I16: 110000 | J16: 110000 | K16: 110000
A17: 2.1 - Disaster Management | C17: 0 | D17: 0 | E17: 0 | F17: 200000 | G17: 100000 | H17: 100000 | I17: 110000 | J17: 110000 | K17: 110000
A18: 2.2 - Fire Fighting and Protection | C18: 0 | D18: 0 | E18: 0 | F18: 0 | G18: 0 | H18: 0 | I18: 0 | J18: 0 | K18: 0
C19: 0 | D19: 0 | E19: 0 | F19: 0 | G19: 0 | H19: 0 | I19: 0 | J19: 0 | K19: 0
A20: 2.4 - Recreational Facilities | C20: 0 | D20: 0 | E20: 0 | F20: 0 | G20: 0 | H20: 0 | I20: 0 | J20: 0 | K20: 0
A21: 2.5 - Community Halls and Facilities | C21: 0 | D21: 0 | E21: 0 | F21: 0 | G21: 0 | H21: 0 | I21: 0 | J21: 0 | K21: 0
A22: 2.6 - Sports Grounds and Stadiums | C22: 0 | D22: 0 | E22: 0 | F22: 0 | G22: 0 | H22: 0 | I22: 0 | J22: 0 | K22: 0
A23: 2.7 - Theatres | C23: 0 | D23: 0 | E23: 0 | F23: 0 | G23: 0 | H23: 0 | I23: 0 | J23: 0 | K23: 0
A24: 2.8 - Civil Defence | C24: 0 | D24: 0 | E24: 0 | F24: 0 | G24: 0 | H24: 0 | I24: 0 | J24: 0 | K24: 0
A25: 2.9 - Cleansing | C25: 0 | D25: 0 | E25: 0 | F25: 0 | G25: 0 | H25: 0 | I25: 0 | J25: 0 | K25: 0
C26: 0 | D26: 0 | E26: 0 | F26: 0 | G26: 0 | H26: 0 | I26: 0 | J26: 0 | K26: 0
A27: ='Org structure'!A4 -> Vote 3 - Heatlh & enviromental Services | C27: =SUM(C28:C37) -> 0 | D27: 0 | E27: 0 | F27: 0 | G27: 0 | H27: 0 | I27: 0 | J27: 0 | K27: 0
A28: 3.1 - Solid Waste Disposal (Landfill Sites) | C28: 0 | D28: 0 | E28: 0 | F28: 0 | G28: 0 | H28: 0 | I28: 0 | J28: 0 | K28: 0
A29: 3.2 - Pollution Control | C29: 0 | D29: 0 | E29: 0 | F29: 0 | G29: 0 | H29: 0 | I29: 0 | J29: 0 | K29: 0
A30: 3.3 - Control of Public Nuisances | C30: 0 | D30: 0 | E30: 0 | F30: 0 | G30: 0 | H30: 0 | I30: 0 | J30: 0 | K30: 0
A31: 3.4 - Cemeteries, Funeral Parlours and Crematoriums | C31: 0 | D31: 0 | E31: 0 | F31: 0 | G31: 0 | H31: 0 | I31: 0 | J31: 0 | K31: 0
A32: 3.5 - Public Toilets | C32: 0 | D32: 0 | E32: 0 | F32: 0 | G32: 0 | H32: 0 | I32: 0 | J32: 0 | K32: 0
A33: 3.6 - Aged Care | C33: 0 | D33: 0 | E33: 0 | F33: 0 | G33: 0 | H33: 0 | I33: 0 | J33: 0 | K33: 0
A34: 3.7 - Education | C34: 0 | D34: 0 | E34: 0 | F34: 0 | G34: 0 | H34: 0 | I34: 0 | J34: 0 | K34: 0
C35: 0 | D35: 0 | E35: 0 | F35: 0 | G35: 0 | H35: 0 | I35: 0 | J35: 0 | K35: 0
C36: 0 | D36: 0 | E36: 0 | F36: 0 | G36: 0 | H36: 0 | I36: 0 | J36: 0 | K36: 0
C37: 0 | D37: 0 | E37: 0 | F37: 0 | G37: 0 | H37: 0 | I37: 0 | J37: 0 | K37: 0
A38: ='Org structure'!A5 -> Vote 4 - Executive | C38: =SUM(C39:C48) -> 0 | D38: 0 | E38: 0 | F38: 0 | G38: 0 | H38: 0 | I38: 0 | J38: 0 | K38: 0
A39: 4.1 - Mayor and Council | C39: 0 | D39: 0 | E39: 0 | F39: 0 | G39: 0 | H39: 0 | I39: 0 | J39: 0 | K39: 0
A40: 4.2 - Media Services | C40: 0 | D40: 0 | E40: 0 | F40: 0 | G40: 0 | H40: 0 | I40: 0 | J40: 0 | K40: 0
A41: 4.3 - Literacy Programmes | C41: 0 | D41: 0 | E41: 0 | F41: 0 | G41: 0 | H41: 0 | I41: 0 | J41: 0 | K41: 0
C42: 0 | D42: 0 | E42: 0 | F42: 0 | G42: 0 | H42: 0 | I42: 0 | J42: 0 | K42: 0
C43: 0 | D43: 0 | E43: 0 | F43: 0 | G43: 0 | H43: 0 | I43: 0 | J43: 0 | K43: 0
C44: 0 | D44: 0 | E44: 0 | F44: 0 | G44: 0 | H44: 0 | I44: 0 | J44: 0 | K44: 0
C45: 0 | D45: 0 | E45: 0 | F45: 0 | G45: 0 | H45: 0 | I45: 0 | J45: 0 | K45: 0
C46: 0 | D46: 0 | E46: 0 | F46: 0 | G46: 0 | H46: 0 | I46: 0 | J46: 0 | K46: 0
C47: 0 | D47: 0 | E47: 0 | F47: 0 | G47: 0 | H47: 0 | I47: 0 | J47: 0 | K47: 0
C48: 0 | D48: 0 | E48: 0 | F48: 0 | G48: 0 | H48: 0 | I48: 0 | J48: 0 | K48: 0
A49: ='Org structure'!A6 -> Vote 5 - Finance | C49: =SUM(C50:C59) -> 327115628.6 | D49: =SUM(D50:D59) -> 326382478.1 | E49: 332473214.7 | F49: 345819000 | G49: 345429000 | H49: 345429000 | I49: 357906000 | J49: 371260000 | K49: 385282000
A50: 5.1 - Supply Chain Management | C50: 0 | D50: 0 | E50: 1000000 | F50: 0 | G50: 1000000 | H50: 1000000 | I50: 1400000 | J50: 1700000 | K50: 1900000
A51: 5.2 - Asset Management | C51: 3360218.73 | D51: 25465.26 | E51: 0 | F51: 0 | G51: 0 | H51: 0 | I51: 0 | J51: 0 | K51: 0
A52: 5.3 - Finance | C52: 323755409.9 | D52: 326357012.9 | E52: 331473214.7 | F52: 345819000 | G52: 344429000 | H52: 344429000 | I52: =356506000 -> 356506000 | J52: =369560000 -> 369560000 | K52: =383382000 -> 383382000
C53: 0 | D53: 0 | E53: 0 | F53: 0 | G53: 0 | H53: 0 | I53: 0 | J53: 0 | K53: 0
C54: 0 | D54: 0 | E54: 0 | F54: 0 | G54: 0 | H54: 0 | I54: 0 | J54: 0 | K54: 0
C55: 0 | D55: 0 | E55: 0 | F55: 0 | G55: 0 | H55: 0 | I55: 0 | J55: 0 | K55: 0
C56: 0 | D56: 0 | E56: 0 | F56: 0 | G56: 0 | H56: 0 | I56: 0 | J56: 0 | K56: 0
C57: 0 | D57: 0 | E57: 0 | F57: 0 | G57: 0 | H57: 0 | I57: 0 | J57: 0 | K57: 0
C58: 0 | D58: 0 | E58: 0 | F58: 0 | G58: 0 | H58: 0 | I58: 0 | J58: 0 | K58: 0
C59: 0 | D59: 0 | E59: 0 | F59: 0 | G59: 0 | H59: 0 | I59: 0 | J59: 0 | K59: 0
A60: ='Org structure'!A7 -> Vote 6 - Local economic development | C60: =SUM(C61:C70) -> 0 | D60: =SUM(D61:D70) -> 0 | E60: 0 | F60: 0 | G60: 0 | H60: 0 | I60: 0 | J60: 0 | K60: 0
C61: 0 | D61: 0 | E61: 0 | F61: 0 | G61: 0 | H61: 0 | I61: 0 | J61: 0 | K61: 0
C62: 0 | D62: 0 | E62: 0 | F62: 0 | G62: 0 | H62: 0 | I62: 0 | J62: 0 | K62: 0
A63: 6.3 - Governance Function | C63: 0 | D63: 0 | E63: 0 | F63: 0 | G63: 0 | H63: 0 | I63: 0 | J63: 0 | K63: 0
A64: 6.4 - Marketing, Customer Relations, Publicity and Media Co-ordination | C64: 0 | D64: 0 | E64: 0 | F64: 0 | G64: 0 | H64: 0 | I64: 0 | J64: 0 | K64: 0
A65: 6.5 - Animal Care and Diseases | C65: 0 | D65: 0 | E65: 0 | F65: 0 | G65: 0 | H65: 0 | I65: 0 | J65: 0 | K65: 0
C66: 0 | D66: 0 | E66: 0 | F66: 0 | G66: 0 | H66: 0 | I66: 0 | J66: 0 | K66: 0
C67: 0 | D67: 0 | E67: 0 | F67: 0 | G67: 0 | H67: 0 | I67: 0 | J67: 0 | K67: 0
C68: 0 | D68: 0 | E68: 0 | F68: 0 | G68: 0 | H68: 0 | I68: 0 | J68: 0 | K68: 0
C69: 0 | D69: 0 | E69: 0 | F69: 0 | G69: 0 | H69: 0 | I69: 0 | J69: 0 | K69: 0
C70: 0 | D70: 0 | E70: 0 | F70: 0 | G70: 0 | H70: 0 | I70: 0 | J70: 0 | K70: 0
A71: ='Org structure'!A8 -> Vote 7 - Corporate Services | C71: =SUM(C72:C81) -> 0 | D71: 0 | E71: 0 | F71: 0 | G71: 0 | H71: 0 | I71: 0 | J71: 0 | K71: 0
A72: 7.1 - Administrative and Corporate Support | C72: 0 | D72: 0 | E72: 0 | F72: 0 | G72: 0 | H72: 0 | I72: 0 | J72: 0 | K72: 0
A73: 7.2 - Human Resources | C73: 0 | D73: 0 | E73: 0 | F73: 0 | G73: 0 | H73: 0 | I73: 0 | J73: 0 | K73: 0
A74: 7.3 - Health Surveillance and Prevention of Communicable Diseases including immunizations | C74: 0 | D74: 0 | E74: 0 | F74: 0 | G74: 0 | H74: 0 | I74: 0 | J74: 0 | K74: 0
A75: 7.4 - Health Services | C75: 0 | D75: 0 | E75: 0 | F75: 0 | G75: 0 | H75: 0 | I75: 0 | J75: 0 | K75: 0
A76: 7.5 - Economic Development/Planning | C76: 0 | D76: 0 | E76: 0 | F76: 0 | G76: 0 | H76: 0 | I76: 0 | J76: 0 | K76: 0
C77: 0 | D77: 0 | E77: 0 | F77: 0 | G77: 0 | H77: 0 | I77: 0 | J77: 0 | K77: 0
C78: 0 | D78: 0 | E78: 0 | F78: 0 | G78: 0 | H78: 0 | I78: 0 | J78: 0 | K78: 0
C79: 0 | D79: 0 | E79: 0 | F79: 0 | G79: 0 | H79: 0 | I79: 0 | J79: 0 | K79: 0
C80: 0 | D80: 0 | E80: 0 | F80: 0 | G80: 0 | H80: 0 | I80: 0 | J80: 0 | K80: 0
C81: 0 | D81: 0 | E81: 0 | F81: 0 | G81: 0 | H81: 0 | I81: 0 | J81: 0 | K81: 0
A82: ='Org structure'!A9 -> Vote 8 - Technical | C82: =SUM(C83:C92) -> 1898702.18 | D82: =SUM(D83:D92) -> 0 | E82: 0 | F82: 0 | G82: 0 | H82: 0 | I82: 1789000 | J82: 2515000 | K82: 2660000
A83: 8.1 - Housing | C83: 0 | D83: 0 | E83: 0 | F83: 0 | G83: 0 | H83: 0 | I83: 0 | J83: 2515000 | K83: 2660000
A84: 8.2 - Roads | C84: 1898702.18 | D84: 0 | E84: 0 | F84: 0 | G84: 0 | H84: 0 | I84: 1789000 | J84: 0 | K84: 0
A85: 8.3 - Waste Water Treatment | C85: 0 | D85: 0 | E85: 0 | F85: 0 | G85: 0 | H85: 0 | I85: 0 | J85: 0 | K85: 0
A86: 8.4 - Public Transport | C86: 0 | D86: 0 | E86: 0 | F86: 0 | G86: 0 | H86: 0 | I86: 0 | J86: 0 | K86: 0
A87: 8.5 - Road and Traffic Regulation | C87: 0 | D87: 0 | E87: 0 | F87: 0 | G87: 0 | H87: 0 | I87: 0 | J87: 0 | K87: 0
A88: 8.6 - Taxi Ranks | C88: 0 | D88: 0 | E88: 0 | F88: 0 | G88: 0 | H88: 0 | I88: 0 | J88: 0 | K88: 0
A89: 8.7 - Water Distribution | C89: 0 | D89: 0 | E89: 0 | F89: 0 | G89: 0 | H89: 0 | I89: 0 | J89: 0 | K89: 0
A90: 8.8 - Water Storage | C90: 0 | D90: 0 | E90: 0 | F90: 0 | G90: 0 | H90: 0 | I90: 0 | J90: 0 | K90: 0
A91: 8.9 - Water Treatment | C91: 0 | D91: 0 | E91: 0 | F91: 0 | G91: 0 | H91: 0 | I91: 0 | J91: 0 | K91: 0
C92: 0 | D92: 0 | E92: 0 | F92: 0 | G92: 0 | H92: 0 | I92: 0 | J92: 0 | K92: 0
A93: ='Org structure'!A10 -> Vote 9 - [NAME OF VOTE 9] | C93: =SUM(C94:C103) -> 0 | D93: =SUM(D94:D103) -> 0 | E93: 0 | F93: 0 | G93: 0 | H93: 0 | I93: 0 | J93: 0 | K93: 0
C94: 0 | D94: 0 | E94: 0 | F94: 0 | G94: 0 | H94: 0 | I94: 0 | J94: 0 | K94: 0
C95: 0 | D95: 0 | E95: 0 | F95: 0 | G95: 0 | H95: 0 | I95: 0 | J95: 0 | K95: 0
C96: 0 | D96: 0 | E96: 0 | F96: 0 | G96: 0 | H96: 0 | I96: 0 | J96: 0 | K96: 0
C97: 0 | D97: 0 | E97: 0 | F97: 0 | G97: 0 | H97: 0 | I97: 0 | J97: 0 | K97: 0
C98: 0 | D98: 0 | E98: 0 | F98: 0 | G98: 0 | H98: 0 | I98: 0 | J98: 0 | K98: 0
C99: 0 | D99: 0 | E99: 0 | F99: 0 | G99: 0 | H99: 0 | I99: 0 | J99: 0 | K99: 0
C100: 0 | D100: 0 | E100: 0 | F100: 0 | G100: 0 | H100: 0 | I100: 0 | J100: 0 | K100: 0
C101: 0 | D101: 0 | E101: 0 | F101: 0 | G101: 0 | H101: 0 | I101: 0 | J101: 0 | K101: 0
C102: 0 | D102: 0 | E102: 0 | F102: 0 | G102: 0 | H102: 0 | I102: 0 | J102: 0 | K102: 0
C103: 0 | D103: 0 | E103: 0 | F103: 0 | G103: 0 | H103: 0 | I103: 0 | J103: 0 | K103: 0
A104: ='Org structure'!A11 -> Vote 10 - [NAME OF VOTE 10] | C104: =SUM(C105:C114) -> 0 | D104: =SUM(D105:D114) -> 0 | E104: 0 | F104: 0 | G104: 0 | H104: 0 | I104: 0 | J104: 0 | K104: 0
C105: 0 | D105: 0 | E105: 0 | F105: 0 | G105: 0 | H105: 0 | I105: 0 | J105: 0 | K105: 0
C106: 0 | D106: 0 | E106: 0 | F106: 0 | G106: 0 | H106: 0 | I106: 0 | J106: 0 | K106: 0
C107: 0 | D107: 0 | E107: 0 | F107: 0 | G107: 0 | H107: 0 | I107: 0 | J107: 0 | K107: 0
C108: 0 | D108: 0 | E108: 0 | F108: 0 | G108: 0 | H108: 0 | I108: 0 | J108: 0 | K108: 0
C109: 0 | D109: 0 | E109: 0 | F109: 0 | G109: 0 | H109: 0 | I109: 0 | J109: 0 | K109: 0
C110: 0 | D110: 0 | E110: 0 | F110: 0 | G110: 0 | H110: 0 | I110: 0 | J110: 0 | K110: 0
C111: 0 | D111: 0 | E111: 0 | F111: 0 | G111: 0 | H111: 0 | I111: 0 | J111: 0 | K111: 0
C112: 0 | D112: 0 | E112: 0 | F112: 0 | G112: 0 | H112: 0 | I112: 0 | J112: 0 | K112: 0
C113: 0 | D113: 0 | E113: 0 | F113: 0 | G113: 0 | H113: 0 | I113: 0 | J113: 0 | K113: 0
C114: 0 | D114: 0 | E114: 0 | F114: 0 | G114: 0 | H114: 0 | I114: 0 | J114: 0 | K114: 0
A115: ='Org structure'!A12 -> Vote 11 - [NAME OF VOTE 11] | C115: =SUM(C116:C125) -> 0 | D115: =SUM(D116:D125) -> 0 | E115: 0 | F115: 0 | G115: 0 | H115: 0 | I115: 0 | J115: 0 | K115: 0
C116: 0 | D116: 0 | E116: 0 | F116: 0 | G116: 0 | H116: 0 | I116: 0 | J116: 0 | K116: 0
C117: 0 | D117: 0 | E117: 0 | F117: 0 | G117: 0 | H117: 0 | I117: 0 | J117: 0 | K117: 0
C118: 0 | D118: 0 | E118: 0 | F118: 0 | G118: 0 | H118: 0 | I118: 0 | J118: 0 | K118: 0
C119: 0 | D119: 0 | E119: 0 | F119: 0 | G119: 0 | H119: 0 | I119: 0 | J119: 0 | K119: 0
C120: 0 | D120: 0 | E120: 0 | F120: 0 | G120: 0 | H120: 0 | I120: 0 | J120: 0 | K120: 0
C121: 0 | D121: 0 | E121: 0 | F121: 0 | G121: 0 | H121: 0 | I121: 0 | J121: 0 | K121: 0
C122: 0 | D122: 0 | E122: 0 | F122: 0 | G122: 0 | H122: 0 | I122: 0 | J122: 0 | K122: 0
C123: 0 | D123: 0 | E123: 0 | F123: 0 | G123: 0 | H123: 0 | I123: 0 | J123: 0 | K123: 0
C124: 0 | D124: 0 | E124: 0 | F124: 0 | G124: 0 | H124: 0 | I124: 0 | J124: 0 | K124: 0
C125: 0 | D125: 0 | E125: 0 | F125: 0 | G125: 0 | H125: 0 | I125: 0 | J125: 0 | K125: 0
A126: ='Org structure'!A13 -> Vote 12 - [NAME OF VOTE 12] | C126: =SUM(C127:C136) -> 0 | D126: =SUM(D127:D136) -> 0 | E126: 0 | F126: 0 | G126: 0 | H126: 0 | I126: 0 | J126: 0 | K126: 0
C127: 0 | D127: 0 | E127: 0 | F127: 0 | G127: 0 | H127: 0 | I127: 0 | J127: 0 | K127: 0
C128: 0 | D128: 0 | E128: 0 | F128: 0 | G128: 0 | H128: 0 | I128: 0 | J128: 0 | K128: 0
C129: 0 | D129: 0 | E129: 0 | F129: 0 | G129: 0 | H129: 0 | I129: 0 | J129: 0 | K129: 0
C130: 0 | D130: 0 | E130: 0 | F130: 0 | G130: 0 | H130: 0 | I130: 0 | J130: 0 | K130: 0
C131: 0 | D131: 0 | E131: 0 | F131: 0 | G131: 0 | H131: 0 | I131: 0 | J131: 0 | K131: 0
C132: 0 | D132: 0 | E132: 0 | F132: 0 | G132: 0 | H132: 0 | I132: 0 | J132: 0 | K132: 0
C133: 0 | D133: 0 | E133: 0 | F133: 0 | G133: 0 | H133: 0 | I133: 0 | J133: 0 | K133: 0
C134: 0 | D134: 0 | E134: 0 | F134: 0 | G134: 0 | H134: 0 | I134: 0 | J134: 0 | K134: 0
C135: 0 | D135: 0 | E135: 0 | F135: 0 | G135: 0 | H135: 0 | I135: 0 | J135: 0 | K135: 0
C136: 0 | D136: 0 | E136: 0 | F136: 0 | G136: 0 | H136: 0 | I136: 0 | J136: 0 | K136: 0
A137: ='Org structure'!A14 -> Vote 13 - [NAME OF VOTE 13] | C137: =SUM(C138:C147) -> 0 | D137: =SUM(D138:D147) -> 0 | E137: 0 | F137: 0 | G137: 0 | H137: 0 | I137: 0 | J137: 0 | K137: 0
C138: 0 | D138: 0 | E138: 0 | F138: 0 | G138: 0 | H138: 0 | I138: 0 | J138: 0 | K138: 0
C139: 0 | D139: 0 | E139: 0 | F139: 0 | G139: 0 | H139: 0 | I139: 0 | J139: 0 | K139: 0
C140: 0 | D140: 0 | E140: 0 | F140: 0 | G140: 0 | H140: 0 | I140: 0 | J140: 0 | K140: 0
C141: 0 | D141: 0 | E141: 0 | F141: 0 | G141: 0 | H141: 0 | I141: 0 | J141: 0 | K141: 0
C142: 0 | D142: 0 | E142: 0 | F142: 0 | G142: 0 | H142: 0 | I142: 0 | J142: 0 | K142: 0
C143: 0 | D143: 0 | E143: 0 | F143: 0 | G143: 0 | H143: 0 | I143: 0 | J143: 0 | K143: 0
C144: 0 | D144: 0 | E144: 0 | F144: 0 | G144: 0 | H144: 0 | I144: 0 | J144: 0 | K144: 0
C145: 0 | D145: 0 | E145: 0 | F145: 0 | G145: 0 | H145: 0 | I145: 0 | J145: 0 | K145: 0
C146: 0 | D146: 0 | E146: 0 | F146: 0 | G146: 0 | H146: 0 | I146: 0 | J146: 0 | K146: 0
C147: 0 | D147: 0 | E147: 0 | F147: 0 | G147: 0 | H147: 0 | I147: 0 | J147: 0 | K147: 0
A148: ='Org structure'!A15 -> Vote 14 - [NAME OF VOTE 14] | C148: =SUM(C149:C158) -> 0 | D148: =SUM(D149:D158) -> 0 | E148: 0 | F148: 0 | G148: 0 | H148: 0 | I148: 0 | J148: 0 | K148: 0
C149: 0 | D149: 0 | E149: 0 | F149: 0 | G149: 0 | H149: 0 | I149: 0 | J149: 0 | K149: 0
C150: 0 | D150: 0 | E150: 0 | F150: 0 | G150: 0 | H150: 0 | I150: 0 | J150: 0 | K150: 0
C151: 0 | D151: 0 | E151: 0 | F151: 0 | G151: 0 | H151: 0 | I151: 0 | J151: 0 | K151: 0
C152: 0 | D152: 0 | E152: 0 | F152: 0 | G152: 0 | H152: 0 | I152: 0 | J152: 0 | K152: 0
C153: 0 | D153: 0 | E153: 0 | F153: 0 | G153: 0 | H153: 0 | I153: 0 | J153: 0 | K153: 0
C154: 0 | D154: 0 | E154: 0 | F154: 0 | G154: 0 | H154: 0 | I154: 0 | J154: 0 | K154: 0
C155: 0 | D155: 0 | E155: 0 | F155: 0 | G155: 0 | H155: 0 | I155: 0 | J155: 0 | K155: 0
C156: 0 | D156: 0 | E156: 0 | F156: 0 | G156: 0 | H156: 0 | I156: 0 | J156: 0 | K156: 0
C157: 0 | D157: 0 | E157: 0 | F157: 0 | G157: 0 | H157: 0 | I157: 0 | J157: 0 | K157: 0
C158: 0 | D158: 0 | E158: 0 | F158: 0 | G158: 0 | H158: 0 | I158: 0 | J158: 0 | K158: 0
A159: ='Org structure'!A16 -> Vote 15 - [NAME OF VOTE 15] | C159: =SUM(C160:C169) -> 0 | D159: =SUM(D160:D169) -> 0 | E159: 0 | F159: 0 | G159: 0 | H159: 0 | I159: 0 | J159: 0 | K159: 0
C160: 0 | D160: 0 | E160: 0 | F160: 0 | G160: 0 | H160: 0 | I160: 0 | J160: 0 | K160: 0
C161: 0 | D161: 0 | E161: 0 | F161: 0 | G161: 0 | H161: 0 | I161: 0 | J161: 0 | K161: 0
C162: 0 | D162: 0 | E162: 0 | F162: 0 | G162: 0 | H162: 0 | I162: 0 | J162: 0 | K162: 0
C163: 0 | D163: 0 | E163: 0 | F163: 0 | G163: 0 | H163: 0 | I163: 0 | J163: 0 | K163: 0
C164: 0 | D164: 0 | E164: 0 | F164: 0 | G164: 0 | H164: 0 | I164: 0 | J164: 0 | K164: 0
C165: 0 | D165: 0 | E165: 0 | F165: 0 | G165: 0 | H165: 0 | I165: 0 | J165: 0 | K165: 0
C166: 0 | D166: 0 | E166: 0 | F166: 0 | G166: 0 | H166: 0 | I166: 0 | J166: 0 | K166: 0
C167: 0 | D167: 0 | E167: 0 | F167: 0 | G167: 0 | H167: 0 | I167: 0 | J167: 0 | K167: 0
C168: 0 | D168: 0 | E168: 0 | F168: 0 | G168: 0 | H168: 0 | I168: 0 | J168: 0 | K168: 0
C169: 0 | D169: 0 | E169: 0 | F169: 0 | G169: 0 | H169: 0 | I169: 0 | J169: 0 | K169: 0
A170: Total Revenue by Vote | B170: 2 | C170: =C5+C16+C27+C38+C49+C60+C71+C82+C93+C104+C115+C126+C137+C148+C159 -> 329014330.8 | D170: =D5+D16+D27+D38+D49+D60+D71+D82+D93+D104+D115+D126+D137+D148+D159 -> 326382478.1 | E170: =E5+E16+E27+E38+E49+E60+E71+E82+E93+E104+E115+E126+E137+E148+E159 -> 332473214.7 | F170: 346019000 | G170: 345529000 | H170: 345529000 | I170: =I5+I16+I27+I38+I49+I60+I71+I82+I93+I104+I115+I126+I137+I148+I159 -> 359805000 | J170: 373885000 | K170: 388052000 | L170: =SUM(L78:L81) -> 0 | M170: 0 | N170: 0 | O170: 0 | P170: 0 | Q170: 0 | R170: 0 | S170: 0 | T170: 0 | U170: 0 | V170: 0 | W170: 0
A172: Expenditure by Vote | B172: 1
A173: =A5 -> Vote 1 - Municipal manager | C173: =SUM(C174:C183) -> 20415988.77 | D173: 41587598.51 | E173: 39669365.67 | F173: 28762474.11 | G173: 18348270.83 | H173: 18348270.83 | I173: 28374238.42 | J173: 28941152.72 | K173: 30679021.88
A174: 1.1 - Information Technology | C174: 0 | D174: 12701130.63 | E174: 11855511.11 | F174: 0 | G174: 100000 | H174: 100000 | I174: 12100000 | J174: 13110000 | K174: 14615000
C175: 0 | D175: 0 | E175: 0 | F175: 0 | G175: 0 | H175: 0 | I175: 0 | J175: 0 | K175: 0
A176: 1.3 - Municipal Manager, Town Secretary and Chief Executive | C176: 14604165.25 | D176: 23386353.78 | E176: 22080971.88 | F176: 23974181.11 | G176: 16811270.83 | H176: 16811270.83 | I176: 14485238.42 | J176: 15831152.72 | K176: 16064021.88
A177: 1.4 - Risk Management | C177: 0 | D177: 4000039.54 | E177: 3106716.24 | F177: 3351293 | G177: 0 | H177: 0 | I177: 0 | J177: 0 | K177: 0
A178: 1.5 - Corporate Wide Strategic Planning (IDPs, LEDs) | C178: 0 | D178: 1500074.56 | E178: 2414694 | F178: 1437000 | G178: 1437000 | H178: 1437000 | I178: 1789000 | J178: 0 | K178: 0
A179: 1.6 - Central City Improvement District | C179: 5811823.52 | D179: 0 | E179: 211472.44 | F179: 0 | G179: 0 | H179: 0 | I179: 0 | J179: 0 | K179: 0
A180: 1.7 - Provincial Planning | C180: 0 | D180: 0 | E180: 0 | F180: 0 | G180: 0 | H180: 0 | I180: 0 | J180: 0 | K180: 0
C181: 0 | D181: 0 | E181: 0 | F181: 0 | G181: 0 | H181: 0 | I181: 0 | J181: 0 | K181: 0
C182: 0 | D182: 0 | E182: 0 | F182: 0 | G182: 0 | H182: 0 | I182: 0 | J182: 0 | K182: 0
C183: 0 | D183: 0 | E183: 0 | F183: 0 | G183: 0 | H183: 0 | I183: 0 | J183: 0 | K183: 0
A184: =A16 -> Vote 2 - Community and Social Services | C184: =SUM(C185:C194) -> 64960555.1 | D184: =SUM(D185:D194) -> 67183839.47 | E184: =SUM(E185:E194) -> 89325142.82 | F184: 84919041.24 | G184: 73992911.18 | H184: 73992911.18 | I184: 24365038.08 | J184: 25743740.37 | K184: 27345764.78
A185: 2.1 - Disaster Management | C185: 0 | D185: 6702134.47 | E185: 7767440.17 | F185: 8605066.02 | G185: 6155557.09 | H185: 6155557.09 | I185: 23345038.08 | J185: 24783740.37 | K185: 26275764.78
A186: 2.2 - Fire Fighting and Protection | C186: =27231736.58+457000-914000 -> 26774736.58 | D186: 57102046.61 | E186: 77830783.8 | F186: 71705107.98 | G186: 65333354.09 | H186: 65333354.09 | I186: 1020000 | J186: 960000 | K186: 1070000
C187: 0 | D187: 0 | E187: 0 | F187: 0 | G187: 0 | H187: 0 | I187: 0 | J187: 0 | K187: 0
A188: 2.4 - Recreational Facilities | C188: 0 | D188: 1067096.35 | E188: 1447083.65 | F188: 1554867.24 | G188: 0 | H188: 0 | I188: 0 | J188: 0 | K188: 0
A189: 2.5 - Community Halls and Facilities | C189: 0 | D189: 2113864.04 | E189: 2028522.9 | F189: 2504000 | G189: 2504000 | H189: 2504000 | I189: 0 | J189: 0 | K189: 0
A190: 2.6 - Sports Grounds and Stadiums | C190: 0 | D190: 0 | E190: 0 | F190: 0 | G190: 0 | H190: 0 | I190: 0 | J190: 0 | K190: 0
A191: 2.7 - Theatres | C191: 27903860.96 | D191: 0 | E191: 29265 | F191: 0 | G191: 0 | H191: 0 | I191: 0 | J191: 0 | K191: 0
A192: 2.8 - Civil Defence | C192: 10281957.56 | D192: 0 | E192: 0 | F192: 0 | G192: 0 | H192: 0 | I192: 0 | J192: 0 | K192: 0
A193: 2.9 - Cleansing | C193: 0 | D193: 198698 | E193: 222047.3 | F193: 550000 | G193: 0 | H193: 0 | I193: 0 | J193: 0 | K193: 0
C194: 0 | D194: 0 | E194: 0 | F194: 0 | G194: 0 | H194: 0 | I194: 0 | J194: 0 | K194: 0
A195: =A27 -> Vote 3 - Heatlh & enviromental Services | C195: =SUM(C196:C205) -> 1737802 | D195: 10408199.82 | E195: 10446958.08 | F195: 13565064.77 | G195: 9683337.27 | H195: 9683337.27 | I195: 69281402.9 | J195: 77837784.8 | K195: 82844809.29
A196: 3.1 - Solid Waste Disposal (Landfill Sites) | C196: 0 | D196: 438840 | E196: 113229.5 | F196: 0 | G196: 0 | H196: 0 | I196: 0 | J196: 0 | K196: 0
A197: 3.2 - Pollution Control | C197: 0 | D197: 0 | E197: 0 | F197: 0 | G197: 0 | H197: 0 | I197: 0 | J197: 0 | K197: 0
A198: 3.3 - Control of Public Nuisances | C198: 0 | D198: 0 | E198: 0 | F198: 0 | G198: 0 | H198: 0 | I198: 0 | J198: 0 | K198: 0
A199: 3.4 - Cemeteries, Funeral Parlours and Crematoriums | C199: 1737802 | D199: 8133809.5 | E199: 10102495.28 | F199: =10352505.77+2812559 -> 13165064.77 | G199: =9603337.27+80000 -> 9683337.27 | H199: =9603337.27+80000 -> 9683337.27 | I199: 69281402.9 | J199: =73438286.8+4400498-1000 -> 77837784.8 | K199: =77844584.29+1000+4999225 -> 82844809.29
A200: 3.5 - Public Toilets | C200: 0 | D200: 0 | E200: 0 | F200: 0 | G200: 0 | H200: 0 | I200: 0 | J200: 0 | K200: 0
A201: 3.6 - Aged Care | C201: 0 | D201: 382904.32 | E201: 231233.3 | F201: 400000 | G201: 0 | H201: 0 | I201: 0 | J201: 0 | K201: 0
... 142 more rows

Sheet A4-FinPerf RE
A1: =muni&" - "&Approve4 -> DC37 Bojanala Platinum - Table A4 Budgeted Financial Performance (revenue and expenditure)
A2: =desc -> Description | B2: =head27 -> Ref | C2: =head1b -> 2016/17 | D2: =head1A -> 2017/18 | E2: =Head1 -> 2018/19 | F2: =Head2 -> Current Year 2019/20 | J2: =Head3 -> 2020/21 Medium Term Revenue & Expenditure Framework | M2: =Head4 -> LTFS
A3: R thousand | B3: 1 | C3: =Head5 -> Audited Outcome | D3: =Head5 -> Audited Outcome | E3: =Head5 -> Audited Outcome | F3: =Head6 -> Original Budget | G3: =Head7 -> Adjusted Budget | H3: =Head8 -> Full Year Forecast | I3: =Head5b -> Pre-audit outcome | J3: =Head9 -> Budget Year 2020/21 | K3: =Head10 -> Budget Year +1 2021/22 | L3: =Head11 -> Budget Year +2 2022/23 | M3: =Head12 -> Forecast 2023/24 | N3: =Head13 -> Forecast 2024/25 | O3: =Head14 -> Forecast 2025/26 | P3: =Head15 -> Forecast 2026/27 | Q3: =Head16 -> Forecast 2027/28 | R3: =Head17 -> Forecast 2028/29 | S3: =Head18 -> Forecast 2029/30 | T3: =Head19 -> Forecast 2030/31 | U3: =Head20 -> Forecast 2031/32 | V3: =Head21 -> Forecast 2032/33 | W3: =Head22 -> Forecast 2033/34 | X3: =Head23 -> Forecast 2034/35
A4: Revenue By Source
A5: Property rates | B5: 2 | C5: ='SA1'!C9 -> 0 | D5: ='SA1'!D9 -> 0 | E5: ='SA1'!E9 -> 0 | F5: ='SA1'!F9 -> 0 | G5: ='SA1'!G9 -> 0 | H5: ='SA1'!H9 -> 0 | I5: ='SA1'!I9 -> 0 | J5: ='SA1'!J9 -> 0 | K5: ='SA1'!K9 -> 0 | L5: ='SA1'!L9 -> 0
A6: Service charges - electricity revenue | B6: 2 | C6: ='SA1'!C15 -> 0 | D6: ='SA1'!D15 -> 0 | E6: ='SA1'!E15 -> 0 | F6: ='SA1'!F15 -> 0 | G6: ='SA1'!G15 -> 0 | H6: ='SA1'!H15 -> 0 | I6: ='SA1'!I15 -> 0 | J6: ='SA1'!J15 -> 0 | K6: ='SA1'!K15 -> 0 | L6: ='SA1'!L15 -> 0
A7: Service charges - water revenue | B7: 2 | C7: ='SA1'!C21 -> 0 | D7: ='SA1'!D21 -> 0 | E7: ='SA1'!E21 -> 0 | F7: ='SA1'!F21 -> 0 | G7: ='SA1'!G21 -> 0 | H7: ='SA1'!H21 -> 0 | I7: ='SA1'!I21 -> 0 | J7: ='SA1'!J21 -> 0 | K7: ='SA1'!K21 -> 0 | L7: ='SA1'!L21 -> 0
A8: Service charges - sanitation revenue | B8: 2 | C8: ='SA1'!C27 -> 0 | D8: ='SA1'!D27 -> 0 | E8: ='SA1'!E27 -> 0 | F8: ='SA1'!F27 -> 0 | G8: ='SA1'!G27 -> 0 | H8: ='SA1'!H27 -> 0 | I8: ='SA1'!I27 -> 0 | J8: ='SA1'!J27 -> 0 | K8: ='SA1'!K27 -> 0 | L8: ='SA1'!L27 -> 0
A9: Service charges - refuse revenue | B9: 2 | C9: ='SA1'!C34 -> 0 | D9: ='SA1'!D34 -> 0 | E9: ='SA1'!E34 -> 0 | F9: ='SA1'!F34 -> 0 | G9: ='SA1'!G34 -> 0 | H9: ='SA1'!H34 -> 0 | I9: ='SA1'!I34 -> 0 | J9: ='SA1'!J34 -> 0 | K9: ='SA1'!K34 -> 0 | L9: ='SA1'!L34 -> 0
A11: Rental of facilities and equipment | C11: 0 | D11: 0 | E11: 0 | F11: 0 | G11: 0 | H11: 0 | I11: 0 | J11: 0 | K11: 0 | L11: 0
A12: Interest earned - external investments | C12: 2590763 | D12: 3407037 | E12: 2477461 | F12: 1500000 | G12: 1200000 | H12: 1200000 | I12: 1200000 | J12: 800000 | K12: 1550000 | L12: 1560000
A13: Interest earned - outstanding debtors | C13: 0 | D13: 0 | E13: 0 | F13: 0 | G13: 0 | H13: 0 | I13: 0 | J13: 0 | K13: 0 | L13: 0
A14: Dividends received | C14: 0 | D14: 0 | E14: 0 | F14: 0 | G14: 0 | H14: 0 | I14: 0 | J14: 0 | K14: 0 | L14: 0
A15: Fines, penalties and forfeits | C15: 0 | D15: 0 | E15: 0 | F15: 200000 | G15: 100000 | H15: 100000 | I15: 100000 | J15: 110000 | K15: 110000 | L15: 110000
A16: Licences and permits | C16: 0 | D16: 0 | E16: 0 | F16: 0 | G16: 0 | H16: 0 | I16: 0 | J16: 0 | K16: 0 | L16: 0
A17: Agency services | C17: 0 | D17: 0 | E17: 0 | F17: 0 | G17: 0 | H17: 0 | I17: 0 | J17: 0 | K17: 0 | L17: 0
A18: Transfers and subsidies | C18: =317473583-2174563 -> 315299020 | D18: =322949976-2359000 -> 320590976 | E18: =329995754-2364000 -> 327631754 | F18: 341715000 | G18: 342221000 | H18: 342221000 | I18: 342221000 | J18: 356512000 | K18: =372225000-2515000 -> 369710000 | L18: =386382000-2660000 -> 383722000
A19: Other revenue | B19: 2 | C19: ='SA1'!C56 -> 2290571 | D19: ='SA1'!D56 -> 0 | E19: ='SA1'!E56 -> 0 | F19: ='SA1'!F56 -> 100000 | G19: ='SA1'!G56 -> 10000 | H19: ='SA1'!H56 -> 10000 | I19: ='SA1'!I56 -> 10000 | J19: ='SA1'!J56 -> 0 | K19: ='SA1'!K56 -> 0 | L19: ='SA1'!L56 -> 0
A20: Gains | C20: 0 | D20: 0 | E20: 94000 | F20: 0 | G20: 0 | H20: 0 | I20: 0 | J20: 0 | K20: 0 | L20: 0
A21: Total Revenue (excluding capital transfers and contributions) | C21: =SUM(C5:C9)+SUM(C11:C20) -> 320180354 | D21: =SUM(D5:D9)+SUM(D11:D20) -> 323998013 | E21: 330203215 | F21: 343515000 | G21: 343531000 | H21: 343531000 | I21: 343531000 | J21: 357422000 | K21: 371370000 | L21: 385392000 | M21: =SUM(M5:M20) -> 0 | N21: 0 | O21: 0 | P21: 0 | Q21: 0 | R21: 0 | S21: 0 | T21: 0 | U21: 0 | V21: 0 | W21: 0 | X21: 0
A23: Expenditure By Type
A24: Employee related costs | B24: 2 | C24: ='SA1'!C72 -> 153274945 | D24: ='SA1'!D72 -> 162967169 | E24: ='SA1'!E72 -> 180147265 | F24: ='SA1'!F72 -> 191929194.6 | G24: ='SA1'!G72 -> 194585000 | H24: ='SA1'!H72 -> 194585000 | I24: ='SA1'!I72 -> 194585000 | J24: ='SA1'!J72 -> 204094993.2 | K24: ='SA1'!K72 -> 215426564.2 | L24: ='SA1'!L72 -> 227432545.2
A25: Remuneration of councillors | C25: 14568171 | D25: 17368469 | E25: 17930112 | F25: 18661812.57 | G25: 18661812.57 | H25: 18661812.57 | I25: 18661812.57 | J25: 19557580 | K25: 20570280.5 | L25: 21792761.9
A26: Debt impairment | B26: 3 | C26: 0 | D26: 0 | E26: 0 | F26: 0 | G26: 0 | H26: 0 | I26: 0 | J26: 0 | K26: 0 | L26: 0
A27: Depreciation & asset impairment | B27: 2 | C27: ='SA1'!C90 -> 9174383 | D27: ='SA1'!D90 -> 7067445 | E27: ='SA1'!E90 -> 6244169 | F27: ='SA1'!F90 -> 7392000 | G27: ='SA1'!G90 -> 6300000 | H27: ='SA1'!H90 -> 6300000 | I27: ='SA1'!I90 -> 6300000 | J27: ='SA1'!J90 -> 6300000 | K27: ='SA1'!K90 -> 7200000 | L27: ='SA1'!L90 -> 7400000
A28: Finance charges | C28: 1202113 | D28: 777655.08 | E28: 246603 | F28: 0 | G28: 3331000 | H28: 3331000 | I28: 3331000 | J28: 500000 | K28: 500000 | L28: 500000
A29: Bulk purchases | B29: 2 | C29: ='SA1'!C95 -> 0 | D29: ='SA1'!D95 -> 0 | E29: ='SA1'!E95 -> 0 | F29: ='SA1'!F95 -> 0 | G29: ='SA1'!G95 -> 0 | H29: ='SA1'!H95 -> 0 | I29: ='SA1'!I95 -> 0 | J29: ='SA1'!J95 -> 0 | K29: ='SA1'!K95 -> 0 | L29: ='SA1'!L95 -> 0
A30: Other materials | B30: 8 | C30: 1394499.21 | D30: 2760440.38 | E30: 3726344 | F30: 3607287.3 | G30: 279000 | H30: 279000 | I30: 279000 | J30: 510000 | K30: 440000 | L30: 408000
A31: Contracted services | C31: ='SA1'!C134 -> 66099041 | D31: ='SA1'!D134 -> 66007100.56 | E31: ='SA1'!E134 -> 145898221 | F31: ='SA1'!F134 -> 51546382.39 | G31: ='SA1'!G134 -> 34186429 | H31: ='SA1'!H134 -> 34186429 | I31: ='SA1'!I134 -> 34186429 | J31: ='SA1'!J134 -> 11196211 | K31: ='SA1'!K134 -> 11256211 | L31: ='SA1'!L134 -> 10876211
A32: Transfers and subsidies | C32: ='SA1'!C100 -> 24864284 | D32: ='SA1'!D100 -> 0 | E32: ='SA1'!E100 -> 0 | F32: ='SA1'!F100 -> 1909218.43 | G32: ='SA1'!G100 -> 1871000 | H32: ='SA1'!H100 -> 1871000 | I32: ='SA1'!I100 -> 1871000 | J32: ='SA1'!J100 -> 0 | K32: ='SA1'!K100 -> 0 | L32: ='SA1'!L100 -> 0
A33: Other expenditure | B33: 4, 5 | C33: ='SA1'!C178 -> 63360735.79 | D33: ='SA1'!D178 -> 69755617 | E33: ='SA1'!E178 -> 77189517 | F33: ='SA1'!F178 -> 43146590.2 | G33: ='SA1'!G178 -> 19479340 | H33: ='SA1'!H178 -> 19479340 | I33: ='SA1'!I178 -> 19479340 | J33: ='SA1'!J178 -> 46079000 | K33: ='SA1'!K178 -> 50280000 | L33: ='SA1'!L178 -> 53852000
A34: Losses | C34: 0 | D34: =2464026+61016 -> 2525042 | E34: =11375043+40446 -> 11415489 | F34: 0 | G34: 0 | H34: 0 | I34: 0 | J34: 0 | K34: 0 | L34: 0
A35: Total Expenditure | C35: =SUM(C24:C34) -> 333938172 | D35: =SUM(D24:D34) -> 329228938 | E35: 442797720 | F35: 318192485.4 | G35: 278693581.6 | H35: 278693581.6 | I35: 278693581.6 | J35: 288237784.2 | K35: 305673055.7 | L35: 322261518.1 | M35: =SUM(M24:M34) -> 0 | N35: 0 | O35: 0 | P35: 0 | Q35: 0 | R35: 0 | S35: 0 | T35: 0 | U35: 0 | V35: 0 | W35: 0 | X35: 0
A37: Surplus/(Deficit) | C37: =C21-C35 -> -13757818 | D37: -5230925.02 | E37: -112594505 | F37: 25322514.55 | G37: 64837418.43 | H37: 64837418.43 | I37: 64837418.43 | J37: 69184215.8 | K37: 65696944.33 | L37: 63130481.91 | M37: =M21+M35 -> 0 | N37: 0 | O37: 0 | P37: 0 | Q37: 0 | R37: 0 | S37: 0 | T37: 0 | U37: 0 | V37: 0 | W37: 0 | X37: 0
A38: Transfers and subsidies - capital (monetary allocations) (National / Provincial and District) | C38: 2174563 | D38: 2359000 | E38: 2364000 | F38: 2504000 | G38: 2504000 | H38: 2504000 | I38: 2504000 | J38: 2383000 | K38: 2515000 | L38: 2660000
A39: Transfers and subsidies - capital (monetary allocations) (National / Provincial Departmental Agencies, Households, Non-profit Institutions, Private Enterprises, Public Corporatons, Higher Educational Institutions) | B39: 6 | C39: ='SA1'!C76 -> 0
A40: Transfers and subsidies - capital (in-kind - all) | C40: 0 | D40: 0 | E40: 0 | F40: 0 | G40: 0 | H40: 0 | I40: 0 | J40: 0 | K40: 0 | L40: 0
A41: Surplus/(Deficit) after capital transfers & contributions | C41: =SUM(C37:C40) -> -11583255 | D41: -2871925.02 | E41: -110230505 | F41: 27826514.55 | G41: 67341418.43 | H41: 67341418.43 | I41: 67341418.43 | J41: 71567215.8 | K41: 68211944.33 | L41: 65790481.91
A42: Taxation | C42: 0 | D42: 0 | E42: 0 | F42: 0 | G42: 0 | H42: 0 | I42: 0 | J42: 0 | K42: 0 | L42: 0
A43: Surplus/(Deficit) after taxation | C43: =C41-C42 -> -11583255 | D43: -2871925.02 | E43: -110230505 | F43: 27826514.55 | G43: 67341418.43 | H43: 67341418.43 | I43: 67341418.43 | J43: 71567215.8 | K43: 68211944.33 | L43: 65790481.91
A44: Attributable to minorities | C44: 0 | D44: 0 | E44: 0 | F44: 0 | G44: 0 | H44: 0 | I44: 0 | J44: 0 | K44: 0 | L44: 0
A45: Surplus/(Deficit) attributable to municipality | C45: =SUM(C43:C44) -> -11583255 | D45: -2871925.02 | E45: -110230505 | F45: 27826514.55 | G45: 67341418.43 | H45: 67341418.43 | I45: 67341418.43 | J45: 71567215.8 | K45: 68211944.33 | L45: 65790481.91
A46: Share of surplus/ (deficit) of associate | B46: 7 | C46: 0 | D46: 0 | E46: 0 | F46: 0 | G46: 0 | H46: 0 | I46: 0 | K46: 0 | L46: 0
A47: =result -> Surplus/(Deficit) for the year | C47: =SUM(C45:C46) -> -11583255 | D47: -2871925.02 | E47: -110230505 | F47: 27826514.55 | G47: 67341418.43 | H47: 67341418.43 | I47: 67341418.43 | J47: 71567215.8 | K47: 68211944.33 | L47: 65790481.91 | M47: =M25+M46 -> 0 | N47: 0 | O47: 0 | P47: 0 | Q47: 0 | R47: 0 | S47: 0 | T47: 0 | U47: 0 | V47: 0 | W47: 0 | X47: 0
A48: =head27a -> References
A49: 1. Classifications are revenue sources and expenditure type
A50: 2. Detail to be provided in Table SA1
A51: 3. Previously described as 'bad or doubtful debts' - amounts shown should reflect the change in the provision for debt impairment
A52: 4. Expenditure type components previously shown under repairs and maintenance should be allocated back to the originating expenditure group/item; e.g. employee costs
A53: 5. Repairs & maintenance detailed in Table A9 and Table SA34c
A54: 6. Contributions are funds provided by external organisations to assist with infrastructure development; e.g. developer contributions (detail to be provided in Table SA1)
A55: 7. Equity method ( Includes Joint Ventures)
A56: 8. All materials not part of 'bulk' e.g road making materials, pipe, cable etc.
A57: check balance | C57: =C45-'A3-FinPerf V'!C39 -> -11583219.06 | D57: =D45-'A3-FinPerf V'!D39 -> -10507059.88 | E57: =E45-'A3-FinPerf V'!E39 -> -2990719.29 | F57: =F45-'A3-FinPerf V'!F39 -> -0.04000002146 | G57: =G45-'A3-FinPerf V'!G39 -> -1979216.32 | H57: =H45-'A3-FinPerf V'!H39 -> -1979216.32 | J57: =J45-'A3-FinPerf V'!I39 -> 0.3254166245 | K57: =K45-'A3-FinPerf V'!J39 -> -0.1988508105 | L57: =L45-'A3-FinPerf V'!K39 -> 0.4181959629
A59: Total revenue | C59: =C21+SUM(C38:C40) -> 322354917 | D59: 326357013 | E59: 332567215 | F59: 346019000 | G59: 346035000 | H59: 346035000 | I59: 346035000 | J59: 359805000 | K59: 373885000 | L59: 388052000

Sheet A5-Capex
A2: =Vdesc -> Vote Description | B2: =head27 -> Ref | C2: =head1b -> 2016/17 | D2: =head1A -> 2017/18 | E2: =Head1 -> 2018/19 | F2: =Head2 -> Current Year 2019/20 | J2: =Head3 -> 2020/21 Medium Term Revenue & Expenditure Framework
A3: R thousand | B3: 1 | C3: =Head5 -> Audited Outcome | D3: =Head5 -> Audited Outcome | E3: =Head5 -> Audited Outcome | F3: =Head6 -> Original Budget | G3: =Head7 -> Adjusted Budget | H3: =Head8 -> Full Year Forecast | I3: =Head5b -> Pre-audit outcome | J3: =Head9 -> Budget Year 2020/21 | K3: =Head10 -> Budget Year +1 2021/22 | L3: =Head11 -> Budget Year +2 2022/23
A4: Capital expenditure - Vote
A5: Multi-year expenditure to be appropriated | B5: 2
A6: =A5A!A6 -> Vote 1 - Municipal manager | C6: =A5A!C6 -> 0 | D6: =A5A!D6 -> 0 | E6: =A5A!E6 -> 0 | F6: =A5A!F6 -> 0 | G6: =A5A!G6 -> 0 | H6: =A5A!H6 -> 0 | I6: =A5A!I6 -> 0 | J6: =A5A!J6 -> 0 | K6: =A5A!K6 -> 0 | L6: =A5A!L6 -> 0
A7: =A5A!A17 -> Vote 2 - Community and Social Services | C7: =A5A!C17 -> 0 | D7: =A5A!D17 -> 0 | E7: =A5A!E17 -> 0 | F7: =A5A!F17 -> 0 | G7: =A5A!G17 -> 0 | H7: =A5A!H17 -> 0 | I7: =A5A!I17 -> 0 | J7: =A5A!J17 -> 0 | K7: =A5A!K17 -> 0 | L7: =A5A!L17 -> 0
A8: =A5A!A28 -> Vote 3 - Heatlh & enviromental Services | C8: =A5A!C28 -> 0 | D8: =A5A!D28 -> 0 | E8: =A5A!E28 -> 0 | F8: =A5A!F28 -> 0 | G8: =A5A!G28 -> 0 | H8: =A5A!H28 -> 0 | I8: =A5A!I28 -> 0 | J8: =A5A!J28 -> 0 | K8: =A5A!K28 -> 0 | L8: =A5A!L28 -> 0
A9: =A5A!A39 -> Vote 4 - Executive | C9: =A5A!C39 -> 0 | D9: =A5A!D39 -> 0 | E9: =A5A!E39 -> 0 | F9: =A5A!F39 -> 0 | G9: =A5A!G39 -> 0 | H9: =A5A!H39 -> 0 | I9: =A5A!I39 -> 0 | J9: =A5A!J39 -> 0 | K9: =A5A!K39 -> 0 | L9: =A5A!L39 -> 0
A10: =A5A!A50 -> Vote 5 - Finance | C10: =A5A!C50 -> 0 | D10: =A5A!D50 -> 0 | E10: =A5A!E50 -> 0 | F10: =A5A!F50 -> 0 | G10: =A5A!G50 -> 0 | H10: =A5A!H50 -> 0 | I10: =A5A!I50 -> 0 | J10: =A5A!J50 -> 0 | K10: =A5A!K50 -> 0 | L10: =A5A!L50 -> 0
A11: =A5A!A61 -> Vote 6 - Local economic development | C11: =A5A!C61 -> 0 | D11: =A5A!D61 -> 0 | E11: =A5A!E61 -> 0 | F11: =A5A!F61 -> 0 | G11: =A5A!G61 -> 0 | H11: =A5A!H61 -> 0 | I11: =A5A!I61 -> 0 | J11: =A5A!J61 -> 0 | K11: =A5A!K61 -> 0 | L11: =A5A!L61 -> 0
A12: =A5A!A72 -> Vote 7 - Corporate Services | C12: =A5A!C72 -> 0 | D12: =A5A!D72 -> 0 | E12: =A5A!E72 -> 0 | F12: =A5A!F72 -> 0 | G12: =A5A!G72 -> 0 | H12: =A5A!H72 -> 0 | I12: =A5A!I72 -> 0 | J12: =A5A!J72 -> 0 | K12: =A5A!K72 -> 0 | L12: =A5A!L72 -> 0
A13: =A5A!A83 -> Vote 8 - Technical | C13: =A5A!C83 -> 0 | D13: =A5A!D83 -> 0 | E13: =A5A!E83 -> 0 | F13: =A5A!F83 -> 0 | G13: =A5A!G83 -> 0 | H13: =A5A!H83 -> 0 | I13: =A5A!I83 -> 0 | J13: =A5A!J83 -> 0 | K13: =A5A!K83 -> 0 | L13: =A5A!L83 -> 0
A14: =A5A!A94 -> Vote 9 - [NAME OF VOTE 9] | C14: =A5A!C94 -> 0 | D14: =A5A!D94 -> 0 | E14: =A5A!E94 -> 0 | F14: =A5A!F94 -> 0 | G14: =A5A!G94 -> 0 | H14: =A5A!H94 -> 0 | I14: =A5A!I94 -> 0 | J14: =A5A!J94 -> 0 | K14: =A5A!K94 -> 0 | L14: =A5A!L94 -> 0
A15: =A5A!A105 -> Vote 10 - [NAME OF VOTE 10] | C15: =A5A!C105 -> 0 | D15: =A5A!D105 -> 0 | E15: =A5A!E105 -> 0 | F15: =A5A!F105 -> 0 | G15: =A5A!G105 -> 0 | H15: =A5A!H105 -> 0 | I15: =A5A!I105 -> 0 | J15: =A5A!J105 -> 0 | K15: =A5A!K105 -> 0 | L15: =A5A!L105 -> 0
A16: =A5A!A116 -> Vote 11 - [NAME OF VOTE 11] | C16: =A5A!C116 -> 0 | D16: =A5A!D116 -> 0 | E16: =A5A!E116 -> 0 | F16: =A5A!F116 -> 0 | G16: =A5A!G116 -> 0 | H16: =A5A!H116 -> 0 | I16: =A5A!I116 -> 0 | J16: =A5A!J116 -> 0 | K16: =A5A!K116 -> 0 | L16: =A5A!L116 -> 0
A17: =A5A!A127 -> Vote 12 - [NAME OF VOTE 12] | C17: =A5A!C127 -> 0 | D17: =A5A!D127 -> 0 | E17: =A5A!E127 -> 0 | F17: =A5A!F127 -> 0 | G17: =A5A!G127 -> 0 | H17: =A5A!H127 -> 0 | I17: =A5A!I127 -> 0 | J17: =A5A!J127 -> 0 | K17: =A5A!K127 -> 0 | L17: =A5A!L127 -> 0
A18: =A5A!A138 -> Vote 13 - [NAME OF VOTE 13] | C18: =A5A!C138 -> 0 | D18: =A5A!D138 -> 0 | E18: =A5A!E138 -> 0 | F18: =A5A!F138 -> 0 | G18: =A5A!G138 -> 0 | H18: =A5A!H138 -> 0 | I18: =A5A!I138 -> 0 | J18: =A5A!J138 -> 0 | K18: =A5A!K138 -> 0 | L18: =A5A!L138 -> 0
A19: =A5A!A149 -> Vote 14 - [NAME OF VOTE 14] | C19: =A5A!C149 -> 0 | D19: =A5A!D149 -> 0 | E19: =A5A!E149 -> 0 | F19: =A5A!F149 -> 0 | G19: =A5A!G149 -> 0 | H19: =A5A!H149 -> 0 | I19: =A5A!I149 -> 0 | J19: =A5A!J149 -> 0 | K19: =A5A!K149 -> 0 | L19: =A5A!L149 -> 0
A20: =A5A!A160 -> Vote 15 - [NAME OF VOTE 15] | C20: =A5A!C160 -> 0 | D20: =A5A!D160 -> 0 | E20: =A5A!E160 -> 0 | F20: =A5A!F160 -> 0 | G20: =A5A!G160 -> 0 | H20: =A5A!H160 -> 0 | I20: =A5A!I160 -> 0 | J20: =A5A!J160 -> 0 | K20: =A5A!K160 -> 0 | L20: =A5A!L160 -> 0
A21: Capital multi-year expenditure sub-total | B21: 7 | C21: =SUM(C6:C20) -> 0 | D21: =SUM(D6:D20) -> 0 | E21: 0 | F21: 0 | G21: 0 | H21: =SUM(H6:H20) -> 0 | I21: 0 | J21: 0 | K21: 0 | L21: 0
A23: Single-year expenditure to be appropriated | B23: 2
A24: =A6 -> Vote 1 - Municipal manager | C24: =A5A!C175 -> 0 | D24: =A5A!D175 -> 0 | E24: =A5A!E175 -> 0 | F24: =A5A!F175 -> 0 | G24: =A5A!G175 -> 0 | H24: =A5A!H175 -> 0 | I24: =A5A!I175 -> 0 | J24: =A5A!J175 -> 0 | K24: =A5A!K175 -> 0 | L24: =A5A!L175 -> 0
A25: =A7 -> Vote 2 - Community and Social Services | C25: =A5A!C186 -> -3259903.01 | D25: =A5A!D186 -> 5822609.21 | E25: =A5A!E186 -> 8710423.17 | F25: =A5A!F186 -> 0 | G25: =A5A!G186 -> 0 | H25: =A5A!H186 -> 0 | I25: =A5A!I186 -> 0 | J25: =A5A!J186 -> 0 | K25: =A5A!K186 -> 0 | L25: =A5A!L186 -> 0
A26: Vote 3 - Heatlh & enviromental Services | C26: =A5A!C197 -> 0 | D26: =A5A!D197 -> 3777019.6 | E26: =A5A!E197 -> 5409648.94 | F26: =A5A!F197 -> 0 | G26: =A5A!G197 -> 0 | H26: =A5A!H197 -> 0 | I26: =A5A!I197 -> 0 | J26: =A5A!J197 -> 2383000 | K26: =A5A!K197 -> 2515000 | L26: =A5A!L197 -> 2660000
A27: Vote 4 - Executive | C27: =A5A!C208 -> 0 | D27: =A5A!D208 -> 0 | E27: =A5A!E208 -> 14782.43 | F27: =A5A!F208 -> 0 | G27: =A5A!G208 -> 0 | H27: =A5A!H208 -> 0 | I27: =A5A!I208 -> 0 | J27: =A5A!J208 -> 0 | K27: =A5A!K208 -> 0 | L27: =A5A!L208 -> 0
A28: Vote 5 - Finance | C28: =A5A!C219 -> 59172948.07 | D28: =A5A!D219 -> 54040562.43 | E28: =A5A!E219 -> 53557722.39 | F28: =A5A!F219 -> 0 | G28: =A5A!G219 -> 50000 | H28: =A5A!H219 -> 50000 | I28: =A5A!I219 -> 50000 | J28: =A5A!J219 -> 620000 | K28: =A5A!K219 -> 150000 | L28: =A5A!L219 -> 200000
A29: Vote 6 - Local economic development | C29: =A5A!C230 -> 0 | D29: =A5A!D230 -> 0 | E29: =A5A!E230 -> 0 | F29: =A5A!F230 -> 0 | G29: =A5A!G230 -> 0 | H29: =A5A!H230 -> 0 | I29: =A5A!I230 -> 0 | J29: =A5A!J230 -> 0 | K29: =A5A!K230 -> 0 | L29: =A5A!L230 -> 0
A30: Vote 7 - Corporate Services | C30: =A5A!C241 -> 22925990.86 | D30: =A5A!D241 -> 21551907.32 | E30: =A5A!E241 -> 22604179.1 | F30: =A5A!F241 -> 0 | G30: =A5A!G241 -> 0 | H30: =A5A!H241 -> 0 | I30: =A5A!I241 -> 0 | J30: =A5A!J241 -> 0 | K30: =A5A!K241 -> 0 | L30: =A5A!L241 -> 0
A31: Vote 8 - Technical | C31: =A5A!C252 -> 0 | D31: =A5A!D252 -> 11017993.83 | E31: =A5A!E252 -> 7602496.42 | F31: =A5A!F252 -> 0 | G31: =A5A!G252 -> 0 | H31: =A5A!H252 -> 0 | I31: =A5A!I252 -> 0 | J31: =A5A!J252 -> 0 | K31: =A5A!K252 -> 0 | L31: =A5A!L252 -> 0
A32: Vote 9 - [NAME OF VOTE 9] | C32: =A5A!C263 -> 0 | D32: =A5A!D263 -> 0 | E32: =A5A!E263 -> 0 | F32: =A5A!F263 -> 0 | G32: =A5A!G263 -> 0 | H32: =A5A!H263 -> 0 | I32: =A5A!I263 -> 0 | J32: =A5A!J263 -> 0 | K32: =A5A!K263 -> 0 | L32: =A5A!L263 -> 0
A33: Vote 10 - [NAME OF VOTE 10] | C33: =A5A!C274 -> 0 | D33: =A5A!D274 -> 0 | E33: =A5A!E274 -> 0 | F33: =A5A!F274 -> 0 | G33: =A5A!G274 -> 0 | H33: =A5A!H274 -> 0 | I33: =A5A!I274 -> 0 | J33: =A5A!J274 -> 0 | K33: =A5A!K274 -> 0 | L33: =A5A!L274 -> 0
A34: Vote 11 - [NAME OF VOTE 11] | C34: =A5A!C285 -> 0 | D34: =A5A!D285 -> 0 | E34: =A5A!E285 -> 0 | F34: =A5A!F285 -> 0 | G34: =A5A!G285 -> 0 | H34: =A5A!H285 -> 0 | I34: =A5A!I285 -> 0 | J34: =A5A!J285 -> 0 | K34: =A5A!K285 -> 0 | L34: =A5A!L285 -> 0
A35: Vote 12 - [NAME OF VOTE 12] | C35: =A5A!C296 -> 0 | D35: =A5A!D296 -> 0 | E35: =A5A!E296 -> 0 | F35: =A5A!F296 -> 0 | G35: =A5A!G296 -> 0 | H35: =A5A!H296 -> 0 | I35: =A5A!I296 -> 0 | J35: =A5A!J296 -> 0 | K35: =A5A!K296 -> 0 | L35: =A5A!L296 -> 0
A36: Vote 13 - [NAME OF VOTE 13] | C36: =A5A!C307 -> 0 | D36: =A5A!D307 -> 0 | E36: =A5A!E307 -> 0 | F36: =A5A!F307 -> 0 | G36: =A5A!G307 -> 0 | H36: =A5A!H307 -> 0 | I36: =A5A!I307 -> 0 | J36: =A5A!J307 -> 0 | K36: =A5A!K307 -> 0 | L36: =A5A!L307 -> 0
A37: Vote 14 - [NAME OF VOTE 14] | C37: =A5A!C318 -> 0 | D37: =A5A!D318 -> 0 | E37: =A5A!E318 -> 0 | F37: =A5A!F318 -> 0 | G37: =A5A!G318 -> 0 | H37: =A5A!H318 -> 0 | I37: =A5A!I318 -> 0 | J37: =A5A!J318 -> 0 | K37: =A5A!K318 -> 0 | L37: =A5A!L318 -> 0
A38: =A20 -> Vote 15 - [NAME OF VOTE 15] | C38: =A5A!C329 -> 0 | D38: =A5A!D329 -> 0 | E38: =A5A!E329 -> 0 | F38: =A5A!F329 -> 0 | G38: =A5A!G329 -> 0 | H38: =A5A!H329 -> 0 | I38: =A5A!I329 -> 0 | J38: =A5A!J329 -> 0 | K38: =A5A!K329 -> 0 | L38: =A5A!L329 -> 0
A39: Capital single-year expenditure sub-total | C39: =SUM(C24:C38) -> 78839035.92 | D39: =SUM(D24:D38) -> 96210092.39 | E39: 97899252.45 | F39: 0 | G39: 50000 | H39: 50000 | I39: 50000 | J39: 3003000 | K39: 2665000 | L39: 2860000
A40: Total Capital Expenditure - Vote | C40: =C39+C21 -> 78839035.92 | D40: =D39+D21 -> 96210092.39 | E40: 97899252.45 | F40: 0 | G40: 50000 | H40: 50000 | I40: 50000 | J40: 3003000 | K40: 2665000 | L40: 2860000
A42: Capital Expenditure - Functional
A43: Governance and administration | C43: =SUM(C44:C46) -> 0 | D43: =SUM(D44:D46) -> 0 | E43: 0 | F43: 0 | G43: 50000 | H43: 50000 | I43: 50000 | J43: 620000 | K43: 150000 | L43: 200000
A44: Executive and council | C44: 0 | D44: 0 | E44: 0 | F44: 0 | G44: 0 | H44: 0 | I44: 0 | J44: 0 | K44: 0 | L44: 0
A45: Finance and administration | C45: 0 | D45: 0 | E45: 0 | F45: 0 | G45: 50000 | H45: 50000 | I45: 50000 | J45: 250000 | K45: 150000 | L45: 200000
A46: Internal audit | C46: 0 | D46: 0 | E46: 0 | F46: 0 | G46: 0 | H46: 0 | I46: 0 | J46: 370000 | K46: 0 | L46: 0
A47: Community and public safety | C47: =SUM(C48:C52) -> 0 | D47: =SUM(D48:D52) -> 0 | E47: 0 | F47: 0 | G47: 0 | H47: 0 | I47: 0 | J47: 0 | K47: 0 | L47: 0
A48: Community and social services | C48: 0 | D48: 0 | E48: 0 | F48: 0 | G48: 0 | H48: 0 | I48: 0 | J48: 0 | K48: 0 | L48: 0
A49: Sport and recreation | C49: 0 | D49: 0 | E49: 0 | F49: 0 | G49: 0 | H49: 0 | I49: 0 | J49: 0 | K49: 0 | L49: 0
A50: Public safety | C50: 0 | D50: 0 | E50: 0 | F50: 0 | G50: 0 | H50: 0 | I50: 0 | J50: 0 | K50: 0 | L50: 0
A51: Housing | C51: 0 | D51: 0 | E51: 0 | F51: 0 | G51: 0 | H51: 0 | I51: 0 | J51: 0 | K51: 0 | L51: 0
A52: Health | C52: 0 | D52: 0 | E52: 0 | F52: 0 | G52: 0 | H52: 0 | I52: 0 | J52: 0 | K52: 0 | L52: 0
A53: Economic and environmental services | C53: =SUM(C54:C56) -> 0 | D53: =SUM(D54:D56) -> 0 | E53: 0 | F53: 0 | G53: 0 | H53: 0 | I53: 0 | J53: 2383000 | K53: 2515000 | L53: 2660000
A54: Planning and development | C54: 0 | D54: 0 | E54: 0 | F54: 0 | G54: 0 | H54: 0 | I54: 0 | J54: 0 | K54: 0 | L54: 0
A55: Road transport | C55: 0 | D55: 0 | E55: 0 | F55: 0 | G55: 0 | H55: 0 | I55: 0 | J55: 2383000 | K55: 2515000 | L55: 2660000
A56: Environmental protection | C56: 0 | D56: 0 | E56: 0 | F56: 0 | G56: 0 | H56: 0 | I56: 0 | J56: 0 | K56: 0 | L56: 0
A57: Trading services | C57: =SUM(C58:C61) -> 0 | D57: =SUM(D58:D61) -> 0 | E57: 0 | F57: 0 | G57: 0 | H57: 0 | I57: 0 | J57: 0 | K57: 0 | L57: 0
A58: Energy sources | C58: 0 | D58: 0 | E58: 0 | F58: 0 | G58: 0 | H58: 0 | I58: 0 | J58: 0 | K58: 0 | L58: 0
A59: Water management | C59: 0 | D59: 0 | E59: 0 | F59: 0 | G59: 0 | H59: 0 | I59: 0 | J59: 0 | K59: 0 | L59: 0
A60: Waste water management | C60: 0 | D60: 0 | E60: 0 | F60: 0 | G60: 0 | H60: 0 | I60: 0 | J60: 0 | K60: 0 | L60: 0
A61: Waste management | C61: 0 | D61: 0 | E61: 0 | F61: 0 | G61: 0 | H61: 0 | I61: 0 | J61: 0 | K61: 0 | L61: 0
A62: Other | C62: 0 | D62: 0 | E62: 0 | F62: 0 | G62: 0 | H62: 0 | I62: 0 | J62: 0 | K62: 0 | L62: 0
A63: Total Capital Expenditure - Functional | B63: 3 | C63: =C43+C47+C53+C57+C62 -> 0 | D63: =D43+D47+D53+D57+D62 -> 0 | E63: 0 | F63: 0 | G63: 50000 | H63: 50000 | I63: 50000 | J63: 3003000 | K63: 2665000 | L63: =L43+L47+L53+L57+L62 -> 2860000
A65: Funded by:
A66: National Government | C66: -3259903.01 | D66: 5822609.21 | E66: 6942278.14 | F66: 0 | G66: 0 | H66: 0 | I66: 0 | J66: 0 | K66: 0 | L66: 0
A67: Provincial Government | C67: 0 | D67: 0 | E67: 0 | F67: 0 | G67: 0 | H67: 0 | I67: 0 | J67: 0 | K67: 0 | L67: 0
A68: District Municipality | C68: 0 | D68: 0 | E68: 0 | F68: 0 | G68: 0 | H68: 0 | I68: 0 | J68: 0 | K68: 0 | L68: 0
A69: ='A4-FinPerf RE'!A39 -> Transfers and subsidies - capital (monetary allocations) (National / Provincial Departmental Agencies, Households, Non-profit Institutions, Private Enterprises, Public Corporatons, Higher Educational Institutions) | C69: 0 | D69: 0 | E69: 0 | F69: 0 | G69: 0 | H69: 0 | I69: 0 | J69: 2383000 | K69: 2515000 | L69: 2660000
A70: Transfers recognised - capital | B70: 4 | C70: =SUM(C66:C69) -> -3259903.01 | D70: 5822609.21 | E70: 6942278.14 | F70: 0 | G70: 0 | H70: 0 | I70: 0 | J70: 2383000 | K70: 2515000 | L70: 2660000
A72: Borrowing | B72: 6 | C72: 0 | D72: 0 | E72: 0 | F72: 0 | G72: 0 | H72: 0 | I72: 0 | J72: 0 | K72: 0 | L72: 0
A73: Internally generated funds | C73: 82098938.93 | D73: 90387483.18 | E73: 90956974.31 | F73: 0 | G73: 50000 | H73: 50000 | I73: 50000 | J73: 620000 | K73: 150000 | L73: 200000
A74: Total Capital Funding | B74: 7 | C74: =+C70+C72+C73 -> 78839035.92 | D74: =+D70+D72+D73 -> 96210092.39 | E74: 97899252.45 | F74: 0 | G74: 50000 | H74: 50000 | I74: 50000 | J74: 3003000 | K74: 2665000 | L74: 2860000
A75: =head27a -> References
A76: 1. Municipalities may choose to appropriate for capital expenditure for three years or for one year (if one year appropriation projected expenditure required for yr2 and yr3).
A77: 2. Include capital component of PPP unitary payment. Note that capital transfers are only appropriated to municipalities for the budget year
A78: 3. Capital expenditure by functional classification must reconcile to the appropriations by vote
A79: 4. Must reconcile to supporting table SA20 and to Budgeted Financial Performance (revenue and expenditure)
A81: 6. Include finance leases and PPP capital funding component of unitary payment - total borrowing/repayments to reconcile to changes in Table SA17
A82: 7. Total Capital Funding must balance with Total Capital Expenditure
A83: 8. Include any capitalised interest (MFMA section 46) as part of relevant capital budget
A85: check balance | C85: =IF((C63-C74)=0,0,"Unbalanced") -> Unbalanced | D85: =IF((D63-D74)=0,0,"Unbalanced") -> Unbalanced | E85: Unbalanced | F85: 0 | G85: 0 | H85: 0 | I85: 0 | J85: 0 | K85: 0 | L85: 0

Sheet A5A
A1: =muni&" - "&Approve5 -> DC37 Bojanala Platinum - Table A5 Budgeted Capital Expenditure by vote, functional classification and funding
A2: =Vdesc -> Vote Description | B2: =head27 -> Ref | C2: =head1b -> 2016/17 | D2: =head1A -> 2017/18 | E2: =Head1 -> 2018/19 | F2: =Head2 -> Current Year 2019/20 | J2: =Head3 -> 2020/21 Medium Term Revenue & Expenditure Framework | N2: ="Multi-year appropriation for "&Head9& " in the "&Head2A&" Annual Budget" -> Multi-year appropriation for Budget Year 2020/21 in the 2019/20 Annual Budget | R2: ="Multi-year appropriation for "&RIGHT(Head10,7)& " in the "&Head2A&" Annual Budget" -> Multi-year appropriation for 2021/22 in the 2019/20 Annual Budget | V2: New multi-year appropriations (funds for new and existing projects)
A3: R thousand | B3: 1 | C3: =Head5 -> Audited Outcome | D3: =Head5 -> Audited Outcome | E3: =Head5 -> Audited Outcome | F3: =Head6 -> Original Budget | G3: =Head7 -> Adjusted Budget | H3: =Head8 -> Full Year Forecast | I3: =Head5b -> Pre-audit outcome | J3: =Head9 -> Budget Year 2020/21 | K3: =Head10 -> Budget Year +1 2021/22 | L3: =Head11 -> Budget Year +2 2022/23 | N3: ="Appropriation for "&RIGHT(Head9,7) -> Appropriation for 2020/21 | O3: ="Adjustments in "&Head2A -> Adjustments in 2019/20 | P3: ="Downward adjustments for "&RIGHT(Head9,7) -> Downward adjustments for 2020/21 | Q3: Appropriation carried forward | R3: ="Appropriation for "&RIGHT(Head9,7) -> Appropriation for 2020/21 | S3: ="Adjustments in "&Head2A -> Adjustments in 2019/20 | T3: ="Downward adjustments for "&RIGHT(Head9,7) -> Downward adjustments for 2020/21 | U3: Appropriation carried forward | V3: =Head9 -> Budget Year 2020/21 | W3: =Head10 -> Budget Year +1 2021/22 | X3: =Head11 -> Budget Year +2 2022/23
A4: Capital expenditure - Municipal Vote
A5: Multi-year expenditure appropriation | B5: 2
A6: ='Org structure'!A2 -> Vote 1 - Municipal manager | C6: =SUM(C7:C16) -> 0 | D6: =SUM(D7:D16) -> 0 | E6: 0 | F6: 0 | G6: 0 | H6: 0 | I6: =SUM(I7:I16) -> 0 | J6: 0 | K6: 0 | L6: 0 | N6: =SUM(N7:N16) -> 0 | O6: 0 | P6: 0 | Q6: 0 | R6: 0 | S6: 0 | T6: 0 | U6: 0 | V6: =SUM(V7:V16) -> 0 | W6: =SUM(W7:W16) -> 0 | X6: =SUM(X7:X16) -> 0
A7: 1.1 - Information Technology | J7: =Q7+V7 -> 0 | K7: =U7+W7 -> 0 | L7: =X7 -> 0 | Q7: =SUM(N7:P7) -> 0 | U7: =SUM(R7:T7) -> 0
J8: =Q8+V8 -> 0 | K8: =U8+W8 -> 0 | L8: =X8 -> 0 | Q8: =SUM(N8:P8) -> 0 | U8: =SUM(R8:T8) -> 0
A9: 1.3 - Municipal Manager, Town Secretary and Chief Executive | J9: =Q9+V9 -> 0 | K9: =U9+W9 -> 0 | L9: 0 | Q9: 0 | U9: 0
A10: 1.4 - Risk Management | J10: 0 | K10: 0 | L10: 0 | Q10: 0 | U10: 0
A11: 1.5 - Corporate Wide Strategic Planning (IDPs, LEDs) | J11: 0 | K11: 0 | L11: =X11 -> 0 | Q11: 0 | U11: 0
A12: 1.6 - Central City Improvement District | J12: 0 | K12: 0 | L12: 0 | Q12: 0 | U12: 0
A13: 1.7 - Provincial Planning | J13: 0 | K13: 0 | L13: 0 | Q13: 0 | U13: 0
J14: 0 | K14: 0 | L14: 0 | Q14: 0 | U14: 0
J15: 0 | K15: 0 | L15: 0 | Q15: 0 | U15: 0
J16: 0 | K16: 0 | L16: 0 | Q16: 0 | U16: 0
A17: Vote 2 - Community and Social Services | C17: =SUM(C18:C27) -> 0 | D17: =SUM(D18:D27) -> 0 | E17: 0 | F17: 0 | G17: 0 | H17: 0 | I17: =SUM(I18:I27) -> 0 | J17: 0 | K17: 0 | L17: 0 | N17: =SUM(N18:N27) -> 0 | O17: 0 | P17: 0 | Q17: 0 | R17: 0 | S17: 0 | T17: 0 | U17: 0 | V17: 0 | W17: 0 | X17: 0
A18: 2.1 - Disaster Management | J18: =Q18+V18 -> 0 | K18: =U18+W18 -> 0 | L18: =X18 -> 0 | Q18: =SUM(N18:P18) -> 0 | U18: 0
A19: 2.2 - Fire Fighting and Protection | J19: =Q19+V19 -> 0 | K19: =U19+W19 -> 0 | L19: 0 | Q19: 0 | U19: 0
J20: 0 | K20: 0 | L20: 0 | Q20: 0 | U20: 0
A21: 2.4 - Recreational Facilities | J21: 0 | K21: =U21+W21 -> 0 | L21: 0 | Q21: 0 | U21: 0
A22: 2.5 - Community Halls and Facilities | J22: 0 | K22: 0 | L22: 0 | Q22: 0 | U22: 0
A23: 2.6 - Sports Grounds and Stadiums | J23: 0 | K23: 0 | L23: 0 | Q23: 0 | U23: 0
A24: 2.7 - Theatres | J24: 0 | K24: 0 | L24: 0 | Q24: 0 | U24: 0
A25: 2.8 - Civil Defence | J25: 0 | K25: 0 | L25: 0 | Q25: 0 | U25: 0
A26: 2.9 - Cleansing | J26: 0 | K26: 0 | L26: 0 | Q26: 0 | U26: 0
J27: 0 | K27: 0 | L27: 0 | Q27: 0 | U27: 0
A28: Vote 3 - Heatlh & enviromental Services | C28: =SUM(C29:C38) -> 0 | D28: =SUM(D29:D38) -> 0 | E28: 0 | F28: 0 | G28: 0 | H28: 0 | I28: =SUM(I29:I38) -> 0 | J28: 0 | K28: 0 | L28: 0 | N28: =SUM(N29:N38) -> 0 | O28: 0 | P28: 0 | Q28: 0 | R28: 0 | S28: 0 | T28: 0 | U28: 0 | V28: 0 | W28: 0 | X28: 0
A29: 3.1 - Solid Waste Disposal (Landfill Sites) | J29: =Q29+V29 -> 0 | K29: =U29+W29 -> 0 | L29: =X29 -> 0 | Q29: =SUM(N29:P29) -> 0 | U29: 0
A30: 3.2 - Pollution Control | J30: 0 | K30: 0 | L30: 0 | Q30: 0 | U30: 0
A31: 3.3 - Control of Public Nuisances | J31: 0 | K31: 0 | L31: 0 | Q31: 0 | U31: =SUM(R31:T31) -> 0
A32: 3.4 - Cemeteries, Funeral Parlours and Crematoriums | J32: 0 | K32: =U32+W32 -> 0 | L32: 0 | Q32: 0 | U32: 0
A33: 3.5 - Public Toilets | J33: =Q33+V33 -> 0 | K33: 0 | L33: 0 | Q33: 0 | U33: 0
A34: 3.6 - Aged Care | J34: 0 | K34: 0 | L34: 0 | Q34: 0 | U34: 0
A35: 3.7 - Education | J35: 0 | K35: 0 | L35: 0 | Q35: 0 | U35: 0
J36: 0 | K36: 0 | L36: 0 | Q36: 0 | U36: 0
J37: 0 | K37: 0 | L37: 0 | Q37: 0 | U37: 0
J38: 0 | K38: 0 | L38: 0 | Q38: 0 | U38: 0
A39: Vote 4 - Executive | C39: =SUM(C40:C49) -> 0 | D39: =SUM(D40:D49) -> 0 | E39: 0 | F39: 0 | G39: 0 | H39: 0 | I39: =SUM(I40:I49) -> 0 | J39: 0 | K39: 0 | L39: 0 | N39: =SUM(N40:N49) -> 0 | O39: 0 | P39: 0 | Q39: 0 | R39: 0 | S39: 0 | T39: 0 | U39: 0 | V39: 0 | W39: 0 | X39: 0
A40: 4.1 - Mayor and Council | J40: =Q40+V40 -> 0 | K40: =U40+W40 -> 0 | L40: =X40 -> 0 | Q40: =SUM(N40:P40) -> 0 | U40: 0
A41: 4.2 - Media Services | J41: 0 | K41: 0 | L41: 0 | Q41: 0 | U41: 0
A42: 4.3 - Literacy Programmes | J42: 0 | K42: 0 | L42: 0 | Q42: 0 | U42: 0
J43: 0 | K43: 0 | L43: 0 | Q43: 0 | U43: 0
J44: 0 | K44: 0 | L44: 0 | Q44: 0 | U44: 0
J45: 0 | K45: 0 | L45: 0 | Q45: 0 | U45: 0
J46: 0 | K46: 0 | L46: 0 | Q46: 0 | U46: 0
J47: 0 | K47: 0 | L47: 0 | Q47: 0 | U47: 0
J48: 0 | K48: 0 | L48: 0 | Q48: 0 | U48: 0
J49: 0 | K49: 0 | L49: 0 | Q49: 0 | U49: 0
A50: Vote 5 - Finance | C50: =SUM(C51:C60) -> 0 | D50: =SUM(D51:D60) -> 0 | E50: 0 | F50: 0 | G50: 0 | H50: 0 | I50: =SUM(I51:I60) -> 0 | J50: 0 | K50: 0 | L50: 0 | N50: =SUM(N51:N60) -> 0 | O50: 0 | P50: 0 | Q50: 0 | R50: 0 | S50: 0 | T50: 0 | U50: 0 | V50: 0 | W50: 0 | X50: 0
A51: 5.1 - Supply Chain Management | J51: =Q51+V51 -> 0 | K51: =U51+W51 -> 0 | L51: =X51 -> 0 | Q51: =SUM(N51:P51) -> 0 | U51: 0
A52: 5.2 - Asset Management | J52: 0 | K52: 0 | L52: 0 | Q52: 0 | U52: 0
A53: 5.3 - Finance | J53: 0 | K53: 0 | L53: 0 | Q53: 0 | U53: 0
J54: 0 | K54: 0 | L54: 0 | Q54: 0 | U54: 0
J55: 0 | K55: 0 | L55: 0 | Q55: 0 | U55: 0
J56: 0 | K56: 0 | L56: 0 | Q56: 0 | U56: 0
J57: 0 | K57: 0 | L57: 0 | Q57: 0 | U57: 0
J58: 0 | K58: 0 | L58: 0 | Q58: 0 | U58: 0
J59: 0 | K59: 0 | L59: 0 | Q59: 0 | U59: 0
J60: 0 | K60: 0 | L60: 0 | Q60: 0 | U60: 0
A61: Vote 6 - Local economic development | C61: =SUM(C62:C71) -> 0 | D61: =SUM(D62:D71) -> 0 | E61: 0 | F61: 0 | G61: 0 | H61: 0 | I61: =SUM(I62:I71) -> 0 | J61: 0 | K61: 0 | L61: 0 | N61: =SUM(N62:N71) -> 0 | O61: 0 | P61: 0 | Q61: 0 | R61: 0 | S61: 0 | T61: 0 | U61: 0 | V61: 0 | W61: 0 | X61: 0
J62: =Q62+V62 -> 0 | K62: =U62+W62 -> 0 | L62: =X62 -> 0 | Q62: =SUM(N62:P62) -> 0 | U62: 0
J63: 0 | K63: 0 | L63: 0 | Q63: 0 | U63: 0
A64: 6.3 - Governance Function | J64: 0 | K64: 0 | L64: 0 | Q64: 0 | U64: 0
A65: 6.4 - Marketing, Customer Relations, Publicity and Media Co-ordination | J65: 0 | K65: 0 | L65: 0 | Q65: 0 | U65: 0
A66: 6.5 - Animal Care and Diseases | J66: 0 | K66: 0 | L66: 0 | Q66: 0 | U66: 0
J67: 0 | K67: 0 | L67: 0 | Q67: 0 | U67: 0
J68: 0 | K68: 0 | L68: 0 | Q68: 0 | U68: 0
J69: 0 | K69: 0 | L69: 0 | Q69: 0 | U69: 0
J70: 0 | K70: 0 | L70: 0 | Q70: 0 | U70: 0
J71: 0 | K71: 0 | L71: 0 | Q71: 0 | U71: 0
A72: Vote 7 - Corporate Services | C72: =SUM(C73:C82) -> 0 | D72: 0 | E72: 0 | F72: 0 | G72: 0 | H72: 0 | I72: 0 | J72: 0 | K72: 0 | L72: 0 | N72: =SUM(N73:N82) -> 0 | O72: 0 | P72: 0 | Q72: 0 | R72: 0 | S72: 0 | T72: 0 | U72: 0 | V72: 0 | W72: 0 | X72: 0
A73: 7.1 - Administrative and Corporate Support | J73: =Q73+V73 -> 0 | K73: =U73+W73 -> 0 | L73: =X73 -> 0 | Q73: =SUM(N73:P73) -> 0 | U73: =SUM(R73:T73) -> 0
A74: 7.2 - Human Resources | J74: 0 | K74: 0 | L74: 0 | Q74: 0 | U74: 0
A75: 7.3 - Health Surveillance and Prevention of Communicable Diseases including immunizations | J75: 0 | K75: 0 | L75: 0 | Q75: 0 | U75: 0
A76: 7.4 - Health Services | J76: 0 | K76: 0 | L76: 0 | Q76: 0 | U76: 0
A77: 7.5 - Economic Development/Planning | J77: 0 | K77: 0 | L77: 0 | Q77: 0 | U77: 0
J78: 0 | K78: 0 | L78: 0 | Q78: 0 | U78: 0
J79: 0 | K79: 0 | L79: 0 | Q79: 0 | U79: 0
J80: 0 | K80: 0 | L80: 0 | Q80: 0 | U80: 0
J81: 0 | K81: 0 | L81: 0 | Q81: 0 | U81: 0
J82: 0 | K82: 0 | L82: 0 | Q82: 0 | U82: 0
A83: Vote 8 - Technical | C83: =SUM(C84:C93) -> 0 | D83: 0 | E83: 0 | F83: 0 | G83: 0 | H83: 0 | I83: 0 | J83: 0 | K83: 0 | L83: 0 | N83: =SUM(N84:N93) -> 0 | O83: 0 | P83: 0 | Q83: 0 | R83: 0 | S83: 0 | T83: 0 | U83: 0 | V83: 0 | W83: 0 | X83: 0
A84: 8.1 - Housing | J84: =Q84+V84 -> 0 | K84: =U84+W84 -> 0 | L84: =X84 -> 0 | Q84: =SUM(N84:P84) -> 0 | U84: 0
A85: 8.2 - Roads | J85: 0 | K85: 0 | L85: 0 | Q85: 0 | U85: 0
A86: 8.3 - Waste Water Treatment | J86: 0 | K86: 0 | L86: 0 | Q86: 0 | U86: 0
A87: 8.4 - Public Transport | J87: 0 | K87: 0 | L87: 0 | Q87: 0 | U87: 0
A88: 8.5 - Road and Traffic Regulation | J88: 0 | K88: 0 | L88: 0 | Q88: 0 | U88: 0
A89: 8.6 - Taxi Ranks | J89: 0 | K89: 0 | L89: 0 | Q89: 0 | U89: 0
A90: 8.7 - Water Distribution | J90: 0 | K90: 0 | L90: 0 | Q90: 0 | U90: 0
A91: 8.8 - Water Storage | J91: 0 | K91: 0 | L91: 0 | Q91: 0 | U91: 0
A92: 8.9 - Water Treatment | J92: 0 | K92: 0 | L92: 0 | Q92: 0 | U92: 0
J93: 0 | K93: 0 | L93: 0 | Q93: 0 | U93: 0
A94: Vote 9 - [NAME OF VOTE 9] | C94: =SUM(C95:C104) -> 0 | D94: =SUM(D95:D104) -> 0 | E94: 0 | F94: 0 | G94: 0 | H94: 0 | I94: 0 | J94: 0 | K94: 0 | L94: 0 | N94: =SUM(N95:N104) -> 0 | O94: 0 | P94: 0 | Q94: 0 | R94: 0 | S94: 0 | T94: 0 | U94: 0 | V94: 0 | W94: 0 | X94: 0
J95: =Q95+V95 -> 0 | K95: =U95+W95 -> 0 | L95: =X95 -> 0 | Q95: =SUM(N95:P95) -> 0 | U95: 0
J96: 0 | K96: 0 | L96: 0 | Q96: 0 | U96: 0
J97: 0 | K97: 0 | L97: 0 | Q97: 0 | U97: 0
J98: 0 | K98: 0 | L98: 0 | Q98: 0 | U98: 0
J99: 0 | K99: 0 | L99: 0 | Q99: 0 | U99: 0
J100: 0 | K100: 0 | L100: 0 | Q100: 0 | U100: 0
J101: 0 | K101: 0 | L101: 0 | Q101: 0 | U101: 0
J102: 0 | K102: 0 | L102: 0 | Q102: 0 | U102: 0
J103: 0 | K103: 0 | L103: 0 | Q103: 0 | U103: 0
J104: 0 | K104: 0 | L104: 0 | Q104: 0 | U104: 0
A105: Vote 10 - [NAME OF VOTE 10] | C105: =SUM(C106:C115) -> 0 | D105: =SUM(D106:D115) -> 0 | E105: 0 | F105: 0 | G105: 0 | H105: 0 | I105: 0 | J105: 0 | K105: 0 | L105: 0 | N105: =SUM(N106:N115) -> 0 | O105: 0 | P105: 0 | Q105: 0 | R105: 0 | S105: 0 | T105: 0 | U105: 0 | V105: 0 | W105: 0 | X105: 0
J106: =Q106+V106 -> 0 | K106: =U106+W106 -> 0 | L106: =X106 -> 0 | Q106: =SUM(N106:P106) -> 0 | U106: 0
J107: 0 | K107: 0 | L107: 0 | Q107: 0 | U107: 0
J108: 0 | K108: 0 | L108: 0 | Q108: 0 | U108: 0
J109: 0 | K109: 0 | L109: 0 | Q109: 0 | U109: 0
J110: 0 | K110: 0 | L110: 0 | Q110: 0 | U110: 0
J111: 0 | K111: 0 | L111: 0 | Q111: 0 | U111: 0
J112: 0 | K112: 0 | L112: 0 | Q112: 0 | U112: 0
J113: 0 | K113: 0 | L113: 0 | Q113: 0 | U113: 0
J114: 0 | K114: 0 | L114: 0 | Q114: 0 | U114: 0
J115: 0 | K115: 0 | L115: 0 | Q115: 0 | U115: 0
A116: Vote 11 - [NAME OF VOTE 11] | C116: =SUM(C117:C126) -> 0 | D116: 0 | E116: 0 | F116: 0 | G116: 0 | H116: 0 | I116: 0 | J116: 0 | K116: 0 | L116: 0 | N116: =SUM(N117:N126) -> 0 | O116: 0 | P116: 0 | Q116: 0 | R116: 0 | S116: 0 | T116: 0 | U116: 0 | V116: 0 | W116: 0 | X116: 0
J117: =Q117+V117 -> 0 | K117: =U117+W117 -> 0 | L117: =X117 -> 0 | Q117: =SUM(N117:P117) -> 0 | U117: 0
J118: 0 | K118: 0 | L118: 0 | Q118: 0 | U118: 0
J119: 0 | K119: 0 | L119: 0 | Q119: 0 | U119: 0
J120: 0 | K120: 0 | L120: 0 | Q120: 0 | U120: 0
J121: 0 | K121: 0 | L121: 0 | Q121: 0 | U121: 0
J122: 0 | K122: 0 | L122: 0 | Q122: 0 | U122: 0
J123: 0 | K123: 0 | L123: 0 | Q123: 0 | U123: 0
J124: 0 | K124: 0 | L124: 0 | Q124: 0 | U124: 0
J125: 0 | K125: 0 | L125: 0 | Q125: 0 | U125: 0
J126: 0 | K126: 0 | L126: 0 | Q126: 0 | U126: 0
A127: Vote 12 - [NAME OF VOTE 12] | C127: =SUM(C128:C137) -> 0 | D127: 0 | E127: 0 | F127: 0 | G127: 0 | H127: 0 | I127: 0 | J127: 0 | K127: 0 | L127: 0 | N127: =SUM(N128:N137) -> 0 | O127: 0 | P127: 0 | Q127: 0 | R127: 0 | S127: 0 | T127: 0 | U127: 0 | V127: 0 | W127: 0 | X127: 0
J128: =Q128+V128 -> 0 | K128: =U128+W128 -> 0 | L128: =X128 -> 0 | Q128: =SUM(N128:P128) -> 0 | U128: 0
J129: 0 | K129: 0 | L129: 0 | Q129: 0 | U129: 0
J130: 0 | K130: 0 | L130: 0 | Q130: 0 | U130: 0
J131: 0 | K131: 0 | L131: 0 | Q131: 0 | U131: 0
J132: 0 | K132: 0 | L132: 0 | Q132: 0 | U132: 0
J133: =Q133+V133 -> 0 | K133: 0 | L133: 0 | Q133: 0 | U133: 0
J134: 0 | K134: 0 | L134: 0 | Q134: 0 | U134: 0
J135: 0 | K135: 0 | L135: 0 | Q135: 0 | U135: 0
J136: 0 | K136: 0 | L136: 0 | Q136: 0 | U136: =SUM(R136:T136) -> 0
J137: 0 | K137: 0 | L137: 0 | Q137: 0 | U137: 0
A138: Vote 13 - [NAME OF VOTE 13] | C138: =SUM(C139:C148) -> 0 | D138: 0 | E138: 0 | F138: 0 | G138: 0 | H138: 0 | I138: 0 | J138: 0 | K138: 0 | L138: 0 | N138: =SUM(N139:N148) -> 0 | O138: 0 | P138: 0 | Q138: 0 | R138: 0 | S138: 0 | T138: 0 | U138: 0 | V138: 0 | W138: 0 | X138: 0
J139: =Q139+V139 -> 0 | K139: =U139+W139 -> 0 | L139: =X139 -> 0 | Q139: =SUM(N139:P139) -> 0 | U139: 0
J140: 0 | K140: 0 | L140: 0 | Q140: 0 | U140: 0
J141: 0 | K141: 0 | L141: 0 | Q141: 0 | U141: 0
J142: 0 | K142: 0 | L142: 0 | Q142: 0 | U142: 0
J143: 0 | K143: 0 | L143: 0 | Q143: 0 | U143: 0
J144: 0 | K144: 0 | L144: 0 | Q144: 0 | U144: 0
J145: 0 | K145: 0 | L145: 0 | Q145: 0 | U145: 0
J146: 0 | K146: 0 | L146: 0 | Q146: 0 | U146: 0
J147: 0 | K147: 0 | L147: 0 | Q147: 0 | U147: 0
J148: 0 | K148: 0 | L148: 0 | Q148: 0 | U148: 0
A149: Vote 14 - [NAME OF VOTE 14] | C149: =SUM(C150:C159) -> 0 | D149: 0 | E149: 0 | F149: 0 | G149: 0 | H149: 0 | I149: 0 | J149: 0 | K149: 0 | L149: 0 | N149: =SUM(N150:N159) -> 0 | O149: 0 | P149: 0 | Q149: 0 | R149: 0 | S149: 0 | T149: 0 | U149: 0 | V149: 0 | W149: 0 | X149: 0
J150: =Q150+V150 -> 0 | K150: =U150+W150 -> 0 | L150: =X150 -> 0 | Q150: =SUM(N150:P150) -> 0 | U150: 0
J151: 0 | K151: 0 | L151: 0 | Q151: 0 | U151: 0
J152: 0 | K152: 0 | L152: 0 | Q152: 0 | U152: 0
J153: 0 | K153: 0 | L153: 0 | Q153: 0 | U153: 0
J154: 0 | K154: 0 | L154: 0 | Q154: 0 | U154: 0
J155: 0 | K155: 0 | L155: 0 | Q155: 0 | U155: 0
J156: 0 | K156: 0 | L156: 0 | Q156: 0 | U156: 0
J157: 0 | K157: 0 | L157: 0 | Q157: 0 | U157: 0
J158: 0 | K158: 0 | L158: 0 | Q158: 0 | U158: 0
J159: 0 | K159: 0 | L159: 0 | Q159: 0 | U159: 0
A160: Vote 15 - [NAME OF VOTE 15] | C160: =SUM(C161:C170) -> 0 | D160: 0 | E160: 0 | F160: 0 | G160: 0 | H160: 0 | I160: 0 | J160: 0 | K160: 0 | L160: 0 | Q160: =SUM(Q161:Q170) -> 0 | U160: 0
J161: =Q161+V161 -> 0 | K161: =U161+W161 -> 0 | L161: =X161 -> 0 | Q161: =SUM(N161:P161) -> 0 | U161: 0
J162: 0 | K162: 0 | L162: 0 | Q162: 0 | U162: 0
J163: 0 | K163: 0 | L163: 0 | Q163: 0 | U163: 0
J164: 0 | K164: 0 | L164: 0 | Q164: 0 | U164: 0
J165: 0 | K165: 0 | L165: 0 | Q165: 0 | U165: 0
J166: 0 | K166: 0 | L166: 0 | Q166: 0 | U166: 0
J167: 0 | K167: 0 | L167: 0 | Q167: 0 | U167: 0
J168: 0 | K168: 0 | L168: 0 | Q168: 0 | U168: 0
J169: 0 | K169: 0 | L169: 0 | Q169: 0 | U169: 0
J170: 0 | K170: 0 | L170: 0 | Q170: 0 | U170: 0
A171: Capital multi-year expenditure sub-total | C171: =C6+C17+C28+C39+C50+C61+C72+C83+C94+C105+C116+C127+C138+C149+C160 -> 0 | D171: =D6+D17+D28+D39+D50+D61+D72+D83+D94+D105+D116+D127+D138+D149+D160 -> 0 | E171: 0 | F171: 0 | G171: 0 | H171: 0 | I171: 0 | J171: 0 | K171: 0 | L171: 0 | N171: =N6+N17+N28+N39+N50+N61+N72+N83+N94+N105+N116+N127+N138+N149+N160 -> 0 | O171: 0 | P171: 0 | Q171: 0 | R171: 0 | S171: 0 | U171: 0 | V171: =V6+V17+V28+V39+V50+V61+V72+V83+V94+V105+V116+V127+V138+V149+V160 -> 0 | W171: =W6+W17+W28+W39+W50+W61+W72+W83+W94+W105+W116+W127+W138+W149+W160 -> 0
A173: Capital expenditure - Municipal Vote
A174: Single-year expenditure appropriation | B174: 2
A175: Vote 1 - Municipal manager | C175: =SUM(C176:C185) -> 0 | D175: 0 | E175: 0 | F175: 0 | G175: 0 | H175: 0 | I175: 0 | J175: 0 | K175: 0 | L175: 0
A176: 1.1 - Information Technology | C176: 0 | D176: 0 | E176: 0 | F176: 0 | G176: 0 | H176: 0 | I176: 0 | J176: 0 | K176: 0 | L176: 0
C177: 0 | D177: 0 | E177: 0 | F177: 0 | G177: 0 | H177: 0 | I177: 0 | J177: 0 | K177: 0 | L177: 0
A178: 1.3 - Municipal Manager, Town Secretary and Chief Executive | C178: 0 | D178: 0 | E178: 0 | F178: 0 | G178: 0 | H178: 0 | I178: 0 | J178: 0 | K178: 0 | L178: 0
A179: 1.4 - Risk Management | C179: 0 | D179: 0 | E179: 0 | F179: 0 | G179: 0 | H179: 0 | I179: 0 | J179: 0 | K179: 0 | L179: 0
A180: 1.5 - Corporate Wide Strategic Planning (IDPs, LEDs) | C180: 0 | D180: 0 | E180: 0 | F180: 0 | G180: 0 | H180: 0 | I180: 0 | J180: 0 | K180: 0 | L180: 0
A181: 1.6 - Central City Improvement District | C181: 0 | D181: 0 | E181: 0 | F181: 0 | G181: 0 | H181: 0 | I181: 0 | J181: 0 | K181: 0 | L181: 0
A182: 1.7 - Provincial Planning | C182: 0 | D182: 0 | E182: 0 | F182: 0 | G182: 0 | H182: 0 | I182: 0 | J182: 0 | K182: 0 | L182: 0
C183: 0 | D183: 0 | E183: 0 | F183: 0 | G183: 0 | H183: 0 | I183: 0 | J183: 0 | K183: 0 | L183: 0
C184: 0 | D184: 0 | E184: 0 | F184: 0 | G184: 0 | H184: 0 | I184: 0 | J184: 0 | K184: 0 | L184: 0
C185: 0 | D185: 0 | E185: 0 | F185: 0 | G185: 0 | H185: 0 | I185: 0 | J185: 0 | K185: 0 | L185: 0
A186: Vote 2 - Community and Social Services | C186: =SUM(C187:C196) -> -3259903.01 | D186: 5822609.21 | E186: 8710423.17 | F186: 0 | G186: 0 | H186: 0 | I186: 0 | J186: 0 | K186: 0 | L186: 0
A187: 2.1 - Disaster Management | C187: 0 | D187: 0 | E187: 15652 | F187: 0 | G187: 0 | H187: 0 | I187: 0 | J187: 0 | K187: 0 | L187: 0
A188: 2.2 - Fire Fighting and Protection | C188: 0 | D188: 0 | E188: 409709.36 | F188: 0 | G188: 0 | H188: 0 | I188: 0 | J188: 0 | K188: 0 | L188: 0
C189: 0 | D189: 0 | E189: 0 | F189: 0 | G189: 0 | H189: 0 | I189: 0 | J189: 0 | K189: 0 | L189: 0
A190: 2.4 - Recreational Facilities | C190: 0 | D190: 0 | E190: 0 | F190: 0 | G190: 0 | H190: 0 | I190: 0 | J190: 0 | K190: 0 | L190: 0
A191: 2.5 - Community Halls and Facilities | C191: 0 | D191: 0 | E191: 0 | F191: 0 | G191: 0 | H191: 0 | I191: 0 | J191: 0 | K191: 0 | L191: 0
A192: 2.6 - Sports Grounds and Stadiums | C192: -3259903.01 | D192: 5822609.21 | E192: 8285061.81 | F192: 0 | G192: 0 | H192: 0 | I192: 0 | J192: 0 | K192: 0 | L192: 0
A193: 2.7 - Theatres | C193: 0 | D193: 0 | E193: 0 | F193: 0 | G193: 0 | H193: 0 | I193: 0 | J193: 0 | K193: 0 | L193: 0
A194: 2.8 - Civil Defence | C194: 0 | D194: 0 | E194: 0 | F194: 0 | G194: 0 | H194: 0 | I194: 0 | J194: 0 | K194: 0 | L194: 0
A195: 2.9 - Cleansing | C195: 0 | D195: 0 | E195: 0 | F195: 0 | G195: 0 | H195: 0 | I195: 0 | J195: 0 | K195: 0 | L195: 0
C196: 0 | D196: 0 | E196: 0 | F196: 0 | G196: 0 | H196: 0 | I196: 0 | J196: 0 | K196: 0 | L196: 0
A197: Vote 3 - Heatlh & enviromental Services | C197: =SUM(C198:C207) -> 0 | D197: 3777019.6 | E197: 5409648.94 | F197: 0 | G197: 0 | H197: 0 | I197: 0 | J197: 2383000 | K197: 2515000 | L197: 2660000
A198: 3.1 - Solid Waste Disposal (Landfill Sites) | C198: 0 | D198: 0 | E198: 0 | F198: 0 | G198: 0 | H198: 0 | I198: 0 | J198: 0 | K198: 0 | L198: 0
A199: 3.2 - Pollution Control | C199: 0 | D199: 0 | E199: 0 | F199: 0 | G199: 0 | H199: 0 | I199: 0 | J199: 0 | K199: 0 | L199: 0
A200: 3.3 - Control of Public Nuisances | C200: 0 | D200: 0 | E200: 0 | F200: 0 | G200: 0 | H200: 0 | I200: 0 | J200: 0 | K200: 0 | L200: 0
A201: 3.4 - Cemeteries, Funeral Parlours and Crematoriums | C201: 0 | D201: 0 | E201: 0 | F201: 0 | G201: 0 | H201: 0 | I201: 0 | J201: 0 | K201: 0 | L201: 0
... 140 more rows

Sheet A6-FinPos
A1: =muni&" - "&Approve6 -> DC37 Bojanala Platinum - Table A6 Budgeted Financial Position
A2: =desc -> Description | B2: =head27 -> Ref | C2: =head1b -> 2016/17 | D2: =head1A -> 2017/18 | E2: =Head1 -> 2018/19 | F2: =Head2 -> Current Year 2019/20 | J2: =Head3 -> 2020/21 Medium Term Revenue & Expenditure Framework
A3: R thousand | C3: =Head5 -> Audited Outcome | D3: =Head5 -> Audited Outcome | E3: =Head5 -> Audited Outcome | F3: =Head6 -> Original Budget | G3: =Head7 -> Adjusted Budget | H3: =Head8 -> Full Year Forecast | I3: =Head5b -> Pre-audit outcome | J3: =Head9 -> Budget Year 2020/21 | K3: =Head10 -> Budget Year +1 2021/22 | L3: =Head11 -> Budget Year +2 2022/23
A4: ASSETS
A5: Current assets
A6: Cash | C6: 764377.81 | D6: 2339601 | E6: 4137838.64 | F6: 2500000 | G6: 37684864.57 | H6: 37684864.57 | I6: 2200000 | J6: ='A7-CFlow'!J40 -> 25298353.74 | K6: ='A7-CFlow'!K40 -> 74162842.54 | L6: ='A7-CFlow'!L40 -> 130496029.2
A7: Call investment deposits | B7: 1
A8: Consumer debtors | B8: 1 | C8: ='SA3'!C14 -> 0 | D8: ='SA3'!D14 -> 0 | E8: ='SA3'!E14 -> 0 | F8: ='SA3'!F14 -> 0 | G8: ='SA3'!G14 -> 0 | H8: ='SA3'!H14 -> 0 | I8: ='SA3'!I14 -> 0 | J8: ='SA3'!J14 -> 0 | K8: ='SA3'!K14 -> 0 | L8: ='SA3'!L14 -> 0
A9: Other debtors | C9: =1478745+827372 -> 2306117 | D9: =1266122+250993 -> 1517115 | E9: =50000000+1237098+609870 -> 51846968 | F9: 55478945 | G9: 90475044 | H9: 90475044 | I9: 609870 | J9: 700000 | K9: 800000 | L9: 900000
A10: Current portion of long-term receivables | C10: 0 | D10: 0 | E10: 0 | F10: 0 | G10: 0 | H10: 0 | I10: 0 | J10: 0 | K10: 0 | L10: 0
A11: Inventory | B11: 2 | C11: 0 | D11: 0 | E11: 0 | F11: 0 | G11: 0 | H11: 0 | I11: 0 | J11: 0 | K11: 0 | L11: 0
A12: Total current assets | C12: =SUM(C6:C11) -> 3070494.81 | D12: 3856716 | E12: 55984806.64 | F12: 57978945 | G12: 128159908.6 | H12: 128159908.6 | I12: 2809870 | J12: 25998353.74 | K12: 74962842.54 | L12: 131396029.2
A14: Non current assets
A15: Long-term receivables | C15: 0 | D15: 0 | E15: 0 | F15: 0 | G15: 0 | H15: 0 | I15: 0 | J15: 0 | K15: 0 | L15: 0
A16: Investments | C16: 0 | D16: 0 | E16: 0 | F16: 0 | G16: 0 | H16: 0 | I16: 0 | J16: 0 | K16: 0 | L16: 0
A17: Investment property | C17: 0 | D17: 0 | E17: 0 | F17: 0 | G17: 0 | H17: 0 | I17: 0 | J17: 0 | K17: 0 | L17: 0
A18: Investment in Associate | C18: 0 | D18: 0 | E18: 0 | F18: 0 | G18: 0 | H18: 0 | I18: 0 | J18: 0 | K18: 0 | L18: 0
A19: Property, plant and equipment | B19: 3 | C19: ='SA3'!C26 -> 37054798 | D19: ='SA3'!D26 -> 61595674 | E19: ='SA3'!E26 -> 59118402 | F19: ='SA3'!F26 -> 59118402 | G19: ='SA3'!G26 -> 59118402 | H19: ='SA3'!H26 -> 59118402 | I19: ='SA3'!I26 -> 59118402 | J19: ='SA3'!J26 -> 59118402 | K19: ='SA3'!K26 -> 59118402 | L19: ='SA3'!L26 -> 59118402
A21: Biological | C21: 0 | D21: 0 | E21: 0 | F21: 0 | G21: 0 | H21: 0 | I21: 0 | J21: 0 | K21: 0 | L21: 0
A22: Intangible | C22: 950109 | D22: 1509660 | E22: 404794 | F22: 0 | G22: 0 | H22: 0 | I22: 404794 | J22: =404794+370000 -> 774794 | K22: =404794+370000 -> 774794 | L22: =404794+370000 -> 774794
A23: Other non-current assets | C23: 0 | D23: 0 | E23: 0 | F23: 0 | G23: 0 | H23: 0 | I23: 0 | J23: 0 | K23: 0 | L23: 0
A24: Total non current assets | C24: =SUM(C15:C19)+SUM(C21:C23) -> 38004907 | D24: =SUM(D15:D19)+SUM(D21:D23) -> 63105334 | E24: 59523196 | F24: 59118402 | G24: 59118402 | H24: 59118402 | I24: 59523196 | J24: 59893196 | K24: 59893196 | L24: 59893196
A25: TOTAL ASSETS | C25: =C12+C24 -> 41075401.81 | D25: =D12+D24 -> 66962050 | E25: =E12+E24 -> 115508002.6 | F25: =F12+F24 -> 117097347 | G25: 187278310.6 | H25: 187278310.6 | I25: 62333066 | J25: 85891549.74 | K25: 134856038.5 | L25: 191289225.2
A27: LIABILITIES
A28: Current liabilities
A29: Bank overdraft | B29: 1 | C29: 0 | D29: 0 | E29: 0 | F29: 0 | G29: 0 | H29: 0 | I29: 0 | J29: 0 | K29: 0 | L29: 0
A30: Borrowing | B30: 4 | C30: ='SA3'!C32 -> 0 | D30: ='SA3'!D32 -> 0 | E30: ='SA3'!E32 -> 0 | F30: ='SA3'!F32 -> 0 | G30: ='SA3'!G32 -> 0 | H30: ='SA3'!H32 -> 0 | I30: ='SA3'!I32 -> 0 | J30: ='SA3'!J32 -> 0 | K30: ='SA3'!K32 -> 0 | L30: ='SA3'!L32 -> 0
A31: Consumer deposits | C31: 0 | D31: 0 | E31: 0 | F31: 0 | G31: 0 | H31: 0 | I31: 0 | J31: 0 | K31: 0 | L31: 0
A32: Trade and other payables | B32: 4 | C32: ='SA3'!C39 -> 51915910 | D32: ='SA3'!D39 -> 55494021 | E32: ='SA3'!E39 -> 213462193 | F32: ='SA3'!F39 -> 25000001 | G32: ='SA3'!G39 -> 52872693 | H32: ='SA3'!H39 -> 52872693 | I32: ='SA3'!I39 -> 52872693 | J32: ='SA3'!J39 -> 10000000 | K32: ='SA3'!K39 -> 30000000 | L32: ='SA3'!L39 -> 20000000
A33: Provisions | C33: 0 | D33: 0 | E33: 0 | F33: 0 | G33: 0 | H33: 0 | I33: 0 | J33: 0 | K33: 0 | L33: 0
A34: Total current liabilities | C34: =SUM(C29:C33) -> 51915910 | D34: 55494021 | E34: 213462193 | F34: 25000001 | G34: 52872693 | H34: 52872693 | I34: 52872693 | J34: 10000000 | K34: 30000000 | L34: 20000000
A36: Non current liabilities
A37: Borrowing | C37: ='SA3'!C44 -> 7064067 | D37: ='SA3'!D44 -> 3775717 | E37: ='SA3'!E44 -> 0 | F37: ='SA3'!F44 -> 0 | G37: ='SA3'!G44 -> 0 | H37: ='SA3'!H44 -> 0 | I37: ='SA3'!I44 -> 0 | J37: ='SA3'!J44 -> 0 | K37: ='SA3'!K44 -> 0 | L37: ='SA3'!L44 -> 0
A38: Provisions | C38: ='SA3'!C51 -> 21069000 | D38: ='SA3'!D51 -> 23856000 | E38: ='SA3'!E51 -> 28440000 | F38: ='SA3'!F51 -> 0 | G38: ='SA3'!G51 -> 0 | H38: ='SA3'!H51 -> 28440000 | I38: ='SA3'!I51 -> 28440000 | J38: ='SA3'!J51 -> 28440000 | K38: ='SA3'!K51 -> 28440000 | L38: ='SA3'!L51 -> 28440000
A39: Total non current liabilities | C39: =SUM(C37:C38) -> 28133067 | D39: =SUM(D37:D38) -> 27631717 | E39: =SUM(E37:E38) -> 28440000 | F39: =SUM(F37:F38) -> 0 | G39: 0 | H39: 28440000 | I39: 28440000 | J39: 28440000 | K39: =SUM(K37:K38) -> 28440000 | L39: 28440000
A40: TOTAL LIABILITIES | C40: =C34+C39 -> 80048977 | D40: =D34+D39 -> 83125738 | E40: =E34+E39 -> 241902193 | F40: =F34+F39 -> 25000001 | G40: 52872693 | H40: 81312693 | I40: 81312693 | J40: 38440000 | K40: =K34+K39 -> 58440000 | L40: 48440000
A42: NET ASSETS | B42: 5 | C42: =C25-C40 -> -38973575.19 | D42: -16163688 | E42: -126394190.4 | F42: 92097346 | G42: 134405617.6 | H42: 105965617.6 | I42: -18979627 | J42: 47451549.74 | K42: 76416038.54 | L42: 142849225.2
A44: COMMUNITY WEALTH/EQUITY
A45: Accumulated Surplus/(Deficit) | C45: =C42-C46 -> -38973575.19 | D45: -27403823 | E45: -137634325.4 | F45: -27902654 | G45: 134405617.6 | H45: 105965617.6 | I45: -18979627 | J45: 47451549.74 | K45: 76416038.54 | L45: 142849225.2
A46: Reserves | B46: 4 | C46: ='SA3'!C70 -> 0 | D46: ='SA3'!D70 -> 11240135 | E46: ='SA3'!E70 -> 11240135 | F46: ='SA3'!F70 -> 120000000 | G46: ='SA3'!G70 -> 0 | H46: ='SA3'!H70 -> 0 | I46: ='SA3'!I70 -> 0 | J46: ='SA3'!J70 -> 0 | K46: ='SA3'!K70 -> 0 | L46: ='SA3'!L70 -> 0
A48: TOTAL COMMUNITY WEALTH/EQUITY | B48: 5 | C48: =SUM(C45:C46) -> -38973575.19 | D48: =SUM(D45:D46) -> -16163688 | E48: -126394190.4 | F48: 92097346 | G48: 134405617.6 | H48: 105965617.6 | I48: -18979627 | J48: 47451549.74 | K48: 76416038.54 | L48: 142849225.2
A49: =head27a -> References
A50: 1. Detail to be provided in Table SA3
A51: 2. Include completed low cost housing to be transferred to beneficiaries within 12 months
A52: 3. Include 'Construction-work-in-progress' (disclosed separately in annual financial statements)
A53: 4. Detail to be provided in Table SA3. Includes reserves to be funded by statute.
A54: 5. Net assets must balance with Total Community Wealth/Equity
A55: check balance | C55: =IF((C42-C48)=0,0,"Unbalanced") -> 0 | D55: =IF((D42-D48)=0,0,"Unbalanced") -> 0 | E55: Unbalanced | F55: 0 | G55: 0 | H55: 0 | I55: 0 | J55: 0 | K55: 0 | L55: 0

Sheet A7-CFlow
A1: =muni&" - "&Approve7 -> DC37 Bojanala Platinum - Table A7 Budgeted Cash Flows
A2: =desc -> Description | B2: =head27 -> Ref | C2: =head1b -> 2016/17 | D2: =head1A -> 2017/18 | E2: =Head1 -> 2018/19 | F2: =Head2 -> Current Year 2019/20 | J2: =Head3 -> 2020/21 Medium Term Revenue & Expenditure Framework
A3: R thousand | C3: =Head5 -> Audited Outcome | D3: =Head5 -> Audited Outcome | E3: =Head5 -> Audited Outcome | F3: =Head6 -> Original Budget | G3: =Head7 -> Adjusted Budget | H3: =Head8 -> Full Year Forecast | I3: =Head5b -> Pre-audit outcome | J3: =Head9 -> Budget Year 2020/21 | K3: =Head10 -> Budget Year +1 2021/22 | L3: =Head11 -> Budget Year +2 2022/23
A4: CASH FLOW FROM OPERATING ACTIVITIES
A5: Receipts
A6: Property rates | C6: 0 | D6: 0 | E6: 0 | F6: 0 | G6: 0 | H6: 0 | I6: 0 | J6: ='SA30'!N5 -> 0 | K6: ='SA30'!O5 -> 0 | L6: ='SA30'!P5 -> 0
A7: Service charges | C7: 0 | D7: 0 | E7: 0 | F7: 0 | G7: 0 | H7: 0 | I7: 0 | J7: ='SA30'!N6+'SA30'!N7+'SA30'!N8+'SA30'!N9 -> 0 | K7: ='SA30'!O6+'SA30'!O7+'SA30'!O8+'SA30'!O9 -> 0 | L7: ='SA30'!P6+'SA30'!P7+'SA30'!P8+'SA30'!P9 -> 0
A8: Other revenue | C8: 0 | D8: 212623 | E8: 123024 | F8: 0 | G8: 0 | H8: 0 | I8: 0 | J8: ='SA30'!N11+'SA30'!N15+'SA30'!N16+'SA30'!N17+'SA30'!N19 -> 110000 | K8: ='SA30'!O11+'SA30'!O15+'SA30'!O16+'SA30'!O17+'SA30'!O19 -> 110000 | L8: ='SA30'!P11+'SA30'!P15+'SA30'!P16+'SA30'!P17+'SA30'!P19 -> 110000
A9: Transfers and Subsidies - Operational | B9: 1 | C9: =317905022-2175000 -> 315730022 | D9: 320159537 | E9: 330655754 | F9: 343315000 | G9: 342925000 | H9: 354823000 | I9: 354823000 | J9: ='SA30'!N18 -> 356512000 | K9: ='SA30'!O18 -> 369710000 | L9: ='SA30'!P18 -> 383722000
A10: Transfers and Subsidies - Capital | B10: 1 | C10: 2175000 | D10: 2359000 | E10: 2364000 | F10: 2504000 | G10: 2504000 | H10: 2648000 | I10: 2648000 | J10: ='SA30'!N23 -> 2383000 | K10: ='SA30'!O23 -> 2515000 | L10: ='SA30'!P23 -> 2660000
A11: Interest | C11: 2590763 | D11: 3432083 | E11: 2477461 | F11: 0 | G11: 0 | H11: 1200000 | I11: 1200000 | J11: ='SA30'!N12+'SA30'!N13 -> 800000 | K11: ='SA30'!O12+'SA30'!O13 -> 1500000 | L11: ='SA30'!P12+'SA30'!P13 -> 1550000
A12: Dividends | C12: 0 | D12: 0 | E12: 0 | F12: 0 | G12: 0 | H12: 0 | I12: 0 | J12: ='SA30'!N14 -> 0 | K12: ='SA30'!O14 -> 0 | L12: ='SA30'!P14 -> 0
A13: Payments
A14: Suppliers and employees | C14: =-182976854-166013770+1202113.36 -> -347788510.6 | D14: =-188750223-112513649 -> -301263872 | E14: =-203145169-64588568 -> -267733737 | F14: =-308891267.02 -> -308891267 | G14: =-266577365.25 -> -266577365.2 | H14: =-281437395.26+4300000 -> -277137395.3 | I14: =-281437395.26+4300000 -> -277137395.3 | J14: =-('SA30'!N35+'SA30'!N36+'SA30'!N38+'SA30'!N39+'SA30'!N40+'SA30'!N41+'SA30'!N44+'SA30'!N50) -> -333225088.6 | K14: =-('SA30'!O35+'SA30'!O36+'SA30'!O38+'SA30'!O39+'SA30'!O40+'SA30'!O41+'SA30'!O44+'SA30'!O50) -> -321805511.2 | L14: =-('SA30'!P35+'SA30'!P36+'SA30'!P38+'SA30'!P39+'SA30'!P40+'SA30'!P41+'SA30'!P44+'SA30'!P50) -> -328348813.4
A15: Finance charges | C15: =-1202113.36 -> -1202113.36 | D15: =-777655.08 -> -777655.08 | E15: =-246603.36 -> -246603.36 | F15: 0 | G15: =-1460000 -> -1460000 | H15: 500000 | I15: 500000 | J15: =-('SA30'!N37) -> -500000 | K15: =-('SA30'!O37) -> -500000 | L15: =-('SA30'!P37) -> -500000
A16: Transfers and Grants | B16: 1 | C16: 0 | D16: 0 | E16: 0 | F16: =-1909218.43 -> -1909218.43 | G16: =-1871000 -> -1871000 | H16: 0 | I16: 0 | J16: =-('SA30'!N42+'SA30'!N43) -> 0 | K16: =-('SA30'!O42+'SA30'!O43) -> 0 | L16: =-('SA30'!P42+'SA30'!P43) -> 0
A17: NET CASH FROM/(USED) OPERATING ACTIVITIES | C17: =SUM(C6:C12)+SUM(C14:C16) -> -28494839 | D17: 24121715.92 | E17: 67639898.64 | F17: 35018514.55 | G17: 75520634.75 | H17: 82033604.74 | I17: 82033604.74 | J17: 26079911.44 | K17: 51529488.8 | L17: 59193186.64
A19: CASH FLOWS FROM INVESTING ACTIVITIES
A20: Receipts
A21: Proceeds on disposal of PPE | C21: 8208 | D21: 0 | E21: 0 | F21: 0 | G21: 0 | H21: 0 | I21: 0 | J21: ='SA30'!N24+'SA30'!N25 -> 0 | K21: ='SA30'!O24+'SA30'!O25 -> 0 | L21: ='SA30'!P24+'SA30'!P25 -> 0
A23: Decrease (increase) in non-current receivables | C23: 0 | D23: 0 | E23: 0 | F23: 0 | G23: 0 | H23: 0 | I23: 0 | J23: ='SA30'!N30 -> 0 | K23: ='SA30'!O30 -> 0 | L23: ='SA30'!P30 -> 0
A24: Decrease (increase) in non-current investments | C24: 0 | D24: 0 | E24: 0 | F24: 0 | G24: 0 | H24: 0 | I24: 0 | J24: ='SA30'!N31 -> 0 | K24: ='SA30'!O31 -> 0 | L24: ='SA30'!P31 -> 0
A25: Payments
A26: Capital assets | C26: =14250416-1123157 -> 13127259 | D26: -19745510 | E26: =-12958222+892277 -> -12065945 | F26: 0 | G26: 50000 | H26: 50000 | I26: 50000 | J26: =-('SA30'!N48) -> -3003000 | K26: =-('SA30'!O48) -> -2665000 | L26: =-('SA30'!P48) -> -2860000
A27: NET CASH FROM/(USED) INVESTING ACTIVITIES | C27: =+C21+C23+C24+C26 -> 13135467 | D27: =+D21+D23+D24+D26 -> -19745510 | E27: -12065945 | F27: 0 | G27: 50000 | H27: 50000 | I27: 50000 | J27: -3003000 | K27: -2665000 | L27: -2860000
A29: CASH FLOWS FROM FINANCING ACTIVITIES
A30: Receipts
A31: Short term loans | C31: 0 | D31: 0 | E31: 0 | F31: 0 | G31: 0 | H31: 0 | I31: 0 | J31: ='SA30'!N26 -> 0 | K31: ='SA30'!O26 -> 0 | L31: ='SA30'!P26 -> 0
A32: Borrowing long term/refinancing | C32: 0 | D32: 0 | E32: 0 | F32: 0 | G32: 0 | H32: 0 | I32: 0 | J32: ='SA30'!N27 -> 0 | K32: ='SA30'!O27 -> 0 | L32: ='SA30'!P27 -> 0
A33: Increase (decrease) in consumer deposits | C33: 0 | D33: 0 | E33: 0 | F33: 0 | G33: 0 | H33: 0 | I33: 0 | J33: ='SA30'!N28 -> 0 | K33: ='SA30'!O28 -> 0 | L33: ='SA30'!P28 -> 0
A34: Payments
A35: Repayment of borrowing | C35: 4066000 | D35: =-3288350+487367 -> -2800983 | E35: =-50000000-3775717 -> -53775717 | F35: 0 | G35: -84000000 | H35: -84000000 | I35: -84000000 | J35: =-('SA30'!N49) -> 0 | K35: =-('SA30'!O49) -> 0 | L35: =-('SA30'!P49) -> 0
A36: NET CASH FROM/(USED) FINANCING ACTIVITIES | C36: =SUM(C31:C33)+C35 -> 4066000 | D36: =SUM(D31:D33)+D35 -> -2800983 | E36: -53775717 | F36: 0 | G36: -84000000 | H36: -84000000 | I36: -84000000 | J36: 0 | K36: 0 | L36: 0
A38: NET INCREASE/ (DECREASE) IN CASH HELD | C38: =C17+C27+C36 -> -11293372 | D38: =D17+D27+D36 -> 1575222.92 | E38: 1798236.64 | F38: 35018514.55 | G38: -8429365.25 | H38: -1916395.26 | I38: -1916395.26 | J38: 23076911.44 | K38: 48864488.8 | L38: 56333186.64
A39: Cash/cash equivalents at the year begin: | B39: 2 | C39: 12057750 | D39: =C40 -> 764378 | E39: =D40 -> 2339600.92 | F39: =E40 -> 4137837.56 | G39: =E40 -> 4137837.56 | H39: =E40 -> 4137837.56 | I39: =E40 -> 4137837.56 | J39: ='SA30'!N54 -> 2221442.3 | K39: =J40 -> 25298353.74 | L39: =K40 -> 74162842.54
A40: Cash/cash equivalents at the year end: | B40: 2 | C40: =C38+C39 -> 764378 | D40: =D38+D39 -> 2339600.92 | E40: =E38+E39 -> 4137837.56 | F40: =F38+F39 -> 39156352.11 | G40: -4291527.69 | H40: 2221442.3 | I40: =I38+I39 -> 2221442.3 | J40: 25298353.74 | K40: 74162842.54 | L40: 130496029.2
A41: =head27a -> References
A42: 1. Local/District municipalities to include transfers from/to District/Local Municipalities
A43: 2. Cash equivalents includes investments with maturities of 3 months or less
A44: 3. The MTREF is populated directly from SA30.
A45: Total receipts | C45: =SUM(C6:C12)+SUM(C21:C23) -> 320503993 | D45: 326163243 | E45: 335620239 | F45: 345819000 | G45: 345429000 | H45: 358671000 | I45: 358671000 | J45: 359805000 | K45: 373835000 | L45: 388042000
A46: Total payments | C46: =SUM(C14:C16)+C26 -> -335863365 | D46: =SUM(D14:D16)+D26 -> -321787037.1 | E46: -280046285.4 | F46: -310800485.4 | G46: -269858365.2 | H46: -276587395.3 | I46: -276587395.3 | J46: -336728088.6 | K46: -324970511.2 | L46: -331708813.4
C47: =C45+C46 -> -15359372 | D47: =D45+D46 -> 4376205.92 | E47: 55573953.64 | F47: 35018514.55 | G47: 75570634.75 | H47: 82083604.74 | I47: 82083604.74 | J47: 23076911.44 | K47: 48864488.8 | L47: 56333186.64
A48: Borrowings & investments & c.deposits | C48: =C24+C32+C33 -> 0 | D48: =D24+D32+D33 -> 0 | E48: 0 | F48: 0 | G48: 0 | H48: 0 | I48: 0 | J48: 0 | K48: 0 | L48: 0
A49: =A35 -> Repayment of borrowing | C49: =C35 -> 4066000 | D49: =D35 -> -2800983 | E49: -53775717 | F49: 0 | G49: -84000000 | H49: -84000000 | I49: =I35 -> -84000000 | J49: 0 | K49: 0 | L49: 0
C50: =C47+C48+C49 -> -11293372 | D50: =D47+D48+D49 -> 1575222.92 | E50: 1798236.64 | F50: 35018514.55 | G50: -8429365.25 | H50: -1916395.26 | I50: -1916395.26 | J50: 23076911.44 | K50: 48864488.8 | L50: 56333186.64
C51: =C38-C50 -> 0 | D51: 0 | E51: 0 | F51: 0 | G51: 0 | H51: 0 | I51: 0 | J51: 0 | K51: 0 | L51: 0

Sheet A8-ResRecon
A1: =muni&" - "&Approve8 -> DC37 Bojanala Platinum - Table A8 Cash backed reserves/accumulated surplus reconciliation
A2: =desc -> Description | B2: =head27 -> Ref | C2: =head1b -> 2016/17 | D2: =head1A -> 2017/18 | E2: =Head1 -> 2018/19 | F2: =Head2 -> Current Year 2019/20 | J2: =Head3 -> 2020/21 Medium Term Revenue & Expenditure Framework
A3: R thousand | C3: =Head5 -> Audited Outcome | D3: =Head5 -> Audited Outcome | E3: =Head5 -> Audited Outcome | F3: =Head6 -> Original Budget | G3: =Head7 -> Adjusted Budget | H3: =Head8 -> Full Year Forecast | I3: =Head5b -> Pre-audit outcome | J3: =Head9 -> Budget Year 2020/21 | K3: =Head10 -> Budget Year +1 2021/22 | L3: =Head11 -> Budget Year +2 2022/23
A4: Cash and investments available
A5: =LEFT('A7-CFlow'!A40,37) -> Cash/cash equivalents at the year end | B5: 1 | C5: ='A7-CFlow'!C40 -> 764378 | D5: ='A7-CFlow'!D40 -> 2339600.92 | E5: ='A7-CFlow'!E40 -> 4137837.56 | F5: ='A7-CFlow'!F40 -> 39156352.11 | G5: ='A7-CFlow'!G40 -> -4291527.69 | H5: ='A7-CFlow'!H40 -> 2221442.3 | I5: ='A7-CFlow'!I40 -> 2221442.3 | J5: ='A7-CFlow'!J40 -> 25298353.74 | K5: ='A7-CFlow'!K40 -> 74162842.54 | L5: ='A7-CFlow'!L40 -> 130496029.2
A6: Other current investments > 90 days | C6: ='A6-FinPos'!C6+'A6-FinPos'!C7-'A6-FinPos'!C29-'A8-ResRecon'!C5 -> -0.1899999999 | D6: ='A6-FinPos'!D6+'A6-FinPos'!D7-'A6-FinPos'!D29-'A8-ResRecon'!D5 -> 0.07999998331 | E6: ='A6-FinPos'!E6+'A6-FinPos'!E7-'A6-FinPos'!E29-'A8-ResRecon'!E5 -> 1.079999997 | F6: ='A6-FinPos'!F6+'A6-FinPos'!F7-'A6-FinPos'!F29-'A8-ResRecon'!F5 -> -36656352.11 | G6: ='A6-FinPos'!G6+'A6-FinPos'!G7-'A6-FinPos'!G29-'A8-ResRecon'!G5 -> 41976392.26 | H6: ='A6-FinPos'!H6+'A6-FinPos'!H7-'A6-FinPos'!H29-'A8-ResRecon'!H5 -> 35463422.27 | I6: ='A6-FinPos'!I6+'A6-FinPos'!I7-'A6-FinPos'!I29-'A8-ResRecon'!I5 -> -21442.3 | J6: ='A6-FinPos'!J6+'A6-FinPos'!J7-'A6-FinPos'!J29-'A8-ResRecon'!J5 -> 0 | K6: ='A6-FinPos'!K6+'A6-FinPos'!K7-'A6-FinPos'!K29-'A8-ResRecon'!K5 -> 0 | L6: ='A6-FinPos'!L6+'A6-FinPos'!L7-'A6-FinPos'!L29-'A8-ResRecon'!L5 -> 0
A7: ='A6-FinPos'!A14&" - "&'A6-FinPos'!A16 -> Non current assets - Investments | B7: 1 | C7: ='A6-FinPos'!C16 -> 0 | D7: ='A6-FinPos'!D16 -> 0 | E7: ='A6-FinPos'!E16 -> 0 | F7: ='A6-FinPos'!F16 -> 0 | G7: ='A6-FinPos'!G16 -> 0 | H7: ='A6-FinPos'!H16 -> 0 | I7: ='A6-FinPos'!I16 -> 0 | J7: ='A6-FinPos'!J16 -> 0 | K7: ='A6-FinPos'!K16 -> 0 | L7: ='A6-FinPos'!L16 -> 0
A8: Cash and investments available: | C8: =SUM(C5:C7) -> 764377.81 | D8: =SUM(D5:D7) -> 2339601 | E8: 4137838.64 | F8: 2500000 | G8: 37684864.57 | H8: 37684864.57 | I8: 2200000 | J8: 25298353.74 | K8: 74162842.54 | L8: 130496029.2
A10: Application of cash and investments
A11: ='SA3'!A37 -> Unspent conditional transfers | C11: ='SA3'!C37 -> 431439 | D11: ='SA3'!D37 -> 0 | E11: ='SA3'!E37 -> 3024000 | F11: ='SA3'!F37 -> 0 | G11: ='SA3'!G37 -> 0 | H11: ='SA3'!H37 -> 0 | I11: ='SA3'!I37 -> 0 | J11: ='SA3'!J37 -> 0 | K11: ='SA3'!K37 -> 0 | L11: ='SA3'!L37 -> 0
A12: Unspent borrowing | C12: ='SA17'!C67 -> 0 | D12: ='SA17'!D67 -> 0 | E12: ='SA17'!E67 -> 0 | F12: ='SA17'!F67 -> 0 | G12: ='SA17'!G67 -> 0 | H12: ='SA17'!H67 -> 0 | J12: ='SA17'!I67 -> 0 | K12: ='SA17'!J67 -> 0 | L12: ='SA17'!K67 -> 0
A13: Statutory requirements | B13: 2
A14: Other working capital requirements | B14: 3 | C14: =-C32 -> 51484471 | D14: =-D32 -> 55494021 | E14: 210438193 | F14: =-F32 -> 25000001 | G14: 52872693 | H14: 52872693 | I14: 52872693 | J14: =-J32 -> 9300000 | K14: 29200000 | L14: 19100000
A15: Other provisions | J15: 15000000 | K15: 15000000 | L15: 15000000
A16: Long term investments committed | B16: 4 | C16: =C52 -> 0 | D16: =D52 -> 0 | E16: 0 | F16: 0 | G16: 0 | H16: 0 | I16: 0 | J16: 0 | K16: 0 | L16: 0
A17: Reserves to be backed by cash/investments | B17: 5
A18: ="Total "&A10&":" -> Total Application of cash and investments: | C18: =SUM(C11:C17) -> 51915910 | D18: =SUM(D11:D17) -> 55494021 | E18: 213462193 | F18: 25000001 | G18: 52872693 | H18: 52872693 | I18: 52872693 | J18: 24300000 | K18: 44200000 | L18: 34100000
A19: Surplus(shortfall) | C19: =C8-C18 -> -51151532.19 | D19: =D8-D18 -> -53154420 | E19: -209324354.4 | F19: -22500001 | G19: -15187828.43 | H19: -15187828.43 | I19: -50672693 | J19: 998353.7444 | K19: 29962842.54 | L19: 96396029.19
A20: =head27a -> References
A21: 1. Must reconcile with Budgeted Cash Flows
A22: 2. For example: VAT, taxation
A23: 3. Council approval for policy required - include sufficient working capital (e.g. allowing for a % of current debtors > 90 days as uncollectable)
A24: 4. For example: sinking fund requirements for borrowing
A25: 5. Council approval required for each reserve created and basis of cash backing of reserves
A28: Other working capital requirements
A29: Debtors | C29: =IF(ISERROR(ROUND(C35*C36,-3)),0,(ROUND(C35*C36,-3))) -> 0 | D29: =IF(ISERROR(ROUND(D35*D36,-3)),0,(ROUND(D35*D36,-3))) -> 0 | E29: 0 | F29: 0 | G29: 0 | H29: 0 | I29: 0 | J29: 700000 | K29: 800000 | L29: 900000
A31: Creditors due | C31: ='SA3'!C35+'SA3'!C36 -> 51484471 | D31: ='SA3'!D35+'SA3'!D36 -> 55494021 | E31: ='SA3'!E35+'SA3'!E36 -> 210438193 | F31: ='SA3'!F35+'SA3'!F36 -> 25000001 | G31: ='SA3'!G35+'SA3'!G36 -> 52872693 | H31: ='SA3'!H35+'SA3'!H36 -> 52872693 | I31: ='SA3'!I35+'SA3'!I36 -> 52872693 | J31: ='SA3'!J35+'SA3'!J36 -> 10000000 | K31: ='SA3'!K35+'SA3'!K36 -> 30000000 | L31: ='SA3'!L35+'SA3'!L36 -> 20000000
A32: Total | C32: =C29-C31 -> -51484471 | D32: =D29-D31 -> -55494021 | E32: -210438193 | F32: -25000001 | G32: -52872693 | H32: -52872693 | I32: -52872693 | J32: -9300000 | K32: -29200000 | L32: -19100000
A34: Debtors collection assumptions
A35: Balance outstanding - debtors | C35: ='A6-FinPos'!C8+'A6-FinPos'!C9+'A6-FinPos'!C15 -> 2306117 | D35: ='A6-FinPos'!D8+'A6-FinPos'!D9+'A6-FinPos'!D15 -> 1517115 | E35: ='A6-FinPos'!E8+'A6-FinPos'!E9+'A6-FinPos'!E15 -> 51846968 | F35: ='A6-FinPos'!F8+'A6-FinPos'!F9+'A6-FinPos'!F15 -> 55478945 | G35: ='A6-FinPos'!G8+'A6-FinPos'!G9+'A6-FinPos'!G15 -> 90475044 | H35: ='A6-FinPos'!H8+'A6-FinPos'!H9+'A6-FinPos'!H15 -> 90475044 | I35: ='A6-FinPos'!I8+'A6-FinPos'!I9+'A6-FinPos'!I15 -> 609870 | J35: ='A6-FinPos'!J8+'A6-FinPos'!J9+'A6-FinPos'!J15 -> 700000 | K35: ='A6-FinPos'!K8+'A6-FinPos'!K9+'A6-FinPos'!K15 -> 800000 | L35: ='A6-FinPos'!L8+'A6-FinPos'!L9+'A6-FinPos'!L15 -> 900000
A36: Estimate of debtors collection rate | C36: =IF(ISERROR('SA10'!D10),0,('SA10'!D10)) -> 0 | D36: =IF(ISERROR('SA10'!E10),0,('SA10'!E10)) -> 0 | E36: =IF(ISERROR('SA10'!F10),0,('SA10'!F10)) -> 0 | F36: =IF(ISERROR('SA10'!G10),0,('SA10'!G10)) -> 0 | G36: =IF(ISERROR('SA10'!H10),0,('SA10'!H10)) -> 0 | H36: =IF(ISERROR('SA10'!I10),0,('SA10'!I10)) -> 0 | I36: =IF(ISERROR('SA10'!J10),0,('SA10'!J10)) -> 0 | J36: =IF(ISERROR('SA10'!K10),0,('SA10'!K10)) -> 1 | K36: =IF(ISERROR('SA10'!L10),0,('SA10'!L10)) -> 1 | L36: =IF(ISERROR('SA10'!M10),0,('SA10'!M10)) -> 1
K39: `
A40: =A16 -> Long term investments committed
A41: Balance (Insert description; eg sinking fund)
C52: =SUM(C41:C51) -> 0 | D52: =SUM(D41:D51) -> 0 | E52: 0 | F52: 0 | G52: 0 | H52: 0 | I52: 0 | J52: 0 | K52: 0 | L52: 0
A53: =A17 -> Reserves to be backed by cash/investments
A54: ='SA3'!A65 -> Housing Development Fund | C54: ='SA3'!C65 -> 0 | D54: ='SA3'!D65 -> 0 | E54: ='SA3'!E65 -> 0 | F54: ='SA3'!F65 -> 0 | G54: ='SA3'!G65 -> 0 | H54: ='SA3'!H65 -> 0 | I54: ='SA3'!I65 -> 0 | J54: ='SA3'!J65 -> 0 | K54: ='SA3'!K65 -> 0 | L54: ='SA3'!L65 -> 0
A55: ='SA3'!A66 -> Capital replacement
A56: ='SA3'!A67 -> Self-insurance
A57: Other (list)
C67: =SUM(C54:C65) -> 0 | D67: 0 | E67: 0 | F67: 0 | G67: 0 | H67: 0 | I67: 0 | J67: 0 | K67: 0 | L67: 0

Sheet A9-Asset
A1: =muni&" - "&Approve9 -> DC37 Bojanala Platinum - Table A9 Asset Management
A2: =desc -> Description | B2: =head27 -> Ref | C2: =head1b -> 2016/17 | D2: =head1A -> 2017/18 | E2: =Head1 -> 2018/19 | F2: =Head2 -> Current Year 2019/20 | I2: =Head3 -> 2020/21 Medium Term Revenue & Expenditure Framework
A3: R thousand | C3: =Head5 -> Audited Outcome | D3: =Head5 -> Audited Outcome | E3: =Head5 -> Audited Outcome | F3: =Head6 -> Original Budget | G3: =Head7 -> Adjusted Budget | H3: =Head8 -> Full Year Forecast | I3: =Head9 -> Budget Year 2020/21 | J3: =Head10 -> Budget Year +1 2021/22 | K3: =Head11 -> Budget Year +2 2022/23
A4: CAPITAL EXPENDITURE
A5: Total New Assets | B5: 1 | C5: =C15+C18+C19+C22+C25+C26+SUM(C29:C35) -> 78839035.92 | D5: =D15+D18+D19+D22+D25+D26+SUM(D29:D35) -> 96210092.39 | E5: 97899252.45 | F5: 0 | G5: 50000 | H5: 50000 | I5: 3003000 | J5: 2665000 | K5: 2860000
A6: Roads Infrastructure | C6: =SA34a!C7 -> 0 | D6: =SA34a!D7 -> 7832014.79 | E6: =SA34a!E7 -> 4020874.98 | F6: =SA34a!F7 -> 0 | G6: =SA34a!G7 -> 0 | H6: =SA34a!H7 -> 0 | I6: =SA34a!I7 -> 0 | J6: =SA34a!J7 -> 0 | K6: =SA34a!K7 -> 0
A7: Storm water Infrastructure | C7: =SA34a!C12 -> 0 | D7: =SA34a!D12 -> 0 | E7: =SA34a!E12 -> 0 | F7: =SA34a!F12 -> 0 | G7: =SA34a!G12 -> 0 | H7: =SA34a!H12 -> 0 | I7: =SA34a!I12 -> 0 | J7: =SA34a!J12 -> 0 | K7: =SA34a!K12 -> 0
A8: Electrical Infrastructure | C8: =SA34a!C16 -> 0 | D8: =SA34a!D16 -> 0 | E8: =SA34a!E16 -> 0 | F8: =SA34a!F16 -> 0 | G8: =SA34a!G16 -> 0 | H8: =SA34a!H16 -> 0 | I8: =SA34a!I16 -> 0 | J8: =SA34a!J16 -> 0 | K8: =SA34a!K16 -> 0
A9: Water Supply Infrastructure | C9: =SA34a!C26 -> 0 | D9: =SA34a!D26 -> 3185979.04 | E9: =SA34a!E26 -> 3565100.57 | F9: =SA34a!F26 -> 0 | G9: =SA34a!G26 -> 0 | H9: =SA34a!H26 -> 0 | I9: =SA34a!I26 -> 0 | J9: =SA34a!J26 -> 0 | K9: =SA34a!K26 -> 0
A10: Sanitation Infrastructure | C10: =SA34a!C37 -> 0 | D10: =SA34a!D37 -> 3777019.6 | E10: =SA34a!E37 -> 3777019.6 | F10: =SA34a!F37 -> 0 | G10: =SA34a!G37 -> 0 | H10: =SA34a!H37 -> 0 | I10: =SA34a!I37 -> 0 | J10: =SA34a!J37 -> 0 | K10: =SA34a!K37 -> 0
A11: Solid Waste Infrastructure | C11: =SA34a!C44 -> 0 | D11: =SA34a!D44 -> 0 | E11: =SA34a!E44 -> 0 | F11: =SA34a!F44 -> 0 | G11: =SA34a!G44 -> 0 | H11: =SA34a!H44 -> 0 | I11: =SA34a!I44 -> 0 | J11: =SA34a!J44 -> 0 | K11: =SA34a!K44 -> 0
A12: Rail Infrastructure | C12: =SA34a!C52 -> 0 | D12: =SA34a!D52 -> 0 | E12: =SA34a!E52 -> 0 | F12: =SA34a!F52 -> 0 | G12: =SA34a!G52 -> 0 | H12: =SA34a!H52 -> 0 | I12: =SA34a!I52 -> 0 | J12: =SA34a!J52 -> 0 | K12: =SA34a!K52 -> 0
A13: Coastal Infrastructure | C13: =SA34a!C62 -> 0 | D13: =SA34a!D62 -> 0 | E13: =SA34a!E62 -> 0 | F13: =SA34a!F62 -> 0 | G13: =SA34a!G62 -> 0 | H13: =SA34a!H62 -> 0 | I13: =SA34a!I62 -> 0 | J13: =SA34a!J62 -> 0 | K13: =SA34a!K62 -> 0
A14: Information and Communication Infrastructure | C14: =SA34a!C68 -> 0 | D14: =SA34a!D68 -> 0 | E14: =SA34a!E68 -> 0 | F14: =SA34a!F68 -> 0 | G14: =SA34a!G68 -> 0 | H14: =SA34a!H68 -> 0 | I14: =SA34a!I68 -> 0 | J14: =SA34a!J68 -> 0 | K14: =SA34a!K68 -> 0
A15: Infrastructure | C15: =SUM(C6:C14) -> 0 | D15: =SUM(D6:D14) -> 14795013.43 | E15: 11362995.15 | F15: 0 | G15: 0 | H15: 0 | I15: 0 | J15: 0 | K15: 0
A16: Community Facilities | C16: =SA34a!C75 -> 0 | D16: =SA34a!D75 -> 0 | E16: =SA34a!E75 -> 1632629.34 | F16: =SA34a!F75 -> 0 | G16: =SA34a!G75 -> 0 | H16: =SA34a!H75 -> 0 | I16: =SA34a!I75 -> 2383000 | J16: =SA34a!J75 -> 2515000 | K16: =SA34a!K75 -> 2660000
A17: Sport and Recreation Facilities | C17: =SA34a!C98 -> -3259903.01 | D17: =SA34a!D98 -> 5822609.21 | E17: =SA34a!E98 -> 8285061.81 | F17: =SA34a!F98 -> 0 | G17: =SA34a!G98 -> 0 | H17: =SA34a!H98 -> 0 | I17: =SA34a!I98 -> 0 | J17: =SA34a!J98 -> 0 | K17: =SA34a!K98 -> 0
A18: Community Assets | C18: =SUM(C16:C17) -> -3259903.01 | D18: =SUM(D16:D17) -> 5822609.21 | E18: 9917691.15 | F18: 0 | G18: 0 | H18: 0 | I18: 2383000 | J18: 2515000 | K18: 2660000
A19: Heritage Assets | C19: =SA34a!C103 -> 0 | D19: =SA34a!D103 -> 0 | E19: =SA34a!E103 -> 0 | F19: =SA34a!F103 -> 0 | G19: =SA34a!G103 -> 0 | H19: =SA34a!H103 -> 0 | I19: =SA34a!I103 -> 0 | J19: =SA34a!J103 -> 0 | K19: =SA34a!K103 -> 0
A20: Revenue Generating | C20: =SA34a!C111 -> 0 | D20: =SA34a!D111 -> 0 | E20: =SA34a!E111 -> 0 | F20: =SA34a!F111 -> 0 | G20: =SA34a!G111 -> 0 | H20: =SA34a!H111 -> 0 | I20: =SA34a!I111 -> 0 | J20: =SA34a!J111 -> 0 | K20: =SA34a!K111 -> 0
A21: Non-revenue Generating | C21: =SA34a!C114 -> 0 | D21: =SA34a!D114 -> 0 | E21: =SA34a!E114 -> 0 | F21: =SA34a!F114 -> 0 | G21: =SA34a!G114 -> 0 | H21: =SA34a!H114 -> 0 | I21: =SA34a!I114 -> 0 | J21: =SA34a!J114 -> 0 | K21: =SA34a!K114 -> 0
A22: Investment properties | C22: =SUM(C20:C21) -> 0 | D22: =SUM(D20:D21) -> 0 | E22: 0 | F22: 0 | G22: 0 | H22: 0 | I22: 0 | J22: 0 | K22: 0
A23: Operational Buildings | C23: =SA34a!C119 -> 14136973.84 | D23: =SA34a!D119 -> 4163172.91 | E23: =SA34a!E119 -> 5269172.91 | F23: =SA34a!F119 -> 0 | G23: =SA34a!G119 -> 0 | H23: =SA34a!H119 -> 0 | I23: =SA34a!I119 -> 0 | J23: =SA34a!J119 -> 0 | K23: =SA34a!K119 -> 0
A24: Housing | C24: =SA34a!C131 -> 0 | D24: =SA34a!D131 -> 0 | E24: =SA34a!E131 -> 0 | F24: =SA34a!F131 -> 0 | G24: =SA34a!G131 -> 0 | H24: =SA34a!H131 -> 0 | I24: =SA34a!I131 -> 0 | J24: =SA34a!J131 -> 0 | K24: =SA34a!K131 -> 0
A25: Other Assets | C25: =SUM(C23:C24) -> 14136973.84 | D25: =SUM(D23:D24) -> 4163172.91 | E25: 5269172.91 | F25: 0 | G25: 0 | H25: 0 | I25: 0 | J25: 0 | K25: 0
A26: Biological or Cultivated Assets | C26: =SA34a!C136 -> 0 | D26: =SA34a!D136 -> 0 | E26: =SA34a!E136 -> 0 | F26: =SA34a!F136 -> 0 | G26: =SA34a!G136 -> 0 | H26: =SA34a!H136 -> 0 | I26: =SA34a!I136 -> 0 | J26: =SA34a!J136 -> 0 | K26: =SA34a!K136 -> 0
A27: Servitudes | C27: =SA34a!C140 -> 0 | D27: =SA34a!D140 -> 0 | E27: =SA34a!E140 -> 0 | F27: =SA34a!F140 -> 0 | G27: =SA34a!G140 -> 0 | H27: =SA34a!H140 -> 0 | I27: =SA34a!I140 -> 0 | J27: =SA34a!J140 -> 0 | K27: =SA34a!K140 -> 0
A28: Licences and Rights | C28: =SA34a!C141 -> 1106588.59 | D28: =SA34a!D141 -> 2322734.69 | E28: =SA34a!E141 -> 1094588.59 | F28: =SA34a!F141 -> 0 | G28: =SA34a!G141 -> 0 | H28: =SA34a!H141 -> 0 | I28: =SA34a!I141 -> 0 | J28: =SA34a!J141 -> 0 | K28: =SA34a!K141 -> 0
A29: Intangible Assets | C29: =SUM(C27:C28) -> 1106588.59 | D29: =SUM(D27:D28) -> 2322734.69 | E29: 1094588.59 | F29: 0 | G29: 0 | H29: 0 | I29: 0 | J29: 0 | K29: 0
A30: Computer Equipment | C30: =SA34a!C149 -> 13946791.4 | D30: =SA34a!D149 -> 13946791.1 | E30: =SA34a!E149 -> 14419209.97 | F30: =SA34a!F149 -> 0 | G30: =SA34a!G149 -> 0 | H30: =SA34a!H149 -> 0 | I30: =SA34a!I149 -> 250000 | J30: =SA34a!J149 -> 150000 | K30: =SA34a!K149 -> 200000
A31: Furniture and Office Equipment | C31: =SA34a!C152 -> 6090869.56 | D31: =SA34a!D152 -> 909944.53 | E31: =SA34a!E152 -> 1508855.94 | F31: =SA34a!F152 -> 0 | G31: =SA34a!G152 -> 0 | H31: =SA34a!H152 -> 0 | I31: =SA34a!I152 -> 0 | J31: =SA34a!J152 -> 0 | K31: =SA34a!K152 -> 0
A32: Machinery and Equipment | C32: =SA34a!C155 -> 12135564.68 | D32: =SA34a!D155 -> 13897919.2 | E32: =SA34a!E155 -> 13369764.33 | F32: =SA34a!F155 -> 0 | G32: =SA34a!G155 -> 50000 | H32: =SA34a!H155 -> 50000 | I32: =SA34a!I155 -> 370000 | J32: =SA34a!J155 -> 0 | K32: =SA34a!K155 -> 0
A33: Transport Assets | C33: =SA34a!C158 -> 22925990.86 | D33: =SA34a!D158 -> 21551907.32 | E33: =SA34a!E158 -> 22068974.41 | F33: =SA34a!F158 -> 0 | G33: =SA34a!G158 -> 0 | H33: =SA34a!H158 -> 0 | I33: =SA34a!I158 -> 0 | J33: =SA34a!J158 -> 0 | K33: =SA34a!K158 -> 0
A34: Land | C34: =SA34a!C161 -> 11756160 | D34: =SA34a!D161 -> 18800000 | E34: =SA34a!E161 -> 18888000 | F34: =SA34a!F161 -> 0 | G34: =SA34a!G161 -> 0 | H34: =SA34a!H161 -> 0 | I34: =SA34a!I161 -> 0 | J34: =SA34a!J161 -> 0 | K34: =SA34a!K161 -> 0
A35: Zoo's, Marine and Non-biological Animals | C35: =SA34a!C164 -> 0 | D35: =SA34a!D164 -> 0 | E35: =SA34a!E164 -> 0 | F35: =SA34a!F164 -> 0 | G35: =SA34a!G164 -> 0 | H35: =SA34a!H164 -> 0 | I35: =SA34a!I164 -> 0 | J35: =SA34a!J164 -> 0 | K35: =SA34a!K164 -> 0
A37: Total Renewal of Existing Assets | B37: 2 | C37: =C47+C50+C51+C54+C57+C58+SUM(C61:C67) -> 0 | D37: =D47+D50+D51+D54+D57+D58+SUM(D61:D67) -> 0 | E37: 0 | F37: 0 | G37: 0 | H37: 0 | I37: 0 | J37: 0 | K37: 0
A38: Roads Infrastructure | C38: =SA34b!C7 -> 0 | D38: =SA34b!D7 -> 0 | E38: =SA34b!E7 -> 0 | F38: =SA34b!F7 -> 0 | G38: =SA34b!G7 -> 0 | H38: =SA34b!H7 -> 0 | I38: =SA34b!I7 -> 0 | J38: =SA34b!J7 -> 0 | K38: =SA34b!K7 -> 0
A39: Storm water Infrastructure | C39: =SA34b!C12 -> 0 | D39: =SA34b!D12 -> 0 | E39: =SA34b!E12 -> 0 | F39: =SA34b!F12 -> 0 | G39: =SA34b!G12 -> 0 | H39: =SA34b!H12 -> 0 | I39: =SA34b!I12 -> 0 | J39: =SA34b!J12 -> 0 | K39: =SA34b!K12 -> 0
A40: Electrical Infrastructure | C40: =SA34b!C16 -> 0 | D40: =SA34b!D16 -> 0 | E40: =SA34b!E16 -> 0 | F40: =SA34b!F16 -> 0 | G40: =SA34b!G16 -> 0 | H40: =SA34b!H16 -> 0 | I40: =SA34b!I16 -> 0 | J40: =SA34b!J16 -> 0 | K40: =SA34b!K16 -> 0
A41: Water Supply Infrastructure | C41: =SA34b!C26 -> 0 | D41: =SA34b!D26 -> 0 | E41: =SA34b!E26 -> 0 | F41: =SA34b!F26 -> 0 | G41: =SA34b!G26 -> 0 | H41: =SA34b!H26 -> 0 | I41: =SA34b!I26 -> 0 | J41: =SA34b!J26 -> 0 | K41: =SA34b!K26 -> 0
A42: Sanitation Infrastructure | C42: =SA34b!C37 -> 0 | D42: =SA34b!D37 -> 0 | E42: =SA34b!E37 -> 0 | F42: =SA34b!F37 -> 0 | G42: =SA34b!G37 -> 0 | H42: =SA34b!H37 -> 0 | I42: =SA34b!I37 -> 0 | J42: =SA34b!J37 -> 0 | K42: =SA34b!K37 -> 0
A43: Solid Waste Infrastructure | C43: =SA34b!C44 -> 0 | D43: =SA34b!D44 -> 0 | E43: =SA34b!E44 -> 0 | F43: =SA34b!F44 -> 0 | G43: =SA34b!G44 -> 0 | H43: =SA34b!H44 -> 0 | I43: =SA34b!I44 -> 0 | J43: =SA34b!J44 -> 0 | K43: =SA34b!K44 -> 0
A44: Rail Infrastructure | C44: =SA34b!C52 -> 0 | D44: =SA34b!D52 -> 0 | E44: =SA34b!E52 -> 0 | F44: =SA34b!F52 -> 0 | G44: =SA34b!G52 -> 0 | H44: =SA34b!H52 -> 0 | I44: =SA34b!I52 -> 0 | J44: =SA34b!J52 -> 0 | K44: =SA34b!K52 -> 0
A45: Coastal Infrastructure | C45: =SA34b!C62 -> 0 | D45: =SA34b!D62 -> 0 | E45: =SA34b!E62 -> 0 | F45: =SA34b!F62 -> 0 | G45: =SA34b!G62 -> 0 | H45: =SA34b!H62 -> 0 | I45: =SA34b!I62 -> 0 | J45: =SA34b!J62 -> 0 | K45: =SA34b!K62 -> 0
A46: Information and Communication Infrastructure | C46: =SA34b!C68 -> 0 | D46: =SA34b!D68 -> 0 | E46: =SA34b!E68 -> 0 | F46: =SA34b!F68 -> 0 | G46: =SA34b!G68 -> 0 | H46: =SA34b!H68 -> 0 | I46: =SA34b!I68 -> 0 | J46: =SA34b!J68 -> 0 | K46: =SA34b!K68 -> 0
A47: Infrastructure | C47: =SUM(C38:C46) -> 0 | D47: =SUM(D38:D46) -> 0 | E47: 0 | F47: 0 | G47: 0 | H47: 0 | I47: 0 | J47: 0 | K47: 0
A48: Community Facilities | C48: =SA34b!C75 -> 0 | D48: =SA34b!D75 -> 0 | E48: =SA34b!E75 -> 0 | F48: =SA34b!F75 -> 0 | G48: =SA34b!G75 -> 0 | H48: =SA34b!H75 -> 0 | I48: =SA34b!I75 -> 0 | J48: =SA34b!J75 -> 0 | K48: =SA34b!K75 -> 0
A49: Sport and Recreation Facilities | C49: =SA34b!C98 -> 0 | D49: =SA34b!D98 -> 0 | E49: =SA34b!E98 -> 0 | F49: =SA34b!F98 -> 0 | G49: =SA34b!G98 -> 0 | H49: =SA34b!H98 -> 0 | I49: =SA34b!I98 -> 0 | J49: =SA34b!J98 -> 0 | K49: =SA34b!K98 -> 0
A50: Community Assets | C50: =SUM(C48:C49) -> 0 | D50: =SUM(D48:D49) -> 0 | E50: 0 | F50: 0 | G50: 0 | H50: 0 | I50: 0 | J50: 0 | K50: 0
A51: Heritage Assets | C51: =SA34b!C103 -> 0 | D51: =SA34b!D103 -> 0 | E51: =SA34b!E103 -> 0 | F51: =SA34b!F103 -> 0 | G51: =SA34b!G103 -> 0 | H51: =SA34b!H103 -> 0 | I51: =SA34b!I103 -> 0 | J51: =SA34b!J103 -> 0 | K51: =SA34b!K103 -> 0
A52: Revenue Generating | C52: =SA34b!C111 -> 0 | D52: =SA34b!D111 -> 0 | E52: =SA34b!E111 -> 0 | F52: =SA34b!F111 -> 0 | G52: =SA34b!G111 -> 0 | H52: =SA34b!H111 -> 0 | I52: =SA34b!I111 -> 0 | J52: =SA34b!J111 -> 0 | K52: =SA34b!K111 -> 0
A53: Non-revenue Generating | C53: =SA34b!C114 -> 0 | D53: =SA34b!D114 -> 0 | E53: =SA34b!E114 -> 0 | F53: =SA34b!F114 -> 0 | G53: =SA34b!G114 -> 0 | H53: =SA34b!H114 -> 0 | I53: =SA34b!I114 -> 0 | J53: =SA34b!J114 -> 0 | K53: =SA34b!K114 -> 0
A54: Investment properties | C54: =SUM(C52:C53) -> 0 | D54: =SUM(D52:D53) -> 0 | E54: 0 | F54: 0 | G54: 0 | H54: 0 | I54: 0 | J54: 0 | K54: 0
A55: Operational Buildings | C55: =SA34b!C119 -> 0 | D55: =SA34b!D119 -> 0 | E55: =SA34b!E119 -> 0 | F55: =SA34b!F119 -> 0 | G55: =SA34b!G119 -> 0 | H55: =SA34b!H119 -> 0 | I55: =SA34b!I119 -> 0 | J55: =SA34b!J119 -> 0 | K55: =SA34b!K119 -> 0
A56: Housing | C56: =SA34b!C131 -> 0 | D56: =SA34b!D131 -> 0 | E56: =SA34b!E131 -> 0 | F56: =SA34b!F131 -> 0 | G56: =SA34b!G131 -> 0 | H56: =SA34b!H131 -> 0 | I56: =SA34b!I131 -> 0 | J56: =SA34b!J131 -> 0 | K56: =SA34b!K131 -> 0
A57: Other Assets | C57: =SUM(C55:C56) -> 0 | D57: =SUM(D55:D56) -> 0 | E57: 0 | F57: 0 | G57: 0 | H57: 0 | I57: 0 | J57: 0 | K57: 0
A58: Biological or Cultivated Assets | C58: =SA34b!C136 -> 0 | D58: =SA34b!D136 -> 0 | E58: =SA34b!E136 -> 0 | F58: =SA34b!F136 -> 0 | G58: =SA34b!G136 -> 0 | H58: =SA34b!H136 -> 0 | I58: =SA34b!I136 -> 0 | J58: =SA34b!J136 -> 0 | K58: =SA34b!K136 -> 0
A59: Servitudes | C59: =SA34b!C140 -> 0 | D59: =SA34b!D140 -> 0 | E59: =SA34b!E140 -> 0 | F59: =SA34b!F140 -> 0 | G59: =SA34b!G140 -> 0 | H59: =SA34b!H140 -> 0 | I59: =SA34b!I140 -> 0 | J59: =SA34b!J140 -> 0 | K59: =SA34b!K140 -> 0
A60: Licences and Rights | C60: =SA34b!C141 -> 0 | D60: =SA34b!D141 -> 0 | E60: =SA34b!E141 -> 0 | F60: =SA34b!F141 -> 0 | G60: =SA34b!G141 -> 0 | H60: =SA34b!H141 -> 0 | I60: =SA34b!I141 -> 0 | J60: =SA34b!J141 -> 0 | K60: =SA34b!K141 -> 0
A61: Intangible Assets | C61: =SUM(C59:C60) -> 0 | D61: =SUM(D59:D60) -> 0 | E61: 0 | F61: 0 | G61: 0 | H61: 0 | I61: 0 | J61: 0 | K61: 0
A62: Computer Equipment | C62: =SA34b!C149 -> 0 | D62: =SA34b!D149 -> 0 | E62: =SA34b!E149 -> 0 | F62: =SA34b!F149 -> 0 | G62: =SA34b!G149 -> 0 | H62: =SA34b!H149 -> 0 | I62: =SA34b!I149 -> 0 | J62: =SA34b!J149 -> 0 | K62: =SA34b!K149 -> 0
A63: Furniture and Office Equipment | C63: =SA34b!C152 -> 0 | D63: =SA34b!D152 -> 0 | E63: =SA34b!E152 -> 0 | F63: =SA34b!F152 -> 0 | G63: =SA34b!G152 -> 0 | H63: =SA34b!H152 -> 0 | I63: =SA34b!I152 -> 0 | J63: =SA34b!J152 -> 0 | K63: =SA34b!K152 -> 0
A64: Machinery and Equipment | C64: =SA34b!C155 -> 0 | D64: =SA34b!D155 -> 0 | E64: =SA34b!E155 -> 0 | F64: =SA34b!F155 -> 0 | G64: =SA34b!G155 -> 0 | H64: =SA34b!H155 -> 0 | I64: =SA34b!I155 -> 0 | J64: =SA34b!J155 -> 0 | K64: =SA34b!K155 -> 0
A65: Transport Assets | C65: =SA34b!C158 -> 0 | D65: =SA34b!D158 -> 0 | E65: =SA34b!E158 -> 0 | F65: =SA34b!F158 -> 0 | G65: =SA34b!G158 -> 0 | H65: =SA34b!H158 -> 0 | I65: =SA34b!I158 -> 0 | J65: =SA34b!J158 -> 0 | K65: =SA34b!K158 -> 0
A66: Land | C66: =SA34b!C161 -> 0 | D66: =SA34b!D161 -> 0 | E66: =SA34b!E161 -> 0 | F66: =SA34b!F161 -> 0 | G66: =SA34b!G161 -> 0 | H66: =SA34b!H161 -> 0 | I66: =SA34b!I161 -> 0 | J66: =SA34b!J161 -> 0 | K66: =SA34b!K161 -> 0
A67: Zoo's, Marine and Non-biological Animals | C67: =SA34b!C164 -> 0 | D67: =SA34b!D164 -> 0 | E67: =SA34b!E164 -> 0 | F67: =SA34b!F164 -> 0 | G67: =SA34b!G164 -> 0 | H67: =SA34b!H164 -> 0 | I67: =SA34b!I164 -> 0 | J67: =SA34b!J164 -> 0 | K67: =SA34b!K164 -> 0
A69: Total Upgrading of Existing Assets | B69: 6 | C69: =C79+C82+C83+C86+C89+C90+SUM(C93:C99) -> 0 | D69: =D79+D82+D83+D86+D89+D90+SUM(D93:D99) -> 0 | E69: 0 | F69: 0 | G69: 0 | H69: 0 | I69: 0 | J69: 0 | K69: 0
A70: Roads Infrastructure | C70: =SA34e!C7 -> 0 | D70: =SA34e!D7 -> 0 | E70: =SA34e!E7 -> 0 | F70: =SA34e!F7 -> 0 | G70: =SA34e!G7 -> 0 | H70: =SA34e!H7 -> 0 | I70: =SA34e!I7 -> 0 | J70: =SA34e!J7 -> 0 | K70: =SA34e!K7 -> 0
A71: Storm water Infrastructure | C71: =SA34e!C12 -> 0 | D71: =SA34e!D12 -> 0 | E71: =SA34e!E12 -> 0 | F71: =SA34e!F12 -> 0 | G71: =SA34e!G12 -> 0 | H71: =SA34e!H12 -> 0 | I71: =SA34e!I12 -> 0 | J71: =SA34e!J12 -> 0 | K71: =SA34e!K12 -> 0
A72: Electrical Infrastructure | C72: =SA34e!C16 -> 0 | D72: =SA34e!D16 -> 0 | E72: =SA34e!E16 -> 0 | F72: =SA34e!F16 -> 0 | G72: =SA34e!G16 -> 0 | H72: =SA34e!H16 -> 0 | I72: =SA34e!I16 -> 0 | J72: =SA34e!J16 -> 0 | K72: =SA34e!K16 -> 0
A73: Water Supply Infrastructure | C73: =SA34e!C26 -> 0 | D73: =SA34e!D26 -> 0 | E73: =SA34e!E26 -> 0 | F73: =SA34e!F26 -> 0 | G73: =SA34e!G26 -> 0 | H73: =SA34e!H26 -> 0 | I73: =SA34e!I26 -> 0 | J73: =SA34e!J26 -> 0 | K73: =SA34e!K26 -> 0
A74: Sanitation Infrastructure | C74: =SA34e!C37 -> 0 | D74: =SA34e!D37 -> 0 | E74: =SA34e!E37 -> 0 | F74: =SA34e!F37 -> 0 | G74: =SA34e!G37 -> 0 | H74: =SA34e!H37 -> 0 | I74: =SA34e!I37 -> 0 | J74: =SA34e!J37 -> 0 | K74: =SA34e!K37 -> 0
A75: Solid Waste Infrastructure | C75: =SA34e!C44 -> 0 | D75: =SA34e!D44 -> 0 | E75: =SA34e!E44 -> 0 | F75: =SA34e!F44 -> 0 | G75: =SA34e!G44 -> 0 | H75: =SA34e!H44 -> 0 | I75: =SA34e!I44 -> 0 | J75: =SA34e!J44 -> 0 | K75: =SA34e!K44 -> 0
A76: Rail Infrastructure | C76: =SA34e!C52 -> 0 | D76: =SA34e!D52 -> 0 | E76: =SA34e!E52 -> 0 | F76: =SA34e!F52 -> 0 | G76: =SA34e!G52 -> 0 | H76: =SA34e!H52 -> 0 | I76: =SA34e!I52 -> 0 | J76: =SA34e!J52 -> 0 | K76: =SA34e!K52 -> 0
A77: Coastal Infrastructure | C77: =SA34e!C62 -> 0 | D77: =SA34e!D62 -> 0 | E77: =SA34e!E62 -> 0 | F77: =SA34e!F62 -> 0 | G77: =SA34e!G62 -> 0 | H77: =SA34e!H62 -> 0 | I77: =SA34e!I62 -> 0 | J77: =SA34e!J62 -> 0 | K77: =SA34e!K62 -> 0
A78: Information and Communication Infrastructure | C78: =SA34e!C68 -> 0 | D78: =SA34e!D68 -> 0 | E78: =SA34e!E68 -> 0 | F78: =SA34e!F68 -> 0 | G78: =SA34e!G68 -> 0 | H78: =SA34e!H68 -> 0 | I78: =SA34e!I68 -> 0 | J78: =SA34e!J68 -> 0 | K78: =SA34e!K68 -> 0
A79: Infrastructure | C79: =SUM(C70:C78) -> 0 | D79: 0 | E79: 0 | F79: 0 | G79: 0 | H79: 0 | I79: 0 | J79: 0 | K79: 0
A80: Community Facilities | C80: =SA34e!C75 -> 0 | D80: =SA34e!D75 -> 0 | E80: =SA34e!E75 -> 0 | F80: =SA34e!F75 -> 0 | G80: =SA34e!G75 -> 0 | H80: =SA34e!H75 -> 0 | I80: =SA34e!I75 -> 0 | J80: =SA34e!J75 -> 0 | K80: =SA34e!K75 -> 0
A81: Sport and Recreation Facilities | C81: =SA34e!C98 -> 0 | D81: =SA34e!D98 -> 0 | E81: =SA34e!E98 -> 0 | F81: =SA34e!F98 -> 0 | G81: =SA34e!G98 -> 0 | H81: =SA34e!H98 -> 0 | I81: =SA34e!I98 -> 0 | J81: =SA34e!J98 -> 0 | K81: =SA34e!K98 -> 0
A82: Community Assets | C82: =SUM(C80:C81) -> 0 | D82: 0 | E82: 0 | F82: 0 | G82: 0 | H82: 0 | I82: 0 | J82: 0 | K82: 0
A83: Heritage Assets | C83: =SA34e!C103 -> 0 | D83: =SA34e!D103 -> 0 | E83: =SA34e!E103 -> 0 | F83: =SA34e!F103 -> 0 | G83: =SA34e!G103 -> 0 | H83: =SA34e!H103 -> 0 | I83: =SA34e!I103 -> 0 | J83: =SA34e!J103 -> 0 | K83: =SA34e!K103 -> 0
A84: Revenue Generating | C84: =SA34e!C111 -> 0 | D84: =SA34e!D111 -> 0 | E84: =SA34e!E111 -> 0 | F84: =SA34e!F111 -> 0 | G84: =SA34e!G111 -> 0 | H84: =SA34e!H111 -> 0 | I84: =SA34e!I111 -> 0 | J84: =SA34e!J111 -> 0 | K84: =SA34e!K111 -> 0
A85: Non-revenue Generating | C85: =SA34e!C114 -> 0 | D85: =SA34e!D114 -> 0 | E85: =SA34e!E114 -> 0 | F85: =SA34e!F114 -> 0 | G85: =SA34e!G114 -> 0 | H85: =SA34e!H114 -> 0 | I85: =SA34e!I114 -> 0 | J85: =SA34e!J114 -> 0 | K85: =SA34e!K114 -> 0
A86: Investment properties | C86: =SUM(C84:C85) -> 0 | D86: 0 | E86: 0 | F86: 0 | G86: 0 | H86: 0 | I86: 0 | J86: 0 | K86: 0
A87: Operational Buildings | C87: =SA34e!C119 -> 0 | D87: =SA34e!D119 -> 0 | E87: =SA34e!E119 -> 0 | F87: =SA34e!F119 -> 0 | G87: =SA34e!G119 -> 0 | H87: =SA34e!H119 -> 0 | I87: =SA34e!I119 -> 0 | J87: =SA34e!J119 -> 0 | K87: =SA34e!K119 -> 0
A88: Housing | C88: =SA34e!C131 -> 0 | D88: =SA34e!D131 -> 0 | E88: =SA34e!E131 -> 0 | F88: =SA34e!F131 -> 0 | G88: =SA34e!G131 -> 0 | H88: =SA34e!H131 -> 0 | I88: =SA34e!I131 -> 0 | J88: =SA34e!J131 -> 0 | K88: =SA34e!K131 -> 0
A89: Other Assets | C89: =SUM(C87:C88) -> 0 | D89: 0 | E89: 0 | F89: 0 | G89: 0 | H89: 0 | I89: 0 | J89: 0 | K89: 0
A90: Biological or Cultivated Assets | C90: =SA34e!C136 -> 0 | D90: =SA34e!D136 -> 0 | E90: =SA34e!E136 -> 0 | F90: =SA34e!F136 -> 0 | G90: =SA34e!G136 -> 0 | H90: =SA34e!H136 -> 0 | I90: =SA34e!I136 -> 0 | J90: =SA34e!J136 -> 0 | K90: =SA34e!K136 -> 0
A91: Servitudes | C91: =SA34e!C140 -> 0 | D91: =SA34e!D140 -> 0 | E91: =SA34e!E140 -> 0 | F91: =SA34e!F140 -> 0 | G91: =SA34e!G140 -> 0 | H91: =SA34e!H140 -> 0 | I91: =SA34e!I140 -> 0 | J91: =SA34e!J140 -> 0 | K91: =SA34e!K140 -> 0
A92: Licences and Rights | C92: =SA34e!C141 -> 0 | D92: =SA34e!D141 -> 0 | E92: =SA34e!E141 -> 0 | F92: =SA34e!F141 -> 0 | G92: =SA34e!G141 -> 0 | H92: =SA34e!H141 -> 0 | I92: =SA34e!I141 -> 0 | J92: =SA34e!J141 -> 0 | K92: =SA34e!K141 -> 0
A93: Intangible Assets | C93: =SUM(C91:C92) -> 0 | D93: 0 | E93: 0 | F93: 0 | G93: 0 | H93: 0 | I93: 0 | J93: 0 | K93: 0
A94: Computer Equipment | C94: =SA34e!C149 -> 0 | D94: =SA34e!D149 -> 0 | E94: =SA34e!E149 -> 0 | F94: =SA34e!F149 -> 0 | G94: =SA34e!G149 -> 0 | H94: =SA34e!H149 -> 0 | I94: =SA34e!I149 -> 0 | J94: =SA34e!J149 -> 0 | K94: =SA34e!K149 -> 0
A95: Furniture and Office Equipment | C95: =SA34e!C152 -> 0 | D95: =SA34e!D152 -> 0 | E95: =SA34e!E152 -> 0 | F95: =SA34e!F152 -> 0 | G95: =SA34e!G152 -> 0 | H95: =SA34e!H152 -> 0 | I95: =SA34e!I152 -> 0 | J95: =SA34e!J152 -> 0 | K95: =SA34e!K152 -> 0
A96: Machinery and Equipment | C96: =SA34e!C155 -> 0 | D96: =SA34e!D155 -> 0 | E96: =SA34e!E155 -> 0 | F96: =SA34e!F155 -> 0 | G96: =SA34e!G155 -> 0 | H96: =SA34e!H155 -> 0 | I96: =SA34e!I155 -> 0 | J96: =SA34e!J155 -> 0 | K96: =SA34e!K155 -> 0
A97: Transport Assets | C97: =SA34e!C158 -> 0 | D97: =SA34e!D158 -> 0 | E97: =SA34e!E158 -> 0 | F97: =SA34e!F158 -> 0 | G97: =SA34e!G158 -> 0 | H97: =SA34e!H158 -> 0 | I97: =SA34e!I158 -> 0 | J97: =SA34e!J158 -> 0 | K97: =SA34e!K158 -> 0
A98: Land | C98: =SA34e!C161 -> 0 | D98: =SA34e!D161 -> 0 | E98: =SA34e!E161 -> 0 | F98: =SA34e!F161 -> 0 | G98: =SA34e!G161 -> 0 | H98: =SA34e!H161 -> 0 | I98: =SA34e!I161 -> 0 | J98: =SA34e!J161 -> 0 | K98: =SA34e!K161 -> 0
A99: Zoo's, Marine and Non-biological Animals | C99: =SA34e!C164 -> 0 | D99: =SA34e!D164 -> 0 | E99: =SA34e!E164 -> 0 | F99: =SA34e!F164 -> 0 | G99: =SA34e!G164 -> 0 | H99: =SA34e!H164 -> 0 | I99: =SA34e!I164 -> 0 | J99: =SA34e!J164 -> 0 | K99: =SA34e!K164 -> 0
A101: Total Capital Expenditure | B101: 4 | C101: =+C5+C37+C69 -> 78839035.92 | D101: =+D5+D37+D69 -> 96210092.39 | E101: 97899252.45 | F101: 0 | G101: 50000 | H101: 50000 | I101: 3003000 | J101: 2665000 | K101: 2860000
A102: Roads Infrastructure | C102: =+C6+C38+C70 -> 0 | D102: =+D6+D38+D70 -> 7832014.79 | E102: 4020874.98 | F102: 0 | G102: 0 | H102: 0 | I102: 0 | J102: 0 | K102: 0
A103: Storm water Infrastructure | C103: =+C7+C39+C71 -> 0 | D103: 0 | E103: 0 | F103: 0 | G103: 0 | H103: 0 | I103: 0 | J103: 0 | K103: 0
A104: Electrical Infrastructure | C104: 0 | D104: 0 | E104: 0 | F104: 0 | G104: 0 | H104: 0 | I104: 0 | J104: 0 | K104: 0
A105: Water Supply Infrastructure | C105: 0 | D105: 3185979.04 | E105: 3565100.57 | F105: 0 | G105: 0 | H105: 0 | I105: 0 | J105: 0 | K105: 0
A106: Sanitation Infrastructure | C106: 0 | D106: 3777019.6 | E106: 3777019.6 | F106: 0 | G106: 0 | H106: 0 | I106: 0 | J106: 0 | K106: 0
A107: Solid Waste Infrastructure | C107: 0 | D107: 0 | E107: 0 | F107: 0 | G107: 0 | H107: 0 | I107: 0 | J107: 0 | K107: 0
A108: Rail Infrastructure | C108: 0 | D108: 0 | E108: 0 | F108: 0 | G108: 0 | H108: 0 | I108: 0 | J108: 0 | K108: 0
A109: Coastal Infrastructure | C109: 0 | D109: 0 | E109: 0 | F109: 0 | G109: 0 | H109: 0 | I109: 0 | J109: 0 | K109: 0
A110: Information and Communication Infrastructure | C110: 0 | D110: 0 | E110: 0 | F110: 0 | G110: 0 | H110: 0 | I110: 0 | J110: 0 | K110: 0
A111: Infrastructure | C111: =SUM(C102:C110) -> 0 | D111: =SUM(D102:D110) -> 14795013.43 | E111: 11362995.15 | F111: 0 | G111: 0 | H111: 0 | I111: 0 | J111: 0 | K111: 0
A112: Community Facilities | C112: =+C16+C48+C80 -> 0 | D112: =+D16+D48+D80 -> 0 | E112: 1632629.34 | F112: 0 | G112: 0 | H112: 0 | I112: 2383000 | J112: 2515000 | K112: 2660000
A113: Sport and Recreation Facilities | C113: =+C17+C49+C81 -> -3259903.01 | D113: =+D17+D49+D81 -> 5822609.21 | E113: 8285061.81 | F113: 0 | G113: 0 | H113: 0 | I113: 0 | J113: 0 | K113: 0
A114: Community Assets | C114: =SUM(C112:C113) -> -3259903.01 | D114: =SUM(D112:D113) -> 5822609.21 | E114: 9917691.15 | F114: 0 | G114: 0 | H114: 0 | I114: 2383000 | J114: 2515000 | K114: 2660000
A115: Heritage Assets | C115: =+C19+C51+C83 -> 0 | D115: =+D19+D51+D83 -> 0 | E115: 0 | F115: 0 | G115: 0 | H115: 0 | I115: 0 | J115: 0 | K115: 0
A116: Revenue Generating | C116: =+C20+C52+C84 -> 0 | D116: =+D20+D52+D84 -> 0 | E116: 0 | F116: 0 | G116: 0 | H116: 0 | I116: 0 | J116: 0 | K116: 0
A117: Non-revenue Generating | C117: =+C21+C53+C85 -> 0 | D117: =+D21+D53+D85 -> 0 | E117: 0 | F117: 0 | G117: 0 | H117: 0 | I117: 0 | J117: 0 | K117: 0
A118: Investment properties | C118: =SUM(C116:C117) -> 0 | D118: =SUM(D116:D117) -> 0 | E118: 0 | F118: 0 | G118: 0 | H118: 0 | I118: 0 | J118: 0 | K118: 0
A119: Operational Buildings | C119: =+C23+C55+C87 -> 14136973.84 | D119: =+D23+D55+D87 -> 4163172.91 | E119: 5269172.91 | F119: 0 | G119: 0 | H119: 0 | I119: 0 | J119: 0 | K119: 0
A120: Housing | C120: =+C24+C56+C88 -> 0 | D120: =+D24+D56+D88 -> 0 | E120: 0 | F120: 0 | G120: 0 | H120: 0 | I120: 0 | J120: 0 | K120: 0
A121: Other Assets | C121: =SUM(C119:C120) -> 14136973.84 | D121: 4163172.91 | E121: 5269172.91 | F121: 0 | G121: 0 | H121: 0 | I121: 0 | J121: 0 | K121: 0
A122: Biological or Cultivated Assets | C122: =+C26+C58+C90 -> 0 | D122: =+D26+D58+D90 -> 0 | E122: 0 | F122: 0 | G122: 0 | H122: 0 | I122: 0 | J122: 0 | K122: 0
A123: Servitudes | C123: =+C27+C59+C91 -> 0 | D123: =+D27+D59+D91 -> 0 | E123: 0 | F123: 0 | G123: 0 | H123: 0 | I123: 0 | J123: 0 | K123: 0
A124: Licences and Rights | C124: =+C28+C60+C92 -> 1106588.59 | D124: =+D28+D60+D92 -> 2322734.69 | E124: 1094588.59 | F124: 0 | G124: 0 | H124: 0 | I124: 0 | J124: 0 | K124: 0
A125: Intangible Assets | C125: =SUM(C123:C124) -> 1106588.59 | D125: =SUM(D123:D124) -> 2322734.69 | E125: 1094588.59 | F125: 0 | G125: 0 | H125: 0 | I125: 0 | J125: 0 | K125: 0
A126: Computer Equipment | C126: =+C30+C62+C94 -> 13946791.4 | D126: =+D30+D62+D94 -> 13946791.1 | E126: 14419209.97 | F126: 0 | G126: 0 | H126: 0 | I126: 250000 | J126: 150000 | K126: 200000
A127: Furniture and Office Equipment | C127: =+C31+C63+C95 -> 6090869.56 | D127: 909944.53 | E127: 1508855.94 | F127: 0 | G127: 0 | H127: 0 | I127: 0 | J127: 0 | K127: 0
A128: Machinery and Equipment | C128: 12135564.68 | D128: 13897919.2 | E128: 13369764.33 | F128: 0 | G128: 50000 | H128: 50000 | I128: 370000 | J128: 0 | K128: 0
A129: Transport Assets | C129: 22925990.86 | D129: 21551907.32 | E129: 22068974.41 | F129: 0 | G129: 0 | H129: 0 | I129: 0 | J129: 0 | K129: 0
A130: Land | C130: 11756160 | D130: 18800000 | E130: 18888000 | F130: 0 | G130: 0 | H130: 0 | I130: 0 | J130: 0 | K130: 0
A131: Zoo's, Marine and Non-biological Animals | C131: 0 | D131: 0 | E131: 0 | F131: 0 | G131: 0 | H131: 0 | I131: 0 | J131: 0 | K131: 0
A132: TOTAL CAPITAL EXPENDITURE - Asset class | C132: =+C5+C37+C69 -> 78839035.92 | D132: =+D5+D37+D69 -> 96210092.39 | E132: 97899252.45 | F132: 0 | G132: 50000 | H132: 50000 | I132: 3003000 | J132: 2665000 | K132: 2860000
A134: ASSET REGISTER SUMMARY - PPE (WDV) | B134: 5 | C134: =C144+C147+C148+C151+C154+C155+C158+C159+C160+C161+C162+C163+C164 -> 48180106.41 | D134: =D144+D147+D148+D151+D154+D155+D158+D159+D160+D161+D162+D163+D164 -> 42487350.77 | E134: 38242515.44 | F134: 6521060 | G134: 6350000 | H134: 6350000 | I134: 620000 | J134: 150000 | K134: 200000
A135: Roads Infrastructure | C135: 0 | D135: 0 | E135: 0 | F135: 0 | G135: 0 | H135: 0 | I135: 0 | J135: 0 | K135: 0
A136: Storm water Infrastructure | C136: 0 | D136: 0 | E136: 0 | F136: 0 | G136: 0 | H136: 0 | I136: 0 | J136: 0 | K136: 0
A137: Electrical Infrastructure | C137: 0 | D137: 0 | E137: 0 | F137: 0 | G137: 0 | H137: 0 | I137: 0 | J137: 0 | K137: 0
A138: Water Supply Infrastructure | C138: 0 | D138: 0 | E138: 0 | F138: 0 | G138: 0 | H138: 0 | I138: 0 | J138: 0 | K138: 0
A139: Sanitation Infrastructure | C139: 0 | D139: 0 | E139: 0 | F139: 0 | G139: 0 | H139: 0 | I139: 0 | J139: 0 | K139: 0
A140: Solid Waste Infrastructure | C140: 247567.78 | D140: -139127.67 | E140: -231366.92 | F140: 0 | G140: 0 | H140: 0 | I140: 0 | J140: 0 | K140: 0
A141: Rail Infrastructure | C141: 0 | D141: 0 | E141: 0 | F141: 0 | G141: 0 | H141: 0 | I141: 0 | J141: 0 | K141: 0
A142: Coastal Infrastructure | C142: 0 | D142: 0 | E142: 0 | F142: 0 | G142: 0 | H142: 0 | I142: 0 | J142: 0 | K142: 0
A143: Information and Communication Infrastructure | C143: 0 | D143: 0 | E143: 0 | F143: 0 | G143: 0 | H143: 0 | I143: 0 | J143: 0 | K143: 0
A144: Infrastructure | C144: =SUM(C135:C143) -> 247567.78 | D144: =SUM(D135:D143) -> -139127.67 | E144: -231366.92 | F144: 0 | G144: 0 | H144: 0 | I144: 0 | J144: 0 | K144: 0
A147: Community Assets | C147: 0 | D147: 0 | E147: 0 | F147: 0 | G147: 0 | H147: 0 | I147: 0 | J147: 0 | K147: 0
A148: Heritage Assets | C148: 0 | D148: 0 | E148: 0 | F148: 0 | G148: 0 | H148: 0 | I148: 0 | J148: 0 | K148: 0
A151: Investment properties | C151: 0 | D151: 0 | E151: 0 | F151: 0 | G151: 0 | H151: 0 | I151: 0 | J151: 0 | K151: 0
A154: Other Assets | C154: 12367855.73 | D154: 3991885.93 | E154: 5062163.23 | F154: 0 | G154: 0 | H154: 0 | I154: 0 | J154: 0 | K154: 0
A155: Biological or Cultivated Assets | C155: 0 | D155: 0 | E155: 0 | F155: 0 | G155: 0 | H155: 0 | I155: 0 | J155: 0 | K155: 0
C156: =#REF! ->  | D156: =#REF! ->  | E156: =#REF! ->  | F156: =#REF! ->  | G156: =#REF! ->  | H156: =#REF! ->  | I156: =#REF! ->  | J156: =#REF! ->  | K156: =#REF! -> 
A158: Intangible Assets | C158: 933929.09 | D158: 1509659.79 | E158: 404793.68 | F158: 0 | G158: 0 | H158: 0 | I158: 0 | J158: 0 | K158: 0
A159: Computer Equipment | C159: 9927957.36 | D159: 9927957.06 | E159: 10658045.02 | F159: 0 | G159: 0 | H159: 0 | I159: 300000 | J159: 0 | K159: 0
A160: Furniture and Office Equipment | C160: 1297149.57 | D160: -1438958.58 | E160: -5921372.97 | F160: 0 | G160: 0 | H160: 0 | I160: 220000 | J160: 0 | K160: 0
A161: Machinery and Equipment | C161: 1725771.58 | D161: 1755741.58 | E161: 1817080.16 | F161: 6521060 | G161: 6350000 | H161: 6350000 | I161: 100000 | J161: 150000 | K161: 200000
A162: Transport Assets | C162: 9923715.3 | D162: 8080192.66 | E162: 7565173.24 | F162: 0 | G162: 0 | H162: 0 | I162: 0 | J162: 0 | K162: 0
A163: Land | C163: 11756160 | D163: 18800000 | E163: 18888000 | F163: 0 | G163: 0 | H163: 0 | I163: 0 | J163: 0 | K163: 0
A164: Zoo's, Marine and Non-biological Animals | C164: 0 | D164: 0 | E164: 0 | F164: 0 | G164: 0 | H164: 0 | I164: 0 | J164: 0 | K164: 0
A165: TOTAL ASSET REGISTER SUMMARY - PPE (WDV) | B165: 5 | C165: =C144+C147+C148+C151+C154+C155+C158+C159+C160+C161+C162+C163+C164 -> 48180106.41 | D165: =D144+D147+D148+D151+D154+D155+D158+D159+D160+D161+D162+D163+D164 -> 42487350.77 | E165: 38242515.44 | F165: 6521060 | G165: 6350000 | H165: 6350000 | I165: 620000 | J165: 150000 | K165: 200000
A167: EXPENDITURE OTHER ITEMS | C167: =SUM(C168:C169) -> 0 | D167: =SUM(D168:D169) -> 887175.95 | E167: 37717918.3 | F167: 10253677.6 | G167: 10438239.15 | H167: 2239937.02 | I167: 6700000 | J167: 7440000 | K167: 7700000
A168: Depreciation | B168: 7 | C168: =SA34d!C167 -> 0 | D168: =SA34d!D167 -> 0 | E168: =SA34d!E167 -> 12213 | F168: =SA34d!F167 -> 7067445.2 | G168: =SA34d!G167 -> 10129239.15 | H168: =SA34d!H167 -> 1930937.02 | I168: =SA34d!I167 -> 6300000 | J168: =SA34d!J167 -> 7200000 | K168: =SA34d!K167 -> 7400000
A169: Repairs and Maintenance by Asset Class | B169: 3 | C169: =C179+C182+C183+C186+C189+C190+SUM(C193:C199) -> 0 | D169: =D179+D182+D183+D186+D189+D190+SUM(D193:D199) -> 887175.95 | E169: 37705705.3 | F169: 3186232.4 | G169: 309000 | H169: 309000 | I169: 400000 | J169: 240000 | K169: 300000
A170: Roads Infrastructure | C170: =SA34c!C7 -> 0 | D170: =SA34c!D7 -> 0 | E170: =SA34c!E7 -> 0 | F170: =SA34c!F7 -> 0 | G170: =SA34c!G7 -> 0 | H170: =SA34c!H7 -> 0 | I170: =SA34c!I7 -> 0 | J170: =SA34c!J7 -> 0 | K170: =SA34c!K7 -> 0
A171: Storm water Infrastructure | C171: =SA34c!C12 -> 0 | D171: =SA34c!D12 -> 0 | E171: =SA34c!E12 -> 0 | F171: =SA34c!F12 -> 0 | G171: =SA34c!G12 -> 0 | H171: =SA34c!H12 -> 0 | I171: =SA34c!I12 -> 0 | J171: =SA34c!J12 -> 0 | K171: =SA34c!K12 -> 0
A172: Electrical Infrastructure | C172: =SA34c!C16 -> 0 | D172: =SA34c!D16 -> 0 | E172: =SA34c!E16 -> 0 | F172: =SA34c!F16 -> 0 | G172: =SA34c!G16 -> 0 | H172: =SA34c!H16 -> 0 | I172: =SA34c!I16 -> 0 | J172: =SA34c!J16 -> 0 | K172: =SA34c!K16 -> 0
A173: Water Supply Infrastructure | C173: =SA34c!C26 -> 0 | D173: =SA34c!D26 -> 0 | E173: =SA34c!E26 -> 0 | F173: =SA34c!F26 -> 0 | G173: =SA34c!G26 -> 0 | H173: =SA34c!H26 -> 0 | I173: =SA34c!I26 -> 0 | J173: =SA34c!J26 -> 0 | K173: =SA34c!K26 -> 0
A174: Sanitation Infrastructure | C174: =SA34c!C37 -> 0 | D174: =SA34c!D37 -> 0 | E174: =SA34c!E37 -> 0 | F174: =SA34c!F37 -> 0 | G174: =SA34c!G37 -> 0 | H174: =SA34c!H37 -> 0 | I174: =SA34c!I37 -> 0 | J174: =SA34c!J37 -> 0 | K174: =SA34c!K37 -> 0
A175: Solid Waste Infrastructure | C175: =SA34c!C44 -> 0 | D175: =SA34c!D44 -> 0 | E175: =SA34c!E44 -> 0 | F175: =SA34c!F44 -> 0 | G175: =SA34c!G44 -> 0 | H175: =SA34c!H44 -> 0 | I175: =SA34c!I44 -> 0 | J175: =SA34c!J44 -> 0 | K175: =SA34c!K44 -> 0
A176: Rail Infrastructure | C176: =SA34c!C52 -> 0 | D176: =SA34c!D52 -> 0 | E176: =SA34c!E52 -> 0 | F176: =SA34c!F52 -> 0 | G176: =SA34c!G52 -> 0 | H176: =SA34c!H52 -> 0 | I176: =SA34c!I52 -> 0 | J176: =SA34c!J52 -> 0 | K176: =SA34c!K52 -> 0
A177: Coastal Infrastructure | C177: =SA34c!C62 -> 0 | D177: =SA34c!D62 -> 0 | E177: =SA34c!E62 -> 0 | F177: =SA34c!F62 -> 0 | G177: =SA34c!G62 -> 0 | H177: =SA34c!H62 -> 0 | I177: =SA34c!I62 -> 0 | J177: =SA34c!J62 -> 0 | K177: =SA34c!K62 -> 0
A178: Information and Communication Infrastructure | C178: =SA34c!C68 -> 0 | D178: =SA34c!D68 -> 0 | E178: =SA34c!E68 -> 0 | F178: =SA34c!F68 -> 0 | G178: =SA34c!G68 -> 0 | H178: =SA34c!H68 -> 0 | I178: =SA34c!I68 -> 0 | J178: =SA34c!J68 -> 0 | K178: =SA34c!K68 -> 0
A179: Infrastructure | C179: =SUM(C170:C178) -> 0 | D179: =SUM(D170:D178) -> 0 | E179: 0 | F179: 0 | G179: 0 | H179: 0 | I179: 0 | J179: 0 | K179: 0
A180: Community Facilities | C180: =SA34c!C75 -> 0 | D180: =SA34c!D75 -> 0 | E180: =SA34c!E75 -> 0 | F180: =SA34c!F75 -> 0 | G180: =SA34c!G75 -> 0 | H180: =SA34c!H75 -> 0 | I180: =SA34c!I75 -> 0 | J180: =SA34c!J75 -> 0 | K180: =SA34c!K75 -> 0
A181: Sport and Recreation Facilities | C181: =SA34c!C98 -> 0 | D181: =SA34c!D98 -> 0 | E181: =SA34c!E98 -> 0 | F181: =SA34c!F98 -> 0 | G181: =SA34c!G98 -> 0 | H181: =SA34c!H98 -> 0 | I181: =SA34c!I98 -> 0 | J181: =SA34c!J98 -> 0 | K181: =SA34c!K98 -> 0
A182: Community Assets | C182: =SUM(C180:C181) -> 0 | D182: 0 | E182: 0 | F182: 0 | G182: 0 | H182: 0 | I182: 0 | J182: 0 | K182: 0
A183: Heritage Assets | C183: =SA34c!C103 -> 0 | D183: =SA34c!D103 -> 0 | E183: =SA34c!E103 -> 0 | F183: =SA34c!F103 -> 0 | G183: =SA34c!G103 -> 0 | H183: =SA34c!H103 -> 0 | I183: =SA34c!I103 -> 0 | J183: =SA34c!J103 -> 0 | K183: =SA34c!K103 -> 0
A184: Revenue Generating | C184: =SA34c!C111 -> 0 | D184: =SA34c!D111 -> 0 | E184: =SA34c!E111 -> 0 | F184: =SA34c!F111 -> 0 | G184: =SA34c!G111 -> 0 | H184: =SA34c!H111 -> 0 | I184: =SA34c!I111 -> 0 | J184: =SA34c!J111 -> 0 | K184: =SA34c!K111 -> 0
A185: Non-revenue Generating | C185: =SA34c!C114 -> 0 | D185: =SA34c!D114 -> 0 | E185: =SA34c!E114 -> 0 | F185: =SA34c!F114 -> 0 | G185: =SA34c!G114 -> 0 | H185: =SA34c!H114 -> 0 | I185: =SA34c!I114 -> 0 | J185: =SA34c!J114 -> 0 | K185: =SA34c!K114 -> 0
A186: Investment properties | C186: =SUM(C184:C185) -> 0 | D186: 0 | E186: 0 | F186: 0 | G186: 0 | H186: 0 | I186: 0 | J186: 0 | K186: 0
A187: Operational Buildings | C187: =SA34c!C119 -> 0 | D187: =SA34c!D119 -> 404411.72 | E187: =SA34c!E119 -> 34649739.11 | F187: =SA34c!F119 -> 2324653 | G187: =SA34c!G119 -> 205000 | H187: =SA34c!H119 -> 205000 | I187: =SA34c!I119 -> 0 | J187: =SA34c!J119 -> 0 | K187: =SA34c!K119 -> 0
A188: Housing | C188: =SA34c!C131 -> 0 | D188: =SA34c!D131 -> 0 | E188: =SA34c!E131 -> 0 | F188: =SA34c!F131 -> 0 | G188: =SA34c!G131 -> 0 | H188: =SA34c!H131 -> 0 | I188: =SA34c!I131 -> 0 | J188: =SA34c!J131 -> 0 | K188: =SA34c!K131 -> 0
A189: Other Assets | C189: =SUM(C187:C188) -> 0 | D189: 404411.72 | E189: 34649739.11 | F189: 2324653 | G189: 205000 | H189: 205000 | I189: 0 | J189: 0 | K189: 0
A190: Biological or Cultivated Assets | C190: =SA34c!C136 -> 0 | D190: =SA34c!D136 -> 0 | E190: =SA34c!E136 -> 0 | F190: =SA34c!F136 -> 0 | G190: =SA34c!G136 -> 0 | H190: =SA34c!H136 -> 0 | I190: =SA34c!I136 -> 0 | J190: =SA34c!J136 -> 0 | K190: =SA34c!K136 -> 0
A191: Servitudes | C191: =SA34c!C140 -> 0 | D191: =SA34c!D140 -> 0 | E191: =SA34c!E140 -> 0 | F191: =SA34c!F140 -> 0 | G191: =SA34c!G140 -> 0 | H191: =SA34c!H140 -> 0 | I191: =SA34c!I140 -> 0 | J191: =SA34c!J140 -> 0 | K191: =SA34c!K140 -> 0
A192: Licences and Rights | C192: =SA34c!C141 -> 0 | D192: =SA34c!D141 -> 0 | E192: =SA34c!E141 -> 0 | F192: =SA34c!F141 -> 0 | G192: =SA34c!G141 -> 0 | H192: =SA34c!H141 -> 0 | I192: =SA34c!I141 -> 0 | J192: =SA34c!J141 -> 0 | K192: =SA34c!K141 -> 0
A193: Intangible Assets | C193: =SUM(C191:C192) -> 0 | D193: 0 | E193: 0 | F193: 0 | G193: 0 | H193: 0 | I193: 0 | J193: 0 | K193: 0
A194: Computer Equipment | C194: =SA34c!C149 -> 0 | D194: =SA34c!D149 -> 27800 | E194: =SA34c!E149 -> 1315200 | F194: =SA34c!F149 -> 55598.4 | G194: =SA34c!G149 -> 0 | H194: =SA34c!H149 -> 0 | I194: =SA34c!I149 -> 0 | J194: =SA34c!J149 -> 0 | K194: =SA34c!K149 -> 0
A195: Furniture and Office Equipment | C195: =SA34c!C152 -> 0 | D195: =SA34c!D152 -> 0 | E195: =SA34c!E152 -> 0 | F195: =SA34c!F152 -> 0 | G195: =SA34c!G152 -> 0 | H195: =SA34c!H152 -> 0 | I195: =SA34c!I152 -> 0 | J195: =SA34c!J152 -> 0 | K195: =SA34c!K152 -> 0
A196: Machinery and Equipment | C196: =SA34c!C155 -> 0 | D196: =SA34c!D155 -> 0 | E196: =SA34c!E155 -> 0 | F196: =SA34c!F155 -> 166795 | G196: =SA34c!G155 -> 0 | H196: =SA34c!H155 -> 0 | I196: =SA34c!I155 -> 0 | J196: =SA34c!J155 -> 0 | K196: =SA34c!K155 -> 0
A197: Transport Assets | C197: =SA34c!C158 -> 0 | D197: =SA34c!D158 -> 454964.23 | E197: =SA34c!E158 -> 1740766.19 | F197: =SA34c!F158 -> 639186 | G197: =SA34c!G158 -> 104000 | H197: =SA34c!H158 -> 104000 | I197: =SA34c!I158 -> 400000 | J197: =SA34c!J158 -> 240000 | K197: =SA34c!K158 -> 300000
A198: Land | C198: =SA34c!C161 -> 0 | D198: =SA34c!D161 -> 0 | E198: =SA34c!E161 -> 0 | F198: =SA34c!F161 -> 0 | G198: =SA34c!G161 -> 0 | H198: =SA34c!H161 -> 0 | I198: =SA34c!I161 -> 0 | J198: =SA34c!J161 -> 0 | K198: =SA34c!K161 -> 0
A199: Zoo's, Marine and Non-biological Animals | C199: =SA34c!C164 -> 0 | D199: =SA34c!D164 -> 0 | E199: =SA34c!E164 -> 0 | F199: =SA34c!F164 -> 0 | G199: =SA34c!G164 -> 0 | H199: =SA34c!H164 -> 0 | I199: =SA34c!I164 -> 0 | J199: =SA34c!J164 -> 0 | K199: =SA34c!K164 -> 0
A201: TOTAL EXPENDITURE OTHER ITEMS | C201: =SUM(C168:C169) -> 0 | D201: 887175.95 | E201: 37717918.3 | F201: 10253677.6 | G201: 10438239.15 | H201: 2239937.02 | I201: 6700000 | J201: 7440000 | K201: 7700000
A203: Renewal and upgrading of Existing Assets as % of total capex | C203: =IF(ISERROR((C37+C69)/C132),0,((C37+C69)/C132)) -> 0 | D203: =IF(ISERROR((D37+D69)/D132),0,((D37+D69)/D132)) -> 0 | E203: 0 | F203: 0 | G203: 0 | H203: 0 | I203: 0 | J203: 0 | K203: 0
A204: Renewal and upgrading of Existing Assets as % of deprecn | C204: =IF(ISERROR((C37+C69)/C168),0,((C37+C69)/C168)) -> 0 | D204: =IF(ISERROR((D37+D69)/D168),0,((D37+D69)/D168)) -> 0 | E204: 0 | F204: 0 | G204: 0 | H204: 0 | I204: 0 | J204: 0 | K204: 0
A205: R&M as a % of PPE | C205: =IF(ISERROR(ROUND(C169/'A6-FinPos'!C19,3)),0,(ROUND(C169/'A6-FinPos'!C19,3))) -> 0 | D205: =IF(ISERROR(ROUND(D169/'A6-FinPos'!D19,3)),0,(ROUND(D169/'A6-FinPos'!D19,3))) -> 0.014 | E205: =IF(ISERROR(ROUND(E169/'A6-FinPos'!E19,3)),0,(ROUND(E169/'A6-FinPos'!E19,3))) -> 0.638 | F205: =IF(ISERROR(ROUND(F169/'A6-FinPos'!F19,3)),0,(ROUND(F169/'A6-FinPos'!F19,3))) -> 0.054 | G205: =IF(ISERROR(ROUND(G169/'A6-FinPos'!G19,3)),0,(ROUND(G169/'A6-FinPos'!G19,3))) -> 0.005 | H205: =IF(ISERROR(ROUND(H169/'A6-FinPos'!H19,3)),0,(ROUND(H169/'A6-FinPos'!H19,3))) -> 0.005 | I205: =IF(ISERROR(ROUND(I169/'A6-FinPos'!J19,3)),0,(ROUND(I169/'A6-FinPos'!J19,3))) -> 0.007 | J205: =IF(ISERROR(ROUND(J169/'A6-FinPos'!K19,3)),0,(ROUND(J169/'A6-FinPos'!K19,3))) -> 0.004 | K205: =IF(ISERROR(ROUND(K169/'A6-FinPos'!L19,3)),0,(ROUND(K169/'A6-FinPos'!L19,3))) -> 0.005
A206: Renewal and upgrading and R&M as a % of PPE | C206: =IF(ISERROR(ROUND((C37+C69+C169)/C165,2)),0,(ROUND((C37+C69+C169)/C165,2))) -> 0 | D206: =IF(ISERROR(ROUND((D37+D69+D169)/D165,2)),0,(ROUND((D37+D69+D169)/D165,2))) -> 0.02 | E206: 0.99 | F206: 0.49 | G206: 0.05 | H206: 0.05 | I206: 0.65 | J206: 1.6 | K206: 1.5
A208: =head27a -> References
A209: 1. Detail of new assets provided in Table SA34a
A210: 2. Detail of renewal of existing assets provided in Table SA34b
A211: 3. Detail of Repairs and Maintenance by Asset Class provided in Table SA34c
A212: 4. Must reconcile to total capital expenditure on Budgeted Capital Expenditure
A213: 5. Must reconcile to 'Budgeted Financial Position' (written down value)
A214: 6. Detail of upgrading of existing assets provided in Table SA34e
A215: 7. Detail of depreciation provided in Table SA34d
... 1 more rows

Sheet A10-SerDel
A1: =muni&" - "&Approve10 -> DC37 Bojanala Platinum - Table A10 Basic service delivery measurement
A2: =desc -> Description | B2: =head27 -> Ref | C2: =head1b -> 2016/17 | D2: =head1A -> 2017/18 | E2: =Head1 -> 2018/19 | F2: =Head2 -> Current Year 2019/20 | I2: =Head3 -> 2020/21 Medium Term Revenue & Expenditure Framework
C3: =Head5A -> Outcome | D3: =Head5A -> Outcome | E3: =Head5A -> Outcome | F3: =Head6 -> Original Budget | G3: =Head7 -> Adjusted Budget | H3: =Head8 -> Full Year Forecast | I3: =Head9 -> Budget Year 2020/21 | J3: =Head10 -> Budget Year +1 2021/22 | K3: =Head11 -> Budget Year +2 2022/23
A4: Household service targets | B4: 1
A5: Water:
A6: Piped water inside dwelling | C6: ='SA9'!E67 -> 0 | D6: ='SA9'!F67 -> 0 | E6: ='SA9'!G67 -> 0 | F6: ='SA9'!H67 -> 0 | G6: ='SA9'!I67 -> 0 | H6: ='SA9'!J67 -> 0 | I6: ='SA9'!K67 -> 0 | J6: ='SA9'!L67 -> 0 | K6: ='SA9'!M67 -> 0
A7: Piped water inside yard (but not in dwelling) | C7: ='SA9'!E68 -> 0 | D7: ='SA9'!F68 -> 0 | E7: ='SA9'!G68 -> 0 | F7: ='SA9'!H68 -> 0 | G7: ='SA9'!I68 -> 0 | H7: ='SA9'!J68 -> 0 | I7: ='SA9'!K68 -> 0 | J7: ='SA9'!L68 -> 0 | K7: ='SA9'!M68 -> 0
A8: Using public tap (at least min.service level) | B8: 2 | C8: ='SA9'!E69 -> 0 | D8: ='SA9'!F69 -> 0 | E8: ='SA9'!G69 -> 0 | F8: ='SA9'!H69 -> 0 | G8: ='SA9'!I69 -> 0 | H8: ='SA9'!J69 -> 0 | I8: ='SA9'!K69 -> 0 | J8: ='SA9'!L69 -> 0 | K8: ='SA9'!M69 -> 0
A9: Other water supply (at least min.service level) | B9: 4 | C9: ='SA9'!E70 -> 0 | D9: ='SA9'!F70 -> 0 | E9: ='SA9'!G70 -> 0 | F9: ='SA9'!H70 -> 0 | G9: ='SA9'!I70 -> 0 | H9: ='SA9'!J70 -> 0 | I9: ='SA9'!K70 -> 0 | J9: ='SA9'!L70 -> 0 | K9: ='SA9'!M70 -> 0
A10: Minimum Service Level and Above sub-total | C10: =SUM(C6:C9) -> 0 | D10: =SUM(D6:D9) -> 0 | E10: 0 | F10: 0 | G10: 0 | H10: 0 | I10: 0 | J10: 0 | K10: 0
A11: Using public tap (< min.service level) | B11: 3 | C11: ='SA9'!E72 -> 0 | D11: ='SA9'!F72 -> 0 | E11: ='SA9'!G72 -> 0 | F11: ='SA9'!H72 -> 0 | G11: ='SA9'!I72 -> 0 | H11: ='SA9'!J72 -> 0 | I11: ='SA9'!K72 -> 0 | J11: ='SA9'!L72 -> 0 | K11: ='SA9'!M72 -> 0
A12: Other water supply (< min.service level) | B12: =B9 -> 4 | C12: ='SA9'!E73 -> 0 | D12: ='SA9'!F73 -> 0 | E12: ='SA9'!G73 -> 0 | F12: ='SA9'!H73 -> 0 | G12: ='SA9'!I73 -> 0 | H12: ='SA9'!J73 -> 0 | I12: ='SA9'!K73 -> 0 | J12: ='SA9'!L73 -> 0 | K12: ='SA9'!M73 -> 0
A13: No water supply | C13: ='SA9'!E74 -> 0 | D13: ='SA9'!F74 -> 0 | E13: ='SA9'!G74 -> 0 | F13: ='SA9'!H74 -> 0 | G13: ='SA9'!I74 -> 0 | H13: ='SA9'!J74 -> 0 | I13: ='SA9'!K74 -> 0 | J13: ='SA9'!L74 -> 0 | K13: ='SA9'!M74 -> 0
A14: Below Minimum Service Level sub-total | C14: =SUM(C11:C13) -> 0 | D14: =SUM(D11:D13) -> 0 | E14: 0 | F14: 0 | G14: 0 | H14: 0 | I14: 0 | J14: 0 | K14: 0
A15: Total number of households | B15: 5 | C15: =C10+C14 -> 0 | D15: =D10+D14 -> 0 | E15: 0 | F15: 0 | G15: 0 | H15: 0 | I15: 0 | J15: 0 | K15: 0
A16: Sanitation/sewerage:
A17: Flush toilet (connected to sewerage) | C17: ='SA9'!E78 -> 0 | D17: ='SA9'!F78 -> 0 | E17: ='SA9'!G78 -> 0 | F17: ='SA9'!H78 -> 0 | G17: ='SA9'!I78 -> 0 | H17: ='SA9'!J78 -> 0 | I17: ='SA9'!K78 -> 0 | J17: ='SA9'!L78 -> 0 | K17: ='SA9'!M78 -> 0
A18: Flush toilet (with septic tank) | C18: ='SA9'!E79 -> 0 | D18: ='SA9'!F79 -> 0 | E18: ='SA9'!G79 -> 0 | F18: ='SA9'!H79 -> 0 | G18: ='SA9'!I79 -> 0 | H18: ='SA9'!J79 -> 0 | I18: ='SA9'!K79 -> 0 | J18: ='SA9'!L79 -> 0 | K18: ='SA9'!M79 -> 0
A19: Chemical toilet | C19: ='SA9'!E80 -> 0 | D19: ='SA9'!F80 -> 0 | E19: ='SA9'!G80 -> 0 | F19: ='SA9'!H80 -> 0 | G19: ='SA9'!I80 -> 0 | H19: ='SA9'!J80 -> 0 | I19: ='SA9'!K80 -> 0 | J19: ='SA9'!L80 -> 0 | K19: ='SA9'!M80 -> 0
A20: Pit toilet (ventilated) | C20: ='SA9'!E81 -> 0 | D20: ='SA9'!F81 -> 0 | E20: ='SA9'!G81 -> 0 | F20: ='SA9'!H81 -> 0 | G20: ='SA9'!I81 -> 0 | H20: ='SA9'!J81 -> 0 | I20: ='SA9'!K81 -> 0 | J20: ='SA9'!L81 -> 0 | K20: ='SA9'!M81 -> 0
A21: Other toilet provisions (> min.service level) | C21: ='SA9'!E82 -> 0 | D21: ='SA9'!F82 -> 0 | E21: ='SA9'!G82 -> 0 | F21: ='SA9'!H82 -> 0 | G21: ='SA9'!I82 -> 0 | H21: ='SA9'!J82 -> 0 | I21: ='SA9'!K82 -> 0 | J21: ='SA9'!L82 -> 0 | K21: ='SA9'!M82 -> 0
A22: =$A$10 -> Minimum Service Level and Above sub-total | C22: =SUM(C17:C21) -> 0 | D22: =SUM(D17:D21) -> 0 | E22: 0 | F22: 0 | G22: 0 | H22: 0 | I22: 0 | J22: 0 | K22: 0
A23: Bucket toilet | C23: ='SA9'!E84 -> 0 | D23: ='SA9'!F84 -> 0 | E23: ='SA9'!G84 -> 0 | F23: ='SA9'!H84 -> 0 | G23: ='SA9'!I84 -> 0 | H23: ='SA9'!J84 -> 0 | I23: ='SA9'!K84 -> 0 | J23: ='SA9'!L84 -> 0 | K23: ='SA9'!M84 -> 0
A24: Other toilet provisions (< min.service level) | C24: ='SA9'!E85 -> 0 | D24: ='SA9'!F85 -> 0 | E24: ='SA9'!G85 -> 0 | F24: ='SA9'!H85 -> 0 | G24: ='SA9'!I85 -> 0 | H24: ='SA9'!J85 -> 0 | I24: ='SA9'!K85 -> 0 | J24: ='SA9'!L85 -> 0 | K24: ='SA9'!M85 -> 0
A25: No toilet provisions | C25: ='SA9'!E86 -> 0 | D25: ='SA9'!F86 -> 0 | E25: ='SA9'!G86 -> 0 | F25: ='SA9'!H86 -> 0 | G25: ='SA9'!I86 -> 0 | H25: ='SA9'!J86 -> 0 | I25: ='SA9'!K86 -> 0 | J25: ='SA9'!L86 -> 0 | K25: ='SA9'!M86 -> 0
A26: =$A$14 -> Below Minimum Service Level sub-total | C26: =SUM(C23:C25) -> 0 | D26: =SUM(D23:D25) -> 0 | E26: 0 | F26: 0 | G26: 0 | H26: 0 | I26: 0 | J26: 0 | K26: 0
A27: =$A$15 -> Total number of households | B27: =$B$15 -> 5 | C27: =C22+C26 -> 0 | D27: =D22+D26 -> 0 | E27: 0 | F27: 0 | G27: 0 | H27: 0 | I27: 0 | J27: 0 | K27: 0
A28: Energy:
A29: Electricity (at least min.service level) | C29: ='SA9'!E90 -> 0 | D29: ='SA9'!F90 -> 0 | E29: ='SA9'!G90 -> 0 | F29: ='SA9'!H90 -> 0 | G29: ='SA9'!I90 -> 0 | H29: ='SA9'!J90 -> 0 | I29: ='SA9'!K90 -> 0 | J29: ='SA9'!L90 -> 0 | K29: ='SA9'!M90 -> 0
A30: Electricity - prepaid (min.service level) | C30: ='SA9'!E91 -> 0 | D30: ='SA9'!F91 -> 0 | E30: ='SA9'!G91 -> 0 | F30: ='SA9'!H91 -> 0 | G30: ='SA9'!I91 -> 0 | H30: ='SA9'!J91 -> 0 | I30: ='SA9'!K91 -> 0 | J30: ='SA9'!L91 -> 0 | K30: ='SA9'!M91 -> 0
A31: =$A$10 -> Minimum Service Level and Above sub-total | C31: =SUM(C29:C30) -> 0 | D31: =SUM(D29:D30) -> 0 | E31: 0 | F31: 0 | G31: 0 | H31: 0 | I31: 0 | J31: 0 | K31: 0
A32: Electricity (< min.service level) | C32: ='SA9'!E93 -> 0 | D32: ='SA9'!F93 -> 0 | E32: ='SA9'!G93 -> 0 | F32: ='SA9'!H93 -> 0 | G32: ='SA9'!I93 -> 0 | H32: ='SA9'!J93 -> 0 | I32: ='SA9'!K93 -> 0 | J32: ='SA9'!L93 -> 0 | K32: ='SA9'!M93 -> 0
A33: Electricity - prepaid (< min. service level) | C33: ='SA9'!E94 -> 0 | D33: ='SA9'!F94 -> 0 | E33: ='SA9'!G94 -> 0 | F33: ='SA9'!H94 -> 0 | G33: ='SA9'!I94 -> 0 | H33: ='SA9'!J94 -> 0 | I33: ='SA9'!K94 -> 0 | J33: ='SA9'!L94 -> 0 | K33: ='SA9'!M94 -> 0
A34: Other energy sources | C34: ='SA9'!E95 -> 0 | D34: ='SA9'!F95 -> 0 | E34: ='SA9'!G95 -> 0 | F34: ='SA9'!H95 -> 0 | G34: ='SA9'!I95 -> 0 | H34: ='SA9'!J95 -> 0 | I34: ='SA9'!K95 -> 0 | J34: ='SA9'!L95 -> 0 | K34: ='SA9'!M95 -> 0
A35: =$A$14 -> Below Minimum Service Level sub-total | C35: =SUM(C32:C34) -> 0 | D35: =SUM(D32:D34) -> 0 | E35: 0 | F35: 0 | G35: 0 | H35: 0 | I35: 0 | J35: 0 | K35: 0
A36: =$A$15 -> Total number of households | B36: =$B$15 -> 5 | C36: =C31+C35 -> 0 | D36: =D31+D35 -> 0 | E36: 0 | F36: 0 | G36: 0 | H36: 0 | I36: 0 | J36: 0 | K36: 0
A37: Refuse:
A38: Removed at least once a week | C38: ='SA9'!E99 -> 0 | D38: ='SA9'!F99 -> 0 | E38: ='SA9'!G99 -> 0 | F38: ='SA9'!H99 -> 0 | G38: ='SA9'!I99 -> 0 | H38: ='SA9'!J99 -> 0 | I38: ='SA9'!K99 -> 0 | J38: ='SA9'!L99 -> 0 | K38: ='SA9'!M99 -> 0
A39: =$A$10 -> Minimum Service Level and Above sub-total | C39: =SUM(C38) -> 0 | D39: =SUM(D38) -> 0 | E39: 0 | F39: 0 | G39: 0 | H39: 0 | I39: 0 | J39: 0 | K39: 0
A40: Removed less frequently than once a week | C40: ='SA9'!E101 -> 0 | D40: ='SA9'!F101 -> 0 | E40: ='SA9'!G101 -> 0 | F40: ='SA9'!H101 -> 0 | G40: ='SA9'!I101 -> 0 | H40: ='SA9'!J101 -> 0 | I40: ='SA9'!K101 -> 0 | J40: ='SA9'!L101 -> 0 | K40: ='SA9'!M101 -> 0
A41: Using communal refuse dump | C41: ='SA9'!E102 -> 0 | D41: ='SA9'!F102 -> 0 | E41: ='SA9'!G102 -> 0 | F41: ='SA9'!H102 -> 0 | G41: ='SA9'!I102 -> 0 | H41: ='SA9'!J102 -> 0 | I41: ='SA9'!K102 -> 0 | J41: ='SA9'!L102 -> 0 | K41: ='SA9'!M102 -> 0
A42: Using own refuse dump | C42: ='SA9'!E103 -> 0 | D42: ='SA9'!F103 -> 0 | E42: ='SA9'!G103 -> 0 | F42: ='SA9'!H103 -> 0 | G42: ='SA9'!I103 -> 0 | H42: ='SA9'!J103 -> 0 | I42: ='SA9'!K103 -> 0 | J42: ='SA9'!L103 -> 0 | K42: ='SA9'!M103 -> 0
A43: Other rubbish disposal | C43: ='SA9'!E104 -> 0 | D43: ='SA9'!F104 -> 0 | E43: ='SA9'!G104 -> 0 | F43: ='SA9'!H104 -> 0 | G43: ='SA9'!I104 -> 0 | H43: ='SA9'!J104 -> 0 | I43: ='SA9'!K104 -> 0 | J43: ='SA9'!L104 -> 0 | K43: ='SA9'!M104 -> 0
A44: No rubbish disposal | C44: ='SA9'!E105 -> 0 | D44: ='SA9'!F105 -> 0 | E44: ='SA9'!G105 -> 0 | F44: ='SA9'!H105 -> 0 | G44: ='SA9'!I105 -> 0 | H44: ='SA9'!J105 -> 0 | I44: ='SA9'!K105 -> 0 | J44: ='SA9'!L105 -> 0 | K44: ='SA9'!M105 -> 0
A45: =$A$14 -> Below Minimum Service Level sub-total | C45: =SUM(C40:C44) -> 0 | D45: 0 | E45: 0 | F45: 0 | G45: 0 | H45: 0 | I45: 0 | J45: 0 | K45: 0
A46: =$A$15 -> Total number of households | B46: =$B$15 -> 5 | C46: =C39+C45 -> 0 | D46: =D39+D45 -> 0 | E46: 0 | F46: 0 | G46: 0 | H46: 0 | I46: 0 | J46: 0 | K46: 0
A48: Households receiving Free Basic Service | B48: 7
A49: Water (6 kilolitres per household per month) | C49: ='SA9'!E263 -> 0 | D49: ='SA9'!F263 -> 0 | E49: ='SA9'!G263 -> 0 | F49: ='SA9'!H263 -> 0 | G49: ='SA9'!I263 -> 0 | H49: ='SA9'!J263 -> 0 | I49: ='SA9'!K263 -> 0 | J49: ='SA9'!L263 -> 0 | K49: ='SA9'!M263 -> 0
A50: Sanitation (free minimum level service) | C50: ='SA9'!E275 -> 0 | D50: ='SA9'!F275 -> 0 | E50: ='SA9'!G275 -> 0 | F50: ='SA9'!H275 -> 0 | G50: ='SA9'!I275 -> 0 | H50: ='SA9'!J275 -> 0 | I50: ='SA9'!K275 -> 0 | J50: ='SA9'!L275 -> 0 | K50: ='SA9'!M275 -> 0
A51: Electricity/other energy (50kwh per household per month) | C51: ='SA9'!E251 -> 0 | D51: ='SA9'!F251 -> 0 | E51: ='SA9'!G251 -> 0 | F51: ='SA9'!H251 -> 0 | G51: ='SA9'!I251 -> 0 | H51: ='SA9'!J251 -> 0 | I51: ='SA9'!K251 -> 0 | J51: ='SA9'!L251 -> 0 | K51: ='SA9'!M251 -> 0
A52: Refuse (removed at least once a week) | C52: ='SA9'!E287 -> 0 | D52: ='SA9'!F287 -> 0 | E52: ='SA9'!G287 -> 0 | F52: ='SA9'!H287 -> 0 | G52: ='SA9'!I287 -> 0 | H52: ='SA9'!J287 -> 0 | I52: ='SA9'!K287 -> 0 | J52: ='SA9'!L287 -> 0 | K52: ='SA9'!M287 -> 0
A54: Cost of Free Basic Services provided - Formal Settlements (R'000) | B54: 8
A55: Water (6 kilolitres per indigent household per month) | C55: ='SA1'!C8 -> 0 | D55: ='SA1'!D8 -> 0 | E55: ='SA1'!E8 -> 0 | F55: ='SA1'!F8 -> 0 | G55: ='SA1'!G8 -> 0 | H55: ='SA1'!H8 -> 0 | I55: ='SA1'!I8 -> 0 | J55: ='SA1'!J8 -> 0 | K55: ='SA1'!K8 -> 0
A56: Sanitation (free sanitation service to indigent households) | C56: ='SA1'!C25 -> 0 | D56: ='SA1'!D25 -> 0 | E56: ='SA1'!E25 -> 0 | F56: ='SA1'!F25 -> 0 | G56: ='SA1'!G25 -> 0 | H56: ='SA1'!H25 -> 0 | I56: ='SA1'!I25 -> 0 | J56: ='SA1'!J25 -> 0 | K56: ='SA1'!K25 -> 0
A57: Electricity/other energy (50kwh per indigent household per month) | C57: ='SA1'!C13 -> 0 | D57: ='SA1'!D13 -> 0 | E57: ='SA1'!E13 -> 0 | F57: ='SA1'!F13 -> 0 | G57: ='SA1'!G13 -> 0 | H57: ='SA1'!H13 -> 0 | I57: ='SA1'!I13 -> 0 | J57: ='SA1'!J13 -> 0 | K57: ='SA1'!K13 -> 0
A58: Refuse (removed once a week for indigent households) | C58: ='SA1'!C32 -> 0 | D58: ='SA1'!D32 -> 0 | E58: ='SA1'!E32 -> 0 | F58: ='SA1'!F32 -> 0 | G58: ='SA1'!G32 -> 0 | H58: ='SA1'!H32 -> 0 | I58: ='SA1'!I32 -> 0 | J58: ='SA1'!J32 -> 0 | K58: ='SA1'!K32 -> 0
A59: Cost of Free Basic Services provided - Informal Formal Settlements (R'000) | C59: ='SA9'!E260+'SA9'!E272+'SA9'!E284+'SA9'!E296 -> 0 | D59: ='SA9'!F260+'SA9'!F272+'SA9'!F284+'SA9'!F296 -> 0 | E59: ='SA9'!G260+'SA9'!G272+'SA9'!G284+'SA9'!G296 -> 0 | F59: ='SA9'!H260+'SA9'!H272+'SA9'!H284+'SA9'!H296 -> 0 | G59: ='SA9'!I260+'SA9'!I272+'SA9'!I284+'SA9'!I296 -> 0 | H59: ='SA9'!J260+'SA9'!J272+'SA9'!J284+'SA9'!J296 -> 0 | I59: ='SA9'!K260+'SA9'!K272+'SA9'!K284+'SA9'!K296 -> 0 | J59: ='SA9'!L260+'SA9'!L272+'SA9'!L284+'SA9'!L296 -> 0 | K59: ='SA9'!M260+'SA9'!M272+'SA9'!M284+'SA9'!M296 -> 0
A60: Total cost of FBS provided | C60: =SUM(C55:C59) -> 0 | D60: 0 | E60: 0 | F60: 0 | G60: 0 | H60: 0 | I60: 0 | J60: 0 | K60: 0
A62: Highest level of free service provided per household
A63: Property rates (R value threshold) | C63: 0 | D63: 0 | E63: 0 | F63: 0 | G63: 0 | H63: 0 | I63: 0 | J63: 0 | K63: 0
A64: Water (kilolitres per household per month) | C64: 0 | D64: 0 | E64: 0 | F64: 0 | G64: 0 | H64: 0 | I64: 0 | J64: 0 | K64: 0
A65: Sanitation (kilolitres per household per month) | C65: 0 | D65: 0 | E65: 0 | F65: 0 | G65: 0 | H65: 0 | I65: 0 | J65: 0 | K65: 0
A66: Sanitation (Rand per household per month) | C66: 0 | D66: 0 | E66: 0 | F66: 0 | G66: 0 | H66: 0 | I66: 0 | J66: 0 | K66: 0
A67: Electricity (kwh per household per month) | C67: 0 | D67: 0 | E67: 0 | F67: 0 | G67: 0 | H67: 0 | I67: 0 | J67: 0 | K67: 0
A68: Refuse (average litres per week) | C68: 0 | D68: 0 | E68: 0 | F68: 0 | G68: 0 | H68: 0 | I68: 0 | J68: 0 | K68: 0
A69: Revenue cost of subsidised services provided (R'000) | B69: 9
A70: Property rates (tariff adjustment) ( impermissable values per section 17 of MPRA) | C70: 0 | D70: 0 | E70: 0 | F70: 0 | G70: 0 | H70: 0 | I70: 0 | J70: 0 | K70: 0
A71: Property rates exemptions, reductions and rebates and impermissable values in excess of section 17 of MPRA) | C71: ='SA1'!C8 -> 0 | D71: ='SA1'!D8 -> 0 | E71: ='SA1'!E8 -> 0 | F71: ='SA1'!F8 -> 0 | G71: ='SA1'!G8 -> 0 | H71: ='SA1'!H8 -> 0 | I71: ='SA1'!I8 -> 0 | J71: ='SA1'!J8 -> 0 | K71: ='SA1'!K8 -> 0
A72: Water (in excess of 6 kilolitres per indigent household per month) | C72: ='SA1'!C20 -> 0 | D72: ='SA1'!D20 -> 0 | E72: ='SA1'!E20 -> 0 | F72: ='SA1'!F20 -> 0 | G72: ='SA1'!G20 -> 0 | H72: ='SA1'!H20 -> 0 | I72: ='SA1'!I20 -> 0 | J72: ='SA1'!J20 -> 0 | K72: ='SA1'!K20 -> 0
A73: Sanitation (in excess of free sanitation service to indigent households) | C73: ='SA1'!C26 -> 0 | D73: ='SA1'!D26 -> 0 | E73: ='SA1'!E26 -> 0 | F73: ='SA1'!F26 -> 0 | G73: ='SA1'!G26 -> 0 | H73: ='SA1'!H26 -> 0 | I73: ='SA1'!I26 -> 0 | J73: ='SA1'!J26 -> 0 | K73: ='SA1'!K26 -> 0
A74: Electricity/other energy (in excess of 50 kwh per indigent household per month) | C74: ='SA1'!C14 -> 0 | D74: ='SA1'!D14 -> 0 | E74: ='SA1'!E14 -> 0 | F74: ='SA1'!F14 -> 0 | G74: ='SA1'!G14 -> 0 | H74: ='SA1'!H14 -> 0 | I74: ='SA1'!I14 -> 0 | J74: ='SA1'!J14 -> 0 | K74: ='SA1'!K14 -> 0
A75: Refuse (in excess of one removal a week for indigent households) | C75: ='SA1'!C33 -> 0 | D75: ='SA1'!D33 -> 0 | E75: ='SA1'!E33 -> 0 | F75: ='SA1'!F33 -> 0 | G75: ='SA1'!G33 -> 0 | H75: ='SA1'!H33 -> 0 | I75: ='SA1'!I33 -> 0 | J75: ='SA1'!J33 -> 0 | K75: ='SA1'!K33 -> 0
A76: Municipal Housing - rental rebates | C76: 0 | D76: 0 | E76: 0 | F76: 0 | G76: 0 | H76: 0 | I76: 0 | J76: 0 | K76: 0
A77: Housing - top structure subsidies | B77: 6 | C77: 0 | D77: 0 | E77: 0 | F77: 0 | G77: 0 | H77: 0 | I77: 0 | J77: 0 | K77: 0
A78: Other | C78: 0 | D78: 0 | E78: 0 | F78: 0 | G78: 0 | H78: 0 | I78: 0 | J78: 0 | K78: 0
A79: Total revenue cost of subsidised services provided | C79: =SUM(C70:C78) -> 0 | D79: =SUM(D70:D78) -> 0 | E79: 0 | F79: 0 | G79: 0 | H79: 0 | I79: 0 | J79: =SUM(J70:J78) -> 0 | K79: =SUM(K70:K78) -> 0
A80: =head27a -> References
A81: 1. Include services provided by another entity; e.g. Eskom
A82: 2. Stand distance <= 200m from dwelling
A83: 3. Stand distance > 200m from dwelling
A84: 4. Borehole, spring, rain-water tank etc.
A85: 5. Must agree to total number of households in municipal area (informal settlements receiving services must be included)
A86: 6. Include value of subsidy provided by municipality above provincial subsidy level
A87: 7. Show number of households receiving at least these levels of services completely free (informal settlements must be included)
A88: 8. Must reflect the cost to the municipality of providing the Free Basic Service
A89: 9. Reflect the cost to the municipality in terms of 'revenue foregone' of providing free services (note this will not equal 'Revenue Foregone' on SA1)

Sheet SA1
A1: =muni&" - "&TableA1 -> DC37 Bojanala Platinum - Supporting Table SA1 Supportinging detail to 'Budgeted Financial Performance'
A2: =desc -> Description | B2: =head27 -> Ref | C2: =head1b -> 2016/17 | D2: =head1A -> 2017/18 | E2: =Head1 -> 2018/19 | F2: =Head2 -> Current Year 2019/20 | J2: =Head3 -> 2020/21 Medium Term Revenue & Expenditure Framework
C3: =Head5 -> Audited Outcome | D3: =Head5 -> Audited Outcome | E3: =Head5 -> Audited Outcome | F3: =Head6 -> Original Budget | G3: =Head7 -> Adjusted Budget | H3: =Head8 -> Full Year Forecast | I3: =Head5b -> Pre-audit outcome | J3: =Head9 -> Budget Year 2020/21 | K3: =Head10 -> Budget Year +1 2021/22 | L3: =Head11 -> Budget Year +2 2022/23
A4: R thousand
A5: REVENUE ITEMS:
A6: ='A4-FinPerf RE'!A5 -> Property rates | B6: 6
A7: Total Property Rates | C7: 0 | D7: 0 | E7: 0 | F7: 0 | G7: 0 | H7: 0 | I7: 0 | J7: 0 | K7: 0 | L7: 0
A8: less Revenue Foregone (exemptions, reductions and rebates and impermissable values in excess of section 17 of MPRA) | C8: 0 | D8: 0 | E8: 0 | F8: 0 | G8: 0 | H8: 0 | I8: 0 | J8: 0 | K8: 0 | L8: 0
A9: Net Property Rates | C9: =C7-C8 -> 0 | D9: =D7-D8 -> 0 | E9: 0 | F9: 0 | G9: 0 | H9: 0 | I9: 0 | J9: 0 | K9: 0 | L9: 0
A11: ='A4-FinPerf RE'!A6 -> Service charges - electricity revenue | B11: 6
A12: ="Total "&A11 -> Total Service charges - electricity revenue | C12: 0 | D12: 0 | E12: 0 | F12: 0 | G12: 0 | H12: 0 | I12: 0 | J12: 0 | K12: 0 | L12: 0
A13: less Revenue Foregone (in excess of 50 kwh per indigent household per month) | C13: 0 | D13: 0 | E13: 0 | F13: 0 | G13: 0 | H13: 0 | I13: 0 | J13: 0 | K13: 0 | L13: 0
A14: less Cost of Free Basis Services (50 kwh per indigent household per month) | C14: ='SA9'!E250 -> 0 | D14: ='SA9'!F250 -> 0 | E14: ='SA9'!G250 -> 0 | F14: ='SA9'!H250 -> 0 | G14: ='SA9'!I250 -> 0 | H14: ='SA9'!J250 -> 0 | J14: ='SA9'!K250 -> 0 | K14: ='SA9'!L250 -> 0 | L14: ='SA9'!M250 -> 0
A15: ="Net "& A11 -> Net Service charges - electricity revenue | C15: =C12-C13-C14 -> 0 | D15: =D12-D13-D14 -> 0 | E15: 0 | F15: 0 | G15: 0 | H15: 0 | I15: 0 | J15: 0 | K15: 0 | L15: 0
A17: ='A4-FinPerf RE'!A7 -> Service charges - water revenue | B17: 6
A18: ="Total "&A17 -> Total Service charges - water revenue | C18: 0 | D18: 0 | E18: 0 | F18: 0 | G18: 0 | H18: 0 | I18: 0 | J18: 0 | K18: 0 | L18: 0
A19: less Revenue Foregone (in excess of 6 kilolitres per indigent household per month) | C19: 0 | D19: 0 | E19: 0 | F19: 0 | G19: 0 | H19: 0 | I19: 0 | J19: 0 | K19: 0 | L19: 0
A20: less Cost of Free Basis Services (6 kilolitres per indigent household per month) | C20: ='SA9'!E262 -> 0 | D20: ='SA9'!F262 -> 0 | E20: ='SA9'!G262 -> 0 | F20: ='SA9'!H262 -> 0 | G20: ='SA9'!I262 -> 0 | H20: ='SA9'!J262 -> 0 | J20: ='SA9'!K262 -> 0 | K20: ='SA9'!L262 -> 0 | L20: ='SA9'!M262 -> 0
A21: ="Net "& A17 -> Net Service charges - water revenue | C21: =C18-C19-C20 -> 0 | D21: =D18-D19-D20 -> 0 | E21: 0 | F21: 0 | G21: 0 | H21: 0 | I21: 0 | J21: 0 | K21: 0 | L21: 0
A23: ='A4-FinPerf RE'!A8 -> Service charges - sanitation revenue
A24: ="Total "&A23 -> Total Service charges - sanitation revenue | C24: 0 | D24: 0 | E24: 0 | F24: 0 | G24: 0 | H24: 0 | I24: 0 | J24: 0 | K24: 0 | L24: 0
A25: less Revenue Foregone (in excess of free sanitation service to indigent households) | C25: 0 | D25: 0 | E25: 0 | F25: 0 | G25: 0 | H25: 0 | I25: 0 | J25: 0 | K25: 0 | L25: 0
A26: less Cost of Free Basis Services (free sanitation service to indigent households) | C26: ='SA9'!E274 -> 0 | D26: ='SA9'!F274 -> 0 | E26: ='SA9'!G274 -> 0 | F26: ='SA9'!H274 -> 0 | G26: ='SA9'!I274 -> 0 | H26: ='SA9'!J274 -> 0 | J26: ='SA9'!K274 -> 0 | K26: ='SA9'!L274 -> 0 | L26: ='SA9'!M274 -> 0
A27: ="Net "& A23 -> Net Service charges - sanitation revenue | C27: =C24-C25-C26 -> 0 | D27: =D24-D25-D26 -> 0 | E27: 0 | F27: 0 | G27: 0 | H27: 0 | I27: 0 | J27: 0 | K27: 0 | L27: 0
A29: ='A4-FinPerf RE'!A9 -> Service charges - refuse revenue | B29: 6
A30: Total refuse removal revenue | C30: 0 | D30: 0 | E30: 0 | F30: 0 | G30: 0 | H30: 0 | I30: 0 | J30: 0 | K30: 0 | L30: 0
A31: Total landfill revenue | C31: 0 | D31: 0 | E31: 0 | F31: 0 | G31: 0 | H31: 0 | I31: 0 | J31: 0 | K31: 0 | L31: 0
A32: less Revenue Foregone (in excess of one removal a week to indigent households) | C32: 0 | D32: 0 | E32: 0 | F32: 0 | G32: 0 | H32: 0 | I32: 0 | J32: 0 | K32: 0 | L32: 0
A33: less Cost of Free Basis Services (removed once a week to indigent households) | C33: ='SA9'!E286 -> 0 | D33: ='SA9'!F286 -> 0 | E33: ='SA9'!G286 -> 0 | F33: ='SA9'!H286 -> 0 | G33: ='SA9'!I286 -> 0 | H33: ='SA9'!J286 -> 0 | J33: ='SA9'!K286 -> 0 | K33: ='SA9'!L286 -> 0 | L33: ='SA9'!M286 -> 0
A34: ="Net "& A29 -> Net Service charges - refuse revenue | C34: =SUM(C30:C31)-C32-C33 -> 0 | D34: =SUM(D30:D31)-D32-D33 -> 0 | E34: 0 | F34: 0 | G34: 0 | H34: 0 | I34: 0 | J34: 0 | K34: 0 | L34: 0
A36: Other Revenue by source
A37: Administrative Handling Fees | C37: 0 | D37: 0 | E37: 0 | F37: 0 | G37: 0 | H37: 0 | I37: 0 | J37: 0 | K37: 0 | L37: 0
A38: Bad Debts Recovered | C38: 0 | D38: 0 | E38: 0 | F38: 0 | G38: 0 | H38: 0 | I38: 0 | J38: 0 | K38: 0 | L38: 0
A39: Breakages and Losses Recovered | C39: 0 | D39: 0 | E39: 0 | F39: 0 | G39: 0 | H39: 0 | I39: 0 | J39: 0 | K39: 0 | L39: 0
A40: Collection Charges | C40: 0 | D40: 0 | E40: 0 | F40: 0 | G40: 0 | H40: 0 | I40: 0 | J40: 0 | K40: 0 | L40: 0
A41: Commission | C41: 0 | D41: 0 | E41: 0 | F41: 0 | G41: 0 | H41: 0 | I41: 0 | J41: 0 | K41: 0 | L41: 0
A42: Discounts and Early Settlements | C42: 0 | D42: 0 | E42: 0 | F42: 0 | G42: 0 | H42: 0 | I42: 0 | J42: 0 | K42: 0 | L42: 0
A43: Incidental Cash Surpluses | C43: 0 | D43: 0 | E43: 0 | F43: 0 | G43: 0 | H43: 0 | I43: 0 | J43: 0 | K43: 0 | L43: 0
A44: Inspection Fees | C44: 0 | D44: 0 | E44: 0 | F44: 0 | G44: 0 | H44: 0 | I44: 0 | J44: 0 | K44: 0 | L44: 0
A45: Registration Fees | C45: 0 | D45: 0 | E45: 0 | F45: 0 | G45: 0 | H45: 0 | I45: 0 | J45: 0 | K45: 0 | L45: 0
A46: Staff Recoveries | C46: 0 | D46: 0 | E46: 0 | F46: 0 | G46: 0 | H46: 0 | I46: 0 | J46: 0 | K46: 0 | L46: 0
A47: Request for Information | C47: 0 | D47: 0 | E47: 0 | F47: 0 | G47: 0 | H47: 0 | I47: 0 | J47: 0 | K47: 0 | L47: 0
A48: Insurance Refund | C48: 0 | D48: 0 | E48: 0 | F48: 0 | G48: 0 | H48: 0 | I48: 0 | J48: 0 | K48: 0 | L48: 0
A49: Sale of Property | C49: 0 | D49: 0 | E49: 0 | F49: 0 | G49: 0 | H49: 0 | I49: 0 | J49: 0 | K49: 0 | L49: 0
A50: Merchandising, Jobbing and Contracts | C50: 0 | D50: 0 | E50: 0 | F50: 0 | G50: 0 | H50: 0 | I50: 0 | J50: 0 | K50: 0 | L50: 0
A51: Bursary Repayment | C51: 0 | D51: 0 | E51: 0 | F51: 0 | G51: 0 | H51: 0 | I51: 0 | J51: 0 | K51: 0 | L51: 0
A52: Recovery Infrastructure Maintenance | C52: 0 | D52: 0 | E52: 0 | F52: 0 | G52: 0 | H52: 0 | I52: 0 | J52: 0 | K52: 0 | L52: 0
A53: Skills Development Levy Refund | C53: 0 | D53: 0 | E53: 0 | F53: 0 | G53: 0 | H53: 0 | I53: 0 | J53: 0 | K53: 0 | L53: 0
A54: Arbor City Awards Competition | C54: 0 | D54: 0 | E54: 0 | F54: 0 | G54: 0 | H54: 0 | I54: 0 | J54: 0 | K54: 0 | L54: 0
A55: Other Revenue | C55: 2290571 | D55: 0 | E55: 0 | F55: 100000 | G55: 10000 | H55: 10000 | I55: 10000 | J55: 0 | K55: 0 | L55: 0
A56: Total 'Other' Revenue | B56: 1 | C56: =SUM(C37:C55) -> 2290571 | D56: 0 | E56: 0 | F56: 100000 | G56: 10000 | H56: 10000 | I56: 10000 | J56: 0 | K56: 0 | L56: 0
A58: EXPENDITURE ITEMS:
A59: ='A4-FinPerf RE'!A24 -> Employee related costs
A60: Basic Salaries and Wages | B60: 2 | C60: =97324555.25-13766112.97 -> 83558442.28 | D60: 162967169 | E60: 180147265 | F60: 119007235.5 | G60: 121663000 | H60: 121663000 | I60: 121663000 | J60: 123822679.7 | K60: 130699523.2 | L60: 137985662.6
A61: Pension and UIF Contributions | C61: 16827177.24 | F61: 18593652.76 | G61: 18594000 | H61: 18594000 | I61: 18594000 | J61: 19669861.47 | K61: 20732776.57 | L61: 21858762.58
A62: Medical Aid Contributions | C62: 7027928.6 | F62: 8957386.23 | G62: 8957000 | H62: 8957000 | I62: 8957000 | J62: 8016232.97 | K62: 8467515.8 | L62: 8945698
A63: Overtime | C63: 1747138.06 | F63: 5605449.76 | G63: 5605000 | H63: 5605000 | I63: 5605000 | J63: 820811.27 | K63: 870059.95 | L63: 922263.54
A64: Performance Bonus | C64: 0 | F64: 0 | G64: 0 | H64: 0 | I64: 0 | J64: 0 | K64: 0 | L64: 0
A65: Motor Vehicle Allowance | C65: 12726821.56 | F65: 11895902.65 | G65: 11896000 | H65: 11896000 | I65: 11896000 | J65: 14041298.4 | K65: 14759460.74 | L65: 15519966.93
A66: Cellphone Allowance | C66: 806096.88 | F66: 810920 | G66: 811000 | H66: 811000 | I66: 811000 | J66: 958154.93 | K66: 993582.25 | L66: 1031002.85
A67: Housing Allowances | C67: 3711182.04 | F67: 4394964.82 | G67: 4395000 | H67: 4395000 | I67: 4395000 | J67: 2680878.95 | K67: 2834584.63 | L67: 2997469.78
A68: Other benefits and allowances | C68: 6751213.35 | F68: 13842848.22 | G68: 13843000 | H68: 13843000 | I68: 13843000 | J68: 24840878.15 | K68: 26293123.36 | L68: 27832274.03
A69: Payments in lieu of leave | C69: 20118944.99 | F69: 8820834.67 | G69: 8821000 | H69: 8821000 | I69: 8821000 | J69: 9244197.37 | K69: 9775937.62 | L69: 10339444.84
A70: Long service awards | C70: 0 | F70: 0 | G70: 0 | H70: 0 | I70: 0 | J70: 0 | K70: 0 | L70: 0
A71: Post-retirement benefit obligations | B71: 4 | C71: 0 | F71: 0 | G71: 0 | H71: 0 | I71: 0 | J71: 0 | K71: 0 | L71: 0
A72: sub-total | B72: 5 | C72: =SUM(C60:C71) -> 153274945 | D72: =SUM(D60:D71) -> 162967169 | E72: 180147265 | F72: 191929194.6 | G72: 194585000 | H72: 194585000 | I72: 194585000 | J72: 204094993.2 | K72: 215426564.2 | L72: 227432545.2
A73: Less: Employees costs capitalised to PPE | C73: 0 | D73: 0 | E73: 0 | F73: 0 | G73: 0 | H73: 0 | I73: 0 | J73: 0 | K73: 0 | L73: 0
